Workbook

Sheet Contents
A1: Administrative Data Based Population Estimates v3, Scotland 2016-2018: Interactive Charts
A3: Disclaimer: These figures are statistical research and not the official statistics on Scotland's population. The official population estimates can be found at: https://www.nrscotland.gov.uk/statistics-and-data/statistics/statistics-by-theme/population/population-estimates
A8: All graphs show the ABPE and the MYE, or the difference between them
A9: All graphs show 2016, 2017 and 2018, either as an option or as separate series
A10: All graphs break down by sex either as an option or as separate series
A11: All graphs breakdown by ages, either on the x-axis or as an option
A12: The 'by' variable is what is shown along the x-axis
A14: Graph | B14: Sheet | C14: Dropdown Options
A16: Council Area
A17: Population Pyramid for Council Area by single year of age | B17: Pyramid | C17: Council Area (inc Scotland), year
A18: Council Area Percentage Difference by 5-year age bands | B18: CA % 5-yr | C18: Council Area (inc Scotland), year
A19: Council Area Absolute Difference by 5-year age bands | B19: CA abs 5-yr | C19: Council Area (inc Scotland), year
A20: Council Area Percentage Difference by single year of age | B20: CA % 1-yr | C20: Council Area (inc Scotland), year
A21: Council Area Absolute Difference by single year of age | B21: CA abs 1-yr | C21: Council Area (inc Scotland), year
A22: Difference for Council Area between two years by single year cohort (age in 2016) | B22: CA change | C22: Council Area (inc Scotland), year from, year to
A24: Council Area and SIMD
A25: Council Area Percentage Difference by SIMD Decile | B25: CA by SIMD | C25: Council Area (inc Scotland), age band (inc all), year
A26: Spread of Percentage Difference Across Council Areas for age band by SIMD decile | B26: CA dist by SIMD | C26: Age band (inc all), sex (inc both), year
A28: SIMD
A29: SIMD Decile Percentage Difference by 5-year age bands | B29: SIMD % 5-yr | C29: SIMD decile, year
A30: SIMD Decile Absolute Difference by 5-year age bands | B30: SIMD abs 5-yr | C30: SIMD decile, year
A31: SIMD Decile Percentage Difference by single year of age | B31: SIMD % 1-yr | C31: SIMD decile, year
A32: SIMD Decile Absolute Difference by single year of age | B32: SIMD abs 1-yr | C32: SIMD decile, year
A34: Urban-Rural
A35: Urban-Rural Percentage Difference by 5-year age bands | B35: UR % 5-yr | C35: Urban-Rural 8-fold Classification, year
A36: Urban-Rural Absolute Difference by 5-year age bands | B36: UR abs 5-yr | C36: Urban-Rural 8-fold Classification, year
A37: Urban-Rural Percentage Difference by single year of age | B37: UR % 1-yr | C37: Urban-Rural 8-fold Classification, year
A38: Urban-Rural Absolute Difference by single year of age | B38: UR abs 1-yr | C38: Urban-Rural 8-fold Classification, year
A39: Percentage Difference for Age by Urban-Rural Classification | B39: Age by UR | C39: Age band (inc all), sex (inc both)
A41: These figures are published in 'Administrative Data Based Population Estimates using Version 3 Methodology, Scotland (2016-2018)', available from the National Records of Scotland website.
A42: ABPE = Administrative Data Based Population Estimates
A43: MYE = Mid-year estimates - the National Statistics for Scotland's population. Can be found at the Population Estimates section of the NRS website.

Sheet Notes
A1: Administrative Data Based Population Estimates, Scotland 2016-2018: Interactive Charts
A3: Disclaimer: These figures are statistical research and not the official statistics on Scotland's population. The official population estimates can be found at: https://www.nrscotland.gov.uk/statistics-and-data/statistics/statistics-by-theme/population/population-estimates
A7: These figures are published in 'Administrative Data Based Population Estimates using Version 3 Methodology, Scotland (2016-2018)', available from the National Records of Scotland website.
A8: A previous publication presented estimates for 2016-2018 based on version 2 of the ABPE methodology.
A10: For single year of age graphs, the values for age 90 include all ages 90 and above.
A12: The SIMD deciles are based on SIMD 2016. The Urban-Rural classifications are based on data-zone-based 2016 classifications.
A14: The change in the population by cohort extends to 87 years. The cohort that is aged 88 years in 2016 would be 90 in 2018.
A15: However, data for age exactly 90 is not available at council area level, as there is only data for ages 90+. Therefore the graph does not show cohorts aged 88 (or above) in the baseline year.
A17: Note that there are some council areas that do not have any data zones in some SIMD deciles.
A18: In particular, East Lothian, Moray and the island council areas do not have any data zones in SIMD decile 1, or some other deciles.
A19: Graphs that specifically relate to these council areas showing SIMD deciles will show a note related to this.
A21: In the box plot graphs of the distribution of the difference between the ABPE and MYE across council areas by SIMD decile, council areas that do not have data zones in a particular SIMD
A22: decile are not included in the calculation for that decile. The box shows the interquartile range, with the central line showing the median. The whisker shows the full range, excluding outliers.
A23: An outlier is defined as a council area that is more than 1.5 times the interquartile range below the lower quartile or above the upper quartile.
A24: Outlier council areas typically have very few datazones in the particular SIMD decile.
A26: ABPE = Administrative Data Based Population Estimates
A27: MYE = Mid-year estimates - the National Statistics for Scotland's population. Can be found at the Population Estimates section of the NRS website.

Sheet CA Comparison (hidden)
B1: UR | C1: =INDEX(O28:O60,O27) -> Scotland | H1: =CONCATENATE("Population Pyramid for ABPE and MYE for ",C1,", ",C2) -> Population Pyramid for ABPE and MYE for Scotland, 2016 | O1: 2016
B2: Year | C2: =INDEX(O1:O3,O4) -> 2016 | O2: 2017 | Q2: =CONCATENATE("Percentage difference between ABPE and MYE for ",C1," by age and sex ",C2) -> Percentage difference between ABPE and MYE for Scotland by age and sex 2016 | R2: =CONCATENATE("Difference between ABPE and MYE for ",C1," by age and sex ",C2) -> Difference between ABPE and MYE for Scotland by age and sex 2016
O3: 2018 | Q3: =CONCATENATE("Percentage difference between ABPE and MYE for ",C1," by 5-year age band and sex ",C2) -> Percentage difference between ABPE and MYE for Scotland by 5-year age band and sex 2016 | R3: =CONCATENATE("Difference between ABPE and MYE for ",C1," by 5-year age band and sex ",C2) -> Difference between ABPE and MYE for Scotland by 5-year age band and sex 2016
B4: =CONCATENATE("'ABPE LA ",$C$2,"'!$B$7:$Ah$98") -> 'ABPE LA 2016'!$B$7:$Ah$98 | C4: =CONCATENATE("'ABPE LA ",$C$2,"'!$ai$7:$bo$98") -> 'ABPE LA 2016'!$ai$7:$bo$98 | H4: Absolute difference | K4: =89/90 -> 0.9888888889 | L4: Pyramid | O4: 1 | U4: Percenatge difference | W4: Absolute difference
A5: Age | B5: ABPE - F | C5: ABPE - M | D5: MYE - F | E5: MYE - M | F5: Females | G5: Males | H5: Females | I5: Males | J5: Baseline | L5: ABPE - F | M5: MYE - F | P5: Age range | Q5: ABPE - F | R5: ABPE - M | S5: MYE - F | T5: MYE - M | U5: Females | V5: Males | W5: Females | X5: Males
A6: 0 | B6: =HLOOKUP($C$1,INDIRECT(B$4),$A6+2,0) -> 26532 | C6: =HLOOKUP($C$1,INDIRECT(C$4),$A6+2,0) -> 28468 | D6: =IF($C$1="Scotland",SUM(INDIRECT("'MYE "&$C$2&" F'!D"&A6+10&":JHK"&A6+10)),SUMIF(INDIRECT("'MYE "&$C$2&" F'!$D$5:$JHK$5"),$C$1,INDIRECT("'MYE "&$C$2&" F'!D"&A6+10&":JHK"&A6+10))) -> 26819 | E6: =IF($C$1="Scotland",SUM(INDIRECT("'MYE "&$C$2&" M'!D"&A6+10&":JHK"&A6+10)),SUMIF(INDIRECT("'MYE "&$C$2&" M'!$D$5:$JHK$5"),$C$1,INDIRECT("'MYE "&$C$2&" M'!D"&A6+10&":JHK"&A6+10))) -> 28697 | F6: =(B6-D6)/D6 -> -0.01070136843 | G6: =(C6-E6)/E6 -> -0.007979928215 | H6: =B6-D6 -> -287 | I6: =C6-E6 -> -229 | J6: 0 | K6: 0.5 | L6: =-B6 -> -26532 | M6: =-D6 -> -26819 | O6: 0 | P6: =CONCATENATE(O6," - ",O6+4) -> 0 - 4 | Q6: =SUMIFS(B$6:B$96,$A$6:$A$96,">=" & $O6,$A$6:$A$96,"<" & $O7) -> 136801 | R6: =SUMIFS(C$6:C$96,$A$6:$A$96,">=" & $O6,$A$6:$A$96,"<" & $O7) -> 144674 | S6: =SUMIFS(D$6:D$96,$A$6:$A$96,">=" & $O6,$A$6:$A$96,"<" & $O7) -> 139711 | T6: =SUMIFS(E$6:E$96,$A$6:$A$96,">=" & $O6,$A$6:$A$96,"<" & $O7) -> 147527 | U6: =(Q6-S6)/S6 -> -0.0208287107 | V6: =(R6-T6)/T6 -> -0.01933883289 | W6: =Q6-S6 -> -2910 | X6: =R6-T6 -> -2853
A7: 1 | B7: =HLOOKUP($C$1,INDIRECT(B$4),$A7+2,0) -> 26775 | C7: =HLOOKUP($C$1,INDIRECT(C$4),$A7+2,0) -> 28247 | D7: =IF($C$1="Scotland",SUM(INDIRECT("'MYE "&$C$2&" F'!D"&A7+10&":JHK"&A7+10)),SUMIF(INDIRECT("'MYE "&$C$2&" F'!$D$5:$JHK$5"),$C$1,INDIRECT("'MYE "&$C$2&" F'!D"&A7+10&":JHK"&A7+10))) -> 27567 | E7: =IF($C$1="Scotland",SUM(INDIRECT("'MYE "&$C$2&" M'!D"&A7+10&":JHK"&A7+10)),SUMIF(INDIRECT("'MYE "&$C$2&" M'!$D$5:$JHK$5"),$C$1,INDIRECT("'MYE "&$C$2&" M'!D"&A7+10&":JHK"&A7+10))) -> 29017 | F7: =(B7-D7)/D7 -> -0.02873000326 | G7: =(C7-E7)/E7 -> -0.02653616845 | H7: =B7-D7 -> -792 | I7: =C7-E7 -> -770 | J7: 0 | K7: =K6+$K$4 -> 1.488888889 | L7: =-B7 -> -26775 | M7: =-D7 -> -27567 | O7: =O6+5 -> 5 | P7: =CONCATENATE(O7," - ",O7+4) -> 5 - 9 | Q7: 144539 | R7: 150861 | S7: 146570 | T7: 152292 | U7: =(Q7-S7)/S7 -> -0.0138568602 | V7: =(R7-T7)/T7 -> -0.009396422662 | W7: =Q7-S7 -> -2031 | X7: =R7-T7 -> -1431
A8: 2 | B8: =HLOOKUP($C$1,INDIRECT(B$4),$A8+2,0) -> 27082 | C8: 28674 | D8: 27788 | E8: 29377 | F8: -0.02540665035 | G8: -0.0239302856 | H8: -706 | I8: -703 | J8: 0 | K8: =K7+$K$4 -> 2.477777778 | L8: -27082 | M8: -27788 | O8: =O7+5 -> 10 | P8: 10 - 14 | Q8: 133112 | R8: 139629 | S8: 133997 | T8: 140381 | U8: -0.006604625477 | V8: -0.005356850286 | W8: -885 | X8: -752
A9: 3 | B9: 27838 | C9: 29068 | D9: 28504 | E9: 29728 | F9: -0.02336514173 | G9: -0.02220129171 | H9: -666 | I9: -660 | J9: 0 | K9: 3.466666667 | L9: -27838 | M9: -28504 | O9: 15 | P9: 15 - 19 | Q9: 143802 | R9: 148809 | S9: 146046 | T9: 152614 | U9: -0.01536502198 | V9: -0.02493218184 | W9: -2244 | X9: -3805
A10: 4 | B10: 28574 | C10: 30217 | D10: 29033 | E10: 30708 | F10: -0.01580959598 | G10: -0.01598931874 | H10: -459 | I10: -491 | J10: 0 | K10: 4.455555556 | L10: -28574 | M10: -29033 | O10: 20 | P10: 20 - 24 | Q10: 178986 | R10: 173830 | S10: 182279 | T10: 181688 | U10: -0.01806571245 | V10: -0.04324996698 | W10: -3293 | X10: -7858
A11: 5 | B11: 28703 | C11: 30212 | D11: 30162 | E11: 31533 | F11: -0.04837212386 | G11: -0.04189262043 | H11: -1459 | I11: -1321 | J11: 0 | K11: 5.444444444 | L11: -28703 | M11: -30162 | O11: 25 | P11: 25 - 29 | Q11: 183614 | R11: 181268 | S11: 187975 | T11: 186149 | U11: -0.0231998936 | V11: -0.02622093054 | W11: =Q11-S11 -> -4361 | X11: -4881
A12: 6 | B12: 29184 | C12: 30159 | D12: 28855 | E12: 29946 | F12: 0.01140183677 | G12: 0.007112803045 | H12: 329 | I12: 213 | J12: 0 | K12: 6.433333333 | L12: -29184 | M12: -28855 | O12: 30 | P12: 30 - 34 | Q12: 179967 | R12: 177384 | S12: 179608 | T12: 172305 | U12: 0.001998797381 | V12: 0.02947679986 | W12: 359 | X12: 5079
A13: 7 | B13: 29139 | C13: 30487 | D13: 29683 | E13: 30653 | F13: -0.01832698851 | G13: -0.005415456888 | H13: -544 | I13: -166 | J13: 0 | K13: 7.422222222 | L13: -29139 | M13: -29683 | O13: 35 | P13: 35 - 39 | Q13: 166829 | R13: 167503 | S13: 166485 | T13: 161268 | U13: 0.002066252215 | V13: 0.03866235087 | W13: 344 | X13: 6235
A14: 8 | B14: 29347 | C14: 30335 | D14: 29598 | E14: 30586 | F14: -0.008480302723 | G14: -0.008206368927 | H14: -251 | I14: -251 | J14: 0 | K14: 8.411111111 | L14: -29347 | M14: -29598 | O14: 40 | P14: 40 - 44 | Q14: 171247 | R14: 169507 | S14: 172709 | T14: 164929 | U14: -0.008465106045 | V14: 0.02775739864 | W14: -1462 | X14: 4578
A15: 9 | B15: 28166 | C15: 29668 | D15: 28272 | E15: 29574 | F15: -0.003749292586 | G15: 0.003178467573 | H15: -106 | I15: 94 | J15: 0 | K15: 9.4 | L15: -28166 | M15: -28272 | O15: 45 | P15: 45 - 49 | Q15: 199953 | R15: 196031 | S15: 202829 | T15: 189422 | U15: -0.01417943194 | V15: 0.03489035065 | W15: -2876 | X15: 6609
A16: 10 | B16: 27447 | C16: 28650 | D16: 27796 | E16: 28838 | F16: -0.01255576342 | G16: -0.006519176087 | H16: -349 | I16: -188 | J16: 0 | K16: 10.38888889 | L16: -27447 | M16: -27796 | O16: 50 | P16: 50 - 54 | Q16: 208201 | R16: 206755 | S16: 209262 | T16: 197429 | U16: -0.005070199081 | V16: 0.04723723465 | W16: -1061 | X16: 9326
A17: 11 | B17: 26912 | C17: 28677 | D17: 27257 | E17: 28885 | F17: -0.01265729904 | G17: -0.007200969361 | H17: -345 | I17: -208 | J17: 0 | K17: 11.37777778 | L17: -26912 | M17: -27257 | O17: 55 | P17: 55 - 59 | Q17: 188982 | R17: 185639 | S17: 190084 | T17: 180737 | U17: -0.005797436923 | V17: 0.02712228265 | W17: -1102 | X17: 4902
A18: 12 | B18: 26724 | C18: 28209 | D18: 26739 | E18: 28344 | F18: -0.0005609783462 | G18: -0.004762912786 | H18: -15 | I18: -135 | J18: 0 | K18: 12.36666667 | L18: -26724 | M18: -26739 | O18: 60 | P18: 60 - 64 | Q18: 162760 | R18: 158145 | S18: 165146 | T18: 156406 | U18: -0.01444782193 | V18: 0.01111849929 | W18: -2386 | X18: 1739
A19: 13 | B19: 26095 | C19: 27150 | D19: 26167 | E19: 27231 | F19: -0.002751557305 | G19: -0.002974551063 | H19: -72 | I19: -81 | J19: 0 | K19: 13.35555556 | L19: -26095 | M19: -26167 | O19: 65 | P19: 65 - 69 | Q19: 159661 | R19: 151115 | S19: 164057 | T19: 153467 | U19: -0.02679556496 | V19: -0.01532577036 | W19: -4396 | X19: -2352
A20: 14 | B20: 25934 | C20: 26943 | D20: 26038 | E20: 27083 | F20: -0.003994162378 | G20: -0.005169294391 | H20: -104 | I20: -140 | J20: 0 | K20: 14.34444444 | L20: -25934 | M20: -26038 | O20: 70 | P20: 70 - 74 | Q20: 123105 | R20: 108960 | S20: 127150 | T20: 111869 | U20: -0.0318128195 | V20: -0.02600362924 | W20: -4045 | X20: -2909
A21: 15 | B21: 26874 | C21: 27845 | D21: 27243 | E21: 28196 | F21: -0.01354476379 | G21: -0.01244857427 | H21: -369 | I21: -351 | J21: 0 | K21: 15.33333333 | L21: -26874 | M21: -27243 | O21: 75 | P21: 75 - 79 | Q21: 100914 | R21: 79780 | S21: 104331 | T21: 82515 | U21: -0.03275153118 | V21: -0.0331454887 | W21: -3417 | X21: -2735
A22: 16 | B22: 27113 | C22: 28689 | D22: 27563 | E22: 29300 | F22: -0.01632623444 | G22: -0.02085324232 | H22: -450 | I22: -611 | J22: 0 | K22: 16.32222222 | L22: -27113 | M22: -27563 | O22: 80 | P22: 80 - 84 | Q22: 77119 | R22: 53942 | S22: 80217 | T22: 56201 | U22: -0.03862024259 | V22: -0.04019501432 | W22: -3098 | X22: -2259
A23: 17 | B23: 28153 | C23: 29288 | D23: 28702 | E23: 30279 | F23: -0.01912758693 | G23: -0.03272895406 | H23: -549 | I23: -991 | J23: 0 | K23: 17.31111111 | L23: -28153 | M23: -28702 | O23: 85 | P23: 85 - 89 | Q23: 48017 | R23: 27129 | S23: 49691 | T23: 28287 | U23: -0.03368819303 | V23: -0.04093753314 | W23: -1674 | X23: -1158
A24: 18 | B24: 29170 | C24: 30191 | D24: 29789 | E24: 31162 | F24: -0.02077948236 | G24: -0.03115974584 | H24: -619 | I24: -971 | J24: 0 | K24: 18.3 | L24: -29170 | M24: -29789 | O24: 90 | P24: 90+ | Q24: 27250 | R24: 10795 | S24: 29050 | T24: 12017 | U24: -0.06196213425 | V24: -0.1016892735 | W24: -1800 | X24: -1222
A25: 19 | B25: 32492 | C25: 32796 | D25: 32749 | E25: 33677 | F25: -0.007847567865 | G25: -0.02616028744 | H25: -257 | I25: -881 | J25: 0 | K25: 19.28888889 | L25: -32492 | M25: -32749 | O25: 95
A26: 20 | B26: 33384 | C26: 32674 | D26: 33871 | E26: 34653 | F26: -0.01437808154 | G26: -0.05710905261 | H26: -487 | I26: -1979 | J26: 0 | K26: 20.27777778 | L26: -33384 | M26: -33871
A27: 21 | B27: 34657 | C27: 33695 | D27: 34923 | E27: 35175 | F27: -0.007616756865 | G27: -0.0420753376 | H27: -266 | I27: -1480 | J27: 0 | K27: 21.26666667 | L27: -34657 | M27: -34923 | O27: 33
A28: 22 | B28: 36124 | C28: 35166 | D28: 36314 | E28: 36261 | F28: -0.005232141874 | G28: -0.0301977331 | H28: -190 | I28: -1095 | J28: 0 | K28: 22.25555556 | L28: -36124 | M28: -36314 | O28: Aberdeen City
A29: 23 | B29: 36959 | C29: 35415 | D29: 37631 | E29: 36791 | F29: -0.01785761739 | G29: -0.0374004512 | H29: -672 | I29: -1376 | J29: 0 | K29: 23.24444444 | L29: -36959 | M29: -37631 | O29: Aberdeenshire
A30: 24 | B30: 37862 | C30: 36880 | D30: 39540 | E30: 38808 | F30: -0.04243803743 | G30: -0.04968047825 | H30: -1678 | I30: -1928 | J30: 0 | K30: 24.23333333 | L30: -37862 | M30: -39540 | O30: Angus
A31: 25 | B31: 37574 | C31: 36843 | D31: 38982 | E31: 39073 | F31: -0.03611923452 | G31: -0.05707265887 | H31: -1408 | I31: -2230 | J31: 0 | K31: 25.22222222 | L31: -37574 | M31: -38982 | O31: Argyll and Bute
A32: 26 | B32: 36412 | C32: 35731 | D32: 37498 | E32: 37445 | F32: -0.02896154462 | G32: -0.04577380158 | H32: -1086 | I32: -1714 | J32: 0 | K32: 26.21111111 | L32: -36412 | M32: -37498 | O32: City of Edinburgh
A33: 27 | B33: 36093 | C33: 35700 | D33: 37318 | E33: 37102 | F33: -0.0328259821 | G33: -0.03778772034 | H33: -1225 | I33: -1402 | J33: 0 | K33: 27.2 | L33: -36093 | M33: -37318 | O33: Clackmannanshire
A34: 28 | B34: 36946 | C34: 36706 | D34: 37556 | E34: 36957 | F34: -0.01624241133 | G34: -0.006791676814 | H34: -610 | I34: -251 | J34: 0 | K34: 28.18888889 | L34: -36946 | M34: -37556 | O34: Dumfries and Galloway
A35: 29 | B35: 36589 | C35: 36288 | D35: 36621 | E35: 35572 | F35: -0.0008738155703 | G35: 0.02012819071 | H35: -32 | I35: 716 | J35: 0 | K35: 29.17777778 | L35: -36589 | M35: -36621 | O35: Dundee City
A36: 30 | B36: 36307 | C36: 36243 | D36: 36099 | E36: 35467 | F36: 0.005761932464 | G36: 0.02187949361 | H36: 208 | I36: 776 | J36: 0 | K36: 30.16666667 | L36: -36307 | M36: -36099 | O36: East Ayrshire
A37: 31 | B37: 36621 | C37: 35801 | D37: 36312 | E37: 34774 | F37: 0.008509583609 | G37: 0.02953355956 | H37: 309 | I37: 1027 | J37: 0 | K37: 31.15555556 | L37: -36621 | M37: -36312 | O37: East Dunbartonshire
A38: 32 | B38: 35533 | C38: 35115 | D38: 35089 | E38: 33786 | F38: 0.01265353815 | G38: 0.03933581957 | H38: 444 | I38: 1329 | J38: 0 | K38: 32.14444444 | L38: -35533 | M38: -35089 | O38: East Lothian
A39: 33 | B39: =HLOOKUP($C$1,INDIRECT(B$4),$A39+2,0) -> 35669 | C39: 34968 | D39: 35723 | E39: 34032 | F39: -0.001511631162 | G39: 0.02750352609 | H39: -54 | I39: 936 | J39: 0 | K39: 33.13333333 | L39: -35669 | M39: -35723 | O39: East Renfrewshire
A40: 34 | B40: 35837 | C40: 35257 | D40: 36385 | E40: 34246 | F40: -0.01506115157 | G40: 0.02952169596 | H40: -548 | I40: 1011 | J40: 0 | K40: 34.12222222 | L40: -35837 | M40: -36385 | O40: Falkirk
A41: 35 | B41: 35951 | C41: 35882 | D41: 35753 | E41: 34347 | F41: 0.005537996811 | G41: 0.04469094826 | H41: 198 | I41: 1535 | J41: 0 | K41: 35.11111111 | L41: -35951 | M41: -35753 | O41: Fife
A42: 36 | B42: 35118 | C42: 35243 | D42: 34995 | E42: 33701 | F42: 0.003514787827 | G42: 0.04575531883 | H42: 123 | I42: 1542 | J42: 0 | K42: 36.1 | L42: -35118 | M42: -34995 | O42: Glasgow City
A43: 37 | B43: 33630 | C43: 34253 | D43: 33471 | E43: 32926 | F43: 0.004750380927 | G43: 0.04030249651 | H43: 159 | I43: 1327 | J43: 0 | K43: 37.08888889 | L43: -33630 | M43: -33471 | O43: Highland
A44: 38 | B44: 31741 | C44: 31263 | D44: 31663 | E44: 30125 | F44: 0.002463443136 | G44: 0.03777593361 | H44: 78 | I44: 1138 | J44: 0 | K44: 38.07777778 | L44: -31741 | M44: -31663 | O44: Inverclyde
A45: 39 | B45: 30389 | C45: 30862 | D45: 30603 | E45: 30169 | F45: -0.006992778486 | G45: 0.02297059896 | H45: -214 | I45: 693 | J45: 0 | K45: 39.06666667 | L45: -30389 | M45: -30603 | O45: Midlothian
A46: 40 | B46: 32430 | C46: 32378 | D46: 32622 | E46: 31504 | F46: -0.005885598676 | G46: 0.02774250889 | H46: -192 | I46: 874 | J46: 0 | K46: 40.05555556 | L46: -32430 | M46: -32622 | O46: Moray
A47: 41 | B47: 32905 | C47: 32447 | D47: 33160 | E47: 31398 | F47: -0.007689987937 | G47: 0.03340977132 | H47: -255 | I47: 1049 | J47: 0 | K47: 41.04444444 | L47: -32905 | M47: -33160 | O47: Na h-Eileanan Siar
A48: 42 | B48: 33075 | C48: 33087 | D48: 33272 | E48: 32214 | F48: -0.005920894446 | G48: 0.02710001863 | H48: -197 | I48: 873 | J48: 0 | K48: 42.03333333 | L48: -33075 | M48: -33272 | O48: North Ayrshire
A49: 43 | B49: 35248 | C49: 34912 | D49: 35532 | E49: 34054 | F49: -0.007992795227 | G49: 0.02519527809 | H49: -284 | I49: 858 | J49: 0 | K49: 43.02222222 | L49: -35248 | M49: -35532 | O49: North Lanarkshire
A50: 44 | B50: 37589 | C50: 36683 | D50: 38123 | E50: 35759 | F50: -0.01400729219 | G50: 0.02583964876 | H50: -534 | I50: 924 | J50: 0 | K50: 44.01111111 | L50: -37589 | M50: -38123 | O50: Orkney Islands
A51: 45 | B51: 39287 | C51: 38368 | D51: 39905 | E51: 36884 | F51: -0.01548678111 | G51: 0.04023424791 | H51: -618 | I51: 1484 | J51: 0 | K51: 45 | L51: -39287 | M51: -39905 | O51: Perth and Kinross
A52: 46 | B52: 38776 | C52: 38011 | D52: 39222 | E52: 36481 | F52: -0.01137116924 | G52: 0.04193963981 | H52: -446 | I52: 1530 | J52: 0 | K52: 45.98888889 | L52: -38776 | M52: -39222 | O52: Renfrewshire
A53: 47 | B53: 40123 | C53: 39407 | D53: 40801 | E53: 37985 | F53: -0.01661723977 | G53: 0.03743582993 | H53: -678 | I53: 1422 | J53: 0 | K53: 46.97777778 | L53: -40123 | M53: -40801 | O53: Scottish Borders
A54: 48 | B54: 40939 | C54: 39782 | D54: 41543 | E54: 38668 | F54: -0.0145391522 | G54: 0.0288093514 | H54: -604 | I54: 1114 | J54: 0 | K54: 47.96666667 | L54: -40939 | M54: -41543 | O54: Shetland Islands
A55: 49 | B55: 40828 | C55: 40463 | D55: 41358 | E55: 39404 | F55: -0.01281493302 | G55: 0.02687544412 | H55: -530 | I55: 1059 | J55: 0 | K55: 48.95555556 | L55: -40828 | M55: -41358 | O55: South Ayrshire
A56: 50 | B56: 41251 | C56: 41413 | D56: 41391 | E56: 38795 | F56: -0.003382377812 | G56: 0.06748292306 | H56: -140 | I56: 2618 | J56: 0 | K56: 49.94444444 | L56: -41251 | M56: -41391 | O56: South Lanarkshire
A57: 51 | B57: 42408 | C57: 42100 | D57: 42646 | E57: 40421 | F57: -0.005580828214 | G57: 0.0415378145 | H57: -238 | I57: 1679 | J57: 0 | K57: 50.93333333 | L57: -42408 | M57: -42646 | O57: Stirling
A58: 52 | B58: 42292 | C58: 41724 | D58: 42441 | E58: 39547 | F58: -0.003510756108 | G58: 0.05504842339 | H58: -149 | I58: 2177 | J58: 0 | K58: 51.92222222 | L58: -42292 | M58: -42441 | O58: West Dunbartonshire
A59: 53 | B59: 41745 | C59: 40893 | D59: 42060 | E59: 39588 | F59: -0.007489300999 | G59: 0.03296453471 | H59: -315 | I59: 1305 | J59: 0 | K59: 52.91111111 | L59: -41745 | M59: -42060 | O59: West Lothian
A60: 54 | B60: 40505 | C60: 40625 | D60: 40724 | E60: 39078 | F60: -0.005377664277 | G60: 0.03958749168 | H60: -219 | I60: 1547 | J60: 0 | K60: 53.9 | L60: -40505 | M60: -40724 | O60: Scotland
A61: 55 | B61: 39714 | C61: 39010 | D61: 39939 | E61: 38031 | F61: -0.005633591227 | G61: 0.02574215771 | H61: -225 | I61: 979 | J61: 0 | K61: 54.88888889 | L61: -39714 | M61: -39939
A62: 56 | B62: 38260 | C62: 38195 | D62: 38427 | E62: 36862 | F62: -0.004345902621 | G62: 0.03616190114 | H62: -167 | I62: 1333 | J62: 0 | K62: 55.87777778 | L62: -38260 | M62: -38427
A63: 57 | B63: 38198 | C63: 37341 | D63: 38397 | E63: 36217 | F63: -0.005182696565 | G63: 0.03103514924 | H63: -199 | I63: 1124 | J63: 0 | K63: 56.86666667 | L63: -38198 | M63: -38397
A64: 58 | B64: 37061 | C64: 36061 | D64: 37263 | E64: 35210 | F64: -0.005420926925 | G64: 0.02416927009 | H64: -202 | I64: 851 | J64: 0 | K64: 57.85555556 | L64: -37061 | M64: -37263
A65: 59 | B65: 35749 | C65: 35032 | D65: 36058 | E65: 34417 | F65: -0.008569526873 | G65: 0.01786907633 | H65: -309 | I65: 615 | J65: 0 | K65: 58.84444444 | L65: -35749 | M65: -36058
A66: 60 | B66: 34519 | C66: 33844 | D66: 34941 | E66: 33311 | F66: -0.01207750207 | G66: 0.01600072048 | H66: -422 | I66: 533 | J66: 0 | K66: 59.83333333 | L66: -34519 | M66: -34941
A67: 61 | B67: 33333 | C67: 32193 | D67: 33606 | E67: 31726 | F67: -0.008123549366 | G67: 0.01471978819 | H67: -273 | I67: 467 | J67: 0 | K67: 60.82222222 | L67: -33333 | M67: -33606
A68: 62 | B68: 32573 | C68: 31689 | D68: 33002 | E68: 31363 | F68: -0.01299921217 | G68: 0.0103944138 | H68: -429 | I68: 326 | J68: 0 | K68: 61.81111111 | L68: -32573 | M68: -33002
A69: 63 | B69: 31802 | C69: 30888 | D69: 32395 | E69: 30581 | F69: -0.01830529403 | G69: 0.01003891305 | H69: -593 | I69: 307 | J69: 0 | K69: 62.8 | L69: -31802 | M69: -32395
A70: 64 | B70: 30533 | C70: 29531 | D70: 31202 | E70: 29425 | F70: -0.02144093327 | G70: 0.003602378929 | H70: -669 | I70: 106 | J70: 0 | K70: 63.78888889 | L70: -30533 | M70: -31202
A71: 65 | B71: =HLOOKUP($C$1,INDIRECT(B$4),$A71+2,0) -> 30743 | C71: 29328 | D71: =IF($C$1="Scotland",SUM(INDIRECT("'MYE "&$C$2&" F'!D"&A71+10&":JHK"&A71+10)),SUMIF(INDIRECT("'MYE "&$C$2&" F'!$D$5:$JHK$5"),$C$1,INDIRECT("'MYE "&$C$2&" F'!D"&A71+10&":JHK"&A71+10))) -> 31507 | E71: =IF($C$1="Scotland",SUM(INDIRECT("'MYE "&$C$2&" M'!D"&A71+10&":JHK"&A71+10)),SUMIF(INDIRECT("'MYE "&$C$2&" M'!$D$5:$JHK$5"),$C$1,INDIRECT("'MYE "&$C$2&" M'!D"&A71+10&":JHK"&A71+10))) -> 29569 | F71: =(B71-D71)/D71 -> -0.02424857968 | G71: =(C71-E71)/E71 -> -0.008150427813 | H71: =B71-D71 -> -764 | I71: =C71-E71 -> -241 | J71: 0 | K71: 64.77777778 | L71: =-B71 -> -30743 | M71: =-D71 -> -31507
A72: 66 | B72: 30416 | C72: 29184 | D72: 31414 | E72: 29668 | F72: -0.03176927485 | G72: -0.01631387353 | H72: -998 | I72: -484 | J72: 0 | K72: =K71+$K$4 -> 65.76666667 | L72: -30416 | M72: -31414
A73: 67 | B73: 31159 | C73: 29719 | D73: 32127 | E73: 30193 | F73: -0.0301304199 | G73: -0.01569900308 | H73: -968 | I73: -474 | J73: 0 | K73: 66.75555556 | L73: -31159 | M73: -32127
A74: 68 | B74: 32359 | C74: 30373 | D74: 33103 | E74: 30916 | F74: -0.02247530435 | G74: -0.01756372105 | H74: -744 | I74: -543 | J74: 0 | K74: 67.74444444 | L74: -32359 | M74: -33103
A75: 69 | B75: 34984 | C75: 32511 | D75: 35906 | E75: 33121 | F75: -0.02567815964 | G75: -0.01841731832 | H75: -922 | I75: -610 | J75: 0 | K75: 68.73333333 | L75: -34984 | M75: -35906
A76: 70 | B76: 26076 | C76: 24059 | D76: 26974 | E76: 24797 | F76: -0.03329131757 | G76: -0.02976166472 | H76: -898 | I76: -738 | J76: 0 | K76: 69.72222222 | L76: -26076 | M76: -26974
A77: 71 | B77: 24884 | C77: 22312 | D77: 25687 | E77: 22863 | F77: -0.03126094912 | G77: -0.02410007436 | H77: -803 | I77: -551 | J77: 0 | K77: 70.71111111 | L77: -24884 | M77: -25687
A78: 72 | B78: 25097 | C78: 22685 | D78: 25970 | E78: 23308 | F78: -0.03361571044 | G78: -0.02672902008 | H78: -873 | I78: -623 | J78: 0 | K78: 71.7 | L78: -25097 | M78: -25970
A79: 73 | B79: 24598 | C79: 20988 | D79: 25265 | E79: 21528 | F79: -0.02640015832 | G79: -0.02508361204 | H79: -667 | I79: -540 | J79: 0 | K79: 72.68888889 | L79: -24598 | M79: -25265
A80: 74 | B80: 22450 | C80: 18916 | D80: 23254 | E80: 19373 | F80: -0.03457469683 | G80: -0.02358953182 | H80: -804 | I80: -457 | J80: 0 | K80: 73.67777778 | L80: -22450 | M80: -23254
A81: 75 | B81: 20917 | C81: 16982 | D81: 21636 | E81: 17496 | F81: -0.03323165095 | G81: -0.02937814358 | H81: -719 | I81: -514 | J81: 0 | K81: 74.66666667 | L81: -20917 | M81: -21636
A82: 76 | B82: 21073 | C82: 16994 | D82: 21833 | E82: 17603 | F82: -0.03480969175 | G82: -0.03459637562 | H82: -760 | I82: -609 | J82: 0 | K82: 75.65555556 | L82: -21073 | M82: -21833
A83: 77 | B83: 20439 | C83: 16285 | D83: 21118 | E83: 16869 | F83: -0.03215266597 | G83: -0.03461971664 | H83: -679 | I83: -584 | J83: 0 | K83: 76.64444444 | L83: -20439 | M83: -21118
A84: 78 | B84: 19794 | C84: 15575 | D84: 20348 | E84: 16115 | F84: -0.02722626302 | G84: -0.03350915296 | H84: -554 | I84: -540 | J84: 0 | K84: 77.63333333 | L84: -19794 | M84: -20348
A85: 79 | B85: 18691 | C85: 13944 | D85: 19396 | E85: 14432 | F85: -0.03634770056 | G85: -0.03381374723 | H85: -705 | I85: -488 | J85: 0 | K85: 78.62222222 | L85: -18691 | M85: -19396
A86: 80 | B86: 17749 | C86: 13047 | D86: 18453 | E86: 13546 | F86: -0.03815097816 | G86: -0.03683744279 | H86: -704 | I86: -499 | J86: 0 | K86: 79.61111111 | L86: -17749 | M86: -18453
A87: 81 | B87: 16531 | C87: 11951 | D87: 17214 | E87: 12469 | F87: -0.03967700709 | G87: -0.04154302671 | H87: -683 | I87: -518 | J87: 0 | K87: 80.6 | L87: -16531 | M87: -17214
A88: 82 | B88: 15284 | C88: 10628 | D88: 15965 | E88: 11120 | F88: -0.04265580958 | G88: -0.04424460432 | H88: -681 | I88: -492 | J88: 0 | K88: 81.58888889 | L88: -15284 | M88: -15965
A89: 83 | B89: 14091 | C89: 9627 | D89: 14544 | E89: 9975 | F89: -0.03114686469 | G89: -0.03488721805 | H89: -453 | I89: -348 | J89: 0 | K89: 82.57777778 | L89: -14091 | M89: -14544
A90: 84 | B90: 13464 | C90: 8689 | D90: 14041 | E90: 9091 | F90: -0.04109393918 | G90: -0.0442195578 | H90: -577 | I90: -402 | J90: 0 | K90: 83.56666667 | L90: -13464 | M90: -14041
A91: 85 | B91: 12205 | C91: 7597 | D91: 12678 | E91: 7894 | F91: -0.03730872377 | G91: -0.03762351153 | H91: -473 | I91: -297 | J91: 0 | K91: 84.55555556 | L91: -12205 | M91: -12678
A92: 86 | B92: 10881 | C92: 6301 | D92: 11277 | E92: 6573 | F92: -0.03511572227 | G92: -0.04138140879 | H92: -396 | I92: -272 | J92: 0 | K92: 85.54444444 | L92: -10881 | M92: -11277
A93: 87 | B93: 9557 | C93: 5382 | D93: 9897 | E93: 5635 | F93: -0.0343538446 | G93: -0.04489795918 | H93: -340 | I93: -253 | J93: 0 | K93: 86.53333333 | L93: -9557 | M93: -9897
A94: 88 | B94: 8195 | C94: 4306 | D94: 8421 | E94: 4454 | F94: -0.02683766774 | G94: -0.0332285586 | H94: -226 | I94: -148 | J94: 0 | K94: 87.52222222 | L94: -8195 | M94: -8421
A95: 89 | B95: 7179 | C95: 3543 | D95: 7418 | E95: 3731 | F95: -0.03221892693 | G95: -0.05038863575 | H95: -239 | I95: -188 | J95: 0 | K95: 88.51111111 | L95: -7179 | M95: -7418
A96: 90 | B96: 27250 | C96: 10795 | D96: 29050 | E96: 12017 | F96: -0.06196213425 | G96: -0.1016892735 | H96: -1800 | I96: -1222 | J96: 0 | K96: 89.5 | L96: -27250 | M96: -29050
B97: =SUM(B6:B96) -> 2734859 | C97: =SUM(C6:C96) -> 2631756 | D97: =SUM(D6:D96) -> 2777197 | E97: =SUM(E6:E96) -> 2627503 | L97: -2734859

Sheet UR Comparison (hidden)
B1: Category | C1: =INDEX(L28:L35,L27) -> Accessible Rural | L1: 2016
B2: Year | C2: =INDEX(L1:L3,L4) -> 2016 | L2: 2017 | N2: =CONCATENATE("Percentage difference between ABPE and MYE for ",C1," by age and sex ",C2) -> Percentage difference between ABPE and MYE for Accessible Rural by age and sex 2016 | O2: =CONCATENATE("Difference between ABPE and MYE for ",C1," by age and sex ",C2) -> Difference between ABPE and MYE for Accessible Rural by age and sex 2016
L3: 2018 | N3: =CONCATENATE("Percentage difference between ABPE and MYE for ",C1," by 5-year age band and sex ",C2) -> Percentage difference between ABPE and MYE for Accessible Rural by 5-year age band and sex 2016 | O3: =CONCATENATE("Difference between ABPE and MYE for ",C1," by 5-year age band and sex ",C2) -> Difference between ABPE and MYE for Accessible Rural by 5-year age band and sex 2016
B4: =CONCATENATE("'ABPE UR ",$C$2,"'!$B$7:$I$98") -> 'ABPE UR 2016'!$B$7:$I$98 | C4: =CONCATENATE("'ABPE UR ",$C$2,"'!$j$7:$bm$98") -> 'ABPE UR 2016'!$j$7:$bm$98 | H4: Absolute difference | L4: 1 | R4: Percenatge difference | T4: Absolute difference
A5: Age | B5: ABPE - F | C5: ABPE - M | D5: MYE - F | E5: MYE - M | F5: Females | G5: Males | H5: Females | I5: Males | J5: Baseline | M5: Age range | N5: ABPE - F | O5: ABPE - M | P5: MYE - F | Q5: MYE - M | R5: Females | S5: Males | T5: Females | U5: Males
A6: 0 | B6: =HLOOKUP($C$1,INDIRECT(B$4),$A6+2,0) -> 2778 | C6: =HLOOKUP($C$1,INDIRECT(C$4),$A6+2,0) -> 2978 | D6: =SUMIF(INDIRECT("'MYE "&$C$2&" F'!$D$7:$JHK$7"),$L$36,INDIRECT("'MYE "&$C$2&" F'!D"&$A6+10&":JHK"&$A6+10)) -> 2762 | E6: =SUMIF(INDIRECT("'MYE "&$C$2&" M'!$D$7:$JHK$7"),$L$36,INDIRECT("'MYE "&$C$2&" M'!D"&$A6+10&":JHK"&$A6+10)) -> 2992 | F6: =(B6-D6)/D6 -> 0.005792903693 | G6: =(C6-E6)/E6 -> -0.004679144385 | H6: =B6-D6 -> 16 | I6: =C6-E6 -> -14 | J6: 0 | L6: 0 | M6: =CONCATENATE(L6," - ",L6+4) -> 0 - 4 | N6: =SUMIFS(B$6:B$96,$A$6:$A$96,">=" & $L6,$A$6:$A$96,"<" & $L7) -> 14326 | O6: =SUMIFS(C$6:C$96,$A$6:$A$96,">=" & $L6,$A$6:$A$96,"<" & $L7) -> 15198 | P6: =SUMIFS(D$6:D$96,$A$6:$A$96,">=" & $L6,$A$6:$A$96,"<" & $L7) -> 14444 | Q6: =SUMIFS(E$6:E$96,$A$6:$A$96,">=" & $L6,$A$6:$A$96,"<" & $L7) -> 15417 | R6: =(N6-P6)/P6 -> -0.008169482138 | S6: =(O6-Q6)/Q6 -> -0.01420509827 | T6: =N6-P6 -> -118 | U6: =O6-Q6 -> -219
A7: 1 | B7: =HLOOKUP($C$1,INDIRECT(B$4),$A7+2,0) -> 2740 | C7: =HLOOKUP($C$1,INDIRECT(C$4),$A7+2,0) -> 2894 | D7: =SUMIF(INDIRECT("'MYE "&$C$2&" F'!$D$7:$JHK$7"),$L$36,INDIRECT("'MYE "&$C$2&" F'!D"&$A7+10&":JHK"&$A7+10)) -> 2799 | E7: =SUMIF(INDIRECT("'MYE "&$C$2&" M'!$D$7:$JHK$7"),$L$36,INDIRECT("'MYE "&$C$2&" M'!D"&$A7+10&":JHK"&$A7+10)) -> 2965 | F7: =(B7-D7)/D7 -> -0.02107895677 | G7: =(C7-E7)/E7 -> -0.0239460371 | H7: =B7-D7 -> -59 | I7: -71 | J7: 0 | L7: =L6+5 -> 5 | M7: =CONCATENATE(L7," - ",L7+4) -> 5 - 9 | N7: 16026 | O7: 16973 | P7: 16542 | Q7: 17389 | R7: =(N7-P7)/P7 -> -0.03119332608 | S7: =(O7-Q7)/Q7 -> -0.02392316982 | T7: =N7-P7 -> -516 | U7: -416
A8: 2 | B8: 2828 | C8: 3061 | D8: 2890 | E8: 3120 | F8: -0.0214532872 | G8: -0.01891025641 | H8: -62 | I8: -59 | J8: 0 | L8: =L7+5 -> 10 | M8: 10 - 14 | N8: 15724 | O8: 16656 | P8: 16165 | Q8: 16875 | R8: -0.02728116301 | S8: -0.01297777778 | T8: -441 | U8: -219
A9: 3 | B9: 2960 | C9: 3110 | D9: 3011 | E9: 3195 | F9: -0.01693789439 | G9: -0.02660406886 | H9: -51 | I9: -85 | J9: 0 | L9: 15 | M9: 15 - 19 | N9: 15342 | O9: 16501 | P9: 16371 | Q9: 17367 | R9: -0.06285504856 | S9: -0.0498646859 | T9: -1029 | U9: -866
A10: 4 | B10: 3020 | C10: 3155 | D10: 2982 | E10: 3145 | F10: 0.01274312542 | G10: 0.003179650238 | H10: 38 | I10: 10 | J10: 0 | L10: 20 | M10: 20 - 24 | N10: 12672 | O10: 14062 | P10: 13966 | Q10: 15858 | R10: -0.09265358728 | S10: -0.1132551394 | T10: -1294 | U10: -1796
A11: 5 | B11: 3029 | C11: 3390 | D11: 3203 | E11: 3528 | F11: -0.05432407118 | G11: -0.03911564626 | H11: -174 | I11: -138 | J11: 0 | L11: 25 | M11: 25 - 29 | N11: 13531 | O11: 14132 | P11: 13541 | Q11: 13500 | R11: -0.0007384978953 | S11: 0.04681481481 | T11: -10 | U11: 632
A12: 6 | B12: 3160 | C12: 3323 | D12: 3171 | E12: 3394 | F12: -0.003468937244 | G12: -0.0209192693 | H12: -11 | I12: -71 | J12: 0 | L12: 30 | M12: 30 - 34 | N12: 15584 | O12: 14549 | P12: 15932 | Q12: 14147 | R12: -0.02184283204 | S12: 0.02841591857 | T12: -348 | U12: 402
A13: 7 | B13: 3231 | C13: 3401 | D13: 3317 | E13: 3507 | F13: -0.02592704251 | G13: -0.03022526376 | H13: -86 | I13: -106 | J13: 0 | L13: 35 | M13: 35 - 39 | N13: 16714 | O13: 15626 | P13: 17086 | Q13: 15755 | R13: -0.02177221117 | S13: -0.008187876864 | T13: -372 | U13: -129
A14: 8 | B14: 3342 | C14: 3401 | D14: 3492 | E14: 3460 | F14: -0.04295532646 | G14: -0.01705202312 | H14: -150 | I14: -59 | J14: 0 | L14: 40 | M14: 40 - 44 | N14: 19564 | O14: 17933 | P14: 19818 | Q14: 18538 | R14: -0.01281663135 | S14: -0.03263566728 | T14: -254 | U14: -605
A15: 9 | B15: 3264 | C15: 3458 | D15: 3359 | E15: 3500 | F15: -0.02828222685 | G15: -0.012 | H15: -95 | I15: -42 | J15: 0 | L15: 45 | M15: 45 - 49 | N15: 24240 | O15: 22741 | P15: 24826 | Q15: 23203 | R15: -0.02360428583 | S15: -0.01991121838 | T15: -586 | U15: -462
A16: 10 | B16: 3143 | C16: 3395 | D16: 3245 | E16: 3432 | F16: -0.03143297381 | G16: -0.01078088578 | H16: -102 | I16: -37 | J16: 0 | L16: 50 | M16: 50 - 54 | N16: 25402 | O16: 24797 | P16: 26038 | Q16: 25248 | R16: -0.02442583916 | S16: -0.01786280101 | T16: -636 | U16: -451
A17: 11 | B17: 3179 | C17: 3368 | D17: 3297 | E17: 3395 | F17: -0.03579011222 | G17: -0.00795287187 | H17: -118 | I17: -27 | J17: 0 | L17: 55 | M17: 55 - 59 | N17: 23051 | O17: 22874 | P17: 23251 | Q17: 23061 | R17: -0.008601780569 | S17: -0.008108928494 | T17: -200 | U17: -187
A18: 12 | B18: 3195 | C18: 3403 | D18: 3231 | E18: 3456 | F18: -0.01114206128 | G18: -0.01533564815 | H18: -36 | I18: -53 | J18: 0 | L18: 60 | M18: 60 - 64 | N18: 20570 | O18: 20367 | P18: 20940 | Q18: 20385 | R18: -0.017669532 | S18: -0.0008830022075 | T18: -370 | U18: -18
A19: 13 | B19: 3112 | C19: 3249 | D19: 3237 | E19: 3290 | F19: -0.03861600247 | G19: -0.01246200608 | H19: -125 | I19: -41 | J19: 0 | L19: 65 | M19: 65 - 69 | N19: 20247 | O19: 20285 | P19: 20850 | Q19: 20730 | R19: -0.02892086331 | S19: -0.02146647371 | T19: -603 | U19: -445
A20: 14 | B20: 3095 | C20: 3241 | D20: 3155 | E20: 3302 | F20: -0.01901743265 | G20: -0.01847365233 | H20: -60 | I20: -61 | J20: 0 | L20: 70 | M20: 70 - 74 | N20: 15563 | O20: 14978 | P20: 16039 | Q20: 15339 | R20: -0.0296776607 | S20: -0.02353478062 | T20: -476 | U20: -361
A21: 15 | B21: 3246 | C21: 3373 | D21: 3340 | E21: 3387 | F21: -0.02814371257 | G21: -0.004133451432 | H21: -94 | I21: -14 | J21: 0 | L21: 75 | M21: 75 - 79 | N21: 11285 | O21: 10313 | P21: 11621 | Q21: 10618 | R21: -0.02891317443 | S21: -0.02872480693 | T21: -336 | U21: -305
A22: 16 | B22: 3319 | C22: 3492 | D22: 3398 | E22: 3572 | F22: -0.02324896998 | G22: -0.02239641657 | H22: -79 | I22: -80 | J22: 0 | L22: 80 | M22: 80 - 84 | N22: 7955 | O22: 6593 | P22: 8187 | Q22: 6816 | R22: -0.0283376084 | S22: -0.03271713615 | T22: -232 | U22: -223
A23: 17 | B23: 3277 | C23: 3601 | D23: 3404 | E23: 3747 | F23: -0.03730904818 | G23: -0.03896450494 | H23: -127 | I23: -146 | J23: 0 | L23: 85 | M23: 85 - 89 | N23: 4695 | O23: 3283 | P23: 4867 | Q23: 3368 | R23: -0.0353400452 | S23: -0.02523752969 | T23: -172 | U23: -85
A24: 18 | B24: 3009 | C24: 3192 | D24: 3293 | E24: 3444 | F24: -0.08624354692 | G24: -0.07317073171 | H24: -284 | I24: -252 | J24: 0 | L24: 90 | M24: 90+ | N24: 2531 | O24: 1242 | P24: 2659 | Q24: 1325 | R24: -0.04813839789 | S24: -0.06264150943 | T24: -128 | U24: -83
A25: 19 | B25: 2491 | C25: 2843 | D25: 2936 | E25: 3217 | F25: -0.1515667575 | G25: -0.1162573827 | H25: -445 | I25: -374 | J25: 0 | L25: 95
A26: 20 | B26: 2423 | C26: 2731 | D26: 2831 | E26: 3296 | F26: -0.144118686 | G26: -0.1714199029 | H26: -408 | I26: -565 | J26: 0
A27: 21 | B27: 2347 | C27: 2698 | D27: 2740 | E27: 3303 | F27: -0.1434306569 | G27: -0.183166818 | H27: -393 | I27: -605 | J27: 0 | L27: 6
A28: 22 | B28: 2513 | C28: 2743 | D28: 2888 | E28: 3143 | F28: -0.1298476454 | G28: -0.1272669424 | H28: -375 | I28: -400 | J28: 0 | L28: Large Urban Areas
A29: 23 | B29: 2663 | C29: 2966 | D29: 2804 | E29: 3202 | F29: -0.0502853067 | G29: -0.07370393504 | H29: -141 | I29: -236 | J29: 0 | L29: Other Urban Areas
A30: 24 | B30: 2726 | C30: 2924 | D30: 2703 | E30: 2914 | F30: 0.008509064003 | G30: 0.003431708991 | H30: 23 | I30: 10 | J30: 0 | L30: Accessible Small Towns
A31: 25 | B31: 2686 | C31: 2985 | D31: 2660 | E31: 2903 | F31: 0.00977443609 | G31: 0.02824664141 | H31: 26 | I31: 82 | J31: 0 | L31: Remote Small Towns
A32: 26 | B32: 2592 | C32: 2816 | D32: 2636 | E32: 2693 | F32: -0.01669195751 | G32: 0.04567396955 | H32: -44 | I32: 123 | J32: 0 | L32: Very Remote Small Towns
A33: 27 | B33: 2666 | C33: 2690 | D33: 2640 | E33: 2601 | F33: 0.009848484848 | G33: 0.03421760861 | H33: 26 | I33: 89 | J33: 0 | L33: Accessible Rural
A34: 28 | B34: 2719 | C34: 2798 | D34: 2752 | E34: 2581 | F34: -0.01199127907 | G34: 0.08407593956 | H34: -33 | I34: 217 | J34: 0 | L34: Remote Rural
A35: 29 | B35: 2868 | C35: 2843 | D35: 2853 | E35: 2722 | F35: 0.005257623554 | G35: 0.04445260838 | H35: 15 | I35: 121 | J35: 0 | L35: Very Remote Rural
A36: 30 | B36: 2946 | C36: 2785 | D36: 2975 | E36: 2672 | F36: -0.00974789916 | G36: 0.04229041916 | H36: -29 | I36: 113 | J36: 0 | L36: =VLOOKUP(C1,'Datazone 2016 UR lookup'!$H$8:$I$15,2,0) -> 6
A37: 31 | B37: 3096 | C37: 2833 | D37: 3144 | E37: 2779 | F37: -0.01526717557 | G37: 0.01943145016 | H37: -48 | I37: 54 | J37: 0
A38: 32 | B38: 3095 | C38: 2862 | D38: 3131 | E38: 2768 | F38: -0.01149792399 | G38: 0.03395953757 | H38: -36 | I38: 94 | J38: 0
A39: 33 | B39: =HLOOKUP($C$1,INDIRECT(B$4),$A39+2,0) -> 3197 | C39: 2995 | D39: 3263 | E39: 2945 | F39: -0.02022678517 | G39: 0.01697792869 | H39: -66 | I39: 50 | J39: 0
A40: 34 | B40: 3250 | C40: 3074 | D40: 3419 | E40: 2983 | F40: -0.04942965779 | G40: 0.03050620181 | H40: -169 | I40: 91 | J40: 0
A41: 35 | B41: 3318 | C41: 3193 | D41: 3391 | E41: 3146 | F41: -0.02152757299 | G41: 0.01493960585 | H41: -73 | I41: 47 | J41: 0
A42: 36 | B42: 3465 | C42: 3153 | D42: 3592 | E42: 3183 | F42: -0.03535634744 | G42: -0.009425070688 | H42: -127 | I42: -30 | J42: 0
A43: 37 | B43: 3374 | C43: 3201 | D43: 3468 | E43: 3230 | F43: -0.02710495963 | G43: -0.008978328173 | H43: -94 | I43: -29 | J43: 0
A44: 38 | B44: 3287 | C44: 3084 | D44: 3276 | E44: 3076 | F44: 0.003357753358 | G44: 0.002600780234 | H44: 11 | I44: 8 | J44: 0
A45: 39 | B45: 3270 | C45: 2995 | D45: 3359 | E45: 3120 | F45: -0.02649598095 | G45: -0.04006410256 | H45: -89 | I45: -125 | J45: 0
A46: 40 | B46: 3462 | C46: 3260 | D46: 3487 | E46: 3373 | F46: -0.007169486665 | G46: -0.03350133412 | H46: -25 | I46: -113 | J46: 0
A47: 41 | B47: 3721 | C47: 3278 | D47: 3783 | E47: 3510 | F47: -0.01638910917 | G47: -0.0660968661 | H47: -62 | I47: -232 | J47: 0
A48: 42 | B48: 3822 | C48: 3519 | D48: 3920 | E48: 3640 | F48: -0.025 | G48: -0.03324175824 | H48: -98 | I48: -121 | J48: 0
A49: 43 | B49: 4079 | C49: 3846 | D49: 4143 | E49: 3859 | F49: -0.01544774318 | G49: -0.00336874838 | H49: -64 | I49: -13 | J49: 0
A50: 44 | B50: 4480 | C50: 4030 | D50: 4485 | E50: 4156 | F50: -0.001114827202 | G50: -0.03031761309 | H50: -5 | I50: -126 | J50: 0
A51: 45 | B51: 4725 | C51: 4310 | D51: 4824 | E51: 4423 | F51: -0.02052238806 | G51: -0.0255482704 | H51: -99 | I51: -113 | J51: 0
A52: 46 | B52: 4586 | C52: 4463 | D52: 4741 | E52: 4528 | F52: -0.03269352457 | G52: -0.01435512367 | H52: -155 | I52: -65 | J52: 0
A53: 47 | B53: 4905 | C53: 4476 | D53: 4979 | E53: 4578 | F53: -0.01486242217 | G53: -0.02228047182 | H53: -74 | I53: -102 | J53: 0
A54: 48 | B54: 5005 | C54: 4705 | D54: 5110 | E54: 4773 | F54: -0.02054794521 | G54: -0.01424680494 | H54: -105 | I54: -68 | J54: 0
A55: 49 | B55: 5019 | C55: 4787 | D55: 5172 | E55: 4901 | F55: -0.02958236659 | G55: -0.02326055907 | H55: -153 | I55: -114 | J55: 0
A56: 50 | B56: 5000 | C56: 4916 | D56: 5141 | E56: 4942 | F56: -0.02742657071 | G56: -0.005261027924 | H56: -141 | I56: -26 | J56: 0
A57: 51 | B57: 5197 | C57: 5091 | D57: 5349 | E57: 5256 | F57: -0.02841652645 | G57: -0.03139269406 | H57: -152 | I57: -165 | J57: 0
A58: 52 | B58: 5139 | C58: 4987 | D58: 5267 | E58: 5088 | F58: -0.02430225935 | G58: -0.01985062893 | H58: -128 | I58: -101 | J58: 0
A59: 53 | B59: 5193 | C59: 4952 | D59: 5352 | E59: 4987 | F59: -0.02970852018 | G59: -0.007018247443 | H59: -159 | I59: -35 | J59: 0
A60: 54 | B60: 4873 | C60: 4851 | D60: 4929 | E60: 4975 | F60: -0.0113613309 | G60: -0.02492462312 | H60: -56 | I60: -124 | J60: 0
A61: 55 | B61: 4794 | C61: 4682 | D61: 4848 | E61: 4776 | F61: -0.01113861386 | G61: -0.01968174204 | H61: -54 | I61: -94 | J61: 0
A62: 56 | B62: 4632 | C62: 4641 | D62: 4673 | E62: 4654 | F62: -0.008773806976 | G62: -0.002793296089 | H62: -41 | I62: -13 | J62: 0
A63: 57 | B63: 4776 | C63: 4672 | D63: 4840 | E63: 4682 | F63: -0.0132231405 | G63: -0.002135839385 | H63: -64 | I63: -10 | J63: 0
A64: 58 | B64: 4535 | C64: 4499 | D64: 4590 | E64: 4510 | F64: -0.01198257081 | G64: -0.00243902439 | H64: -55 | I64: -11 | J64: 0
A65: 59 | B65: 4314 | C65: 4380 | D65: 4300 | E65: 4439 | F65: 0.003255813953 | G65: -0.01329128182 | H65: 14 | I65: -59 | J65: 0
A66: 60 | B66: 4313 | C66: 4181 | D66: 4375 | E66: 4185 | F66: -0.01417142857 | G66: -0.0009557945042 | H66: -62 | I66: -4 | J66: 0
A67: 61 | B67: 4174 | C67: 4181 | D67: 4227 | E67: 4142 | F67: -0.01253844334 | G67: 0.009415741188 | H67: -53 | I67: 39 | J67: 0
A68: 62 | B68: 4077 | C68: 4023 | D68: 4104 | E68: 4140 | F68: -0.006578947368 | G68: -0.02826086957 | H68: -27 | I68: -117 | J68: 0
A69: 63 | B69: 4160 | C69: 4052 | D69: 4309 | E69: 4027 | F69: -0.03457878858 | G69: 0.006208095356 | H69: -149 | I69: 25 | J69: 0
A70: 64 | B70: 3846 | C70: 3930 | D70: 3925 | E70: 3891 | F70: -0.02012738854 | G70: 0.0100231303 | H70: -79 | I70: 39 | J70: 0
A71: 65 | B71: =HLOOKUP($C$1,INDIRECT(B$4),$A71+2,0) -> 3865 | C71: 3822 | D71: =SUMIF(INDIRECT("'MYE "&$C$2&" F'!$D$7:$JHK$7"),$L$36,INDIRECT("'MYE "&$C$2&" F'!D"&$A71+10&":JHK"&$A71+10)) -> 3989 | E71: =SUMIF(INDIRECT("'MYE "&$C$2&" M'!$D$7:$JHK$7"),$L$36,INDIRECT("'MYE "&$C$2&" M'!D"&$A71+10&":JHK"&$A71+10)) -> 3851 | F71: =(B71-D71)/D71 -> -0.03108548508 | G71: =(C71-E71)/E71 -> -0.007530511555 | H71: =B71-D71 -> -124 | I71: -29 | J71: 0
A72: 66 | B72: 3789 | C72: 3825 | D72: 3912 | E72: 3897 | F72: -0.03144171779 | G72: -0.01847575058 | H72: -123 | I72: -72 | J72: 0
A73: 67 | B73: 3950 | C73: 4065 | D73: 4073 | E73: 4168 | F73: -0.03019887061 | G73: -0.02471209213 | H73: -123 | I73: -103 | J73: 0
A74: 68 | B74: 4141 | C74: 4094 | D74: 4242 | E74: 4230 | F74: -0.02380952381 | G74: -0.03215130024 | H74: -101 | I74: -136 | J74: 0
A75: 69 | B75: 4502 | C75: 4479 | D75: 4634 | E75: 4584 | F75: -0.02848511006 | G75: -0.02290575916 | H75: -132 | I75: -105 | J75: 0
A76: 70 | B76: 3280 | C76: 3345 | D76: 3408 | E76: 3422 | F76: -0.03755868545 | G76: -0.02250146113 | H76: -128 | I76: -77 | J76: 0
A77: 71 | B77: 3242 | C77: 3097 | D77: 3346 | E77: 3180 | F77: -0.03108188882 | G77: -0.02610062893 | H77: -104 | I77: -83 | J77: 0
A78: 72 | B78: 3277 | C78: 3116 | D78: 3326 | E78: 3201 | F78: -0.0147324113 | G78: -0.02655420181 | H78: -49 | I78: -85 | J78: 0
A79: 73 | B79: 3040 | C79: 2847 | D79: 3128 | E79: 2916 | F79: -0.02813299233 | G79: -0.02366255144 | H79: -88 | I79: -69 | J79: 0
A80: 74 | B80: 2724 | C80: 2573 | D80: 2831 | E80: 2620 | F80: -0.03779583186 | G80: -0.0179389313 | H80: -107 | I80: -47 | J80: 0
A81: 75 | B81: 2399 | C81: 2215 | D81: 2483 | E81: 2291 | F81: -0.0338300443 | G81: -0.03317328677 | H81: -84 | I81: -76 | J81: 0
A82: 76 | B82: 2448 | C82: 2200 | D82: 2498 | E82: 2232 | F82: -0.02001601281 | G82: -0.01433691756 | H82: -50 | I82: -32 | J82: 0
A83: 77 | B83: 2271 | C83: 2149 | D83: 2347 | E83: 2225 | F83: -0.03238176395 | G83: -0.03415730337 | H83: -76 | I83: -76 | J83: 0
A84: 78 | B84: 2121 | C84: 2016 | D84: 2181 | E84: 2080 | F84: -0.02751031637 | G84: -0.03076923077 | H84: -60 | I84: -64 | J84: 0
A85: 79 | B85: 2046 | C85: 1733 | D85: 2112 | E85: 1790 | F85: -0.03125 | G85: -0.03184357542 | H85: -66 | I85: -57 | J85: 0
A86: 80 | B86: 1881 | C86: 1652 | D86: 1967 | E86: 1714 | F86: -0.04372140315 | G86: -0.03617269545 | H86: -86 | I86: -62 | J86: 0
A87: 81 | B87: 1768 | C87: 1454 | D87: 1798 | E87: 1508 | F87: -0.01668520578 | G87: -0.03580901857 | H87: -30 | I87: -54 | J87: 0
A88: 82 | B88: 1576 | C88: 1319 | D88: 1620 | E88: 1344 | F88: -0.02716049383 | G88: -0.01860119048 | H88: -44 | I88: -25 | J88: 0
A89: 83 | B89: 1460 | C89: 1163 | D89: 1473 | E89: 1198 | F89: -0.008825526137 | G89: -0.02921535893 | H89: -13 | I89: -35 | J89: 0
A90: 84 | B90: 1270 | C90: 1005 | D90: 1329 | E90: 1052 | F90: -0.04439428141 | G90: -0.04467680608 | H90: -59 | I90: -47 | J90: 0
A91: 85 | B91: 1226 | C91: 914 | D91: 1272 | E91: 915 | F91: -0.03616352201 | G91: -0.001092896175 | H91: -46 | I91: -1 | J91: 0
A92: 86 | B92: 1058 | C92: 772 | D92: 1096 | E92: 799 | F92: -0.03467153285 | G92: -0.0337922403 | H92: -38 | I92: -27 | J92: 0
A93: 87 | B93: 876 | C93: 651 | D93: 900 | E93: 688 | F93: -0.02666666667 | G93: -0.05377906977 | H93: -24 | I93: -37 | J93: 0
A94: 88 | B94: 852 | C94: 518 | D94: 872 | E94: 524 | F94: -0.02293577982 | G94: -0.01145038168 | H94: -20 | I94: -6 | J94: 0
A95: 89 | B95: 683 | C95: 428 | D95: 727 | E95: 442 | F95: -0.06052269601 | G95: -0.03167420814 | H95: -44 | I95: -14 | J95: 0
A96: 90 | B96: 2531 | C96: 1242 | D96: 2659 | E96: 1325 | F96: -0.04813839789 | G96: -0.06264150943 | H96: -128 | I96: -83 | J96: 0

Sheet SIMD Comparison (hidden)
B1: SIMD | C1: 1 | L1: 2016
B2: Year | C2: =INDEX(L1:L3,L4) -> 2016 | L2: 2017 | N2: =CONCATENATE("Percentage difference between ABPE and MYE for SIMD decile ",C1," by age and sex ",C2) -> Percentage difference between ABPE and MYE for SIMD decile 1 by age and sex 2016 | O2: =CONCATENATE("Difference between ABPE and MYE for SIMD decile ",C1," by age and sex ",C2) -> Difference between ABPE and MYE for SIMD decile 1 by age and sex 2016
L3: 2018 | N3: =CONCATENATE("Percentage difference between ABPE and MYE for SIMD decile ",C1," by 5-year age band and sex ",C2) -> Percentage difference between ABPE and MYE for SIMD decile 1 by 5-year age band and sex 2016 | O3: =CONCATENATE("Difference between ABPE and MYE for SIMD decile ",C1," by 5-year age band and sex ",C2) -> Difference between ABPE and MYE for SIMD decile 1 by 5-year age band and sex 2016
B4: =CONCATENATE("'ABPE SIMD ",$C$2,"'!$B$7:$k$98") -> 'ABPE SIMD 2016'!$B$7:$k$98 | C4: =CONCATENATE("'ABPE SIMD ",$C$2,"'!$l$7:$u$98") -> 'ABPE SIMD 2016'!$l$7:$u$98 | H4: Absolute difference | L4: 1 | R4: Percenatge difference | T4: Absolute difference
A5: Age | B5: ABPE - F | C5: ABPE - M | D5: MYE - F | E5: MYE - M | F5: Females | G5: Males | H5: Females | I5: Males | J5: Baseline | M5: Age range | N5: ABPE - F | O5: ABPE - M | P5: MYE - F | Q5: MYE - M | R5: Females | S5: Males | T5: Females | U5: Males
A6: 0 | B6: =HLOOKUP($C$1,INDIRECT(B$4),$A6+2,0) -> 3392 | C6: =HLOOKUP($C$1,INDIRECT(C$4),$A6+2,0) -> 3564 | D6: =SUMIF(INDIRECT("'MYE "&$C$2&" F'!$D$6:$JHK$6"),$C$1,INDIRECT("'MYE "&$C$2&" F'!D"&$A6+10&":JHK"&$A6+10)) -> 3407 | E6: =SUMIF(INDIRECT("'MYE "&$C$2&" M'!$D$6:$JHK$6"),$C$1,INDIRECT("'MYE "&$C$2&" M'!D"&$A6+10&":JHK"&$A6+10)) -> 3568 | F6: =(B6-D6)/D6 -> -0.004402700323 | G6: =(C6-E6)/E6 -> -0.001121076233 | H6: =B6-D6 -> -15 | I6: =C6-E6 -> -4 | J6: 0 | L6: 0 | M6: =CONCATENATE(L6," - ",L6+4) -> 0 - 4 | N6: =SUMIFS(B$6:B$96,$A$6:$A$96,">=" & $L6,$A$6:$A$96,"<" & $L7) -> 17022 | O6: =SUMIFS(C$6:C$96,$A$6:$A$96,">=" & $L6,$A$6:$A$96,"<" & $L7) -> 17984 | P6: =SUMIFS(D$6:D$96,$A$6:$A$96,">=" & $L6,$A$6:$A$96,"<" & $L7) -> 17211 | Q6: =SUMIFS(E$6:E$96,$A$6:$A$96,">=" & $L6,$A$6:$A$96,"<" & $L7) -> 18243 | R6: =(N6-P6)/P6 -> -0.01098134914 | S6: =(O6-Q6)/Q6 -> -0.01419722633 | T6: =N6-P6 -> -189 | U6: =O6-Q6 -> -259
A7: 1 | B7: =HLOOKUP($C$1,INDIRECT(B$4),$A7+2,0) -> 3425 | C7: 3551 | D7: =SUMIF(INDIRECT("'MYE "&$C$2&" F'!$D$6:$JHK$6"),$C$1,INDIRECT("'MYE "&$C$2&" F'!D"&$A7+10&":JHK"&$A7+10)) -> 3512 | E7: =SUMIF(INDIRECT("'MYE "&$C$2&" M'!$D$6:$JHK$6"),$C$1,INDIRECT("'MYE "&$C$2&" M'!D"&$A7+10&":JHK"&$A7+10)) -> 3631 | F7: =(B7-D7)/D7 -> -0.02477220957 | G7: =(C7-E7)/E7 -> -0.02203249793 | H7: =B7-D7 -> -87 | I7: -80 | J7: 0 | L7: =L6+5 -> 5 | M7: =CONCATENATE(L7," - ",L7+4) -> 5 - 9 | N7: 16497 | O7: 17492 | P7: 16211 | Q7: 16876 | R7: =(N7-P7)/P7 -> 0.01764234162 | S7: =(O7-Q7)/Q7 -> 0.03650154065 | T7: =N7-P7 -> 286 | U7: 616
A8: 2 | B8: 3301 | C8: 3523 | D8: 3336 | E8: 3575 | F8: -0.01049160671 | G8: -0.01454545455 | H8: -35 | I8: -52 | J8: 0 | L8: =L7+5 -> 10 | M8: 10 - 14 | N8: 14393 | O8: 14944 | P8: 13947 | Q8: 14392 | R8: 0.0319782032 | S8: 0.03835464147 | T8: 446 | U8: 552
A9: 3 | B9: 3456 | C9: 3640 | D9: 3503 | E9: 3720 | F9: -0.01341707108 | G9: -0.02150537634 | H9: -47 | I9: -80 | J9: 0 | L9: 15 | M9: 15 - 19 | N9: 15075 | O9: 15569 | P9: 14825 | Q9: 15353 | R9: 0.01686340641 | S9: 0.01406891161 | T9: 250 | U9: 216
A10: 4 | B10: 3448 | C10: 3706 | D10: 3453 | E10: 3749 | F10: -0.001448016218 | G10: -0.01146972526 | H10: -5 | I10: -43 | J10: 0 | L10: 20 | M10: 20 - 24 | N10: 19512 | O10: 19057 | P10: 18388 | Q10: 18551 | R10: 0.06112682184 | S10: 0.02727615762 | T10: 1124 | U10: 506
A11: 5 | B11: 3355 | C11: 3671 | D11: 3444 | E11: 3770 | F11: -0.02584204413 | G11: -0.02625994695 | H11: -89 | I11: -99 | J11: 0 | L11: 25 | M11: 25 - 29 | N11: 22373 | O11: 22513 | P11: 22752 | Q11: 21633 | R11: -0.01665787623 | S11: 0.04067859289 | T11: -379 | U11: 880
A12: 6 | B12: 3321 | C12: 3474 | D12: 3124 | E12: 3225 | F12: 0.06306017926 | G12: 0.07720930233 | H12: 197 | I12: 249 | J12: 0 | L12: 30 | M12: 30 - 34 | N12: 21473 | O12: 22196 | P12: 20134 | Q12: 18998 | R12: 0.06650442038 | S12: 0.1683335088 | T12: 1339 | U12: 3198
A13: 7 | B13: 3419 | C13: 3555 | D13: 3403 | E13: 3372 | F13: 0.004701733764 | G13: 0.05427046263 | H13: 16 | I13: 183 | J13: 0 | L13: 35 | M13: 35 - 39 | N13: 17623 | O13: 19189 | P13: 16950 | Q13: 16151 | R13: 0.03970501475 | S13: 0.1880998081 | T13: 673 | U13: 3038
A14: 8 | B14: 3315 | C14: 3484 | D14: 3252 | E14: 3361 | F14: 0.01937269373 | G14: 0.03659625112 | H14: 63 | I14: 123 | J14: 0 | L14: 40 | M14: 40 - 44 | N14: 16764 | O14: 18154 | P14: 16158 | Q14: 15517 | R14: 0.03750464166 | S14: 0.1699426436 | T14: 606 | U14: 2637
A15: 9 | B15: 3087 | C15: 3308 | D15: 2988 | E15: 3148 | F15: 0.03313253012 | G15: 0.05082592122 | H15: 99 | I15: 160 | J15: 0 | L15: 45 | M15: 45 - 49 | N15: 19168 | O15: 20296 | P15: 18871 | Q15: 17538 | R15: 0.01573843464 | S15: 0.1572585243 | T15: 297 | U15: 2758
A16: 10 | B16: 3119 | C16: 3121 | D16: 3045 | E16: 3001 | F16: 0.02430213465 | G16: 0.03998667111 | H16: 74 | I16: 120 | J16: 0 | L16: 50 | M16: 50 - 54 | N16: 19587 | O16: 20991 | P16: 19214 | Q16: 17970 | R16: 0.01941292807 | S16: 0.1681135225 | T16: 373 | U16: 3021
A17: 11 | B17: 2906 | C17: 3143 | D17: 2876 | E17: 3031 | F17: 0.01043115438 | G17: 0.03695150115 | H17: 30 | I17: 112 | J17: 0 | L17: 55 | M17: 55 - 59 | N17: 17045 | O17: 18013 | P17: 17096 | Q17: 15939 | R17: -0.002983153954 | S17: 0.1301210866 | T17: -51 | U17: 2074
A18: 12 | B18: 2929 | C18: 3020 | D18: 2774 | E18: 2858 | F18: 0.05587599135 | G18: 0.0566829951 | H18: 155 | I18: 162 | J18: 0 | L18: 60 | M18: 60 - 64 | N18: 13360 | O18: 13804 | P18: 13466 | Q18: 13115 | R18: -0.007871676816 | S18: 0.05253526496 | T18: -106 | U18: 689
A19: 13 | B19: 2735 | C19: 2864 | D19: 2586 | E19: 2789 | F19: 0.05761794277 | G19: 0.02689135891 | H19: 149 | I19: 75 | J19: 0 | L19: 65 | M19: 65 - 69 | N19: 12274 | O19: 11787 | P19: 12638 | Q19: 11908 | R19: -0.02880202564 | S19: -0.01016123614 | T19: -364 | U19: -121
A20: 14 | B20: 2704 | C20: 2796 | D20: 2666 | E20: 2713 | F20: 0.01425356339 | G20: 0.030593439 | H20: 38 | I20: 83 | J20: 0 | L20: 70 | M20: 70 - 74 | N20: 9693 | O20: 8182 | P20: 10056 | Q20: 8477 | R20: -0.03609785203 | S20: -0.03480004719 | T20: -363 | U20: -295
A21: 15 | B21: 2869 | C21: 2931 | D21: 2839 | E21: 2867 | F21: 0.01056710109 | G21: 0.0223229857 | H21: 30 | I21: 64 | J21: 0 | L21: 75 | M21: 75 - 79 | N21: 8502 | O21: 6082 | P21: 8839 | Q21: 6333 | R21: -0.0381264849 | S21: -0.03963366493 | T21: -337 | U21: -251
A22: 16 | B22: 2883 | C22: 3030 | D22: 2881 | E22: 3031 | F22: 0.0006942034016 | G22: -0.0003299241175 | H22: 2 | I22: -1 | J22: 0 | L22: 80 | M22: 80 - 84 | N22: 6447 | O22: 3941 | P22: 6763 | Q22: 4108 | R22: -0.04672482626 | S22: -0.04065238559 | T22: -316 | U22: -167
A23: 17 | B23: 2924 | C23: 3015 | D23: 2977 | E23: 3019 | F23: -0.01780315754 | G23: -0.001324942034 | H23: -53 | I23: -4 | J23: 0 | L23: 85 | M23: 85 - 89 | N23: 3732 | O23: 1855 | P23: 4023 | Q23: 1980 | R23: -0.07233407905 | S23: -0.06313131313 | T23: -291 | U23: -125
A24: 18 | B24: 3080 | C24: 3199 | D24: 3006 | E24: 3198 | F24: 0.0246174318 | G24: 0.0003126954346 | H24: 74 | I24: 1 | J24: 0 | L24: 90 | M24: 90+ | N24: 1934 | O24: 666 | P24: 2109 | Q24: 823 | R24: -0.08297771456 | S24: -0.1907654921 | T24: -175 | U24: -157
A25: 19 | B25: 3319 | C25: 3394 | D25: 3122 | E25: 3238 | F25: 0.06310057655 | G25: 0.04817788758 | H25: 197 | I25: 156 | J25: 0 | L25: 95
A26: 20 | B26: 3402 | C26: 3328 | D26: 3014 | E26: 3214 | F26: 0.1287325813 | G26: 0.03546981954 | H26: 388 | I26: 114 | J26: 0
A27: 21 | B27: 3634 | C27: 3555 | D27: 3146 | E27: 3301 | F27: 0.1551176097 | G27: 0.07694637988 | H27: 488 | I27: 254 | J27: 0
A28: 22 | B28: 3875 | C28: 3793 | D28: 3324 | E28: 3397 | F28: 0.1657641396 | G28: 0.1165734472 | H28: 551 | I28: 396 | J28: 0 | L28: 1 - Most deprived
A29: 23 | B29: 4171 | C29: 4016 | D29: 4093 | E29: 4041 | F29: 0.01905692646 | G29: -0.006186587478 | H29: 78 | I29: -25 | J29: 0 | L29: 2
A30: 24 | B30: 4430 | C30: 4365 | D30: 4811 | E30: 4598 | F30: -0.07919351486 | G30: -0.05067420618 | H30: -381 | I30: -233 | J30: 0 | L30: =L29+1 -> 3
A31: 25 | B31: 4381 | C31: 4315 | D31: 4659 | E31: 4550 | F31: -0.05966945697 | G31: -0.05164835165 | H31: -278 | I31: -235 | J31: 0 | L31: =L30+1 -> 4
A32: 26 | B32: 4404 | C32: 4350 | D32: 4579 | E32: 4324 | F32: -0.03821795152 | G32: 0.006012950971 | H32: -175 | I32: 26 | J32: 0 | L32: 5
A33: 27 | B33: 4333 | C33: 4470 | D33: 4514 | E33: 4264 | F33: -0.04009747452 | G33: 0.04831144465 | H33: -181 | I33: 206 | J33: 0 | L33: 6
A34: 28 | B34: 4665 | C34: 4723 | D34: 4565 | E34: 4295 | F34: 0.02190580504 | G34: 0.09965075669 | H34: 100 | I34: 428 | J34: 0 | L34: 7
A35: 29 | B35: 4590 | C35: 4655 | D35: 4435 | E35: 4200 | F35: 0.03494926719 | G35: 0.1083333333 | H35: 155 | I35: 455 | J35: 0 | L35: 8
A36: 30 | B36: 4508 | C36: 4611 | D36: 4175 | E36: 4052 | F36: 0.07976047904 | G36: 0.1379565647 | H36: 333 | I36: 559 | J36: 0 | L36: 9
A37: 31 | B37: 4587 | C37: 4637 | D37: 4205 | E37: 3926 | F37: 0.09084423306 | G37: 0.1811003566 | H37: 382 | I37: 711 | J37: 0 | L37: 10 - Least deprived
A38: 32 | B38: 4235 | C38: 4356 | D38: 3959 | E38: 3661 | F38: 0.06971457439 | G38: 0.1898388418 | H38: 276 | I38: 695 | J38: 0
A39: 33 | B39: =HLOOKUP($C$1,INDIRECT(B$4),$A39+2,0) -> 4080 | C39: 4382 | D39: 3956 | E39: 3738 | F39: 0.03134479272 | G39: 0.1722846442 | H39: 124 | I39: 644 | J39: 0
A40: 34 | B40: 4063 | C40: 4210 | D40: 3839 | E40: 3621 | F40: 0.05834852826 | G40: 0.162662248 | H40: 224 | I40: 589 | J40: 0
A41: 35 | B41: 3943 | C41: 4291 | D41: 3733 | E41: 3670 | F41: 0.05625502277 | G41: 0.1692098093 | H41: 210 | I41: 621 | J41: 0
A42: 36 | B42: 3762 | C42: 4025 | D42: 3670 | E42: 3355 | F42: 0.02506811989 | G42: 0.1997019374 | H42: 92 | I42: 670 | J42: 0
A43: 37 | B43: 3572 | C43: 3869 | D43: 3454 | E43: 3259 | F43: 0.03416328894 | G43: 0.1871739797 | H43: 118 | I43: 610 | J43: 0
A44: 38 | B44: 3274 | C44: 3611 | D44: 3095 | E44: 3023 | F44: 0.05783521809 | G44: 0.1945087661 | H44: 179 | I44: 588 | J44: 0
A45: 39 | B45: 3072 | C45: 3393 | D45: 2998 | E45: 2844 | F45: 0.02468312208 | G45: 0.1930379747 | H45: 74 | I45: 549 | J45: 0
A46: 40 | B46: 3249 | C46: 3551 | D46: 3089 | E46: 3052 | F46: 0.05179669796 | G46: 0.1634993447 | H46: 160 | I46: 499 | J46: 0
A47: 41 | B47: 3301 | C47: 3645 | D47: 3132 | E47: 3091 | F47: 0.05395913155 | G47: 0.1792300226 | H47: 169 | I47: 554 | J47: 0
A48: 42 | B48: 3204 | C48: 3513 | D48: 3038 | E48: 2967 | F48: 0.05464121132 | G48: 0.1840242669 | H48: 166 | I48: 546 | J48: 0
A49: 43 | B49: 3438 | C49: 3675 | D49: 3365 | E49: 3225 | F49: 0.02169390788 | G49: 0.1395348837 | H49: 73 | I49: 450 | J49: 0
A50: 44 | B50: 3572 | C50: 3770 | D50: 3534 | E50: 3182 | F50: 0.01075268817 | G50: 0.1847894406 | H50: 38 | I50: 588 | J50: 0
A51: 45 | B51: 3792 | C51: 3975 | D51: 3691 | E51: 3413 | F51: 0.02736385803 | G51: 0.164664518 | H51: 101 | I51: 562 | J51: 0
A52: 46 | B52: 3764 | C52: 3956 | D52: 3699 | E52: 3447 | F52: 0.01757231684 | G52: 0.1476646359 | H52: 65 | I52: 509 | J52: 0
A53: 47 | B53: 3828 | C53: 4080 | D53: 3879 | E53: 3486 | F53: -0.01314771848 | G53: 0.1703958692 | H53: -51 | I53: 594 | J53: 0
A54: 48 | B54: 3967 | C54: 4212 | D54: 3864 | E54: 3604 | F54: 0.0266563147 | G54: 0.1687014428 | H54: 103 | I54: 608 | J54: 0
A55: 49 | B55: 3817 | C55: 4073 | D55: 3738 | E55: 3588 | F55: 0.02113429642 | G55: 0.1351727982 | H55: 79 | I55: 485 | J55: 0
A56: 50 | B56: 3999 | C56: 4291 | D56: 3903 | E56: 3591 | F56: 0.02459646426 | G56: 0.1949317739 | H56: 96 | I56: 700 | J56: 0
A57: 51 | B57: 4005 | C57: 4303 | D57: 3877 | E57: 3696 | F57: 0.03301521795 | G57: 0.1642316017 | H57: 128 | I57: 607 | J57: 0
A58: 52 | B58: 3913 | C58: 4299 | D58: 3825 | E58: 3603 | F58: 0.02300653595 | G58: 0.1931723564 | H58: 88 | I58: 696 | J58: 0
A59: 53 | B59: 3850 | C59: 4022 | D59: 3779 | E59: 3563 | F59: 0.01878803916 | G59: 0.1288240247 | H59: 71 | I59: 459 | J59: 0
A60: 54 | B60: 3820 | C60: 4076 | D60: 3830 | E60: 3517 | F60: -0.002610966057 | G60: 0.1589422804 | H60: -10 | I60: 559 | J60: 0
A61: 55 | B61: 3648 | C61: 3917 | D61: 3667 | E61: 3542 | F61: -0.00518134715 | G61: 0.1058723885 | H61: -19 | I61: 375 | J61: 0
A62: 56 | B62: 3454 | C62: 3704 | D62: 3433 | E62: 3116 | F62: 0.006117098747 | G62: 0.188703466 | H62: 21 | I62: 588 | J62: 0
A63: 57 | B63: 3394 | C63: 3690 | D63: 3370 | E63: 3243 | F63: 0.007121661721 | G63: 0.1378353377 | H63: 24 | I63: 447 | J63: 0
A64: 58 | B64: 3400 | C64: 3435 | D64: 3419 | E64: 3079 | F64: -0.005557180462 | G64: 0.1156219552 | H64: -19 | I64: 356 | J64: 0
A65: 59 | B65: 3149 | C65: 3267 | D65: 3207 | E65: 2959 | F65: -0.0180854381 | G65: 0.1040892193 | H65: -58 | I65: 308 | J65: 0
A66: 60 | B66: 3039 | C66: 3067 | D66: 3026 | E66: 2852 | F66: 0.004296100463 | G66: 0.07538569425 | H66: 13 | I66: 215 | J66: 0
A67: 61 | B67: 2794 | C67: 2952 | D67: 2780 | E67: 2747 | F67: 0.005035971223 | G67: 0.07462686567 | H67: 14 | I67: 205 | J67: 0
A68: 62 | B68: 2621 | C68: 2729 | D68: 2633 | E68: 2590 | F68: -0.004557538929 | G68: 0.05366795367 | H68: -12 | I68: 139 | J68: 0
A69: 63 | B69: 2490 | C69: 2612 | D69: 2549 | E69: 2502 | F69: -0.02314633189 | G69: 0.04396482814 | H69: -59 | I69: 110 | J69: 0
A70: 64 | B70: 2416 | C70: 2444 | D70: 2478 | E70: 2424 | F70: -0.02502017756 | G70: 0.008250825083 | H70: -62 | I70: 20 | J70: 0
A71: 65 | B71: =HLOOKUP($C$1,INDIRECT(B$4),$A71+2,0) -> 2385 | C71: 2397 | D71: =SUMIF(INDIRECT("'MYE "&$C$2&" F'!$D$6:$JHK$6"),$C$1,INDIRECT("'MYE "&$C$2&" F'!D"&$A71+10&":JHK"&$A71+10)) -> 2450 | E71: =SUMIF(INDIRECT("'MYE "&$C$2&" M'!$D$6:$JHK$6"),$C$1,INDIRECT("'MYE "&$C$2&" M'!D"&$A71+10&":JHK"&$A71+10)) -> 2335 | F71: =(B71-D71)/D71 -> -0.02653061224 | G71: =(C71-E71)/E71 -> 0.02655246253 | H71: =B71-D71 -> -65 | I71: 62 | J71: 0
A72: 66 | B72: 2394 | C72: 2287 | D72: 2460 | E72: 2350 | F72: -0.02682926829 | G72: -0.02680851064 | H72: -66 | I72: -63 | J72: 0
A73: 67 | B73: 2401 | C73: 2386 | D73: 2506 | E73: 2406 | F73: -0.04189944134 | G73: -0.008312551953 | H73: -105 | I73: -20 | J73: 0
A74: 68 | B74: 2488 | C74: 2258 | D74: 2539 | E74: 2314 | F74: -0.02008664829 | G74: -0.02420051858 | H74: -51 | I74: -56 | J74: 0
A75: 69 | B75: 2606 | C75: 2459 | D75: 2683 | E75: 2503 | F75: -0.02869921729 | G75: -0.01757890531 | H75: -77 | I75: -44 | J75: 0
A76: 70 | B76: 2005 | C76: 1832 | D76: 2087 | E76: 1917 | F76: -0.03929084811 | G76: -0.04434011476 | H76: -82 | I76: -85 | J76: 0
A77: 71 | B77: 1934 | C77: 1628 | D77: 2011 | E77: 1680 | F77: -0.03828940825 | G77: -0.03095238095 | H77: -77 | I77: -52 | J77: 0
A78: 72 | B78: 1953 | C78: 1728 | D78: 2042 | E78: 1773 | F78: -0.04358472086 | G78: -0.02538071066 | H78: -89 | I78: -45 | J78: 0
A79: 73 | B79: 1942 | C79: 1536 | D79: 1981 | E79: 1597 | F79: -0.01968702675 | G79: -0.03819661866 | H79: -39 | I79: -61 | J79: 0
A80: 74 | B80: 1859 | C80: 1458 | D80: 1935 | E80: 1510 | F80: -0.03927648579 | G80: -0.03443708609 | H80: -76 | I80: -52 | J80: 0
A81: 75 | B81: 1769 | C81: 1303 | D81: 1834 | E81: 1345 | F81: -0.03544165758 | G81: -0.0312267658 | H81: -65 | I81: -42 | J81: 0
A82: 76 | B82: 1751 | C82: 1322 | D82: 1838 | E82: 1352 | F82: -0.04733405876 | G82: -0.02218934911 | H82: -87 | I82: -30 | J82: 0
A83: 77 | B83: 1680 | C83: 1278 | D83: 1751 | E83: 1352 | F83: -0.04054825814 | G83: -0.05473372781 | H83: -71 | I83: -74 | J83: 0
A84: 78 | B84: 1753 | C84: 1222 | D84: 1806 | E84: 1254 | F84: -0.02934662237 | G84: -0.02551834131 | H84: -53 | I84: -32 | J84: 0
A85: 79 | B85: 1549 | C85: 957 | D85: 1610 | E85: 1030 | F85: -0.03788819876 | G85: -0.07087378641 | H85: -61 | I85: -73 | J85: 0
A86: 80 | B86: 1524 | C86: 964 | D86: 1604 | E86: 1010 | F86: -0.04987531172 | G86: -0.04554455446 | H86: -80 | I86: -46 | J86: 0
A87: 81 | B87: 1368 | C87: 905 | D87: 1445 | E87: 936 | F87: -0.05328719723 | G87: -0.03311965812 | H87: -77 | I87: -31 | J87: 0
A88: 82 | B88: 1298 | C88: 820 | D88: 1416 | E88: 840 | F88: -0.08333333333 | G88: -0.02380952381 | H88: -118 | I88: -20 | J88: 0
A89: 83 | B89: 1181 | C89: 665 | D89: 1166 | E89: 694 | F89: 0.012864494 | G89: -0.04178674352 | H89: 15 | I89: -29 | J89: 0
A90: 84 | B90: 1076 | C90: 587 | D90: 1132 | E90: 628 | F90: -0.04946996466 | G90: -0.0652866242 | H90: -56 | I90: -41 | J90: 0
A91: 85 | B91: 987 | C91: 555 | D91: 1100 | E91: 580 | F91: -0.1027272727 | G91: -0.04310344828 | H91: -113 | I91: -25 | J91: 0
A92: 86 | B92: 897 | C92: 430 | D92: 942 | E92: 462 | F92: -0.04777070064 | G92: -0.06926406926 | H92: -45 | I92: -32 | J92: 0
A93: 87 | B93: 712 | C93: 352 | D93: 744 | E93: 371 | F93: -0.04301075269 | G93: -0.05121293801 | H93: -32 | I93: -19 | J93: 0
A94: 88 | B94: 614 | C94: 293 | D94: 687 | E94: 308 | F94: -0.1062590975 | G94: -0.0487012987 | H94: -73 | I94: -15 | J94: 0
A95: 89 | B95: 522 | C95: 225 | D95: 550 | E95: 259 | F95: -0.05090909091 | G95: -0.1312741313 | H95: -28 | I95: -34 | J95: 0
A96: 90 | B96: 1934 | C96: 666 | D96: 2109 | E96: 823 | F96: -0.08297771456 | G96: -0.1907654921 | H96: -175 | I96: -157 | J96: 0

Sheet CA change data (hidden)
B1: UR | C1: =INDEX(T29:T61,T28) -> Scotland | H1: =IF(AND(C1="Fife",OR(C2=2017,C3=2017)),"Note that the 2017 ABPE estimates for Fife are affected by a clerical issue with ER data. See the accompanying QAAD document for further information","") ->  | T1: 2016
B2: Year from | C2: =INDEX(T1:T3,T4) -> 2016 | H2: =IF(C3=C2:C2,"Please enter a different comparison year from the baseline year",IF(C3<C2,"Note that the comparison year is before the baseline year, meaning that the baseline year will include young children who were not born in the comparison year","")) ->  | T2: 2017 | V2: =CONCATENATE("Percentage difference between ABPE and MYE for ",C1," by age and sex ",C2) -> Percentage difference between ABPE and MYE for Scotland by age and sex 2016 | W2: =CONCATENATE("Difference between ",C2," and ",C3," for ABPE and MYE for ",C1," by age and sex") -> Difference between 2016 and 2017 for ABPE and MYE for Scotland by age and sex
B3: Year to | C3: =INDEX(T1:T3,T5) -> 2017 | T3: 2018 | V3: =CONCATENATE("Percentage difference between ABPE and MYE for ",C1," by 5-year age band and sex ",C2) -> Percentage difference between ABPE and MYE for Scotland by 5-year age band and sex 2016 | W3: =CONCATENATE("Difference between ABPE and MYE for ",C1," by 5-year age band and sex ",C2) -> Difference between ABPE and MYE for Scotland by 5-year age band and sex 2016
B4: From | F4: To | J4: Difference | T4: 1 | V4: From | Z4: To | AD4: Difference
B5: =CONCATENATE("'ABPE LA ",$C$2,"'!$B$7:$Ah$98") -> 'ABPE LA 2016'!$B$7:$Ah$98 | C5: =CONCATENATE("'ABPE LA ",$C$2,"'!$ai$7:$bo$98") -> 'ABPE LA 2016'!$ai$7:$bo$98 | F5: =CONCATENATE("'ABPE LA ",$C$3,"'!$B$7:$Ah$98") -> 'ABPE LA 2017'!$B$7:$Ah$98 | G5: =CONCATENATE("'ABPE LA ",$C$3,"'!$ai$7:$bo$98") -> 'ABPE LA 2017'!$ai$7:$bo$98 | J5: Percentage - ABPE | L5: Percenatge - MYE | N5: Absolute ABPE | P5: Absolute MYE | T5: 2 | V5: =CONCATENATE("'ABPE LA ",$C$2,"'!$B$7:$AG$98") -> 'ABPE LA 2016'!$B$7:$AG$98 | W5: =CONCATENATE("'ABPE LA ",$C$2,"'!$ah$7:$bm$98") -> 'ABPE LA 2016'!$ah$7:$bm$98 | Z5: =CONCATENATE("'ABPE LA ",$C$3,"'!$B$7:$AG$98") -> 'ABPE LA 2017'!$B$7:$AG$98 | AA5: =CONCATENATE("'ABPE LA ",$C$3,"'!$ah$7:$bm$98") -> 'ABPE LA 2017'!$ah$7:$bm$98 | AD5: Percentage - ABPE | AF5: Percenatge - MYE | AH5: Absolute ABPE | AJ5: Absolute MYE
A6: =CONCATENATE("Age of cohort in ",C2) -> Age of cohort in 2016 | B6: ABPE - F | C6: ABPE - M | D6: MYE - F | E6: MYE - M | F6: ABPE - F | G6: ABPE - M | H6: MYE - F | I6: MYE - M | J6: Females | K6: Males | L6: Females | M6: Males | N6: ABPE - Females | O6: ABPE - Males | P6: MYE - Females | Q6: MYE - Males | R6: Baseline | U6: Age range | V6: ABPE - F | W6: ABPE - M | X6: MYE - F | Y6: MYE - M | Z6: ABPE - F | AA6: ABPE - M | AB6: MYE - F | AC6: MYE - M | AD6: Females | AE6: Males | AF6: Females | AG6: Males | AH6: Females | AI6: Males | AJ6: Females | AK6: Males
A7: 0 | B7: =HLOOKUP($C$1,INDIRECT(B$5),$A7+2,0) -> 26532 | C7: =HLOOKUP($C$1,INDIRECT(C$5),$A7+2,0) -> 28468 | D7: =IF($C$1="Scotland",SUM(INDIRECT("'MYE "&$C$2&" F'!D"&A7+10&":JHK"&A7+10)),SUMIF(INDIRECT("'MYE "&$C$2&" F'!$D$5:$JHK$5"),$C$1,INDIRECT("'MYE "&$C$2&" F'!D"&A7+10&":JHK"&A7+10))) -> 26819 | E7: =IF($C$1="Scotland",SUM(INDIRECT("'MYE "&$C$2&" M'!D"&A7+10&":JHK"&A7+10)),SUMIF(INDIRECT("'MYE "&$C$2&" M'!$D$5:$JHK$5"),$C$1,INDIRECT("'MYE "&$C$2&" M'!D"&A7+10&":JHK"&A7+10))) -> 28697 | F7: =IF($C$3>$C$2-1,HLOOKUP($C$1,INDIRECT(F$5),$A7+2+$C$3-$C$2,0),0) -> 26482 | G7: =IF($C$3>$C$2-1,HLOOKUP($C$1,INDIRECT(G$5),$A7+2+$C$3-$C$2,0),0) -> 28354 | H7: =IF($C$3>$C$2-1,IF($C$1="Scotland",SUM(INDIRECT("'MYE "&$C$3&" F'!D"&A7+10+$C$3-$C$2&":JHK"&A7+10+$C$3-$C$2)),SUMIF(INDIRECT("'MYE "&$C$3&" F'!$D$5:$JHK$5"),$C$1,INDIRECT("'MYE "&$C$3&" F'!D"&A7+10+$C$3-$C$2&":JHK"&A7+10+$C$3-$C$2))),0) -> 26976 | I7: =IF($C$3>$C$2-1,IF($C$1="Scotland",SUM(INDIRECT("'MYE "&$C$3&" M'!D"&A7+10+$C$3-$C$2&":JHK"&A7+10+$C$3-$C$2)),SUMIF(INDIRECT("'MYE "&$C$3&" M'!$D$5:$JHK$5"),$C$1,INDIRECT("'MYE "&$C$3&" M'!D"&A7+10+$C$3-$C$2&":JHK"&A7+10+$C$3-$C$2))),0) -> 28916 | J7: =(F7-B7)/B7 -> -0.00188451681 | K7: =(G7-C7)/C7 -> -0.004004496277 | L7: =(H7-D7)/D7 -> 0.00585405869 | M7: =(I7-E7)/E7 -> 0.007631459734 | N7: =F7-B7 -> -50 | O7: =G7-C7 -> -114 | P7: 157 | Q7: 219 | R7: 0 | T7: 0 | U7: =CONCATENATE(T7," - ",T7+4) -> 0 - 4 | V7: =SUMIFS(B$7:B$97,$A$7:$A$97,">=" & $T7,$A$7:$A$97,"<" & $T8) -> 136801 | W7: =SUMIFS(C$7:C$97,$A$7:$A$97,">=" & $T7,$A$7:$A$97,"<" & $T8) -> 144674 | X7: =SUMIFS(D$7:D$97,$A$7:$A$97,">=" & $T7,$A$7:$A$97,"<" & $T8) -> 139711 | Y7: =SUMIFS(E$7:E$97,$A$7:$A$97,">=" & $T7,$A$7:$A$97,"<" & $T8) -> 147527 | Z7: =SUMIFS(F$7:F$97,$A$7:$A$97,">=" & $T7,$A$7:$A$97,"<" & $T8) -> 138112 | AA7: =SUMIFS(G$7:G$97,$A$7:$A$97,">=" & $T7,$A$7:$A$97,"<" & $T8) -> 145912 | AB7: =SUMIFS(H$7:H$97,$A$7:$A$97,">=" & $T7,$A$7:$A$97,"<" & $T8) -> 140223 | AC7: =SUMIFS(I$7:I$97,$A$7:$A$97,">=" & $T7,$A$7:$A$97,"<" & $T8) -> 148331 | AD7: =(Z7-V7)/V7 -> 0.00958326328 | AE7: =(AA7-W7)/W7 -> 0.008557169913 | AF7: =(AB7-X7)/X7 -> 0.003664707861 | AG7: =(AC7-Y7)/Y7 -> 0.005449849858 | AH7: =Z7-V7 -> 1311 | AI7: =AA7-W7 -> 1238 | AJ7: =AB7-X7 -> 512 | AK7: =AC7-Y7 -> 804
A8: 1 | B8: =HLOOKUP($C$1,INDIRECT(B$5),$A8+2,0) -> 26775 | C8: 28247 | D8: =IF($C$1="Scotland",SUM(INDIRECT("'MYE "&$C$2&" F'!D"&A8+10&":JHK"&A8+10)),SUMIF(INDIRECT("'MYE "&$C$2&" F'!$D$5:$JHK$5"),$C$1,INDIRECT("'MYE "&$C$2&" F'!D"&A8+10&":JHK"&A8+10))) -> 27567 | E8: =IF($C$1="Scotland",SUM(INDIRECT("'MYE "&$C$2&" M'!D"&A8+10&":JHK"&A8+10)),SUMIF(INDIRECT("'MYE "&$C$2&" M'!$D$5:$JHK$5"),$C$1,INDIRECT("'MYE "&$C$2&" M'!D"&A8+10&":JHK"&A8+10))) -> 29017 | F8: =IF($C$3>$C$2-2,HLOOKUP($C$1,INDIRECT(F$5),$A8+2+$C$3-$C$2,0),0) -> 27143 | G8: =IF($C$3>$C$2-2,HLOOKUP($C$1,INDIRECT(G$5),$A8+2+$C$3-$C$2,0),0) -> 28553 | H8: =IF($C$1="Scotland",SUM(INDIRECT("'MYE "&$C$3&" F'!D"&A8+10+$C$3-$C$2&":JHK"&A8+10+$C$3-$C$2)),SUMIF(INDIRECT("'MYE "&$C$3&" F'!$D$5:$JHK$5"),$C$1,INDIRECT("'MYE "&$C$3&" F'!D"&A8+10+$C$3-$C$2&":JHK"&A8+10+$C$3-$C$2))) -> 27633 | I8: =IF($C$1="Scotland",SUM(INDIRECT("'MYE "&$C$3&" M'!D"&A8+10+$C$3-$C$2&":JHK"&A8+10+$C$3-$C$2)),SUMIF(INDIRECT("'MYE "&$C$3&" M'!$D$5:$JHK$5"),$C$1,INDIRECT("'MYE "&$C$3&" M'!D"&A8+10+$C$3-$C$2&":JHK"&A8+10+$C$3-$C$2))) -> 29157 | J8: =(F8-B8)/B8 -> 0.01374416433 | K8: =(G8-C8)/C8 -> 0.01083300882 | L8: =(H8-D8)/D8 -> 0.002394166939 | M8: =(I8-E8)/E8 -> 0.004824757901 | N8: =F8-B8 -> 368 | O8: =G8-C8 -> 306 | P8: =H8-D8 -> 66 | Q8: =I8-E8 -> 140 | R8: 0 | T8: =T7+5 -> 5 | U8: =CONCATENATE(T8," - ",T8+4) -> 5 - 9 | V8: 144539 | W8: 150861 | X8: 146570 | Y8: 152292 | Z8: 145846 | AA8: 152221 | AB8: 147028 | AC8: 152979 | AD8: =(Z8-V8)/V8 -> 0.009042542151 | AE8: =(AA8-W8)/W8 -> 0.00901492102 | AF8: =(AB8-X8)/X8 -> 0.003124786791 | AG8: =(AC8-Y8)/Y8 -> 0.004511070838 | AH8: =Z8-V8 -> 1307 | AI8: =AA8-W8 -> 1360 | AJ8: =AB8-X8 -> 458 | AK8: =AC8-Y8 -> 687
A9: 2 | B9: 27082 | C9: 28674 | D9: 27788 | E9: 29377 | F9: =HLOOKUP($C$1,INDIRECT(F$5),$A9+2+$C$3-$C$2,0) -> 27368 | G9: 28986 | H9: 27868 | I9: 29493 | J9: 0.0105605199 | K9: 0.01088093743 | L9: 0.00287894055 | M9: 0.003948667325 | N9: =F9-B9 -> 286 | O9: =G9-C9 -> 312 | P9: 80 | Q9: 116 | R9: 0 | T9: =T8+5 -> 10 | U9: 10 - 14 | V9: 133112 | W9: 139629 | X9: 133997 | Y9: 140381 | Z9: 134491 | AA9: 141103 | AB9: 134394 | AC9: 140934 | AD9: 0.0103596971 | AE9: 0.01055654628 | AF9: 0.002962752897 | AG9: 0.003939279532 | AH9: 1379 | AI9: 1474 | AJ9: 397 | AK9: 553
A10: 3 | B10: 27838 | C10: 29068 | D10: 28504 | E10: 29728 | F10: 28288 | G10: 29479 | H10: 28608 | I10: 29902 | J10: 0.01616495438 | K10: 0.01413925967 | L10: 0.003648610721 | M10: 0.005853067815 | N10: 450 | O10: 411 | P10: 104 | Q10: 174 | R10: 0 | T10: 15 | U10: 15 - 19 | V10: 143802 | W10: 148809 | X10: 146046 | Y10: 152614 | Z10: 150129 | AA10: 152950 | AB10: 149573 | AC10: 155860 | AD10: 0.04399799725 | AE10: 0.02782761795 | AF10: 0.02414992537 | AG10: 0.02126934619 | AH10: 6327 | AI10: 4141 | AJ10: 3527 | AK10: 3246
A11: 4 | B11: 28574 | C11: 30217 | D11: 29033 | E11: 30708 | F11: 28831 | G11: 30540 | H11: 29138 | I11: 30863 | J11: 0.008994190523 | K11: 0.01068934706 | L11: 0.003616574243 | M11: 0.005047544614 | N11: 257 | O11: 323 | P11: 105 | Q11: 155 | R11: 0 | T11: 20 | U11: 20 - 24 | V11: 178986 | W11: 173830 | X11: 182279 | Y11: 181688 | Z11: 183101 | AA11: 175988 | AB11: 183179 | AC11: 183404 | AD11: 0.02299062497 | AE11: 0.01241442789 | AF11: 0.004937485942 | AG11: 0.00944476245 | AH11: 4115 | AI11: 2158 | AJ11: 900 | AK11: 1716
A12: 5 | B12: 28703 | C12: 30212 | D12: 30162 | E12: 31533 | F12: 28949 | G12: 30555 | H12: 30220 | I12: 31675 | J12: 0.008570532697 | K12: 0.01135310473 | L12: 0.001922949407 | M12: 0.00450321885 | N12: 246 | O12: 343 | P12: 58 | Q12: 142 | R12: 0 | T12: 25 | U12: 25 - 29 | V12: 183614 | W12: 181268 | X12: 187975 | Y12: 186149 | Z12: 185608 | AA12: 182973 | AB12: 189064 | AC12: 187100 | AD12: 0.01085973836 | AE12: 0.009405962442 | AF12: 0.00579332358 | AG12: 0.005108810684 | AH12: 1994 | AI12: 1705 | AJ12: 1089 | AK12: 951
A13: 6 | B13: 29184 | C13: 30159 | D13: 28855 | E13: 29946 | F13: 29469 | G13: 30411 | H13: 28968 | I13: 30043 | J13: 0.009765625 | K13: 0.008355714712 | L13: 0.003916132386 | M13: 0.003239163828 | N13: 285 | O13: 252 | P13: 113 | Q13: 97 | R13: 0 | T13: 30 | U13: 30 - 34 | V13: 179967 | W13: 177384 | X13: 179608 | Y13: 172305 | Z13: 181486 | AA13: 178457 | AB13: 180256 | AC13: 173157 | AD13: 0.008440436302 | AE13: 0.006049023587 | AF13: 0.003607857111 | AG13: 0.004944720118 | AH13: 1519 | AI13: 1073 | AJ13: 648 | AK13: 852
A14: 7 | B14: 29139 | C14: 30487 | D14: 29683 | E14: 30653 | F14: 29382 | G14: 30738 | H14: 29811 | I14: 30813 | J14: 0.00833933903 | K14: 0.008233017352 | L14: 0.004312232591 | M14: 0.005219717483 | N14: 243 | O14: 251 | P14: 128 | Q14: 160 | R14: 0 | T14: 35 | U14: 35 - 39 | V14: 166829 | W14: 167503 | X14: 166485 | Y14: 161268 | Z14: 168399 | AA14: 168814 | AB14: 166989 | AC14: 162055 | AD14: 0.009410833848 | AE14: 0.007826725491 | AF14: 0.003027299757 | AG14: 0.004880075402 | AH14: 1570 | AI14: 1311 | AJ14: 504 | AK14: 787
A15: 8 | B15: 29347 | C15: 30335 | D15: 29598 | E15: 30586 | F15: 29658 | G15: 30621 | H15: 29690 | I15: 30730 | J15: 0.01059733533 | K15: 0.009428053404 | L15: 0.00310831813 | M15: 0.004708036357 | N15: 311 | O15: 286 | P15: 92 | Q15: 144 | R15: 0 | T15: 40 | U15: 40 - 44 | V15: 171247 | W15: 169507 | X15: 172709 | Y15: 164929 | Z15: 173131 | AA15: 170840 | AB15: 173057 | AC15: 164977 | AD15: 0.01100165258 | AE15: 0.007863982018 | AF15: 0.002014950003 | AG15: 0.0002910343239 | AH15: 1884 | AI15: 1333 | AJ15: 348 | AK15: 48
A16: 9 | B16: 28166 | C16: 29668 | D16: 28272 | E16: 29574 | F16: 28388 | G16: 29896 | H16: 28339 | I16: 29718 | J16: 0.007881843357 | K16: 0.007685047863 | L16: 0.00236983588 | M16: 0.004869141814 | N16: 222 | O16: 228 | P16: 67 | Q16: 144 | R16: 0 | T16: 45 | U16: 45 - 49 | V16: 199953 | W16: 196031 | X16: 202829 | Y16: 189422 | Z16: 202387 | AA16: 199512 | AB16: 202823 | AC16: 189082 | AD16: 0.01217286062 | AE16: 0.01775739551 | AF16: -2.958156871e-05 | AG16: -0.001794934063 | AH16: 2434 | AI16: 3481 | AJ16: -6 | AK16: -340
A17: 10 | B17: 27447 | C17: 28650 | D17: 27796 | E17: 28838 | F17: 27724 | G17: 28991 | H17: 27891 | I17: 28949 | J17: 0.01009217765 | K17: 0.01190226876 | L17: 0.003417757951 | M17: 0.003849088009 | N17: 277 | O17: 341 | P17: 95 | Q17: 111 | R17: 0 | T17: 50 | U17: 50 - 54 | V17: 208201 | W17: 206755 | X17: 209262 | Y17: 197429 | Z17: 209941 | AA17: 206965 | AB17: 208982 | AC17: 196916 | AD17: 0.008357308562 | AE17: 0.001015694905 | AF17: -0.001338035573 | AG17: -0.002598402464 | AH17: 1740 | AI17: 210 | AJ17: -280 | AK17: -513
A18: 11 | B18: 26912 | C18: 28677 | D18: 27257 | E18: 28885 | F18: 27196 | G18: 28893 | H18: 27352 | I18: 29005 | J18: 0.0105529132 | K18: 0.007532168637 | L18: 0.003485343215 | M18: 0.004154405401 | N18: 284 | O18: 216 | P18: 95 | Q18: 120 | R18: 0 | T18: 55 | U18: 55 - 59 | V18: 188982 | W18: 185639 | X18: 190084 | Y18: 180737 | Z18: 190557 | AA18: 186342 | AB18: 189557 | AC18: 179876 | AD18: 0.00833412706 | AE18: 0.003786919774 | AF18: -0.002772458492 | AG18: -0.004763828104 | AH18: 1575 | AI18: 703 | AJ18: -527 | AK18: -861
A19: 12 | B19: 26724 | C19: 28209 | D19: 26739 | E19: 28344 | F19: 26974 | G19: 28529 | H19: 26801 | I19: 28442 | J19: 0.009354886993 | K19: 0.01134389734 | L19: 0.002318710498 | M19: 0.003457521874 | N19: 250 | O19: 320 | P19: 62 | Q19: 98 | R19: 0 | T19: 60 | U19: 60 - 64 | V19: 162760 | W19: 158145 | X19: 165146 | Y19: 156406 | Z19: 163778 | AA19: 158458 | AB19: 164067 | AC19: 154836 | AD19: 0.006254608012 | AE19: 0.001979196307 | AF19: -0.006533612682 | AG19: -0.01003797808 | AH19: 1018 | AI19: 313 | AJ19: -1079 | AK19: -1570
A20: 13 | B20: 26095 | C20: 27150 | D20: 26167 | E20: 27231 | F20: 26360 | G20: 27453 | H20: 26234 | I20: 27366 | J20: 0.01015520215 | K20: 0.01116022099 | L20: 0.002560476937 | M20: 0.004957585105 | N20: 265 | O20: 303 | P20: 67 | Q20: 135 | R20: 0 | T20: 65 | U20: 65 - 69 | V20: 159661 | W20: 151115 | X20: 164057 | Y20: 153467 | Z20: 161017 | AA20: 151329 | AB20: 162130 | AC20: 150720 | AD20: 0.008492994532 | AE20: 0.001416140026 | AF20: -0.01174591758 | AG20: -0.0178996136 | AH20: 1356 | AI20: 214 | AJ20: -1927 | AK20: -2747
A21: 14 | B21: 25934 | C21: 26943 | D21: 26038 | E21: 27083 | F21: 26237 | G21: 27237 | H21: 26116 | I21: 27172 | J21: 0.01168350428 | K21: 0.01091192518 | L21: 0.002995621784 | M21: 0.003286194292 | N21: 303 | O21: 294 | P21: 78 | Q21: 89 | R21: 0 | T21: 70 | U21: 70 - 74 | V21: 123105 | W21: 108960 | X21: 127150 | Y21: 111869 | Z21: 122796 | AA21: 107863 | AB21: 124469 | AC21: 108591 | AD21: -0.002510052394 | AE21: -0.01006791483 | AF21: -0.02108533228 | AG21: -0.02930213017 | AH21: -309 | AI21: -1097 | AJ21: -2681 | AK21: -3278
A22: 15 | B22: 26874 | C22: 27845 | D22: 27243 | E22: 28196 | F22: 27096 | G22: 28055 | H22: 27297 | I22: 28297 | J22: 0.008260772494 | K22: 0.007541748967 | L22: 0.001982160555 | M22: 0.003582068378 | N22: 222 | O22: 210 | P22: 54 | Q22: 101 | R22: 0 | T22: 75 | U22: 75 - 79 | V22: 100914 | W22: 79780 | X22: 104331 | Y22: 82515 | Z22: 98912 | AA22: 77157 | AB22: 100602 | AC22: 78540 | AD22: -0.01983867451 | AE22: -0.03287791426 | AF22: -0.0357420134 | AG22: -0.04817305944 | AH22: -2002 | AI22: -2623 | AJ22: -3729 | AK22: -3975
A23: 16 | B23: 27113 | C23: 28689 | D23: 27563 | E23: 29300 | F23: 27245 | G23: 28735 | H23: 27603 | I23: 29416 | J23: 0.004868513259 | K23: 0.001603402001 | L23: 0.00145122084 | M23: 0.003959044369 | N23: 132 | O23: 46 | P23: 40 | Q23: 116 | R23: 0 | T23: 80 | U23: 80 - 84 | V23: 77119 | W23: 53942 | X23: 80217 | Y23: 56201 | Z23: 73435 | AA23: 50234 | AB23: 75198 | AC23: 51611 | AD23: -0.04777032897 | AE23: -0.06874049905 | AF23: -0.06256778488 | AG23: -0.08167114464 | AH23: -3684 | AI23: -3708 | AJ23: -5019 | AK23: -4590
A24: 17 | B24: 28153 | C24: 29288 | D24: 28702 | E24: 30279 | F24: 28998 | G24: 30082 | H24: 29074 | I24: 30691 | J24: 0.03001456328 | K24: 0.02711007921 | L24: 0.01296076928 | M24: 0.01360679018 | N24: 845 | O24: 794 | P24: 372 | Q24: 412 | R24: 0 | T24: 85 | U24: 85 - 89 | V24: 48017 | W24: 27129 | X24: 49691 | Y24: 28287 | Z24: =SUMIFS(F$7:F$97,$A$7:$A$97,">=" & $T24,$A$7:$A$97,"<" & $T25) -> 65039 | AA24: 31999 | AB24: 67004 | AC24: 33683 | AD24: 0.3544994481 | AE24: 0.1795126986 | AF24: 0.3484131935 | AG24: 0.1907590059 | AH24: 17022 | AI24: 4870 | AJ24: 17313 | AK24: 5396
A25: 18 | B25: 29170 | C25: 30191 | D25: 29789 | E25: 31162 | F25: 32284 | G25: 32251 | H25: 31676 | I25: 32698 | J25: 0.1067535139 | K25: 0.06823225465 | L25: 0.06334553023 | M25: 0.0492908029 | N25: 3114 | O25: 2060 | P25: 1887 | Q25: 1536 | R25: 0 | T25: 90 | U25: 90+ | V25: 27250 | W25: 10795 | X25: 29050 | Y25: 12017 | AB25: 932544 | AC25: 960507 | AF25: 31.10134251 | AG25: 78.92901723 | AJ25: 903494 | AK25: 948490
A26: 19 | B26: 32492 | C26: 32796 | D26: 32749 | E26: 33677 | F26: 34506 | G26: 33827 | H26: 33923 | I26: 34758 | J26: 0.06198448849 | K26: 0.03143676058 | L26: 0.03584842285 | M26: 0.0320990587 | N26: 2014 | O26: 1031 | P26: 1174 | Q26: 1081 | R26: 0 | T26: 95
A27: 20 | B27: =HLOOKUP($C$1,INDIRECT(B$5),$A27+2,0) -> 33384 | C27: 32674 | D27: 33871 | E27: 34653 | F27: 34455 | G27: 33283 | H27: 34375 | I27: 35231 | J27: 0.03208123652 | K27: 0.01863867295 | L27: 0.01487998583 | M27: 0.01667965256 | N27: 1071 | O27: 609 | P27: 504 | Q27: 578 | R27: 0
A28: 21 | B28: 34657 | C28: 33695 | D28: 34923 | E28: 35175 | F28: 35777 | G28: 34379 | H28: 35124 | I28: 35570 | J28: 0.0323167037 | K28: 0.02029974774 | L28: 0.005755519285 | M28: 0.01122956645 | N28: 1120 | O28: 684 | P28: 201 | Q28: 395 | R28: 0 | T28: 33
A29: 22 | B29: 36124 | C29: 35166 | D29: 36314 | E29: 36261 | F29: 37097 | G29: 35436 | H29: 36381 | I29: 36594 | J29: 0.02693500166 | K29: 0.007677870671 | L29: 0.00184501845 | M29: 0.009183420204 | N29: 973 | O29: 270 | P29: 67 | Q29: 333 | R29: 0 | T29: Aberdeen City
A30: 23 | B30: 36959 | C30: 35415 | D30: 37631 | E30: 36791 | F30: 37567 | G30: 35774 | H30: 37669 | I30: 36984 | J30: 0.01645066154 | K30: 0.01013694762 | L30: 0.001009805745 | M30: 0.005245848169 | N30: 608 | O30: 359 | P30: 38 | Q30: 193 | R30: 0 | T30: Aberdeenshire
A31: 24 | B31: 37862 | C31: 36880 | D31: 39540 | E31: 38808 | F31: 38205 | G31: 37116 | H31: 39630 | I31: 39025 | J31: 0.009059215044 | K31: 0.006399132321 | L31: 0.002276176024 | M31: 0.005591630592 | N31: 343 | O31: 236 | P31: 90 | Q31: 217 | R31: 0 | T31: Angus
A32: 25 | B32: 37574 | C32: 36843 | D32: 38982 | E32: 39073 | F32: 37912 | G32: 37177 | H32: 39184 | I32: 39299 | J32: 0.008995582051 | K32: 0.009065494124 | L32: 0.005181878816 | M32: 0.005784045249 | N32: 338 | O32: 334 | P32: 202 | Q32: 226 | R32: 0 | T32: Argyll and Bute
A33: 26 | B33: 36412 | C33: 35731 | D33: 37498 | E33: 37445 | F33: 36845 | G33: 35997 | H33: 37661 | I33: 37701 | J33: 0.01189168406 | K33: 0.007444515967 | L33: 0.004346898501 | M33: 0.006836693818 | N33: 433 | O33: 266 | P33: 163 | Q33: 256 | R33: 0 | T33: City of Edinburgh
A34: 27 | B34: 36093 | C34: 35700 | D34: 37318 | E34: 37102 | F34: 36483 | G34: 36031 | H34: 37574 | I34: 37307 | J34: 0.01080541933 | K34: 0.009271708683 | L34: 0.006859960341 | M34: 0.005525308609 | N34: 390 | O34: 331 | P34: 256 | Q34: 205 | R34: 0 | T34: Clackmannanshire
A35: 28 | B35: 36946 | C35: 36706 | D35: 37556 | E35: 36957 | F35: 37380 | G35: 37134 | H35: 37823 | I35: 37044 | J35: 0.01174687382 | K35: 0.01166021904 | L35: 0.007109383321 | M35: 0.002354087182 | N35: 434 | O35: 428 | P35: 267 | Q35: 87 | R35: 0 | T35: Dumfries and Galloway
A36: 29 | B36: 36589 | C36: 36288 | D36: 36621 | E36: 35572 | F36: 36988 | G36: 36634 | H36: 36822 | I36: 35749 | J36: 0.01090491678 | K36: 0.009534832451 | L36: 0.005488654051 | M36: 0.004975823682 | N36: 399 | O36: 346 | P36: 201 | Q36: 177 | R36: 0 | T36: Dundee City
A37: 30 | B37: 36307 | C37: 36243 | D37: 36099 | E37: 35467 | F37: 36662 | G37: 36623 | H37: 36217 | I37: 35727 | J37: 0.009777728813 | K37: 0.01048478327 | L37: 0.003268788609 | M37: 0.00733075817 | N37: 355 | O37: 380 | P37: 118 | Q37: 260 | R37: 0 | T37: East Ayrshire
A38: 31 | B38: 36621 | C38: 35801 | D38: 36312 | E38: 34774 | F38: 37038 | G38: 36218 | H38: 36435 | I38: 34926 | J38: 0.01138690915 | K38: 0.01164771934 | L38: 0.00338730998 | M38: 0.004371081843 | N38: 417 | O38: 417 | P38: 123 | Q38: 152 | R38: 0 | T38: East Dunbartonshire
A39: 32 | B39: 35533 | C39: 35115 | D39: 35089 | E39: 33786 | F39: 35543 | G39: 34736 | H39: 35286 | I39: 33871 | J39: 0.0002814285312 | K39: -0.01079310836 | L39: 0.005614295078 | M39: 0.002515834961 | N39: 10 | O39: -379 | P39: 197 | Q39: 85 | R39: 0 | T39: East Lothian
A40: 33 | B40: =HLOOKUP($C$1,INDIRECT(B$5),$A40+2,0) -> 35669 | C40: 34968 | D40: 35723 | E40: 34032 | F40: =HLOOKUP($C$1,INDIRECT(F$5),$A40+2+$C$3-$C$2,0) -> 36025 | G40: 35268 | H40: 35830 | I40: 34217 | J40: 0.009980655471 | K40: 0.008579272478 | L40: 0.002995269154 | M40: 0.005436060179 | N40: 356 | O40: 300 | P40: 107 | Q40: 185 | R40: 0 | T40: East Renfrewshire
A41: 34 | B41: 35837 | C41: 35257 | D41: 36385 | E41: 34246 | F41: 36218 | G41: 35612 | H41: 36488 | I41: 34416 | J41: 0.01063147027 | K41: 0.01006892248 | L41: 0.002830836883 | M41: 0.004964083397 | N41: 381 | O41: 355 | P41: 103 | Q41: 170 | R41: 0 | T41: Falkirk
A42: 35 | B42: 35951 | C42: 35882 | D42: 35753 | E42: 34347 | F42: 36295 | G42: 36059 | H42: 35887 | I42: 34511 | J42: 0.009568579455 | K42: 0.004932835405 | L42: 0.003747937236 | M42: 0.004774798381 | N42: 344 | O42: 177 | P42: 134 | Q42: 164 | R42: 0 | T42: Fife
A43: 36 | B43: 35118 | C43: 35243 | D43: 34995 | E43: 33701 | F43: 35431 | G43: 35527 | H43: 35085 | I43: 33876 | J43: 0.008912808246 | K43: 0.008058337826 | L43: 0.002571795971 | M43: 0.005192724252 | N43: 313 | O43: 284 | P43: 90 | Q43: 175 | R43: 0 | T43: Glasgow City
A44: 37 | B44: 33630 | C44: 34253 | D44: 33471 | E44: 32926 | F44: 33905 | G44: 34657 | H44: 33586 | I44: 33130 | J44: 0.008177222718 | K44: 0.01179458734 | L44: 0.003435810104 | M44: 0.006195711596 | N44: 275 | O44: 404 | P44: 115 | Q44: 204 | R44: 0 | T44: Highland
A45: 38 | B45: 31741 | C45: 31263 | D45: 31663 | E45: 30125 | F45: 32101 | G45: 31472 | H45: 31781 | I45: 30293 | J45: 0.01134179767 | K45: 0.006685218949 | L45: 0.003726747308 | M45: 0.005576763485 | N45: 360 | O45: 209 | P45: 118 | Q45: 168 | R45: 0 | T45: Inverclyde
A46: 39 | B46: 30389 | C46: 30862 | D46: 30603 | E46: 30169 | F46: 30667 | G46: 31099 | H46: 30650 | I46: 30245 | J46: 0.009148046991 | K46: 0.007679346769 | L46: 0.001535797144 | M46: 0.002519142166 | N46: 278 | O46: 237 | P46: 47 | Q46: 76 | R46: 0 | T46: Midlothian
A47: 40 | B47: 32430 | C47: 32378 | D47: 32622 | E47: 31504 | F47: 32840 | G47: 32582 | H47: 32707 | I47: 31468 | J47: 0.01264261486 | K47: 0.006300574464 | L47: 0.00260560358 | M47: -0.001142712037 | N47: 410 | O47: 204 | P47: 85 | Q47: -36 | R47: 0 | T47: Moray
A48: 41 | B48: 32905 | C48: 32447 | D48: 33160 | E48: 31398 | F48: 33252 | G48: 32685 | H48: 33267 | I48: 31408 | J48: 0.0105455098 | K48: 0.007335038678 | L48: 0.003226779252 | M48: 0.0003184916237 | N48: 347 | O48: 238 | P48: 107 | Q48: 10 | R48: 0 | T48: Na h-Eileanan Siar
A49: 42 | B49: 33075 | C49: 33087 | D49: 33272 | E49: 32214 | F49: 33496 | G49: 33342 | H49: 33367 | I49: 32277 | J49: 0.01272864701 | K49: 0.007706954393 | L49: 0.002855253667 | M49: 0.001955671447 | N49: 421 | O49: 255 | P49: 95 | Q49: 63 | R49: 0 | T49: North Ayrshire
A50: 43 | B50: 35248 | C50: 34912 | D50: 35532 | E50: 34054 | F50: 35584 | G50: 35224 | H50: 35569 | I50: 34075 | J50: 0.009532455742 | K50: 0.00893675527 | L50: 0.001041314871 | M50: 0.0006166676455 | N50: 336 | O50: 312 | P50: 37 | Q50: 21 | R50: 0 | T50: North Lanarkshire
A51: 44 | B51: 37589 | C51: 36683 | D51: 38123 | E51: 35759 | F51: 37959 | G51: 37007 | H51: 38147 | I51: 35749 | J51: 0.009843305222 | K51: 0.008832429191 | L51: 0.0006295412218 | M51: -0.0002796498784 | N51: 370 | O51: 324 | P51: 24 | Q51: -10 | R51: 0 | T51: Orkney Islands
A52: 45 | B52: 39287 | C52: 38368 | D52: 39905 | E52: 36884 | F52: 39665 | G52: 38699 | H52: 39921 | I52: 36792 | J52: 0.009621503296 | K52: 0.008626980817 | L52: 0.0004009522616 | M52: -0.002494306474 | N52: 378 | O52: 331 | P52: 16 | Q52: -92 | R52: 0 | T52: Perth and Kinross
A53: 46 | B53: 38776 | C53: 38011 | D53: 39222 | E53: 36481 | F53: 39134 | G53: 38306 | H53: 39262 | I53: 36424 | J53: 0.009232514958 | K53: 0.007760911315 | L53: 0.001019835806 | M53: -0.001562457169 | N53: 358 | O53: 295 | P53: 40 | Q53: -57 | R53: 0 | T53: Renfrewshire
A54: 47 | B54: 40123 | C54: 39407 | D54: 40801 | E54: 37985 | F54: 40524 | G54: 39796 | H54: 40781 | I54: 37924 | J54: 0.009994267627 | K54: 0.009871342655 | L54: -0.0004901840641 | M54: -0.001605897065 | N54: 401 | O54: 389 | P54: -20 | Q54: -61 | R54: 0 | T54: Scottish Borders
A55: 48 | B55: 40939 | C55: 39782 | D55: 41543 | E55: 38668 | F55: 41366 | G55: 40089 | H55: 41499 | I55: 38571 | J55: 0.01043015218 | K55: 0.007717057966 | L55: -0.001059143538 | M55: -0.002508534188 | N55: 427 | O55: 307 | P55: -44 | Q55: -97 | R55: 0 | T55: Shetland Islands
A56: 49 | B56: 40828 | C56: 40463 | D56: 41358 | E56: 39404 | F56: 41698 | G56: 42622 | H56: 41360 | I56: 39371 | J56: 0.02130890565 | K56: 0.05335738823 | L56: 4.835823783e-05 | M56: -0.0008374784286 | N56: 870 | O56: 2159 | P56: 2 | Q56: -33 | R56: 0 | T56: South Ayrshire
A57: 50 | B57: 41251 | C57: 41413 | D57: 41391 | E57: 38795 | F57: 41488 | G57: 40790 | H57: 41330 | I57: 38735 | J57: 0.005745315265 | K57: -0.01504358535 | L57: -0.001473750332 | M57: -0.001546591056 | N57: 237 | O57: -623 | P57: -61 | Q57: -60 | R57: 0 | T57: South Lanarkshire
A58: 51 | B58: 42408 | C58: 42100 | D58: 42646 | E58: 40421 | F58: 42850 | G58: 42772 | H58: 42580 | I58: 40329 | J58: 0.01042256178 | K58: 0.01596199525 | L58: -0.001547624631 | M58: -0.00227604463 | N58: 442 | O58: 672 | P58: -66 | Q58: -92 | R58: 0 | T58: Stirling
A59: 52 | B59: 42292 | C59: 41724 | D59: 42441 | E59: 39547 | F59: 42515 | G59: 41445 | H59: 42376 | I59: 39441 | J59: 0.005272864844 | K59: -0.006686798965 | L59: -0.0015315379 | M59: -0.002680355021 | N59: 223 | O59: -279 | P59: -65 | Q59: -106 | R59: 0 | T59: West Dunbartonshire
A60: 53 | B60: 41745 | C60: 40893 | D60: 42060 | E60: 39588 | F60: 42282 | G60: 41461 | H60: 42025 | I60: 39502 | J60: 0.01286381603 | K60: 0.01388990781 | L60: -0.0008321445554 | M60: -0.002172375467 | N60: 537 | O60: 568 | P60: -35 | Q60: -86 | R60: 0 | T60: West Lothian
A61: 54 | B61: 40505 | C61: 40625 | D61: 40724 | E61: 39078 | F61: 40806 | G61: 40497 | H61: 40671 | I61: 38909 | J61: 0.007431181336 | K61: -0.003150769231 | L61: -0.001301443866 | M61: -0.004324683965 | N61: 301 | O61: -128 | P61: -53 | Q61: -169 | R61: 0 | T61: Scotland
A62: 55 | B62: 39714 | C62: 39010 | D62: 39939 | E62: 38031 | F62: 40108 | G62: 39450 | H62: 39839 | I62: 37885 | J62: 0.009920934683 | K62: 0.01127915919 | L62: -0.002503818323 | M62: -0.003838973469 | N62: 394 | O62: 440 | P62: -100 | Q62: -146 | R62: 0
A63: 56 | B63: 38260 | C63: 38195 | D63: 38427 | E63: 36862 | F63: 38569 | G63: 38214 | H63: 38357 | I63: 36734 | J63: 0.008076319916 | K63: 0.0004974473099 | L63: -0.001821635829 | M63: -0.003472410613 | N63: 309 | O63: 19 | P63: -70 | Q63: -128 | R63: 0
A64: 57 | B64: 38198 | C64: 37341 | D64: 38397 | E64: 36217 | F64: 38487 | G64: 37369 | H64: 38274 | I64: 36030 | J64: 0.007565841144 | K64: 0.0007498460138 | L64: -0.003203375264 | M64: -0.005163321092 | N64: 289 | O64: 28 | P64: -123 | Q64: -187 | R64: 0
A65: 58 | B65: 37061 | C65: 36061 | D65: 37263 | E65: 35210 | F65: 37421 | G65: 36373 | H65: 37138 | I65: 35049 | J65: 0.009713715226 | K65: 0.008652006323 | L65: -0.003354533988 | M65: -0.004572564612 | N65: 360 | O65: 312 | P65: -125 | Q65: -161 | R65: 0
A66: 59 | B66: 35749 | C66: 35032 | D66: 36058 | E66: 34417 | F66: 35972 | G66: 34936 | H66: 35949 | I66: 34178 | J66: 0.006237936726 | K66: -0.002740351678 | L66: -0.003022907538 | M66: -0.006944242671 | N66: 223 | O66: -96 | P66: -109 | Q66: -239 | R66: 0
A67: 60 | B67: 34519 | C67: 33844 | D67: 34941 | E67: 33311 | F67: 34850 | G67: 34099 | H67: 34801 | I67: 33057 | J67: 0.009588922043 | K67: 0.007534570382 | L67: -0.004006754243 | M67: -0.007625108823 | N67: 331 | O67: 255 | P67: -140 | Q67: -254 | R67: 0
A68: 61 | B68: 33333 | C68: 32193 | D68: 33606 | E68: 31726 | F68: 33437 | G68: 32153 | H68: 33426 | I68: 31417 | J68: 0.0031200312 | K68: -0.001242506135 | L68: -0.005356186395 | M68: -0.009739645716 | N68: 104 | O68: -40 | P68: -180 | Q68: -309 | R68: 0
A69: 62 | B69: 32573 | C69: 31689 | D69: 33002 | E69: 31363 | F69: 32798 | G69: 31802 | H69: 32762 | I69: 31041 | J69: 0.006907561477 | K69: 0.00356590615 | L69: -0.007272286528 | M69: -0.01026687498 | N69: 225 | O69: 113 | P69: -240 | Q69: -322 | R69: 0
A70: 63 | B70: 31802 | C70: 30888 | D70: 32395 | E70: 30581 | F70: 31954 | G70: 30882 | H70: 32135 | I70: 30245 | J70: 0.004779573612 | K70: -0.0001942501943 | L70: -0.008025929927 | M70: -0.01098721428 | N70: 152 | O70: -6 | P70: -260 | Q70: -336 | R70: 0
A71: 64 | B71: 30533 | C71: 29531 | D71: 31202 | E71: 29425 | F71: 30739 | G71: 29522 | H71: 30943 | I71: 29076 | J71: 0.006746798546 | K71: -0.0003047644848 | L71: -0.008300749952 | M71: -0.0118606627 | N71: 206 | O71: -9 | P71: -259 | Q71: -349 | R71: 0
A72: 65 | B72: =HLOOKUP($C$1,INDIRECT(B$5),$A72+2,0) -> 30743 | C72: 29328 | D72: =IF($C$1="Scotland",SUM(INDIRECT("'MYE "&$C$2&" F'!D"&A72+10&":JHK"&A72+10)),SUMIF(INDIRECT("'MYE "&$C$2&" F'!$D$5:$JHK$5"),$C$1,INDIRECT("'MYE "&$C$2&" F'!D"&A72+10&":JHK"&A72+10))) -> 31507 | E72: =IF($C$1="Scotland",SUM(INDIRECT("'MYE "&$C$2&" M'!D"&A72+10&":JHK"&A72+10)),SUMIF(INDIRECT("'MYE "&$C$2&" M'!$D$5:$JHK$5"),$C$1,INDIRECT("'MYE "&$C$2&" M'!D"&A72+10&":JHK"&A72+10))) -> 29569 | F72: =HLOOKUP($C$1,INDIRECT(F$5),$A72+2+$C$3-$C$2,0) -> 31056 | G72: 29311 | H72: =IF($C$1="Scotland",SUM(INDIRECT("'MYE "&$C$3&" F'!D"&A72+10+$C$3-$C$2&":JHK"&A72+10+$C$3-$C$2)),SUMIF(INDIRECT("'MYE "&$C$3&" F'!$D$5:$JHK$5"),$C$1,INDIRECT("'MYE "&$C$3&" F'!D"&A72+10+$C$3-$C$2&":JHK"&A72+10+$C$3-$C$2))) -> 31228 | I72: =IF($C$1="Scotland",SUM(INDIRECT("'MYE "&$C$3&" M'!D"&A72+10+$C$3-$C$2&":JHK"&A72+10+$C$3-$C$2)),SUMIF(INDIRECT("'MYE "&$C$3&" M'!$D$5:$JHK$5"),$C$1,INDIRECT("'MYE "&$C$3&" M'!D"&A72+10+$C$3-$C$2&":JHK"&A72+10+$C$3-$C$2))) -> 29098 | J72: =(F72-B72)/B72 -> 0.01018117946 | K72: =(G72-C72)/C72 -> -0.0005796508456 | L72: =(H72-D72)/D72 -> -0.00885517504 | M72: =(I72-E72)/E72 -> -0.0159288444 | N72: =F72-B72 -> 313 | O72: =G72-C72 -> -17 | P72: =H72-D72 -> -279 | Q72: =I72-E72 -> -471 | R72: 0
A73: 66 | B73: 30416 | C73: 29184 | D73: 31414 | E73: 29668 | F73: 30884 | G73: 29392 | H73: 31100 | I73: 29224 | J73: 0.01538663861 | K73: 0.007127192982 | L73: -0.009995543388 | M73: -0.01496561952 | N73: 468 | O73: 208 | P73: -314 | Q73: -444 | R73: 0
A74: 67 | B74: 31159 | C74: 29719 | D74: 32127 | E74: 30193 | F74: 31474 | G74: 29769 | H74: 31741 | I74: 29691 | J74: 0.01010943869 | K74: 0.001682425384 | L74: -0.0120148162 | M74: -0.01662637035 | N74: 315 | O74: 50 | P74: -386 | Q74: -502 | R74: 0
A75: 68 | B75: 32359 | C75: 30373 | D75: 33103 | E75: 30916 | F75: 32550 | G75: 30405 | H75: 32681 | I75: 30284 | J75: 0.005902530981 | K75: 0.001053567313 | L75: -0.0127480893 | M75: -0.02044248933 | N75: 191 | O75: 32 | P75: -422 | Q75: -632 | R75: 0
A76: 69 | B76: 34984 | C76: 32511 | D76: 35906 | E76: 33121 | F76: 35053 | G76: 32452 | H76: 35380 | I76: 32423 | J76: 0.001972330208 | K76: -0.001814770385 | L76: -0.01464936222 | M76: -0.02107424293 | N76: 69 | O76: -59 | P76: -526 | Q76: -698 | R76: 0
A77: 70 | B77: 26076 | C77: 24059 | D77: 26974 | E77: 24797 | F77: 26126 | G77: 23988 | H77: 26479 | I77: 24213 | J77: 0.001917472005 | K77: -0.002951078598 | L77: -0.01835100467 | M77: -0.02355123604 | N77: 50 | O77: -71 | P77: -495 | Q77: -584 | R77: 0
A78: 71 | B78: 24884 | C78: 22312 | D78: 25687 | E78: 22863 | F78: 24848 | G78: 22146 | H78: 25219 | I78: 22279 | J78: -0.001446712747 | K78: -0.007439942632 | L78: -0.01821933274 | M78: -0.02554345449 | N78: -36 | O78: -166 | P78: -468 | Q78: -584 | R78: 0
A79: 72 | B79: 25097 | C79: 22685 | D79: 25970 | E79: 23308 | F79: 25131 | G79: 22481 | H79: 25443 | I79: 22640 | J79: 0.001354743595 | K79: -0.008992726471 | L79: -0.02029264536 | M79: -0.02865968766 | N79: 34 | O79: -204 | P79: -527 | Q79: -668 | R79: 0
A80: 73 | B80: 24598 | C80: 20988 | D80: 25265 | E80: 21528 | F80: 24430 | G80: 20651 | H80: 24656 | I80: 20798 | J80: -0.006829823563 | K80: -0.01605679436 | L80: -0.02410449238 | M80: -0.03390932739 | N80: -168 | O80: -337 | P80: -609 | Q80: -730 | R80: 0
A81: 74 | B81: 22450 | C81: 18916 | D81: 23254 | E81: 19373 | F81: 22261 | G81: 18597 | H81: 22672 | I81: 18661 | J81: -0.008418708241 | K81: -0.01686403045 | L81: -0.02502795218 | M81: -0.03675218087 | N81: -189 | O81: -319 | P81: -582 | Q81: -712 | R81: 0
A82: 75 | B82: 20917 | C82: 16982 | D82: 21636 | E82: 17496 | F82: 20613 | G82: 16539 | H82: 20988 | I82: 16759 | J82: -0.01453363293 | K82: -0.02608644447 | L82: -0.02995008319 | M82: -0.04212391404 | N82: -304 | O82: -443 | P82: -648 | Q82: -737 | R82: 0
A83: 76 | B83: 21073 | C83: 16994 | D83: 21833 | E83: 17603 | F83: 20722 | G83: 16525 | H83: 21101 | I83: 16871 | J83: -0.01665638495 | K83: -0.02759797576 | L83: -0.03352722942 | M83: -0.04158382094 | N83: -351 | O83: -469 | P83: -732 | Q83: -732 | R83: 0
A84: 77 | B84: 20439 | C84: 16285 | D84: 21118 | E84: 16869 | F84: 20019 | G84: 15766 | H84: 20359 | I84: 16072 | J84: -0.02054895054 | K84: -0.03186981885 | L84: -0.03594090349 | M84: -0.04724642836 | N84: -420 | O84: -519 | P84: -759 | Q84: -797 | R84: 0
A85: 78 | B85: 19794 | C85: 15575 | D85: 20348 | E85: 16115 | F85: 19330 | G85: 15001 | H85: 19531 | I85: 15248 | J85: -0.0234414469 | K85: -0.03685393258 | L85: -0.04015136623 | M85: -0.0538008067 | N85: -464 | O85: -574 | P85: -817 | Q85: -867 | R85: 0
A86: 79 | B86: 18691 | C86: 13944 | D86: 19396 | E86: 14432 | F86: 18228 | G86: 13326 | H86: 18623 | I86: 13590 | J86: -0.0247712803 | K86: -0.04432013769 | L86: -0.03985357806 | M86: -0.05834257206 | N86: -463 | O86: -618 | P86: -773 | Q86: -842 | R86: 0
A87: 80 | B87: 17749 | C87: 13047 | D87: 18453 | E87: 13546 | F87: 17137 | G87: 12353 | H87: 17531 | I87: 12630 | J87: -0.03448081582 | K87: -0.05319230474 | L87: -0.04996477538 | M87: -0.06762143806 | N87: -612 | O87: -694 | P87: -922 | Q87: -916 | R87: 0
A88: 81 | B88: 16531 | C88: 11951 | D88: 17214 | E88: 12469 | F88: 15833 | G88: 11231 | H88: 16255 | I88: 11576 | J88: -0.04222370093 | K88: -0.06024600452 | L88: -0.05571046822 | M88: -0.07161761168 | N88: -698 | O88: -720 | P88: -959 | Q88: -893 | R88: 0
A89: 82 | B89: 15284 | C89: 10628 | D89: 15965 | E89: 11120 | F89: 14571 | G89: 9843 | H89: 14982 | I89: 10156 | J89: -0.0466500916 | K89: -0.07386149793 | L89: -0.06157218916 | M89: -0.08669064748 | N89: -713 | O89: -785 | P89: -983 | Q89: -964 | R89: 0
A90: 83 | B90: 14091 | C90: 9627 | D90: 14544 | E90: 9975 | F90: 13273 | G90: 8886 | H90: 13468 | I90: 9082 | J90: -0.05805123838 | K90: -0.07697101901 | L90: -0.07398239824 | M90: -0.08952380952 | N90: -818 | O90: -741 | P90: -1076 | Q90: -893 | R90: 0
A91: 84 | B91: 13464 | C91: 8689 | D91: 14041 | E91: 9091 | F91: 12621 | G91: 7921 | H91: 12962 | I91: 8167 | J91: -0.0626114082 | K91: -0.08838761653 | L91: -0.07684637846 | M91: -0.1016389836 | N91: -843 | O91: -768 | P91: -1079 | Q91: -924 | R91: 0
A92: 85 | B92: 12205 | C92: 7597 | D92: 12678 | E92: 7894 | F92: 11233 | G92: 6782 | H92: 11473 | I92: 6962 | J92: -0.07963949201 | K92: -0.1072791892 | L92: -0.09504653731 | M92: -0.1180643527 | N92: -972 | O92: -815 | P92: -1205 | Q92: -932 | R92: 0
A93: 86 | B93: 10881 | C93: 6301 | D93: 11277 | E93: 6573 | F93: 9942 | G93: 5583 | H93: 10113 | I93: 5727 | J93: -0.08629721533 | K93: -0.1139501666 | L93: -0.1032189412 | M93: -0.1287083524 | N93: -939 | O93: -718 | P93: -1164 | Q93: -846 | R93: 0
A94: 87 | B94: 9557 | C94: 5382 | D94: 9897 | E94: 5635 | F94: 8592 | G94: 4727 | H94: 8779 | I94: 4867 | J94: -0.1009731087 | K94: -0.1217019695 | L94: -0.1129635243 | M94: -0.1362910382 | N94: -965 | O94: -655 | P94: -1118 | Q94: -768 | R94: 0
A95: 88 | B95: 8195 | C95: 4306 | D95: 8421 | E95: 4454 | F95: 7235 | G95: 3657 | H95: 7302 | I95: 3739 | J95: -0.1171446004 | K95: -0.1507199257 | L95: -0.1328820805 | M95: -0.1605298608 | N95: -960 | O95: -649 | P95: -1119 | Q95: -715 | R95: 0
A96: 89 | B96: 7179 | C96: 3543 | D96: 7418 | E96: 3731 | F96: 28037 | G96: 11250 | H96: 29337 | I96: 12388 | J96: 2.905418582 | K96: 2.175275191 | L96: 2.954839579 | M96: 2.320289467 | N96: 20858 | O96: 7707 | P96: 21919 | Q96: 8657 | R96: 0
A97: 90 | B97: 27250 | C97: 10795 | D97: 29050 | E97: 12017 | H97: 932544 | I97: 960507 | L97: 31.10134251 | M97: 78.92901723 | P97: 903494 | Q97: 948490 | R97: 0

Sheet CA SIMD dist data (hidden)
B1: Year | C1: =VLOOKUP(D1,M1:N3,2,0) -> 2018 | D1: 3 | I1: 1 | M1: 1 | N1: 2016
B2: Sex | C2: =VLOOKUP(I1,H2:I4,2,0) -> Female | D2: =IF(C2="Male","M",IF(C2="Female","F","")) -> F | E2: 0-29 | F2: 101 | G2: 0 | H2: 1 | I2: Female | J2: 0 | M2: 2 | N2: 2017
B3: Age | C3: =INDEX(E2:E13,D3) -> All | D3: 12 | E3: 30-59 | F3: =F2+1 -> 102 | G3: =G2+10 -> 10 | H3: 2 | I3: Male | J3: 32 | M3: 3 | N3: 2018
E4: 60+ | F4: =F3+1 -> 103 | G4: =G3+10 -> 20 | H4: 3 | I4: Both
E5: 0-9 | F5: 104 | G5: 30
E6: 10-19 | F6: 105 | G6: 40
E7: 20-29 | F7: 106 | G7: 50 | I7: East Lothian | J7: =CONCATENATE(" 1") -> 1
E8: 30-39 | F8: 107 | G8: 60 | I8: Moray | J8: =CONCATENATE(" 1") -> 1
E9: 40-49 | F9: 108 | G9: 70 | I9: Na h-Eileanan Siar | J9: s 1, 2, 8, 9 or 10
E10: 50-59 | F10: 109 | G10: 80 | I10: Orkney Islands | J10: s 1 or 2
E11: 60-69 | F11: 110 | G11: 90 | I11: Shetland Islands | J11: s 1, 2, 3, 9 or 10
E12: 70+ | F12: 111 | G12: 100
E13: All | F13: 8 | G13: 110
A14: MYE | B14: SIMD | N14: ABPE | O14: SIMD | Z14: Difference | AA14: SIMD
B15: 1 | C15: =B15+1 -> 2 | D15: =C15+1 -> 3 | E15: 4 | F15: 5 | G15: 6 | H15: 7 | I15: 8 | J15: 9 | K15: 10 | O15: 1 | P15: =O15+1 -> 2 | Q15: =P15+1 -> 3 | R15: 4 | S15: 5 | T15: 6 | U15: 7 | V15: 8 | W15: 9 | X15: 10 | AA15: 1 | AB15: =AA15+1 -> 2 | AC15: =AB15+1 -> 3 | AD15: 4 | AE15: 5 | AF15: 6 | AG15: 7 | AH15: 8 | AI15: 9 | AJ15: 10
A16: Aberdeen City | B16: =IF($C$2="Both",SUMIFS(INDIRECT(CONCATENATE("'MYE ",$C$1," F'!$D$",VLOOKUP($C$3,$E$2:$F$13,2,0),":$JHK$",VLOOKUP($C$3,$E$2:$F$13,2,0))),INDIRECT(CONCATENATE("'MYE ",$C$1," F'!$D$5:$JHK$5")),$A16,INDIRECT(CONCATENATE("'MYE ",$C$1," F'!$D$6:$JHK$6")),B$15)+SUMIFS(INDIRECT(CONCATENATE("'MYE ",$C$1," M'!$D$",VLOOKUP($C$3,$E$2:$F$13,2,0),":$JHK$",VLOOKUP($C$3,$E$2:$F$13,2,0))),INDIRECT(CONCATENATE("'MYE ",$C$1," M'!$D$5:$JHK$5")),$A16,INDIRECT(CONCATENATE("'MYE ",$C$1," M'!$D$6:$JHK$6")),B$15),SUMIFS(INDIRECT(CONCATENATE("'MYE ",$C$1," ",$D$2,"'!$D$",VLOOKUP($C$3,$E$2:$F$13,2,0),":$JHK$",VLOOKUP($C$3,$E$2:$F$13,2,0))),INDIRECT(CONCATENATE("'MYE ",$C$1," ",$D$2,"'!$D$5:$JHK$5")),$A16,INDIRECT(CONCATENATE("'MYE ",$C$1," ",$D$2,"'!$D$6:$JHK$6")),B$15)) -> 1009 | C16: =IF($C$2="Both",SUMIFS(INDIRECT(CONCATENATE("'MYE ",$C$1," F'!$D$",VLOOKUP($C$3,$E$2:$F$13,2,0),":$JHK$",VLOOKUP($C$3,$E$2:$F$13,2,0))),INDIRECT(CONCATENATE("'MYE ",$C$1," F'!$D$5:$JHK$5")),$A16,INDIRECT(CONCATENATE("'MYE ",$C$1," F'!$D$6:$JHK$6")),C$15)+SUMIFS(INDIRECT(CONCATENATE("'MYE ",$C$1," M'!$D$",VLOOKUP($C$3,$E$2:$F$13,2,0),":$JHK$",VLOOKUP($C$3,$E$2:$F$13,2,0))),INDIRECT(CONCATENATE("'MYE ",$C$1," M'!$D$5:$JHK$5")),$A16,INDIRECT(CONCATENATE("'MYE ",$C$1," M'!$D$6:$JHK$6")),C$15),SUMIFS(INDIRECT(CONCATENATE("'MYE ",$C$1," ",$D$2,"'!$D$",VLOOKUP($C$3,$E$2:$F$13,2,0),":$JHK$",VLOOKUP($C$3,$E$2:$F$13,2,0))),INDIRECT(CONCATENATE("'MYE ",$C$1," ",$D$2,"'!$D$5:$JHK$5")),$A16,INDIRECT(CONCATENATE("'MYE ",$C$1," ",$D$2,"'!$D$6:$JHK$6")),C$15)) -> 7761 | D16: 12311 | E16: 10250 | F16: 9776 | G16: 7674 | H16: 9331 | I16: 10936 | J16: 13045 | K16: 32215 | M16: 1 | N16: =A16 -> Aberdeen City | O16: =IF($C$2="Both",INDEX(INDIRECT(CONCATENATE("'LA SIMD 10 ",$C$1,"'!$C$8:$Dr$71")),'CA SIMD dist data'!$M16+VLOOKUP("Female",$I$2:$J$3,2,0),'CA SIMD dist data'!O$15+VLOOKUP($C$3,$E$2:$G$13,3,0))+INDEX(INDIRECT(CONCATENATE("'LA SIMD 10 ",$C$1,"'!$C$8:$Dr$71")),'CA SIMD dist data'!$M16+VLOOKUP("Male",$I$2:$J$3,2,0),'CA SIMD dist data'!O$15+VLOOKUP($C$3,$E$2:$G$13,3,0)),INDEX(INDIRECT(CONCATENATE("'LA SIMD 10 ",$C$1,"'!$C$8:$Dr$71")),'CA SIMD dist data'!$M16+VLOOKUP($C$2,$I$2:$J$3,2,0),'CA SIMD dist data'!O$15+VLOOKUP($C$3,$E$2:$G$13,3,0))) -> 1123 | P16: =IF($C$2="Both",INDEX(INDIRECT(CONCATENATE("'LA SIMD 10 ",$C$1,"'!$C$8:$Dr$71")),'CA SIMD dist data'!$M16+VLOOKUP("Female",$I$2:$J$3,2,0),'CA SIMD dist data'!P$15+VLOOKUP($C$3,$E$2:$G$13,3,0))+INDEX(INDIRECT(CONCATENATE("'LA SIMD 10 ",$C$1,"'!$C$8:$Dr$71")),'CA SIMD dist data'!$M16+VLOOKUP("Male",$I$2:$J$3,2,0),'CA SIMD dist data'!P$15+VLOOKUP($C$3,$E$2:$G$13,3,0)),INDEX(INDIRECT(CONCATENATE("'LA SIMD 10 ",$C$1,"'!$C$8:$Dr$71")),'CA SIMD dist data'!$M16+VLOOKUP($C$2,$I$2:$J$3,2,0),'CA SIMD dist data'!P$15+VLOOKUP($C$3,$E$2:$G$13,3,0))) -> 8059 | Q16: =IF($C$2="Both",INDEX(INDIRECT(CONCATENATE("'LA SIMD 10 ",$C$1,"'!$C$8:$Dr$71")),'CA SIMD dist data'!$M16+VLOOKUP("Female",$I$2:$J$3,2,0),'CA SIMD dist data'!Q$15+VLOOKUP($C$3,$E$2:$G$13,3,0))+INDEX(INDIRECT(CONCATENATE("'LA SIMD 10 ",$C$1,"'!$C$8:$Dr$71")),'CA SIMD dist data'!$M16+VLOOKUP("Male",$I$2:$J$3,2,0),'CA SIMD dist data'!Q$15+VLOOKUP($C$3,$E$2:$G$13,3,0)),INDEX(INDIRECT(CONCATENATE("'LA SIMD 10 ",$C$1,"'!$C$8:$Dr$71")),'CA SIMD dist data'!$M16+VLOOKUP($C$2,$I$2:$J$3,2,0),'CA SIMD dist data'!Q$15+VLOOKUP($C$3,$E$2:$G$13,3,0))) -> 12954 | R16: =IF($C$2="Both",INDEX(INDIRECT(CONCATENATE("'LA SIMD 10 ",$C$1,"'!$C$8:$Dr$71")),'CA SIMD dist data'!$M16+VLOOKUP("Female",$I$2:$J$3,2,0),'CA SIMD dist data'!R$15+VLOOKUP($C$3,$E$2:$G$13,3,0))+INDEX(INDIRECT(CONCATENATE("'LA SIMD 10 ",$C$1,"'!$C$8:$Dr$71")),'CA SIMD dist data'!$M16+VLOOKUP("Male",$I$2:$J$3,2,0),'CA SIMD dist data'!R$15+VLOOKUP($C$3,$E$2:$G$13,3,0)),INDEX(INDIRECT(CONCATENATE("'LA SIMD 10 ",$C$1,"'!$C$8:$Dr$71")),'CA SIMD dist data'!$M16+VLOOKUP($C$2,$I$2:$J$3,2,0),'CA SIMD dist data'!R$15+VLOOKUP($C$3,$E$2:$G$13,3,0))) -> 10590 | S16: =IF($C$2="Both",INDEX(INDIRECT(CONCATENATE("'LA SIMD 10 ",$C$1,"'!$C$8:$Dr$71")),'CA SIMD dist data'!$M16+VLOOKUP("Female",$I$2:$J$3,2,0),'CA SIMD dist data'!S$15+VLOOKUP($C$3,$E$2:$G$13,3,0))+INDEX(INDIRECT(CONCATENATE("'LA SIMD 10 ",$C$1,"'!$C$8:$Dr$71")),'CA SIMD dist data'!$M16+VLOOKUP("Male",$I$2:$J$3,2,0),'CA SIMD dist data'!S$15+VLOOKUP($C$3,$E$2:$G$13,3,0)),INDEX(INDIRECT(CONCATENATE("'LA SIMD 10 ",$C$1,"'!$C$8:$Dr$71")),'CA SIMD dist data'!$M16+VLOOKUP($C$2,$I$2:$J$3,2,0),'CA SIMD dist data'!S$15+VLOOKUP($C$3,$E$2:$G$13,3,0))) -> 10031 | T16: =IF($C$2="Both",INDEX(INDIRECT(CONCATENATE("'LA SIMD 10 ",$C$1,"'!$C$8:$Dr$71")),'CA SIMD dist data'!$M16+VLOOKUP("Female",$I$2:$J$3,2,0),'CA SIMD dist data'!T$15+VLOOKUP($C$3,$E$2:$G$13,3,0))+INDEX(INDIRECT(CONCATENATE("'LA SIMD 10 ",$C$1,"'!$C$8:$Dr$71")),'CA SIMD dist data'!$M16+VLOOKUP("Male",$I$2:$J$3,2,0),'CA SIMD dist data'!T$15+VLOOKUP($C$3,$E$2:$G$13,3,0)),INDEX(INDIRECT(CONCATENATE("'LA SIMD 10 ",$C$1,"'!$C$8:$Dr$71")),'CA SIMD dist data'!$M16+VLOOKUP($C$2,$I$2:$J$3,2,0),'CA SIMD dist data'!T$15+VLOOKUP($C$3,$E$2:$G$13,3,0))) -> 7463 | U16: =IF($C$2="Both",INDEX(INDIRECT(CONCATENATE("'LA SIMD 10 ",$C$1,"'!$C$8:$Dr$71")),'CA SIMD dist data'!$M16+VLOOKUP("Female",$I$2:$J$3,2,0),'CA SIMD dist data'!U$15+VLOOKUP($C$3,$E$2:$G$13,3,0))+INDEX(INDIRECT(CONCATENATE("'LA SIMD 10 ",$C$1,"'!$C$8:$Dr$71")),'CA SIMD dist data'!$M16+VLOOKUP("Male",$I$2:$J$3,2,0),'CA SIMD dist data'!U$15+VLOOKUP($C$3,$E$2:$G$13,3,0)),INDEX(INDIRECT(CONCATENATE("'LA SIMD 10 ",$C$1,"'!$C$8:$Dr$71")),'CA SIMD dist data'!$M16+VLOOKUP($C$2,$I$2:$J$3,2,0),'CA SIMD dist data'!U$15+VLOOKUP($C$3,$E$2:$G$13,3,0))) -> 9645 | V16: =IF($C$2="Both",INDEX(INDIRECT(CONCATENATE("'LA SIMD 10 ",$C$1,"'!$C$8:$Dr$71")),'CA SIMD dist data'!$M16+VLOOKUP("Female",$I$2:$J$3,2,0),'CA SIMD dist data'!V$15+VLOOKUP($C$3,$E$2:$G$13,3,0))+INDEX(INDIRECT(CONCATENATE("'LA SIMD 10 ",$C$1,"'!$C$8:$Dr$71")),'CA SIMD dist data'!$M16+VLOOKUP("Male",$I$2:$J$3,2,0),'CA SIMD dist data'!V$15+VLOOKUP($C$3,$E$2:$G$13,3,0)),INDEX(INDIRECT(CONCATENATE("'LA SIMD 10 ",$C$1,"'!$C$8:$Dr$71")),'CA SIMD dist data'!$M16+VLOOKUP($C$2,$I$2:$J$3,2,0),'CA SIMD dist data'!V$15+VLOOKUP($C$3,$E$2:$G$13,3,0))) -> 11171 | W16: =IF($C$2="Both",INDEX(INDIRECT(CONCATENATE("'LA SIMD 10 ",$C$1,"'!$C$8:$Dr$71")),'CA SIMD dist data'!$M16+VLOOKUP("Female",$I$2:$J$3,2,0),'CA SIMD dist data'!W$15+VLOOKUP($C$3,$E$2:$G$13,3,0))+INDEX(INDIRECT(CONCATENATE("'LA SIMD 10 ",$C$1,"'!$C$8:$Dr$71")),'CA SIMD dist data'!$M16+VLOOKUP("Male",$I$2:$J$3,2,0),'CA SIMD dist data'!W$15+VLOOKUP($C$3,$E$2:$G$13,3,0)),INDEX(INDIRECT(CONCATENATE("'LA SIMD 10 ",$C$1,"'!$C$8:$Dr$71")),'CA SIMD dist data'!$M16+VLOOKUP($C$2,$I$2:$J$3,2,0),'CA SIMD dist data'!W$15+VLOOKUP($C$3,$E$2:$G$13,3,0))) -> 12809 | X16: =IF($C$2="Both",INDEX(INDIRECT(CONCATENATE("'LA SIMD 10 ",$C$1,"'!$C$8:$Dr$71")),'CA SIMD dist data'!$M16+VLOOKUP("Female",$I$2:$J$3,2,0),'CA SIMD dist data'!X$15+VLOOKUP($C$3,$E$2:$G$13,3,0))+INDEX(INDIRECT(CONCATENATE("'LA SIMD 10 ",$C$1,"'!$C$8:$Dr$71")),'CA SIMD dist data'!$M16+VLOOKUP("Male",$I$2:$J$3,2,0),'CA SIMD dist data'!X$15+VLOOKUP($C$3,$E$2:$G$13,3,0)),INDEX(INDIRECT(CONCATENATE("'LA SIMD 10 ",$C$1,"'!$C$8:$Dr$71")),'CA SIMD dist data'!$M16+VLOOKUP($C$2,$I$2:$J$3,2,0),'CA SIMD dist data'!X$15+VLOOKUP($C$3,$E$2:$G$13,3,0))) -> 30742 | Z16: =N16 -> Aberdeen City | AA16: =(O16-B16)/B16 -> 0.1129831516 | AB16: =(P16-C16)/C16 -> 0.03839711377 | AC16: 0.05222971326 | AD16: 0.03317073171 | AE16: 0.02608428805 | AF16: -0.02749543915 | AG16: 0.03365126996 | AH16: 0.0214886613 | AI16: -0.01809122269 | AJ16: -0.0457240416
A17: Aberdeenshire | B17: =IF($C$2="Both",SUMIFS(INDIRECT(CONCATENATE("'MYE ",$C$1," F'!$D$",VLOOKUP($C$3,$E$2:$F$13,2,0),":$JHK$",VLOOKUP($C$3,$E$2:$F$13,2,0))),INDIRECT(CONCATENATE("'MYE ",$C$1," F'!$D$5:$JHK$5")),$A17,INDIRECT(CONCATENATE("'MYE ",$C$1," F'!$D$6:$JHK$6")),B$15)+SUMIFS(INDIRECT(CONCATENATE("'MYE ",$C$1," M'!$D$",VLOOKUP($C$3,$E$2:$F$13,2,0),":$JHK$",VLOOKUP($C$3,$E$2:$F$13,2,0))),INDIRECT(CONCATENATE("'MYE ",$C$1," M'!$D$5:$JHK$5")),$A17,INDIRECT(CONCATENATE("'MYE ",$C$1," M'!$D$6:$JHK$6")),B$15),SUMIFS(INDIRECT(CONCATENATE("'MYE ",$C$1," ",$D$2,"'!$D$",VLOOKUP($C$3,$E$2:$F$13,2,0),":$JHK$",VLOOKUP($C$3,$E$2:$F$13,2,0))),INDIRECT(CONCATENATE("'MYE ",$C$1," ",$D$2,"'!$D$5:$JHK$5")),$A17,INDIRECT(CONCATENATE("'MYE ",$C$1," ",$D$2,"'!$D$6:$JHK$6")),B$15)) -> 460 | C17: 2088 | D17: 3348 | E17: 5976 | F17: 9663 | G17: 16096 | H17: 17661 | I17: 28761 | J17: 26831 | K17: 20407 | M17: =M16+1 -> 2 | N17: =A17 -> Aberdeenshire | O17: =IF($C$2="Both",INDEX(INDIRECT(CONCATENATE("'LA SIMD 10 ",$C$1,"'!$C$8:$Dr$71")),'CA SIMD dist data'!$M17+VLOOKUP("Female",$I$2:$J$3,2,0),'CA SIMD dist data'!O$15+VLOOKUP($C$3,$E$2:$G$13,3,0))+INDEX(INDIRECT(CONCATENATE("'LA SIMD 10 ",$C$1,"'!$C$8:$Dr$71")),'CA SIMD dist data'!$M17+VLOOKUP("Male",$I$2:$J$3,2,0),'CA SIMD dist data'!O$15+VLOOKUP($C$3,$E$2:$G$13,3,0)),INDEX(INDIRECT(CONCATENATE("'LA SIMD 10 ",$C$1,"'!$C$8:$Dr$71")),'CA SIMD dist data'!$M17+VLOOKUP($C$2,$I$2:$J$3,2,0),'CA SIMD dist data'!O$15+VLOOKUP($C$3,$E$2:$G$13,3,0))) -> 519 | P17: =IF($C$2="Both",INDEX(INDIRECT(CONCATENATE("'LA SIMD 10 ",$C$1,"'!$C$8:$Dr$71")),'CA SIMD dist data'!$M17+VLOOKUP("Female",$I$2:$J$3,2,0),'CA SIMD dist data'!P$15+VLOOKUP($C$3,$E$2:$G$13,3,0))+INDEX(INDIRECT(CONCATENATE("'LA SIMD 10 ",$C$1,"'!$C$8:$Dr$71")),'CA SIMD dist data'!$M17+VLOOKUP("Male",$I$2:$J$3,2,0),'CA SIMD dist data'!P$15+VLOOKUP($C$3,$E$2:$G$13,3,0)),INDEX(INDIRECT(CONCATENATE("'LA SIMD 10 ",$C$1,"'!$C$8:$Dr$71")),'CA SIMD dist data'!$M17+VLOOKUP($C$2,$I$2:$J$3,2,0),'CA SIMD dist data'!P$15+VLOOKUP($C$3,$E$2:$G$13,3,0))) -> 2278 | Q17: =IF($C$2="Both",INDEX(INDIRECT(CONCATENATE("'LA SIMD 10 ",$C$1,"'!$C$8:$Dr$71")),'CA SIMD dist data'!$M17+VLOOKUP("Female",$I$2:$J$3,2,0),'CA SIMD dist data'!Q$15+VLOOKUP($C$3,$E$2:$G$13,3,0))+INDEX(INDIRECT(CONCATENATE("'LA SIMD 10 ",$C$1,"'!$C$8:$Dr$71")),'CA SIMD dist data'!$M17+VLOOKUP("Male",$I$2:$J$3,2,0),'CA SIMD dist data'!Q$15+VLOOKUP($C$3,$E$2:$G$13,3,0)),INDEX(INDIRECT(CONCATENATE("'LA SIMD 10 ",$C$1,"'!$C$8:$Dr$71")),'CA SIMD dist data'!$M17+VLOOKUP($C$2,$I$2:$J$3,2,0),'CA SIMD dist data'!Q$15+VLOOKUP($C$3,$E$2:$G$13,3,0))) -> 3514 | R17: =IF($C$2="Both",INDEX(INDIRECT(CONCATENATE("'LA SIMD 10 ",$C$1,"'!$C$8:$Dr$71")),'CA SIMD dist data'!$M17+VLOOKUP("Female",$I$2:$J$3,2,0),'CA SIMD dist data'!R$15+VLOOKUP($C$3,$E$2:$G$13,3,0))+INDEX(INDIRECT(CONCATENATE("'LA SIMD 10 ",$C$1,"'!$C$8:$Dr$71")),'CA SIMD dist data'!$M17+VLOOKUP("Male",$I$2:$J$3,2,0),'CA SIMD dist data'!R$15+VLOOKUP($C$3,$E$2:$G$13,3,0)),INDEX(INDIRECT(CONCATENATE("'LA SIMD 10 ",$C$1,"'!$C$8:$Dr$71")),'CA SIMD dist data'!$M17+VLOOKUP($C$2,$I$2:$J$3,2,0),'CA SIMD dist data'!R$15+VLOOKUP($C$3,$E$2:$G$13,3,0))) -> 6097 | S17: =IF($C$2="Both",INDEX(INDIRECT(CONCATENATE("'LA SIMD 10 ",$C$1,"'!$C$8:$Dr$71")),'CA SIMD dist data'!$M17+VLOOKUP("Female",$I$2:$J$3,2,0),'CA SIMD dist data'!S$15+VLOOKUP($C$3,$E$2:$G$13,3,0))+INDEX(INDIRECT(CONCATENATE("'LA SIMD 10 ",$C$1,"'!$C$8:$Dr$71")),'CA SIMD dist data'!$M17+VLOOKUP("Male",$I$2:$J$3,2,0),'CA SIMD dist data'!S$15+VLOOKUP($C$3,$E$2:$G$13,3,0)),INDEX(INDIRECT(CONCATENATE("'LA SIMD 10 ",$C$1,"'!$C$8:$Dr$71")),'CA SIMD dist data'!$M17+VLOOKUP($C$2,$I$2:$J$3,2,0),'CA SIMD dist data'!S$15+VLOOKUP($C$3,$E$2:$G$13,3,0))) -> 9890 | T17: =IF($C$2="Both",INDEX(INDIRECT(CONCATENATE("'LA SIMD 10 ",$C$1,"'!$C$8:$Dr$71")),'CA SIMD dist data'!$M17+VLOOKUP("Female",$I$2:$J$3,2,0),'CA SIMD dist data'!T$15+VLOOKUP($C$3,$E$2:$G$13,3,0))+INDEX(INDIRECT(CONCATENATE("'LA SIMD 10 ",$C$1,"'!$C$8:$Dr$71")),'CA SIMD dist data'!$M17+VLOOKUP("Male",$I$2:$J$3,2,0),'CA SIMD dist data'!T$15+VLOOKUP($C$3,$E$2:$G$13,3,0)),INDEX(INDIRECT(CONCATENATE("'LA SIMD 10 ",$C$1,"'!$C$8:$Dr$71")),'CA SIMD dist data'!$M17+VLOOKUP($C$2,$I$2:$J$3,2,0),'CA SIMD dist data'!T$15+VLOOKUP($C$3,$E$2:$G$13,3,0))) -> 16117 | U17: =IF($C$2="Both",INDEX(INDIRECT(CONCATENATE("'LA SIMD 10 ",$C$1,"'!$C$8:$Dr$71")),'CA SIMD dist data'!$M17+VLOOKUP("Female",$I$2:$J$3,2,0),'CA SIMD dist data'!U$15+VLOOKUP($C$3,$E$2:$G$13,3,0))+INDEX(INDIRECT(CONCATENATE("'LA SIMD 10 ",$C$1,"'!$C$8:$Dr$71")),'CA SIMD dist data'!$M17+VLOOKUP("Male",$I$2:$J$3,2,0),'CA SIMD dist data'!U$15+VLOOKUP($C$3,$E$2:$G$13,3,0)),INDEX(INDIRECT(CONCATENATE("'LA SIMD 10 ",$C$1,"'!$C$8:$Dr$71")),'CA SIMD dist data'!$M17+VLOOKUP($C$2,$I$2:$J$3,2,0),'CA SIMD dist data'!U$15+VLOOKUP($C$3,$E$2:$G$13,3,0))) -> 17563 | V17: =IF($C$2="Both",INDEX(INDIRECT(CONCATENATE("'LA SIMD 10 ",$C$1,"'!$C$8:$Dr$71")),'CA SIMD dist data'!$M17+VLOOKUP("Female",$I$2:$J$3,2,0),'CA SIMD dist data'!V$15+VLOOKUP($C$3,$E$2:$G$13,3,0))+INDEX(INDIRECT(CONCATENATE("'LA SIMD 10 ",$C$1,"'!$C$8:$Dr$71")),'CA SIMD dist data'!$M17+VLOOKUP("Male",$I$2:$J$3,2,0),'CA SIMD dist data'!V$15+VLOOKUP($C$3,$E$2:$G$13,3,0)),INDEX(INDIRECT(CONCATENATE("'LA SIMD 10 ",$C$1,"'!$C$8:$Dr$71")),'CA SIMD dist data'!$M17+VLOOKUP($C$2,$I$2:$J$3,2,0),'CA SIMD dist data'!V$15+VLOOKUP($C$3,$E$2:$G$13,3,0))) -> 28461 | W17: =IF($C$2="Both",INDEX(INDIRECT(CONCATENATE("'LA SIMD 10 ",$C$1,"'!$C$8:$Dr$71")),'CA SIMD dist data'!$M17+VLOOKUP("Female",$I$2:$J$3,2,0),'CA SIMD dist data'!W$15+VLOOKUP($C$3,$E$2:$G$13,3,0))+INDEX(INDIRECT(CONCATENATE("'LA SIMD 10 ",$C$1,"'!$C$8:$Dr$71")),'CA SIMD dist data'!$M17+VLOOKUP("Male",$I$2:$J$3,2,0),'CA SIMD dist data'!W$15+VLOOKUP($C$3,$E$2:$G$13,3,0)),INDEX(INDIRECT(CONCATENATE("'LA SIMD 10 ",$C$1,"'!$C$8:$Dr$71")),'CA SIMD dist data'!$M17+VLOOKUP($C$2,$I$2:$J$3,2,0),'CA SIMD dist data'!W$15+VLOOKUP($C$3,$E$2:$G$13,3,0))) -> 26396 | X17: =IF($C$2="Both",INDEX(INDIRECT(CONCATENATE("'LA SIMD 10 ",$C$1,"'!$C$8:$Dr$71")),'CA SIMD dist data'!$M17+VLOOKUP("Female",$I$2:$J$3,2,0),'CA SIMD dist data'!X$15+VLOOKUP($C$3,$E$2:$G$13,3,0))+INDEX(INDIRECT(CONCATENATE("'LA SIMD 10 ",$C$1,"'!$C$8:$Dr$71")),'CA SIMD dist data'!$M17+VLOOKUP("Male",$I$2:$J$3,2,0),'CA SIMD dist data'!X$15+VLOOKUP($C$3,$E$2:$G$13,3,0)),INDEX(INDIRECT(CONCATENATE("'LA SIMD 10 ",$C$1,"'!$C$8:$Dr$71")),'CA SIMD dist data'!$M17+VLOOKUP($C$2,$I$2:$J$3,2,0),'CA SIMD dist data'!X$15+VLOOKUP($C$3,$E$2:$G$13,3,0))) -> 20455 | Z17: =N17 -> Aberdeenshire | AA17: =(O17-B17)/B17 -> 0.1282608696 | AB17: 0.09099616858 | AC17: 0.0495818399 | AD17: 0.0202476573 | AE17: 0.02349166925 | AF17: 0.001304671968 | AG17: -0.005548949663 | AH17: -0.0104307917 | AI17: -0.01621258991 | AJ17: 0.002352134072
A18: Angus | B18: 704 | C18: 3245 | D18: 4735 | E18: 5144 | F18: 7780 | G18: 10576 | H18: 7755 | I18: 8664 | J18: 8578 | K18: 2322 | M18: =M17+1 -> 3 | N18: Angus | O18: =IF($C$2="Both",INDEX(INDIRECT(CONCATENATE("'LA SIMD 10 ",$C$1,"'!$C$8:$Dr$71")),'CA SIMD dist data'!$M18+VLOOKUP("Female",$I$2:$J$3,2,0),'CA SIMD dist data'!O$15+VLOOKUP($C$3,$E$2:$G$13,3,0))+INDEX(INDIRECT(CONCATENATE("'LA SIMD 10 ",$C$1,"'!$C$8:$Dr$71")),'CA SIMD dist data'!$M18+VLOOKUP("Male",$I$2:$J$3,2,0),'CA SIMD dist data'!O$15+VLOOKUP($C$3,$E$2:$G$13,3,0)),INDEX(INDIRECT(CONCATENATE("'LA SIMD 10 ",$C$1,"'!$C$8:$Dr$71")),'CA SIMD dist data'!$M18+VLOOKUP($C$2,$I$2:$J$3,2,0),'CA SIMD dist data'!O$15+VLOOKUP($C$3,$E$2:$G$13,3,0))) -> 765 | P18: =IF($C$2="Both",INDEX(INDIRECT(CONCATENATE("'LA SIMD 10 ",$C$1,"'!$C$8:$Dr$71")),'CA SIMD dist data'!$M18+VLOOKUP("Female",$I$2:$J$3,2,0),'CA SIMD dist data'!P$15+VLOOKUP($C$3,$E$2:$G$13,3,0))+INDEX(INDIRECT(CONCATENATE("'LA SIMD 10 ",$C$1,"'!$C$8:$Dr$71")),'CA SIMD dist data'!$M18+VLOOKUP("Male",$I$2:$J$3,2,0),'CA SIMD dist data'!P$15+VLOOKUP($C$3,$E$2:$G$13,3,0)),INDEX(INDIRECT(CONCATENATE("'LA SIMD 10 ",$C$1,"'!$C$8:$Dr$71")),'CA SIMD dist data'!$M18+VLOOKUP($C$2,$I$2:$J$3,2,0),'CA SIMD dist data'!P$15+VLOOKUP($C$3,$E$2:$G$13,3,0))) -> 3261 | Q18: =IF($C$2="Both",INDEX(INDIRECT(CONCATENATE("'LA SIMD 10 ",$C$1,"'!$C$8:$Dr$71")),'CA SIMD dist data'!$M18+VLOOKUP("Female",$I$2:$J$3,2,0),'CA SIMD dist data'!Q$15+VLOOKUP($C$3,$E$2:$G$13,3,0))+INDEX(INDIRECT(CONCATENATE("'LA SIMD 10 ",$C$1,"'!$C$8:$Dr$71")),'CA SIMD dist data'!$M18+VLOOKUP("Male",$I$2:$J$3,2,0),'CA SIMD dist data'!Q$15+VLOOKUP($C$3,$E$2:$G$13,3,0)),INDEX(INDIRECT(CONCATENATE("'LA SIMD 10 ",$C$1,"'!$C$8:$Dr$71")),'CA SIMD dist data'!$M18+VLOOKUP($C$2,$I$2:$J$3,2,0),'CA SIMD dist data'!Q$15+VLOOKUP($C$3,$E$2:$G$13,3,0))) -> 4643 | R18: =IF($C$2="Both",INDEX(INDIRECT(CONCATENATE("'LA SIMD 10 ",$C$1,"'!$C$8:$Dr$71")),'CA SIMD dist data'!$M18+VLOOKUP("Female",$I$2:$J$3,2,0),'CA SIMD dist data'!R$15+VLOOKUP($C$3,$E$2:$G$13,3,0))+INDEX(INDIRECT(CONCATENATE("'LA SIMD 10 ",$C$1,"'!$C$8:$Dr$71")),'CA SIMD dist data'!$M18+VLOOKUP("Male",$I$2:$J$3,2,0),'CA SIMD dist data'!R$15+VLOOKUP($C$3,$E$2:$G$13,3,0)),INDEX(INDIRECT(CONCATENATE("'LA SIMD 10 ",$C$1,"'!$C$8:$Dr$71")),'CA SIMD dist data'!$M18+VLOOKUP($C$2,$I$2:$J$3,2,0),'CA SIMD dist data'!R$15+VLOOKUP($C$3,$E$2:$G$13,3,0))) -> 5146 | S18: =IF($C$2="Both",INDEX(INDIRECT(CONCATENATE("'LA SIMD 10 ",$C$1,"'!$C$8:$Dr$71")),'CA SIMD dist data'!$M18+VLOOKUP("Female",$I$2:$J$3,2,0),'CA SIMD dist data'!S$15+VLOOKUP($C$3,$E$2:$G$13,3,0))+INDEX(INDIRECT(CONCATENATE("'LA SIMD 10 ",$C$1,"'!$C$8:$Dr$71")),'CA SIMD dist data'!$M18+VLOOKUP("Male",$I$2:$J$3,2,0),'CA SIMD dist data'!S$15+VLOOKUP($C$3,$E$2:$G$13,3,0)),INDEX(INDIRECT(CONCATENATE("'LA SIMD 10 ",$C$1,"'!$C$8:$Dr$71")),'CA SIMD dist data'!$M18+VLOOKUP($C$2,$I$2:$J$3,2,0),'CA SIMD dist data'!S$15+VLOOKUP($C$3,$E$2:$G$13,3,0))) -> 7901 | T18: =IF($C$2="Both",INDEX(INDIRECT(CONCATENATE("'LA SIMD 10 ",$C$1,"'!$C$8:$Dr$71")),'CA SIMD dist data'!$M18+VLOOKUP("Female",$I$2:$J$3,2,0),'CA SIMD dist data'!T$15+VLOOKUP($C$3,$E$2:$G$13,3,0))+INDEX(INDIRECT(CONCATENATE("'LA SIMD 10 ",$C$1,"'!$C$8:$Dr$71")),'CA SIMD dist data'!$M18+VLOOKUP("Male",$I$2:$J$3,2,0),'CA SIMD dist data'!T$15+VLOOKUP($C$3,$E$2:$G$13,3,0)),INDEX(INDIRECT(CONCATENATE("'LA SIMD 10 ",$C$1,"'!$C$8:$Dr$71")),'CA SIMD dist data'!$M18+VLOOKUP($C$2,$I$2:$J$3,2,0),'CA SIMD dist data'!T$15+VLOOKUP($C$3,$E$2:$G$13,3,0))) -> 10605 | U18: =IF($C$2="Both",INDEX(INDIRECT(CONCATENATE("'LA SIMD 10 ",$C$1,"'!$C$8:$Dr$71")),'CA SIMD dist data'!$M18+VLOOKUP("Female",$I$2:$J$3,2,0),'CA SIMD dist data'!U$15+VLOOKUP($C$3,$E$2:$G$13,3,0))+INDEX(INDIRECT(CONCATENATE("'LA SIMD 10 ",$C$1,"'!$C$8:$Dr$71")),'CA SIMD dist data'!$M18+VLOOKUP("Male",$I$2:$J$3,2,0),'CA SIMD dist data'!U$15+VLOOKUP($C$3,$E$2:$G$13,3,0)),INDEX(INDIRECT(CONCATENATE("'LA SIMD 10 ",$C$1,"'!$C$8:$Dr$71")),'CA SIMD dist data'!$M18+VLOOKUP($C$2,$I$2:$J$3,2,0),'CA SIMD dist data'!U$15+VLOOKUP($C$3,$E$2:$G$13,3,0))) -> 7786 | V18: =IF($C$2="Both",INDEX(INDIRECT(CONCATENATE("'LA SIMD 10 ",$C$1,"'!$C$8:$Dr$71")),'CA SIMD dist data'!$M18+VLOOKUP("Female",$I$2:$J$3,2,0),'CA SIMD dist data'!V$15+VLOOKUP($C$3,$E$2:$G$13,3,0))+INDEX(INDIRECT(CONCATENATE("'LA SIMD 10 ",$C$1,"'!$C$8:$Dr$71")),'CA SIMD dist data'!$M18+VLOOKUP("Male",$I$2:$J$3,2,0),'CA SIMD dist data'!V$15+VLOOKUP($C$3,$E$2:$G$13,3,0)),INDEX(INDIRECT(CONCATENATE("'LA SIMD 10 ",$C$1,"'!$C$8:$Dr$71")),'CA SIMD dist data'!$M18+VLOOKUP($C$2,$I$2:$J$3,2,0),'CA SIMD dist data'!V$15+VLOOKUP($C$3,$E$2:$G$13,3,0))) -> 8624 | W18: =IF($C$2="Both",INDEX(INDIRECT(CONCATENATE("'LA SIMD 10 ",$C$1,"'!$C$8:$Dr$71")),'CA SIMD dist data'!$M18+VLOOKUP("Female",$I$2:$J$3,2,0),'CA SIMD dist data'!W$15+VLOOKUP($C$3,$E$2:$G$13,3,0))+INDEX(INDIRECT(CONCATENATE("'LA SIMD 10 ",$C$1,"'!$C$8:$Dr$71")),'CA SIMD dist data'!$M18+VLOOKUP("Male",$I$2:$J$3,2,0),'CA SIMD dist data'!W$15+VLOOKUP($C$3,$E$2:$G$13,3,0)),INDEX(INDIRECT(CONCATENATE("'LA SIMD 10 ",$C$1,"'!$C$8:$Dr$71")),'CA SIMD dist data'!$M18+VLOOKUP($C$2,$I$2:$J$3,2,0),'CA SIMD dist data'!W$15+VLOOKUP($C$3,$E$2:$G$13,3,0))) -> 8662 | X18: =IF($C$2="Both",INDEX(INDIRECT(CONCATENATE("'LA SIMD 10 ",$C$1,"'!$C$8:$Dr$71")),'CA SIMD dist data'!$M18+VLOOKUP("Female",$I$2:$J$3,2,0),'CA SIMD dist data'!X$15+VLOOKUP($C$3,$E$2:$G$13,3,0))+INDEX(INDIRECT(CONCATENATE("'LA SIMD 10 ",$C$1,"'!$C$8:$Dr$71")),'CA SIMD dist data'!$M18+VLOOKUP("Male",$I$2:$J$3,2,0),'CA SIMD dist data'!X$15+VLOOKUP($C$3,$E$2:$G$13,3,0)),INDEX(INDIRECT(CONCATENATE("'LA SIMD 10 ",$C$1,"'!$C$8:$Dr$71")),'CA SIMD dist data'!$M18+VLOOKUP($C$2,$I$2:$J$3,2,0),'CA SIMD dist data'!X$15+VLOOKUP($C$3,$E$2:$G$13,3,0))) -> 2304 | Z18: Angus | AA18: 0.08664772727 | AB18: 0.004930662558 | AC18: -0.01942977825 | AD18: 0.0003888024883 | AE18: 0.01555269923 | AF18: 0.002742057489 | AG18: 0.003997421019 | AH18: -0.004616805171 | AI18: 0.009792492422 | AJ18: -0.007751937984
A19: Argyll and Bute | B19: 1065 | C19: 2240 | D19: 4142 | E19: 3140 | F19: 6543 | G19: 11019 | H19: 7183 | I19: 4686 | J19: 2085 | K19: 1241 | M19: 4 | N19: Argyll and Bute | O19: =IF($C$2="Both",INDEX(INDIRECT(CONCATENATE("'LA SIMD 10 ",$C$1,"'!$C$8:$Dr$71")),'CA SIMD dist data'!$M19+VLOOKUP("Female",$I$2:$J$3,2,0),'CA SIMD dist data'!O$15+VLOOKUP($C$3,$E$2:$G$13,3,0))+INDEX(INDIRECT(CONCATENATE("'LA SIMD 10 ",$C$1,"'!$C$8:$Dr$71")),'CA SIMD dist data'!$M19+VLOOKUP("Male",$I$2:$J$3,2,0),'CA SIMD dist data'!O$15+VLOOKUP($C$3,$E$2:$G$13,3,0)),INDEX(INDIRECT(CONCATENATE("'LA SIMD 10 ",$C$1,"'!$C$8:$Dr$71")),'CA SIMD dist data'!$M19+VLOOKUP($C$2,$I$2:$J$3,2,0),'CA SIMD dist data'!O$15+VLOOKUP($C$3,$E$2:$G$13,3,0))) -> 1098 | P19: =IF($C$2="Both",INDEX(INDIRECT(CONCATENATE("'LA SIMD 10 ",$C$1,"'!$C$8:$Dr$71")),'CA SIMD dist data'!$M19+VLOOKUP("Female",$I$2:$J$3,2,0),'CA SIMD dist data'!P$15+VLOOKUP($C$3,$E$2:$G$13,3,0))+INDEX(INDIRECT(CONCATENATE("'LA SIMD 10 ",$C$1,"'!$C$8:$Dr$71")),'CA SIMD dist data'!$M19+VLOOKUP("Male",$I$2:$J$3,2,0),'CA SIMD dist data'!P$15+VLOOKUP($C$3,$E$2:$G$13,3,0)),INDEX(INDIRECT(CONCATENATE("'LA SIMD 10 ",$C$1,"'!$C$8:$Dr$71")),'CA SIMD dist data'!$M19+VLOOKUP($C$2,$I$2:$J$3,2,0),'CA SIMD dist data'!P$15+VLOOKUP($C$3,$E$2:$G$13,3,0))) -> 2341 | Q19: =IF($C$2="Both",INDEX(INDIRECT(CONCATENATE("'LA SIMD 10 ",$C$1,"'!$C$8:$Dr$71")),'CA SIMD dist data'!$M19+VLOOKUP("Female",$I$2:$J$3,2,0),'CA SIMD dist data'!Q$15+VLOOKUP($C$3,$E$2:$G$13,3,0))+INDEX(INDIRECT(CONCATENATE("'LA SIMD 10 ",$C$1,"'!$C$8:$Dr$71")),'CA SIMD dist data'!$M19+VLOOKUP("Male",$I$2:$J$3,2,0),'CA SIMD dist data'!Q$15+VLOOKUP($C$3,$E$2:$G$13,3,0)),INDEX(INDIRECT(CONCATENATE("'LA SIMD 10 ",$C$1,"'!$C$8:$Dr$71")),'CA SIMD dist data'!$M19+VLOOKUP($C$2,$I$2:$J$3,2,0),'CA SIMD dist data'!Q$15+VLOOKUP($C$3,$E$2:$G$13,3,0))) -> 4278 | R19: =IF($C$2="Both",INDEX(INDIRECT(CONCATENATE("'LA SIMD 10 ",$C$1,"'!$C$8:$Dr$71")),'CA SIMD dist data'!$M19+VLOOKUP("Female",$I$2:$J$3,2,0),'CA SIMD dist data'!R$15+VLOOKUP($C$3,$E$2:$G$13,3,0))+INDEX(INDIRECT(CONCATENATE("'LA SIMD 10 ",$C$1,"'!$C$8:$Dr$71")),'CA SIMD dist data'!$M19+VLOOKUP("Male",$I$2:$J$3,2,0),'CA SIMD dist data'!R$15+VLOOKUP($C$3,$E$2:$G$13,3,0)),INDEX(INDIRECT(CONCATENATE("'LA SIMD 10 ",$C$1,"'!$C$8:$Dr$71")),'CA SIMD dist data'!$M19+VLOOKUP($C$2,$I$2:$J$3,2,0),'CA SIMD dist data'!R$15+VLOOKUP($C$3,$E$2:$G$13,3,0))) -> 3216 | S19: =IF($C$2="Both",INDEX(INDIRECT(CONCATENATE("'LA SIMD 10 ",$C$1,"'!$C$8:$Dr$71")),'CA SIMD dist data'!$M19+VLOOKUP("Female",$I$2:$J$3,2,0),'CA SIMD dist data'!S$15+VLOOKUP($C$3,$E$2:$G$13,3,0))+INDEX(INDIRECT(CONCATENATE("'LA SIMD 10 ",$C$1,"'!$C$8:$Dr$71")),'CA SIMD dist data'!$M19+VLOOKUP("Male",$I$2:$J$3,2,0),'CA SIMD dist data'!S$15+VLOOKUP($C$3,$E$2:$G$13,3,0)),INDEX(INDIRECT(CONCATENATE("'LA SIMD 10 ",$C$1,"'!$C$8:$Dr$71")),'CA SIMD dist data'!$M19+VLOOKUP($C$2,$I$2:$J$3,2,0),'CA SIMD dist data'!S$15+VLOOKUP($C$3,$E$2:$G$13,3,0))) -> 6703 | T19: =IF($C$2="Both",INDEX(INDIRECT(CONCATENATE("'LA SIMD 10 ",$C$1,"'!$C$8:$Dr$71")),'CA SIMD dist data'!$M19+VLOOKUP("Female",$I$2:$J$3,2,0),'CA SIMD dist data'!T$15+VLOOKUP($C$3,$E$2:$G$13,3,0))+INDEX(INDIRECT(CONCATENATE("'LA SIMD 10 ",$C$1,"'!$C$8:$Dr$71")),'CA SIMD dist data'!$M19+VLOOKUP("Male",$I$2:$J$3,2,0),'CA SIMD dist data'!T$15+VLOOKUP($C$3,$E$2:$G$13,3,0)),INDEX(INDIRECT(CONCATENATE("'LA SIMD 10 ",$C$1,"'!$C$8:$Dr$71")),'CA SIMD dist data'!$M19+VLOOKUP($C$2,$I$2:$J$3,2,0),'CA SIMD dist data'!T$15+VLOOKUP($C$3,$E$2:$G$13,3,0))) -> 11053 | U19: =IF($C$2="Both",INDEX(INDIRECT(CONCATENATE("'LA SIMD 10 ",$C$1,"'!$C$8:$Dr$71")),'CA SIMD dist data'!$M19+VLOOKUP("Female",$I$2:$J$3,2,0),'CA SIMD dist data'!U$15+VLOOKUP($C$3,$E$2:$G$13,3,0))+INDEX(INDIRECT(CONCATENATE("'LA SIMD 10 ",$C$1,"'!$C$8:$Dr$71")),'CA SIMD dist data'!$M19+VLOOKUP("Male",$I$2:$J$3,2,0),'CA SIMD dist data'!U$15+VLOOKUP($C$3,$E$2:$G$13,3,0)),INDEX(INDIRECT(CONCATENATE("'LA SIMD 10 ",$C$1,"'!$C$8:$Dr$71")),'CA SIMD dist data'!$M19+VLOOKUP($C$2,$I$2:$J$3,2,0),'CA SIMD dist data'!U$15+VLOOKUP($C$3,$E$2:$G$13,3,0))) -> 7261 | V19: =IF($C$2="Both",INDEX(INDIRECT(CONCATENATE("'LA SIMD 10 ",$C$1,"'!$C$8:$Dr$71")),'CA SIMD dist data'!$M19+VLOOKUP("Female",$I$2:$J$3,2,0),'CA SIMD dist data'!V$15+VLOOKUP($C$3,$E$2:$G$13,3,0))+INDEX(INDIRECT(CONCATENATE("'LA SIMD 10 ",$C$1,"'!$C$8:$Dr$71")),'CA SIMD dist data'!$M19+VLOOKUP("Male",$I$2:$J$3,2,0),'CA SIMD dist data'!V$15+VLOOKUP($C$3,$E$2:$G$13,3,0)),INDEX(INDIRECT(CONCATENATE("'LA SIMD 10 ",$C$1,"'!$C$8:$Dr$71")),'CA SIMD dist data'!$M19+VLOOKUP($C$2,$I$2:$J$3,2,0),'CA SIMD dist data'!V$15+VLOOKUP($C$3,$E$2:$G$13,3,0))) -> 4832 | W19: =IF($C$2="Both",INDEX(INDIRECT(CONCATENATE("'LA SIMD 10 ",$C$1,"'!$C$8:$Dr$71")),'CA SIMD dist data'!$M19+VLOOKUP("Female",$I$2:$J$3,2,0),'CA SIMD dist data'!W$15+VLOOKUP($C$3,$E$2:$G$13,3,0))+INDEX(INDIRECT(CONCATENATE("'LA SIMD 10 ",$C$1,"'!$C$8:$Dr$71")),'CA SIMD dist data'!$M19+VLOOKUP("Male",$I$2:$J$3,2,0),'CA SIMD dist data'!W$15+VLOOKUP($C$3,$E$2:$G$13,3,0)),INDEX(INDIRECT(CONCATENATE("'LA SIMD 10 ",$C$1,"'!$C$8:$Dr$71")),'CA SIMD dist data'!$M19+VLOOKUP($C$2,$I$2:$J$3,2,0),'CA SIMD dist data'!W$15+VLOOKUP($C$3,$E$2:$G$13,3,0))) -> 2272 | X19: =IF($C$2="Both",INDEX(INDIRECT(CONCATENATE("'LA SIMD 10 ",$C$1,"'!$C$8:$Dr$71")),'CA SIMD dist data'!$M19+VLOOKUP("Female",$I$2:$J$3,2,0),'CA SIMD dist data'!X$15+VLOOKUP($C$3,$E$2:$G$13,3,0))+INDEX(INDIRECT(CONCATENATE("'LA SIMD 10 ",$C$1,"'!$C$8:$Dr$71")),'CA SIMD dist data'!$M19+VLOOKUP("Male",$I$2:$J$3,2,0),'CA SIMD dist data'!X$15+VLOOKUP($C$3,$E$2:$G$13,3,0)),INDEX(INDIRECT(CONCATENATE("'LA SIMD 10 ",$C$1,"'!$C$8:$Dr$71")),'CA SIMD dist data'!$M19+VLOOKUP($C$2,$I$2:$J$3,2,0),'CA SIMD dist data'!X$15+VLOOKUP($C$3,$E$2:$G$13,3,0))) -> 1190 | Z19: Argyll and Bute | AA19: 0.03098591549 | AB19: 0.04508928571 | AC19: 0.03283437953 | AD19: 0.02420382166 | AE19: 0.02445361455 | AF19: 0.003085579454 | AG19: 0.01085897257 | AH19: 0.03115663679 | AI19: 0.0896882494 | AJ19: -0.04109589041
A20: City of Edinburgh | B20: 14798 | C20: 20502 | D20: 17288 | E20: 22168 | F20: 18345 | G20: 20472 | H20: 19684 | I20: 21846 | J20: 29856 | K20: 80552 | M20: 5 | N20: City of Edinburgh | O20: =IF($C$2="Both",INDEX(INDIRECT(CONCATENATE("'LA SIMD 10 ",$C$1,"'!$C$8:$Dr$71")),'CA SIMD dist data'!$M20+VLOOKUP("Female",$I$2:$J$3,2,0),'CA SIMD dist data'!O$15+VLOOKUP($C$3,$E$2:$G$13,3,0))+INDEX(INDIRECT(CONCATENATE("'LA SIMD 10 ",$C$1,"'!$C$8:$Dr$71")),'CA SIMD dist data'!$M20+VLOOKUP("Male",$I$2:$J$3,2,0),'CA SIMD dist data'!O$15+VLOOKUP($C$3,$E$2:$G$13,3,0)),INDEX(INDIRECT(CONCATENATE("'LA SIMD 10 ",$C$1,"'!$C$8:$Dr$71")),'CA SIMD dist data'!$M20+VLOOKUP($C$2,$I$2:$J$3,2,0),'CA SIMD dist data'!O$15+VLOOKUP($C$3,$E$2:$G$13,3,0))) -> 15571 | P20: =IF($C$2="Both",INDEX(INDIRECT(CONCATENATE("'LA SIMD 10 ",$C$1,"'!$C$8:$Dr$71")),'CA SIMD dist data'!$M20+VLOOKUP("Female",$I$2:$J$3,2,0),'CA SIMD dist data'!P$15+VLOOKUP($C$3,$E$2:$G$13,3,0))+INDEX(INDIRECT(CONCATENATE("'LA SIMD 10 ",$C$1,"'!$C$8:$Dr$71")),'CA SIMD dist data'!$M20+VLOOKUP("Male",$I$2:$J$3,2,0),'CA SIMD dist data'!P$15+VLOOKUP($C$3,$E$2:$G$13,3,0)),INDEX(INDIRECT(CONCATENATE("'LA SIMD 10 ",$C$1,"'!$C$8:$Dr$71")),'CA SIMD dist data'!$M20+VLOOKUP($C$2,$I$2:$J$3,2,0),'CA SIMD dist data'!P$15+VLOOKUP($C$3,$E$2:$G$13,3,0))) -> 21214 | Q20: =IF($C$2="Both",INDEX(INDIRECT(CONCATENATE("'LA SIMD 10 ",$C$1,"'!$C$8:$Dr$71")),'CA SIMD dist data'!$M20+VLOOKUP("Female",$I$2:$J$3,2,0),'CA SIMD dist data'!Q$15+VLOOKUP($C$3,$E$2:$G$13,3,0))+INDEX(INDIRECT(CONCATENATE("'LA SIMD 10 ",$C$1,"'!$C$8:$Dr$71")),'CA SIMD dist data'!$M20+VLOOKUP("Male",$I$2:$J$3,2,0),'CA SIMD dist data'!Q$15+VLOOKUP($C$3,$E$2:$G$13,3,0)),INDEX(INDIRECT(CONCATENATE("'LA SIMD 10 ",$C$1,"'!$C$8:$Dr$71")),'CA SIMD dist data'!$M20+VLOOKUP($C$2,$I$2:$J$3,2,0),'CA SIMD dist data'!Q$15+VLOOKUP($C$3,$E$2:$G$13,3,0))) -> 17538 | R20: =IF($C$2="Both",INDEX(INDIRECT(CONCATENATE("'LA SIMD 10 ",$C$1,"'!$C$8:$Dr$71")),'CA SIMD dist data'!$M20+VLOOKUP("Female",$I$2:$J$3,2,0),'CA SIMD dist data'!R$15+VLOOKUP($C$3,$E$2:$G$13,3,0))+INDEX(INDIRECT(CONCATENATE("'LA SIMD 10 ",$C$1,"'!$C$8:$Dr$71")),'CA SIMD dist data'!$M20+VLOOKUP("Male",$I$2:$J$3,2,0),'CA SIMD dist data'!R$15+VLOOKUP($C$3,$E$2:$G$13,3,0)),INDEX(INDIRECT(CONCATENATE("'LA SIMD 10 ",$C$1,"'!$C$8:$Dr$71")),'CA SIMD dist data'!$M20+VLOOKUP($C$2,$I$2:$J$3,2,0),'CA SIMD dist data'!R$15+VLOOKUP($C$3,$E$2:$G$13,3,0))) -> 21807 | S20: =IF($C$2="Both",INDEX(INDIRECT(CONCATENATE("'LA SIMD 10 ",$C$1,"'!$C$8:$Dr$71")),'CA SIMD dist data'!$M20+VLOOKUP("Female",$I$2:$J$3,2,0),'CA SIMD dist data'!S$15+VLOOKUP($C$3,$E$2:$G$13,3,0))+INDEX(INDIRECT(CONCATENATE("'LA SIMD 10 ",$C$1,"'!$C$8:$Dr$71")),'CA SIMD dist data'!$M20+VLOOKUP("Male",$I$2:$J$3,2,0),'CA SIMD dist data'!S$15+VLOOKUP($C$3,$E$2:$G$13,3,0)),INDEX(INDIRECT(CONCATENATE("'LA SIMD 10 ",$C$1,"'!$C$8:$Dr$71")),'CA SIMD dist data'!$M20+VLOOKUP($C$2,$I$2:$J$3,2,0),'CA SIMD dist data'!S$15+VLOOKUP($C$3,$E$2:$G$13,3,0))) -> 17837 | T20: =IF($C$2="Both",INDEX(INDIRECT(CONCATENATE("'LA SIMD 10 ",$C$1,"'!$C$8:$Dr$71")),'CA SIMD dist data'!$M20+VLOOKUP("Female",$I$2:$J$3,2,0),'CA SIMD dist data'!T$15+VLOOKUP($C$3,$E$2:$G$13,3,0))+INDEX(INDIRECT(CONCATENATE("'LA SIMD 10 ",$C$1,"'!$C$8:$Dr$71")),'CA SIMD dist data'!$M20+VLOOKUP("Male",$I$2:$J$3,2,0),'CA SIMD dist data'!T$15+VLOOKUP($C$3,$E$2:$G$13,3,0)),INDEX(INDIRECT(CONCATENATE("'LA SIMD 10 ",$C$1,"'!$C$8:$Dr$71")),'CA SIMD dist data'!$M20+VLOOKUP($C$2,$I$2:$J$3,2,0),'CA SIMD dist data'!T$15+VLOOKUP($C$3,$E$2:$G$13,3,0))) -> 20114 | U20: =IF($C$2="Both",INDEX(INDIRECT(CONCATENATE("'LA SIMD 10 ",$C$1,"'!$C$8:$Dr$71")),'CA SIMD dist data'!$M20+VLOOKUP("Female",$I$2:$J$3,2,0),'CA SIMD dist data'!U$15+VLOOKUP($C$3,$E$2:$G$13,3,0))+INDEX(INDIRECT(CONCATENATE("'LA SIMD 10 ",$C$1,"'!$C$8:$Dr$71")),'CA SIMD dist data'!$M20+VLOOKUP("Male",$I$2:$J$3,2,0),'CA SIMD dist data'!U$15+VLOOKUP($C$3,$E$2:$G$13,3,0)),INDEX(INDIRECT(CONCATENATE("'LA SIMD 10 ",$C$1,"'!$C$8:$Dr$71")),'CA SIMD dist data'!$M20+VLOOKUP($C$2,$I$2:$J$3,2,0),'CA SIMD dist data'!U$15+VLOOKUP($C$3,$E$2:$G$13,3,0))) -> 19363 | V20: =IF($C$2="Both",INDEX(INDIRECT(CONCATENATE("'LA SIMD 10 ",$C$1,"'!$C$8:$Dr$71")),'CA SIMD dist data'!$M20+VLOOKUP("Female",$I$2:$J$3,2,0),'CA SIMD dist data'!V$15+VLOOKUP($C$3,$E$2:$G$13,3,0))+INDEX(INDIRECT(CONCATENATE("'LA SIMD 10 ",$C$1,"'!$C$8:$Dr$71")),'CA SIMD dist data'!$M20+VLOOKUP("Male",$I$2:$J$3,2,0),'CA SIMD dist data'!V$15+VLOOKUP($C$3,$E$2:$G$13,3,0)),INDEX(INDIRECT(CONCATENATE("'LA SIMD 10 ",$C$1,"'!$C$8:$Dr$71")),'CA SIMD dist data'!$M20+VLOOKUP($C$2,$I$2:$J$3,2,0),'CA SIMD dist data'!V$15+VLOOKUP($C$3,$E$2:$G$13,3,0))) -> 21967 | W20: =IF($C$2="Both",INDEX(INDIRECT(CONCATENATE("'LA SIMD 10 ",$C$1,"'!$C$8:$Dr$71")),'CA SIMD dist data'!$M20+VLOOKUP("Female",$I$2:$J$3,2,0),'CA SIMD dist data'!W$15+VLOOKUP($C$3,$E$2:$G$13,3,0))+INDEX(INDIRECT(CONCATENATE("'LA SIMD 10 ",$C$1,"'!$C$8:$Dr$71")),'CA SIMD dist data'!$M20+VLOOKUP("Male",$I$2:$J$3,2,0),'CA SIMD dist data'!W$15+VLOOKUP($C$3,$E$2:$G$13,3,0)),INDEX(INDIRECT(CONCATENATE("'LA SIMD 10 ",$C$1,"'!$C$8:$Dr$71")),'CA SIMD dist data'!$M20+VLOOKUP($C$2,$I$2:$J$3,2,0),'CA SIMD dist data'!W$15+VLOOKUP($C$3,$E$2:$G$13,3,0))) -> 29905 | X20: =IF($C$2="Both",INDEX(INDIRECT(CONCATENATE("'LA SIMD 10 ",$C$1,"'!$C$8:$Dr$71")),'CA SIMD dist data'!$M20+VLOOKUP("Female",$I$2:$J$3,2,0),'CA SIMD dist data'!X$15+VLOOKUP($C$3,$E$2:$G$13,3,0))+INDEX(INDIRECT(CONCATENATE("'LA SIMD 10 ",$C$1,"'!$C$8:$Dr$71")),'CA SIMD dist data'!$M20+VLOOKUP("Male",$I$2:$J$3,2,0),'CA SIMD dist data'!X$15+VLOOKUP($C$3,$E$2:$G$13,3,0)),INDEX(INDIRECT(CONCATENATE("'LA SIMD 10 ",$C$1,"'!$C$8:$Dr$71")),'CA SIMD dist data'!$M20+VLOOKUP($C$2,$I$2:$J$3,2,0),'CA SIMD dist data'!X$15+VLOOKUP($C$3,$E$2:$G$13,3,0))) -> 80586 | Z20: City of Edinburgh | AA20: 0.05223678876 | AB20: 0.03472831919 | AC20: 0.01446089773 | AD20: -0.01628473475 | AE20: -0.02769146907 | AF20: -0.01748729973 | AG20: -0.01630766104 | AH20: 0.0055387714 | AI20: 0.001641211147 | AJ20: 0.0004220875956
A21: Clackmannanshire | B21: 2937 | C21: 3393 | D21: 5008 | E21: 2041 | F21: 2781 | G21: 2130 | H21: 931 | I21: 3386 | J21: 2367 | K21: 1201 | M21: 6 | N21: Clackmannanshire | O21: =IF($C$2="Both",INDEX(INDIRECT(CONCATENATE("'LA SIMD 10 ",$C$1,"'!$C$8:$Dr$71")),'CA SIMD dist data'!$M21+VLOOKUP("Female",$I$2:$J$3,2,0),'CA SIMD dist data'!O$15+VLOOKUP($C$3,$E$2:$G$13,3,0))+INDEX(INDIRECT(CONCATENATE("'LA SIMD 10 ",$C$1,"'!$C$8:$Dr$71")),'CA SIMD dist data'!$M21+VLOOKUP("Male",$I$2:$J$3,2,0),'CA SIMD dist data'!O$15+VLOOKUP($C$3,$E$2:$G$13,3,0)),INDEX(INDIRECT(CONCATENATE("'LA SIMD 10 ",$C$1,"'!$C$8:$Dr$71")),'CA SIMD dist data'!$M21+VLOOKUP($C$2,$I$2:$J$3,2,0),'CA SIMD dist data'!O$15+VLOOKUP($C$3,$E$2:$G$13,3,0))) -> 3127 | P21: =IF($C$2="Both",INDEX(INDIRECT(CONCATENATE("'LA SIMD 10 ",$C$1,"'!$C$8:$Dr$71")),'CA SIMD dist data'!$M21+VLOOKUP("Female",$I$2:$J$3,2,0),'CA SIMD dist data'!P$15+VLOOKUP($C$3,$E$2:$G$13,3,0))+INDEX(INDIRECT(CONCATENATE("'LA SIMD 10 ",$C$1,"'!$C$8:$Dr$71")),'CA SIMD dist data'!$M21+VLOOKUP("Male",$I$2:$J$3,2,0),'CA SIMD dist data'!P$15+VLOOKUP($C$3,$E$2:$G$13,3,0)),INDEX(INDIRECT(CONCATENATE("'LA SIMD 10 ",$C$1,"'!$C$8:$Dr$71")),'CA SIMD dist data'!$M21+VLOOKUP($C$2,$I$2:$J$3,2,0),'CA SIMD dist data'!P$15+VLOOKUP($C$3,$E$2:$G$13,3,0))) -> 3527 | Q21: =IF($C$2="Both",INDEX(INDIRECT(CONCATENATE("'LA SIMD 10 ",$C$1,"'!$C$8:$Dr$71")),'CA SIMD dist data'!$M21+VLOOKUP("Female",$I$2:$J$3,2,0),'CA SIMD dist data'!Q$15+VLOOKUP($C$3,$E$2:$G$13,3,0))+INDEX(INDIRECT(CONCATENATE("'LA SIMD 10 ",$C$1,"'!$C$8:$Dr$71")),'CA SIMD dist data'!$M21+VLOOKUP("Male",$I$2:$J$3,2,0),'CA SIMD dist data'!Q$15+VLOOKUP($C$3,$E$2:$G$13,3,0)),INDEX(INDIRECT(CONCATENATE("'LA SIMD 10 ",$C$1,"'!$C$8:$Dr$71")),'CA SIMD dist data'!$M21+VLOOKUP($C$2,$I$2:$J$3,2,0),'CA SIMD dist data'!Q$15+VLOOKUP($C$3,$E$2:$G$13,3,0))) -> 5143 | R21: =IF($C$2="Both",INDEX(INDIRECT(CONCATENATE("'LA SIMD 10 ",$C$1,"'!$C$8:$Dr$71")),'CA SIMD dist data'!$M21+VLOOKUP("Female",$I$2:$J$3,2,0),'CA SIMD dist data'!R$15+VLOOKUP($C$3,$E$2:$G$13,3,0))+INDEX(INDIRECT(CONCATENATE("'LA SIMD 10 ",$C$1,"'!$C$8:$Dr$71")),'CA SIMD dist data'!$M21+VLOOKUP("Male",$I$2:$J$3,2,0),'CA SIMD dist data'!R$15+VLOOKUP($C$3,$E$2:$G$13,3,0)),INDEX(INDIRECT(CONCATENATE("'LA SIMD 10 ",$C$1,"'!$C$8:$Dr$71")),'CA SIMD dist data'!$M21+VLOOKUP($C$2,$I$2:$J$3,2,0),'CA SIMD dist data'!R$15+VLOOKUP($C$3,$E$2:$G$13,3,0))) -> 2076 | S21: =IF($C$2="Both",INDEX(INDIRECT(CONCATENATE("'LA SIMD 10 ",$C$1,"'!$C$8:$Dr$71")),'CA SIMD dist data'!$M21+VLOOKUP("Female",$I$2:$J$3,2,0),'CA SIMD dist data'!S$15+VLOOKUP($C$3,$E$2:$G$13,3,0))+INDEX(INDIRECT(CONCATENATE("'LA SIMD 10 ",$C$1,"'!$C$8:$Dr$71")),'CA SIMD dist data'!$M21+VLOOKUP("Male",$I$2:$J$3,2,0),'CA SIMD dist data'!S$15+VLOOKUP($C$3,$E$2:$G$13,3,0)),INDEX(INDIRECT(CONCATENATE("'LA SIMD 10 ",$C$1,"'!$C$8:$Dr$71")),'CA SIMD dist data'!$M21+VLOOKUP($C$2,$I$2:$J$3,2,0),'CA SIMD dist data'!S$15+VLOOKUP($C$3,$E$2:$G$13,3,0))) -> 2887 | T21: =IF($C$2="Both",INDEX(INDIRECT(CONCATENATE("'LA SIMD 10 ",$C$1,"'!$C$8:$Dr$71")),'CA SIMD dist data'!$M21+VLOOKUP("Female",$I$2:$J$3,2,0),'CA SIMD dist data'!T$15+VLOOKUP($C$3,$E$2:$G$13,3,0))+INDEX(INDIRECT(CONCATENATE("'LA SIMD 10 ",$C$1,"'!$C$8:$Dr$71")),'CA SIMD dist data'!$M21+VLOOKUP("Male",$I$2:$J$3,2,0),'CA SIMD dist data'!T$15+VLOOKUP($C$3,$E$2:$G$13,3,0)),INDEX(INDIRECT(CONCATENATE("'LA SIMD 10 ",$C$1,"'!$C$8:$Dr$71")),'CA SIMD dist data'!$M21+VLOOKUP($C$2,$I$2:$J$3,2,0),'CA SIMD dist data'!T$15+VLOOKUP($C$3,$E$2:$G$13,3,0))) -> 2166 | U21: =IF($C$2="Both",INDEX(INDIRECT(CONCATENATE("'LA SIMD 10 ",$C$1,"'!$C$8:$Dr$71")),'CA SIMD dist data'!$M21+VLOOKUP("Female",$I$2:$J$3,2,0),'CA SIMD dist data'!U$15+VLOOKUP($C$3,$E$2:$G$13,3,0))+INDEX(INDIRECT(CONCATENATE("'LA SIMD 10 ",$C$1,"'!$C$8:$Dr$71")),'CA SIMD dist data'!$M21+VLOOKUP("Male",$I$2:$J$3,2,0),'CA SIMD dist data'!U$15+VLOOKUP($C$3,$E$2:$G$13,3,0)),INDEX(INDIRECT(CONCATENATE("'LA SIMD 10 ",$C$1,"'!$C$8:$Dr$71")),'CA SIMD dist data'!$M21+VLOOKUP($C$2,$I$2:$J$3,2,0),'CA SIMD dist data'!U$15+VLOOKUP($C$3,$E$2:$G$13,3,0))) -> 978 | V21: =IF($C$2="Both",INDEX(INDIRECT(CONCATENATE("'LA SIMD 10 ",$C$1,"'!$C$8:$Dr$71")),'CA SIMD dist data'!$M21+VLOOKUP("Female",$I$2:$J$3,2,0),'CA SIMD dist data'!V$15+VLOOKUP($C$3,$E$2:$G$13,3,0))+INDEX(INDIRECT(CONCATENATE("'LA SIMD 10 ",$C$1,"'!$C$8:$Dr$71")),'CA SIMD dist data'!$M21+VLOOKUP("Male",$I$2:$J$3,2,0),'CA SIMD dist data'!V$15+VLOOKUP($C$3,$E$2:$G$13,3,0)),INDEX(INDIRECT(CONCATENATE("'LA SIMD 10 ",$C$1,"'!$C$8:$Dr$71")),'CA SIMD dist data'!$M21+VLOOKUP($C$2,$I$2:$J$3,2,0),'CA SIMD dist data'!V$15+VLOOKUP($C$3,$E$2:$G$13,3,0))) -> 3383 | W21: =IF($C$2="Both",INDEX(INDIRECT(CONCATENATE("'LA SIMD 10 ",$C$1,"'!$C$8:$Dr$71")),'CA SIMD dist data'!$M21+VLOOKUP("Female",$I$2:$J$3,2,0),'CA SIMD dist data'!W$15+VLOOKUP($C$3,$E$2:$G$13,3,0))+INDEX(INDIRECT(CONCATENATE("'LA SIMD 10 ",$C$1,"'!$C$8:$Dr$71")),'CA SIMD dist data'!$M21+VLOOKUP("Male",$I$2:$J$3,2,0),'CA SIMD dist data'!W$15+VLOOKUP($C$3,$E$2:$G$13,3,0)),INDEX(INDIRECT(CONCATENATE("'LA SIMD 10 ",$C$1,"'!$C$8:$Dr$71")),'CA SIMD dist data'!$M21+VLOOKUP($C$2,$I$2:$J$3,2,0),'CA SIMD dist data'!W$15+VLOOKUP($C$3,$E$2:$G$13,3,0))) -> 2381 | X21: =IF($C$2="Both",INDEX(INDIRECT(CONCATENATE("'LA SIMD 10 ",$C$1,"'!$C$8:$Dr$71")),'CA SIMD dist data'!$M21+VLOOKUP("Female",$I$2:$J$3,2,0),'CA SIMD dist data'!X$15+VLOOKUP($C$3,$E$2:$G$13,3,0))+INDEX(INDIRECT(CONCATENATE("'LA SIMD 10 ",$C$1,"'!$C$8:$Dr$71")),'CA SIMD dist data'!$M21+VLOOKUP("Male",$I$2:$J$3,2,0),'CA SIMD dist data'!X$15+VLOOKUP($C$3,$E$2:$G$13,3,0)),INDEX(INDIRECT(CONCATENATE("'LA SIMD 10 ",$C$1,"'!$C$8:$Dr$71")),'CA SIMD dist data'!$M21+VLOOKUP($C$2,$I$2:$J$3,2,0),'CA SIMD dist data'!X$15+VLOOKUP($C$3,$E$2:$G$13,3,0))) -> 1221 | Z21: Clackmannanshire | AA21: 0.06469186244 | AB21: 0.03949307398 | AC21: 0.02695686901 | AD21: 0.01714845664 | AE21: 0.03811578569 | AF21: 0.01690140845 | AG21: 0.05048335124 | AH21: -0.0008860011813 | AI21: 0.005914659907 | AJ21: 0.01665278934
A22: Dumfries and Galloway | B22: 3731 | C22: 2604 | D22: 6006 | E22: 13527 | F22: 11817 | G22: 18096 | H22: 8467 | I22: 5074 | J22: 3204 | K22: 3943 | M22: 7 | N22: Dumfries and Galloway | O22: =IF($C$2="Both",INDEX(INDIRECT(CONCATENATE("'LA SIMD 10 ",$C$1,"'!$C$8:$Dr$71")),'CA SIMD dist data'!$M22+VLOOKUP("Female",$I$2:$J$3,2,0),'CA SIMD dist data'!O$15+VLOOKUP($C$3,$E$2:$G$13,3,0))+INDEX(INDIRECT(CONCATENATE("'LA SIMD 10 ",$C$1,"'!$C$8:$Dr$71")),'CA SIMD dist data'!$M22+VLOOKUP("Male",$I$2:$J$3,2,0),'CA SIMD dist data'!O$15+VLOOKUP($C$3,$E$2:$G$13,3,0)),INDEX(INDIRECT(CONCATENATE("'LA SIMD 10 ",$C$1,"'!$C$8:$Dr$71")),'CA SIMD dist data'!$M22+VLOOKUP($C$2,$I$2:$J$3,2,0),'CA SIMD dist data'!O$15+VLOOKUP($C$3,$E$2:$G$13,3,0))) -> 3769 | P22: =IF($C$2="Both",INDEX(INDIRECT(CONCATENATE("'LA SIMD 10 ",$C$1,"'!$C$8:$Dr$71")),'CA SIMD dist data'!$M22+VLOOKUP("Female",$I$2:$J$3,2,0),'CA SIMD dist data'!P$15+VLOOKUP($C$3,$E$2:$G$13,3,0))+INDEX(INDIRECT(CONCATENATE("'LA SIMD 10 ",$C$1,"'!$C$8:$Dr$71")),'CA SIMD dist data'!$M22+VLOOKUP("Male",$I$2:$J$3,2,0),'CA SIMD dist data'!P$15+VLOOKUP($C$3,$E$2:$G$13,3,0)),INDEX(INDIRECT(CONCATENATE("'LA SIMD 10 ",$C$1,"'!$C$8:$Dr$71")),'CA SIMD dist data'!$M22+VLOOKUP($C$2,$I$2:$J$3,2,0),'CA SIMD dist data'!P$15+VLOOKUP($C$3,$E$2:$G$13,3,0))) -> 2660 | Q22: =IF($C$2="Both",INDEX(INDIRECT(CONCATENATE("'LA SIMD 10 ",$C$1,"'!$C$8:$Dr$71")),'CA SIMD dist data'!$M22+VLOOKUP("Female",$I$2:$J$3,2,0),'CA SIMD dist data'!Q$15+VLOOKUP($C$3,$E$2:$G$13,3,0))+INDEX(INDIRECT(CONCATENATE("'LA SIMD 10 ",$C$1,"'!$C$8:$Dr$71")),'CA SIMD dist data'!$M22+VLOOKUP("Male",$I$2:$J$3,2,0),'CA SIMD dist data'!Q$15+VLOOKUP($C$3,$E$2:$G$13,3,0)),INDEX(INDIRECT(CONCATENATE("'LA SIMD 10 ",$C$1,"'!$C$8:$Dr$71")),'CA SIMD dist data'!$M22+VLOOKUP($C$2,$I$2:$J$3,2,0),'CA SIMD dist data'!Q$15+VLOOKUP($C$3,$E$2:$G$13,3,0))) -> 6162 | R22: =IF($C$2="Both",INDEX(INDIRECT(CONCATENATE("'LA SIMD 10 ",$C$1,"'!$C$8:$Dr$71")),'CA SIMD dist data'!$M22+VLOOKUP("Female",$I$2:$J$3,2,0),'CA SIMD dist data'!R$15+VLOOKUP($C$3,$E$2:$G$13,3,0))+INDEX(INDIRECT(CONCATENATE("'LA SIMD 10 ",$C$1,"'!$C$8:$Dr$71")),'CA SIMD dist data'!$M22+VLOOKUP("Male",$I$2:$J$3,2,0),'CA SIMD dist data'!R$15+VLOOKUP($C$3,$E$2:$G$13,3,0)),INDEX(INDIRECT(CONCATENATE("'LA SIMD 10 ",$C$1,"'!$C$8:$Dr$71")),'CA SIMD dist data'!$M22+VLOOKUP($C$2,$I$2:$J$3,2,0),'CA SIMD dist data'!R$15+VLOOKUP($C$3,$E$2:$G$13,3,0))) -> 13532 | S22: =IF($C$2="Both",INDEX(INDIRECT(CONCATENATE("'LA SIMD 10 ",$C$1,"'!$C$8:$Dr$71")),'CA SIMD dist data'!$M22+VLOOKUP("Female",$I$2:$J$3,2,0),'CA SIMD dist data'!S$15+VLOOKUP($C$3,$E$2:$G$13,3,0))+INDEX(INDIRECT(CONCATENATE("'LA SIMD 10 ",$C$1,"'!$C$8:$Dr$71")),'CA SIMD dist data'!$M22+VLOOKUP("Male",$I$2:$J$3,2,0),'CA SIMD dist data'!S$15+VLOOKUP($C$3,$E$2:$G$13,3,0)),INDEX(INDIRECT(CONCATENATE("'LA SIMD 10 ",$C$1,"'!$C$8:$Dr$71")),'CA SIMD dist data'!$M22+VLOOKUP($C$2,$I$2:$J$3,2,0),'CA SIMD dist data'!S$15+VLOOKUP($C$3,$E$2:$G$13,3,0))) -> 11775 | T22: =IF($C$2="Both",INDEX(INDIRECT(CONCATENATE("'LA SIMD 10 ",$C$1,"'!$C$8:$Dr$71")),'CA SIMD dist data'!$M22+VLOOKUP("Female",$I$2:$J$3,2,0),'CA SIMD dist data'!T$15+VLOOKUP($C$3,$E$2:$G$13,3,0))+INDEX(INDIRECT(CONCATENATE("'LA SIMD 10 ",$C$1,"'!$C$8:$Dr$71")),'CA SIMD dist data'!$M22+VLOOKUP("Male",$I$2:$J$3,2,0),'CA SIMD dist data'!T$15+VLOOKUP($C$3,$E$2:$G$13,3,0)),INDEX(INDIRECT(CONCATENATE("'LA SIMD 10 ",$C$1,"'!$C$8:$Dr$71")),'CA SIMD dist data'!$M22+VLOOKUP($C$2,$I$2:$J$3,2,0),'CA SIMD dist data'!T$15+VLOOKUP($C$3,$E$2:$G$13,3,0))) -> 18114 | U22: =IF($C$2="Both",INDEX(INDIRECT(CONCATENATE("'LA SIMD 10 ",$C$1,"'!$C$8:$Dr$71")),'CA SIMD dist data'!$M22+VLOOKUP("Female",$I$2:$J$3,2,0),'CA SIMD dist data'!U$15+VLOOKUP($C$3,$E$2:$G$13,3,0))+INDEX(INDIRECT(CONCATENATE("'LA SIMD 10 ",$C$1,"'!$C$8:$Dr$71")),'CA SIMD dist data'!$M22+VLOOKUP("Male",$I$2:$J$3,2,0),'CA SIMD dist data'!U$15+VLOOKUP($C$3,$E$2:$G$13,3,0)),INDEX(INDIRECT(CONCATENATE("'LA SIMD 10 ",$C$1,"'!$C$8:$Dr$71")),'CA SIMD dist data'!$M22+VLOOKUP($C$2,$I$2:$J$3,2,0),'CA SIMD dist data'!U$15+VLOOKUP($C$3,$E$2:$G$13,3,0))) -> 8286 | V22: =IF($C$2="Both",INDEX(INDIRECT(CONCATENATE("'LA SIMD 10 ",$C$1,"'!$C$8:$Dr$71")),'CA SIMD dist data'!$M22+VLOOKUP("Female",$I$2:$J$3,2,0),'CA SIMD dist data'!V$15+VLOOKUP($C$3,$E$2:$G$13,3,0))+INDEX(INDIRECT(CONCATENATE("'LA SIMD 10 ",$C$1,"'!$C$8:$Dr$71")),'CA SIMD dist data'!$M22+VLOOKUP("Male",$I$2:$J$3,2,0),'CA SIMD dist data'!V$15+VLOOKUP($C$3,$E$2:$G$13,3,0)),INDEX(INDIRECT(CONCATENATE("'LA SIMD 10 ",$C$1,"'!$C$8:$Dr$71")),'CA SIMD dist data'!$M22+VLOOKUP($C$2,$I$2:$J$3,2,0),'CA SIMD dist data'!V$15+VLOOKUP($C$3,$E$2:$G$13,3,0))) -> 5083 | W22: =IF($C$2="Both",INDEX(INDIRECT(CONCATENATE("'LA SIMD 10 ",$C$1,"'!$C$8:$Dr$71")),'CA SIMD dist data'!$M22+VLOOKUP("Female",$I$2:$J$3,2,0),'CA SIMD dist data'!W$15+VLOOKUP($C$3,$E$2:$G$13,3,0))+INDEX(INDIRECT(CONCATENATE("'LA SIMD 10 ",$C$1,"'!$C$8:$Dr$71")),'CA SIMD dist data'!$M22+VLOOKUP("Male",$I$2:$J$3,2,0),'CA SIMD dist data'!W$15+VLOOKUP($C$3,$E$2:$G$13,3,0)),INDEX(INDIRECT(CONCATENATE("'LA SIMD 10 ",$C$1,"'!$C$8:$Dr$71")),'CA SIMD dist data'!$M22+VLOOKUP($C$2,$I$2:$J$3,2,0),'CA SIMD dist data'!W$15+VLOOKUP($C$3,$E$2:$G$13,3,0))) -> 3152 | X22: =IF($C$2="Both",INDEX(INDIRECT(CONCATENATE("'LA SIMD 10 ",$C$1,"'!$C$8:$Dr$71")),'CA SIMD dist data'!$M22+VLOOKUP("Female",$I$2:$J$3,2,0),'CA SIMD dist data'!X$15+VLOOKUP($C$3,$E$2:$G$13,3,0))+INDEX(INDIRECT(CONCATENATE("'LA SIMD 10 ",$C$1,"'!$C$8:$Dr$71")),'CA SIMD dist data'!$M22+VLOOKUP("Male",$I$2:$J$3,2,0),'CA SIMD dist data'!X$15+VLOOKUP($C$3,$E$2:$G$13,3,0)),INDEX(INDIRECT(CONCATENATE("'LA SIMD 10 ",$C$1,"'!$C$8:$Dr$71")),'CA SIMD dist data'!$M22+VLOOKUP($C$2,$I$2:$J$3,2,0),'CA SIMD dist data'!X$15+VLOOKUP($C$3,$E$2:$G$13,3,0))) -> 3945 | Z22: Dumfries and Galloway | AA22: 0.01018493701 | AB22: 0.02150537634 | AC22: 0.02597402597 | AD22: 0.0003696311082 | AE22: -0.003554201574 | AF22: 0.0009946949602 | AG22: -0.02137711114 | AH22: 0.001773748522 | AI22: -0.01622971286 | AJ22: 0.000507227999
A23: Dundee City | B23: 16620 | C23: 11181 | D23: 8494 | E23: 6672 | F23: 4070 | G23: 4174 | H23: 6642 | I23: 6689 | J23: 6709 | K23: 5717 | M23: 8 | N23: Dundee City | O23: =IF($C$2="Both",INDEX(INDIRECT(CONCATENATE("'LA SIMD 10 ",$C$1,"'!$C$8:$Dr$71")),'CA SIMD dist data'!$M23+VLOOKUP("Female",$I$2:$J$3,2,0),'CA SIMD dist data'!O$15+VLOOKUP($C$3,$E$2:$G$13,3,0))+INDEX(INDIRECT(CONCATENATE("'LA SIMD 10 ",$C$1,"'!$C$8:$Dr$71")),'CA SIMD dist data'!$M23+VLOOKUP("Male",$I$2:$J$3,2,0),'CA SIMD dist data'!O$15+VLOOKUP($C$3,$E$2:$G$13,3,0)),INDEX(INDIRECT(CONCATENATE("'LA SIMD 10 ",$C$1,"'!$C$8:$Dr$71")),'CA SIMD dist data'!$M23+VLOOKUP($C$2,$I$2:$J$3,2,0),'CA SIMD dist data'!O$15+VLOOKUP($C$3,$E$2:$G$13,3,0))) -> 17054 | P23: =IF($C$2="Both",INDEX(INDIRECT(CONCATENATE("'LA SIMD 10 ",$C$1,"'!$C$8:$Dr$71")),'CA SIMD dist data'!$M23+VLOOKUP("Female",$I$2:$J$3,2,0),'CA SIMD dist data'!P$15+VLOOKUP($C$3,$E$2:$G$13,3,0))+INDEX(INDIRECT(CONCATENATE("'LA SIMD 10 ",$C$1,"'!$C$8:$Dr$71")),'CA SIMD dist data'!$M23+VLOOKUP("Male",$I$2:$J$3,2,0),'CA SIMD dist data'!P$15+VLOOKUP($C$3,$E$2:$G$13,3,0)),INDEX(INDIRECT(CONCATENATE("'LA SIMD 10 ",$C$1,"'!$C$8:$Dr$71")),'CA SIMD dist data'!$M23+VLOOKUP($C$2,$I$2:$J$3,2,0),'CA SIMD dist data'!P$15+VLOOKUP($C$3,$E$2:$G$13,3,0))) -> 11325 | Q23: =IF($C$2="Both",INDEX(INDIRECT(CONCATENATE("'LA SIMD 10 ",$C$1,"'!$C$8:$Dr$71")),'CA SIMD dist data'!$M23+VLOOKUP("Female",$I$2:$J$3,2,0),'CA SIMD dist data'!Q$15+VLOOKUP($C$3,$E$2:$G$13,3,0))+INDEX(INDIRECT(CONCATENATE("'LA SIMD 10 ",$C$1,"'!$C$8:$Dr$71")),'CA SIMD dist data'!$M23+VLOOKUP("Male",$I$2:$J$3,2,0),'CA SIMD dist data'!Q$15+VLOOKUP($C$3,$E$2:$G$13,3,0)),INDEX(INDIRECT(CONCATENATE("'LA SIMD 10 ",$C$1,"'!$C$8:$Dr$71")),'CA SIMD dist data'!$M23+VLOOKUP($C$2,$I$2:$J$3,2,0),'CA SIMD dist data'!Q$15+VLOOKUP($C$3,$E$2:$G$13,3,0))) -> 8503 | R23: =IF($C$2="Both",INDEX(INDIRECT(CONCATENATE("'LA SIMD 10 ",$C$1,"'!$C$8:$Dr$71")),'CA SIMD dist data'!$M23+VLOOKUP("Female",$I$2:$J$3,2,0),'CA SIMD dist data'!R$15+VLOOKUP($C$3,$E$2:$G$13,3,0))+INDEX(INDIRECT(CONCATENATE("'LA SIMD 10 ",$C$1,"'!$C$8:$Dr$71")),'CA SIMD dist data'!$M23+VLOOKUP("Male",$I$2:$J$3,2,0),'CA SIMD dist data'!R$15+VLOOKUP($C$3,$E$2:$G$13,3,0)),INDEX(INDIRECT(CONCATENATE("'LA SIMD 10 ",$C$1,"'!$C$8:$Dr$71")),'CA SIMD dist data'!$M23+VLOOKUP($C$2,$I$2:$J$3,2,0),'CA SIMD dist data'!R$15+VLOOKUP($C$3,$E$2:$G$13,3,0))) -> 6871 | S23: =IF($C$2="Both",INDEX(INDIRECT(CONCATENATE("'LA SIMD 10 ",$C$1,"'!$C$8:$Dr$71")),'CA SIMD dist data'!$M23+VLOOKUP("Female",$I$2:$J$3,2,0),'CA SIMD dist data'!S$15+VLOOKUP($C$3,$E$2:$G$13,3,0))+INDEX(INDIRECT(CONCATENATE("'LA SIMD 10 ",$C$1,"'!$C$8:$Dr$71")),'CA SIMD dist data'!$M23+VLOOKUP("Male",$I$2:$J$3,2,0),'CA SIMD dist data'!S$15+VLOOKUP($C$3,$E$2:$G$13,3,0)),INDEX(INDIRECT(CONCATENATE("'LA SIMD 10 ",$C$1,"'!$C$8:$Dr$71")),'CA SIMD dist data'!$M23+VLOOKUP($C$2,$I$2:$J$3,2,0),'CA SIMD dist data'!S$15+VLOOKUP($C$3,$E$2:$G$13,3,0))) -> 3904 | T23: =IF($C$2="Both",INDEX(INDIRECT(CONCATENATE("'LA SIMD 10 ",$C$1,"'!$C$8:$Dr$71")),'CA SIMD dist data'!$M23+VLOOKUP("Female",$I$2:$J$3,2,0),'CA SIMD dist data'!T$15+VLOOKUP($C$3,$E$2:$G$13,3,0))+INDEX(INDIRECT(CONCATENATE("'LA SIMD 10 ",$C$1,"'!$C$8:$Dr$71")),'CA SIMD dist data'!$M23+VLOOKUP("Male",$I$2:$J$3,2,0),'CA SIMD dist data'!T$15+VLOOKUP($C$3,$E$2:$G$13,3,0)),INDEX(INDIRECT(CONCATENATE("'LA SIMD 10 ",$C$1,"'!$C$8:$Dr$71")),'CA SIMD dist data'!$M23+VLOOKUP($C$2,$I$2:$J$3,2,0),'CA SIMD dist data'!T$15+VLOOKUP($C$3,$E$2:$G$13,3,0))) -> 4235 | U23: =IF($C$2="Both",INDEX(INDIRECT(CONCATENATE("'LA SIMD 10 ",$C$1,"'!$C$8:$Dr$71")),'CA SIMD dist data'!$M23+VLOOKUP("Female",$I$2:$J$3,2,0),'CA SIMD dist data'!U$15+VLOOKUP($C$3,$E$2:$G$13,3,0))+INDEX(INDIRECT(CONCATENATE("'LA SIMD 10 ",$C$1,"'!$C$8:$Dr$71")),'CA SIMD dist data'!$M23+VLOOKUP("Male",$I$2:$J$3,2,0),'CA SIMD dist data'!U$15+VLOOKUP($C$3,$E$2:$G$13,3,0)),INDEX(INDIRECT(CONCATENATE("'LA SIMD 10 ",$C$1,"'!$C$8:$Dr$71")),'CA SIMD dist data'!$M23+VLOOKUP($C$2,$I$2:$J$3,2,0),'CA SIMD dist data'!U$15+VLOOKUP($C$3,$E$2:$G$13,3,0))) -> 6632 | V23: =IF($C$2="Both",INDEX(INDIRECT(CONCATENATE("'LA SIMD 10 ",$C$1,"'!$C$8:$Dr$71")),'CA SIMD dist data'!$M23+VLOOKUP("Female",$I$2:$J$3,2,0),'CA SIMD dist data'!V$15+VLOOKUP($C$3,$E$2:$G$13,3,0))+INDEX(INDIRECT(CONCATENATE("'LA SIMD 10 ",$C$1,"'!$C$8:$Dr$71")),'CA SIMD dist data'!$M23+VLOOKUP("Male",$I$2:$J$3,2,0),'CA SIMD dist data'!V$15+VLOOKUP($C$3,$E$2:$G$13,3,0)),INDEX(INDIRECT(CONCATENATE("'LA SIMD 10 ",$C$1,"'!$C$8:$Dr$71")),'CA SIMD dist data'!$M23+VLOOKUP($C$2,$I$2:$J$3,2,0),'CA SIMD dist data'!V$15+VLOOKUP($C$3,$E$2:$G$13,3,0))) -> 6875 | W23: =IF($C$2="Both",INDEX(INDIRECT(CONCATENATE("'LA SIMD 10 ",$C$1,"'!$C$8:$Dr$71")),'CA SIMD dist data'!$M23+VLOOKUP("Female",$I$2:$J$3,2,0),'CA SIMD dist data'!W$15+VLOOKUP($C$3,$E$2:$G$13,3,0))+INDEX(INDIRECT(CONCATENATE("'LA SIMD 10 ",$C$1,"'!$C$8:$Dr$71")),'CA SIMD dist data'!$M23+VLOOKUP("Male",$I$2:$J$3,2,0),'CA SIMD dist data'!W$15+VLOOKUP($C$3,$E$2:$G$13,3,0)),INDEX(INDIRECT(CONCATENATE("'LA SIMD 10 ",$C$1,"'!$C$8:$Dr$71")),'CA SIMD dist data'!$M23+VLOOKUP($C$2,$I$2:$J$3,2,0),'CA SIMD dist data'!W$15+VLOOKUP($C$3,$E$2:$G$13,3,0))) -> 6767 | X23: =IF($C$2="Both",INDEX(INDIRECT(CONCATENATE("'LA SIMD 10 ",$C$1,"'!$C$8:$Dr$71")),'CA SIMD dist data'!$M23+VLOOKUP("Female",$I$2:$J$3,2,0),'CA SIMD dist data'!X$15+VLOOKUP($C$3,$E$2:$G$13,3,0))+INDEX(INDIRECT(CONCATENATE("'LA SIMD 10 ",$C$1,"'!$C$8:$Dr$71")),'CA SIMD dist data'!$M23+VLOOKUP("Male",$I$2:$J$3,2,0),'CA SIMD dist data'!X$15+VLOOKUP($C$3,$E$2:$G$13,3,0)),INDEX(INDIRECT(CONCATENATE("'LA SIMD 10 ",$C$1,"'!$C$8:$Dr$71")),'CA SIMD dist data'!$M23+VLOOKUP($C$2,$I$2:$J$3,2,0),'CA SIMD dist data'!X$15+VLOOKUP($C$3,$E$2:$G$13,3,0))) -> 5555 | Z23: Dundee City | AA23: 0.02611311673 | AB23: 0.01287899115 | AC23: 0.001059571462 | AD23: 0.02982613909 | AE23: -0.04078624079 | AF23: 0.01461427887 | AG23: -0.001505570611 | AH23: 0.02780684706 | AI23: 0.008645103592 | AJ23: -0.02833654014
A24: East Ayrshire | B24: 6707 | C24: 13140 | D24: 7734 | E24: 8141 | F24: 6528 | G24: 4326 | H24: 4162 | I24: 4781 | J24: 4541 | K24: 2675 | M24: 9 | N24: East Ayrshire | O24: =IF($C$2="Both",INDEX(INDIRECT(CONCATENATE("'LA SIMD 10 ",$C$1,"'!$C$8:$Dr$71")),'CA SIMD dist data'!$M24+VLOOKUP("Female",$I$2:$J$3,2,0),'CA SIMD dist data'!O$15+VLOOKUP($C$3,$E$2:$G$13,3,0))+INDEX(INDIRECT(CONCATENATE("'LA SIMD 10 ",$C$1,"'!$C$8:$Dr$71")),'CA SIMD dist data'!$M24+VLOOKUP("Male",$I$2:$J$3,2,0),'CA SIMD dist data'!O$15+VLOOKUP($C$3,$E$2:$G$13,3,0)),INDEX(INDIRECT(CONCATENATE("'LA SIMD 10 ",$C$1,"'!$C$8:$Dr$71")),'CA SIMD dist data'!$M24+VLOOKUP($C$2,$I$2:$J$3,2,0),'CA SIMD dist data'!O$15+VLOOKUP($C$3,$E$2:$G$13,3,0))) -> 6803 | P24: =IF($C$2="Both",INDEX(INDIRECT(CONCATENATE("'LA SIMD 10 ",$C$1,"'!$C$8:$Dr$71")),'CA SIMD dist data'!$M24+VLOOKUP("Female",$I$2:$J$3,2,0),'CA SIMD dist data'!P$15+VLOOKUP($C$3,$E$2:$G$13,3,0))+INDEX(INDIRECT(CONCATENATE("'LA SIMD 10 ",$C$1,"'!$C$8:$Dr$71")),'CA SIMD dist data'!$M24+VLOOKUP("Male",$I$2:$J$3,2,0),'CA SIMD dist data'!P$15+VLOOKUP($C$3,$E$2:$G$13,3,0)),INDEX(INDIRECT(CONCATENATE("'LA SIMD 10 ",$C$1,"'!$C$8:$Dr$71")),'CA SIMD dist data'!$M24+VLOOKUP($C$2,$I$2:$J$3,2,0),'CA SIMD dist data'!P$15+VLOOKUP($C$3,$E$2:$G$13,3,0))) -> 13188 | Q24: =IF($C$2="Both",INDEX(INDIRECT(CONCATENATE("'LA SIMD 10 ",$C$1,"'!$C$8:$Dr$71")),'CA SIMD dist data'!$M24+VLOOKUP("Female",$I$2:$J$3,2,0),'CA SIMD dist data'!Q$15+VLOOKUP($C$3,$E$2:$G$13,3,0))+INDEX(INDIRECT(CONCATENATE("'LA SIMD 10 ",$C$1,"'!$C$8:$Dr$71")),'CA SIMD dist data'!$M24+VLOOKUP("Male",$I$2:$J$3,2,0),'CA SIMD dist data'!Q$15+VLOOKUP($C$3,$E$2:$G$13,3,0)),INDEX(INDIRECT(CONCATENATE("'LA SIMD 10 ",$C$1,"'!$C$8:$Dr$71")),'CA SIMD dist data'!$M24+VLOOKUP($C$2,$I$2:$J$3,2,0),'CA SIMD dist data'!Q$15+VLOOKUP($C$3,$E$2:$G$13,3,0))) -> 7840 | R24: =IF($C$2="Both",INDEX(INDIRECT(CONCATENATE("'LA SIMD 10 ",$C$1,"'!$C$8:$Dr$71")),'CA SIMD dist data'!$M24+VLOOKUP("Female",$I$2:$J$3,2,0),'CA SIMD dist data'!R$15+VLOOKUP($C$3,$E$2:$G$13,3,0))+INDEX(INDIRECT(CONCATENATE("'LA SIMD 10 ",$C$1,"'!$C$8:$Dr$71")),'CA SIMD dist data'!$M24+VLOOKUP("Male",$I$2:$J$3,2,0),'CA SIMD dist data'!R$15+VLOOKUP($C$3,$E$2:$G$13,3,0)),INDEX(INDIRECT(CONCATENATE("'LA SIMD 10 ",$C$1,"'!$C$8:$Dr$71")),'CA SIMD dist data'!$M24+VLOOKUP($C$2,$I$2:$J$3,2,0),'CA SIMD dist data'!R$15+VLOOKUP($C$3,$E$2:$G$13,3,0))) -> 7989 | S24: =IF($C$2="Both",INDEX(INDIRECT(CONCATENATE("'LA SIMD 10 ",$C$1,"'!$C$8:$Dr$71")),'CA SIMD dist data'!$M24+VLOOKUP("Female",$I$2:$J$3,2,0),'CA SIMD dist data'!S$15+VLOOKUP($C$3,$E$2:$G$13,3,0))+INDEX(INDIRECT(CONCATENATE("'LA SIMD 10 ",$C$1,"'!$C$8:$Dr$71")),'CA SIMD dist data'!$M24+VLOOKUP("Male",$I$2:$J$3,2,0),'CA SIMD dist data'!S$15+VLOOKUP($C$3,$E$2:$G$13,3,0)),INDEX(INDIRECT(CONCATENATE("'LA SIMD 10 ",$C$1,"'!$C$8:$Dr$71")),'CA SIMD dist data'!$M24+VLOOKUP($C$2,$I$2:$J$3,2,0),'CA SIMD dist data'!S$15+VLOOKUP($C$3,$E$2:$G$13,3,0))) -> 6508 | T24: =IF($C$2="Both",INDEX(INDIRECT(CONCATENATE("'LA SIMD 10 ",$C$1,"'!$C$8:$Dr$71")),'CA SIMD dist data'!$M24+VLOOKUP("Female",$I$2:$J$3,2,0),'CA SIMD dist data'!T$15+VLOOKUP($C$3,$E$2:$G$13,3,0))+INDEX(INDIRECT(CONCATENATE("'LA SIMD 10 ",$C$1,"'!$C$8:$Dr$71")),'CA SIMD dist data'!$M24+VLOOKUP("Male",$I$2:$J$3,2,0),'CA SIMD dist data'!T$15+VLOOKUP($C$3,$E$2:$G$13,3,0)),INDEX(INDIRECT(CONCATENATE("'LA SIMD 10 ",$C$1,"'!$C$8:$Dr$71")),'CA SIMD dist data'!$M24+VLOOKUP($C$2,$I$2:$J$3,2,0),'CA SIMD dist data'!T$15+VLOOKUP($C$3,$E$2:$G$13,3,0))) -> 4250 | U24: =IF($C$2="Both",INDEX(INDIRECT(CONCATENATE("'LA SIMD 10 ",$C$1,"'!$C$8:$Dr$71")),'CA SIMD dist data'!$M24+VLOOKUP("Female",$I$2:$J$3,2,0),'CA SIMD dist data'!U$15+VLOOKUP($C$3,$E$2:$G$13,3,0))+INDEX(INDIRECT(CONCATENATE("'LA SIMD 10 ",$C$1,"'!$C$8:$Dr$71")),'CA SIMD dist data'!$M24+VLOOKUP("Male",$I$2:$J$3,2,0),'CA SIMD dist data'!U$15+VLOOKUP($C$3,$E$2:$G$13,3,0)),INDEX(INDIRECT(CONCATENATE("'LA SIMD 10 ",$C$1,"'!$C$8:$Dr$71")),'CA SIMD dist data'!$M24+VLOOKUP($C$2,$I$2:$J$3,2,0),'CA SIMD dist data'!U$15+VLOOKUP($C$3,$E$2:$G$13,3,0))) -> 4077 | V24: =IF($C$2="Both",INDEX(INDIRECT(CONCATENATE("'LA SIMD 10 ",$C$1,"'!$C$8:$Dr$71")),'CA SIMD dist data'!$M24+VLOOKUP("Female",$I$2:$J$3,2,0),'CA SIMD dist data'!V$15+VLOOKUP($C$3,$E$2:$G$13,3,0))+INDEX(INDIRECT(CONCATENATE("'LA SIMD 10 ",$C$1,"'!$C$8:$Dr$71")),'CA SIMD dist data'!$M24+VLOOKUP("Male",$I$2:$J$3,2,0),'CA SIMD dist data'!V$15+VLOOKUP($C$3,$E$2:$G$13,3,0)),INDEX(INDIRECT(CONCATENATE("'LA SIMD 10 ",$C$1,"'!$C$8:$Dr$71")),'CA SIMD dist data'!$M24+VLOOKUP($C$2,$I$2:$J$3,2,0),'CA SIMD dist data'!V$15+VLOOKUP($C$3,$E$2:$G$13,3,0))) -> 4904 | W24: =IF($C$2="Both",INDEX(INDIRECT(CONCATENATE("'LA SIMD 10 ",$C$1,"'!$C$8:$Dr$71")),'CA SIMD dist data'!$M24+VLOOKUP("Female",$I$2:$J$3,2,0),'CA SIMD dist data'!W$15+VLOOKUP($C$3,$E$2:$G$13,3,0))+INDEX(INDIRECT(CONCATENATE("'LA SIMD 10 ",$C$1,"'!$C$8:$Dr$71")),'CA SIMD dist data'!$M24+VLOOKUP("Male",$I$2:$J$3,2,0),'CA SIMD dist data'!W$15+VLOOKUP($C$3,$E$2:$G$13,3,0)),INDEX(INDIRECT(CONCATENATE("'LA SIMD 10 ",$C$1,"'!$C$8:$Dr$71")),'CA SIMD dist data'!$M24+VLOOKUP($C$2,$I$2:$J$3,2,0),'CA SIMD dist data'!W$15+VLOOKUP($C$3,$E$2:$G$13,3,0))) -> 4438 | X24: =IF($C$2="Both",INDEX(INDIRECT(CONCATENATE("'LA SIMD 10 ",$C$1,"'!$C$8:$Dr$71")),'CA SIMD dist data'!$M24+VLOOKUP("Female",$I$2:$J$3,2,0),'CA SIMD dist data'!X$15+VLOOKUP($C$3,$E$2:$G$13,3,0))+INDEX(INDIRECT(CONCATENATE("'LA SIMD 10 ",$C$1,"'!$C$8:$Dr$71")),'CA SIMD dist data'!$M24+VLOOKUP("Male",$I$2:$J$3,2,0),'CA SIMD dist data'!X$15+VLOOKUP($C$3,$E$2:$G$13,3,0)),INDEX(INDIRECT(CONCATENATE("'LA SIMD 10 ",$C$1,"'!$C$8:$Dr$71")),'CA SIMD dist data'!$M24+VLOOKUP($C$2,$I$2:$J$3,2,0),'CA SIMD dist data'!X$15+VLOOKUP($C$3,$E$2:$G$13,3,0))) -> 2626 | Z24: East Ayrshire | AA24: 0.01431340391 | AB24: 0.003652968037 | AC24: 0.01370571502 | AD24: -0.01867092495 | AE24: -0.00306372549 | AF24: -0.01756819233 | AG24: -0.02042287362 | AH24: 0.02572683539 | AI24: -0.02268222858 | AJ24: -0.01831775701
A25: East Dunbartonshire | B25: 484 | C25: 2298 | D25: 4668 | E25: 4624 | F25: 1648 | G25: 1346 | H25: 4901 | I25: 5743 | J25: 14298 | K25: =IF($C$2="Both",SUMIFS(INDIRECT(CONCATENATE("'MYE ",$C$1," F'!$D$",VLOOKUP($C$3,$E$2:$F$13,2,0),":$JHK$",VLOOKUP($C$3,$E$2:$F$13,2,0))),INDIRECT(CONCATENATE("'MYE ",$C$1," F'!$D$5:$JHK$5")),$A25,INDIRECT(CONCATENATE("'MYE ",$C$1," F'!$D$6:$JHK$6")),K$15)+SUMIFS(INDIRECT(CONCATENATE("'MYE ",$C$1," M'!$D$",VLOOKUP($C$3,$E$2:$F$13,2,0),":$JHK$",VLOOKUP($C$3,$E$2:$F$13,2,0))),INDIRECT(CONCATENATE("'MYE ",$C$1," M'!$D$5:$JHK$5")),$A25,INDIRECT(CONCATENATE("'MYE ",$C$1," M'!$D$6:$JHK$6")),K$15),SUMIFS(INDIRECT(CONCATENATE("'MYE ",$C$1," ",$D$2,"'!$D$",VLOOKUP($C$3,$E$2:$F$13,2,0),":$JHK$",VLOOKUP($C$3,$E$2:$F$13,2,0))),INDIRECT(CONCATENATE("'MYE ",$C$1," ",$D$2,"'!$D$5:$JHK$5")),$A25,INDIRECT(CONCATENATE("'MYE ",$C$1," ",$D$2,"'!$D$6:$JHK$6")),K$15)) -> 15852 | M25: 10 | N25: East Dunbartonshire | O25: =IF($C$2="Both",INDEX(INDIRECT(CONCATENATE("'LA SIMD 10 ",$C$1,"'!$C$8:$Dr$71")),'CA SIMD dist data'!$M25+VLOOKUP("Female",$I$2:$J$3,2,0),'CA SIMD dist data'!O$15+VLOOKUP($C$3,$E$2:$G$13,3,0))+INDEX(INDIRECT(CONCATENATE("'LA SIMD 10 ",$C$1,"'!$C$8:$Dr$71")),'CA SIMD dist data'!$M25+VLOOKUP("Male",$I$2:$J$3,2,0),'CA SIMD dist data'!O$15+VLOOKUP($C$3,$E$2:$G$13,3,0)),INDEX(INDIRECT(CONCATENATE("'LA SIMD 10 ",$C$1,"'!$C$8:$Dr$71")),'CA SIMD dist data'!$M25+VLOOKUP($C$2,$I$2:$J$3,2,0),'CA SIMD dist data'!O$15+VLOOKUP($C$3,$E$2:$G$13,3,0))) -> 502 | P25: =IF($C$2="Both",INDEX(INDIRECT(CONCATENATE("'LA SIMD 10 ",$C$1,"'!$C$8:$Dr$71")),'CA SIMD dist data'!$M25+VLOOKUP("Female",$I$2:$J$3,2,0),'CA SIMD dist data'!P$15+VLOOKUP($C$3,$E$2:$G$13,3,0))+INDEX(INDIRECT(CONCATENATE("'LA SIMD 10 ",$C$1,"'!$C$8:$Dr$71")),'CA SIMD dist data'!$M25+VLOOKUP("Male",$I$2:$J$3,2,0),'CA SIMD dist data'!P$15+VLOOKUP($C$3,$E$2:$G$13,3,0)),INDEX(INDIRECT(CONCATENATE("'LA SIMD 10 ",$C$1,"'!$C$8:$Dr$71")),'CA SIMD dist data'!$M25+VLOOKUP($C$2,$I$2:$J$3,2,0),'CA SIMD dist data'!P$15+VLOOKUP($C$3,$E$2:$G$13,3,0))) -> 2414 | Q25: =IF($C$2="Both",INDEX(INDIRECT(CONCATENATE("'LA SIMD 10 ",$C$1,"'!$C$8:$Dr$71")),'CA SIMD dist data'!$M25+VLOOKUP("Female",$I$2:$J$3,2,0),'CA SIMD dist data'!Q$15+VLOOKUP($C$3,$E$2:$G$13,3,0))+INDEX(INDIRECT(CONCATENATE("'LA SIMD 10 ",$C$1,"'!$C$8:$Dr$71")),'CA SIMD dist data'!$M25+VLOOKUP("Male",$I$2:$J$3,2,0),'CA SIMD dist data'!Q$15+VLOOKUP($C$3,$E$2:$G$13,3,0)),INDEX(INDIRECT(CONCATENATE("'LA SIMD 10 ",$C$1,"'!$C$8:$Dr$71")),'CA SIMD dist data'!$M25+VLOOKUP($C$2,$I$2:$J$3,2,0),'CA SIMD dist data'!Q$15+VLOOKUP($C$3,$E$2:$G$13,3,0))) -> 4733 | R25: =IF($C$2="Both",INDEX(INDIRECT(CONCATENATE("'LA SIMD 10 ",$C$1,"'!$C$8:$Dr$71")),'CA SIMD dist data'!$M25+VLOOKUP("Female",$I$2:$J$3,2,0),'CA SIMD dist data'!R$15+VLOOKUP($C$3,$E$2:$G$13,3,0))+INDEX(INDIRECT(CONCATENATE("'LA SIMD 10 ",$C$1,"'!$C$8:$Dr$71")),'CA SIMD dist data'!$M25+VLOOKUP("Male",$I$2:$J$3,2,0),'CA SIMD dist data'!R$15+VLOOKUP($C$3,$E$2:$G$13,3,0)),INDEX(INDIRECT(CONCATENATE("'LA SIMD 10 ",$C$1,"'!$C$8:$Dr$71")),'CA SIMD dist data'!$M25+VLOOKUP($C$2,$I$2:$J$3,2,0),'CA SIMD dist data'!R$15+VLOOKUP($C$3,$E$2:$G$13,3,0))) -> 4761 | S25: =IF($C$2="Both",INDEX(INDIRECT(CONCATENATE("'LA SIMD 10 ",$C$1,"'!$C$8:$Dr$71")),'CA SIMD dist data'!$M25+VLOOKUP("Female",$I$2:$J$3,2,0),'CA SIMD dist data'!S$15+VLOOKUP($C$3,$E$2:$G$13,3,0))+INDEX(INDIRECT(CONCATENATE("'LA SIMD 10 ",$C$1,"'!$C$8:$Dr$71")),'CA SIMD dist data'!$M25+VLOOKUP("Male",$I$2:$J$3,2,0),'CA SIMD dist data'!S$15+VLOOKUP($C$3,$E$2:$G$13,3,0)),INDEX(INDIRECT(CONCATENATE("'LA SIMD 10 ",$C$1,"'!$C$8:$Dr$71")),'CA SIMD dist data'!$M25+VLOOKUP($C$2,$I$2:$J$3,2,0),'CA SIMD dist data'!S$15+VLOOKUP($C$3,$E$2:$G$13,3,0))) -> 1691 | T25: =IF($C$2="Both",INDEX(INDIRECT(CONCATENATE("'LA SIMD 10 ",$C$1,"'!$C$8:$Dr$71")),'CA SIMD dist data'!$M25+VLOOKUP("Female",$I$2:$J$3,2,0),'CA SIMD dist data'!T$15+VLOOKUP($C$3,$E$2:$G$13,3,0))+INDEX(INDIRECT(CONCATENATE("'LA SIMD 10 ",$C$1,"'!$C$8:$Dr$71")),'CA SIMD dist data'!$M25+VLOOKUP("Male",$I$2:$J$3,2,0),'CA SIMD dist data'!T$15+VLOOKUP($C$3,$E$2:$G$13,3,0)),INDEX(INDIRECT(CONCATENATE("'LA SIMD 10 ",$C$1,"'!$C$8:$Dr$71")),'CA SIMD dist data'!$M25+VLOOKUP($C$2,$I$2:$J$3,2,0),'CA SIMD dist data'!T$15+VLOOKUP($C$3,$E$2:$G$13,3,0))) -> 1357 | U25: =IF($C$2="Both",INDEX(INDIRECT(CONCATENATE("'LA SIMD 10 ",$C$1,"'!$C$8:$Dr$71")),'CA SIMD dist data'!$M25+VLOOKUP("Female",$I$2:$J$3,2,0),'CA SIMD dist data'!U$15+VLOOKUP($C$3,$E$2:$G$13,3,0))+INDEX(INDIRECT(CONCATENATE("'LA SIMD 10 ",$C$1,"'!$C$8:$Dr$71")),'CA SIMD dist data'!$M25+VLOOKUP("Male",$I$2:$J$3,2,0),'CA SIMD dist data'!U$15+VLOOKUP($C$3,$E$2:$G$13,3,0)),INDEX(INDIRECT(CONCATENATE("'LA SIMD 10 ",$C$1,"'!$C$8:$Dr$71")),'CA SIMD dist data'!$M25+VLOOKUP($C$2,$I$2:$J$3,2,0),'CA SIMD dist data'!U$15+VLOOKUP($C$3,$E$2:$G$13,3,0))) -> 5023 | V25: =IF($C$2="Both",INDEX(INDIRECT(CONCATENATE("'LA SIMD 10 ",$C$1,"'!$C$8:$Dr$71")),'CA SIMD dist data'!$M25+VLOOKUP("Female",$I$2:$J$3,2,0),'CA SIMD dist data'!V$15+VLOOKUP($C$3,$E$2:$G$13,3,0))+INDEX(INDIRECT(CONCATENATE("'LA SIMD 10 ",$C$1,"'!$C$8:$Dr$71")),'CA SIMD dist data'!$M25+VLOOKUP("Male",$I$2:$J$3,2,0),'CA SIMD dist data'!V$15+VLOOKUP($C$3,$E$2:$G$13,3,0)),INDEX(INDIRECT(CONCATENATE("'LA SIMD 10 ",$C$1,"'!$C$8:$Dr$71")),'CA SIMD dist data'!$M25+VLOOKUP($C$2,$I$2:$J$3,2,0),'CA SIMD dist data'!V$15+VLOOKUP($C$3,$E$2:$G$13,3,0))) -> 5903 | W25: =IF($C$2="Both",INDEX(INDIRECT(CONCATENATE("'LA SIMD 10 ",$C$1,"'!$C$8:$Dr$71")),'CA SIMD dist data'!$M25+VLOOKUP("Female",$I$2:$J$3,2,0),'CA SIMD dist data'!W$15+VLOOKUP($C$3,$E$2:$G$13,3,0))+INDEX(INDIRECT(CONCATENATE("'LA SIMD 10 ",$C$1,"'!$C$8:$Dr$71")),'CA SIMD dist data'!$M25+VLOOKUP("Male",$I$2:$J$3,2,0),'CA SIMD dist data'!W$15+VLOOKUP($C$3,$E$2:$G$13,3,0)),INDEX(INDIRECT(CONCATENATE("'LA SIMD 10 ",$C$1,"'!$C$8:$Dr$71")),'CA SIMD dist data'!$M25+VLOOKUP($C$2,$I$2:$J$3,2,0),'CA SIMD dist data'!W$15+VLOOKUP($C$3,$E$2:$G$13,3,0))) -> 14449 | X25: =IF($C$2="Both",INDEX(INDIRECT(CONCATENATE("'LA SIMD 10 ",$C$1,"'!$C$8:$Dr$71")),'CA SIMD dist data'!$M25+VLOOKUP("Female",$I$2:$J$3,2,0),'CA SIMD dist data'!X$15+VLOOKUP($C$3,$E$2:$G$13,3,0))+INDEX(INDIRECT(CONCATENATE("'LA SIMD 10 ",$C$1,"'!$C$8:$Dr$71")),'CA SIMD dist data'!$M25+VLOOKUP("Male",$I$2:$J$3,2,0),'CA SIMD dist data'!X$15+VLOOKUP($C$3,$E$2:$G$13,3,0)),INDEX(INDIRECT(CONCATENATE("'LA SIMD 10 ",$C$1,"'!$C$8:$Dr$71")),'CA SIMD dist data'!$M25+VLOOKUP($C$2,$I$2:$J$3,2,0),'CA SIMD dist data'!X$15+VLOOKUP($C$3,$E$2:$G$13,3,0))) -> 16279 | Z25: East Dunbartonshire | AA25: 0.03719008264 | AB25: 0.05047867711 | AC25: 0.01392459297 | AD25: 0.02962802768 | AE25: 0.02609223301 | AF25: 0.008172362556 | AG25: 0.024892879 | AH25: 0.02786000348 | AI25: 0.01056091761 | AJ25: 0.02693666414
A26: East Lothian | B26: 0 | C26: 1948 | D26: 6109 | E26: 8055 | F26: 4563 | G26: 7457 | H26: 7939 | I26: 7937 | J26: 4657 | K26: 6406 | M26: 11 | N26: East Lothian | O26: =IF($C$2="Both",INDEX(INDIRECT(CONCATENATE("'LA SIMD 10 ",$C$1,"'!$C$8:$Dr$71")),'CA SIMD dist data'!$M26+VLOOKUP("Female",$I$2:$J$3,2,0),'CA SIMD dist data'!O$15+VLOOKUP($C$3,$E$2:$G$13,3,0))+INDEX(INDIRECT(CONCATENATE("'LA SIMD 10 ",$C$1,"'!$C$8:$Dr$71")),'CA SIMD dist data'!$M26+VLOOKUP("Male",$I$2:$J$3,2,0),'CA SIMD dist data'!O$15+VLOOKUP($C$3,$E$2:$G$13,3,0)),INDEX(INDIRECT(CONCATENATE("'LA SIMD 10 ",$C$1,"'!$C$8:$Dr$71")),'CA SIMD dist data'!$M26+VLOOKUP($C$2,$I$2:$J$3,2,0),'CA SIMD dist data'!O$15+VLOOKUP($C$3,$E$2:$G$13,3,0))) -> 0 | P26: =IF($C$2="Both",INDEX(INDIRECT(CONCATENATE("'LA SIMD 10 ",$C$1,"'!$C$8:$Dr$71")),'CA SIMD dist data'!$M26+VLOOKUP("Female",$I$2:$J$3,2,0),'CA SIMD dist data'!P$15+VLOOKUP($C$3,$E$2:$G$13,3,0))+INDEX(INDIRECT(CONCATENATE("'LA SIMD 10 ",$C$1,"'!$C$8:$Dr$71")),'CA SIMD dist data'!$M26+VLOOKUP("Male",$I$2:$J$3,2,0),'CA SIMD dist data'!P$15+VLOOKUP($C$3,$E$2:$G$13,3,0)),INDEX(INDIRECT(CONCATENATE("'LA SIMD 10 ",$C$1,"'!$C$8:$Dr$71")),'CA SIMD dist data'!$M26+VLOOKUP($C$2,$I$2:$J$3,2,0),'CA SIMD dist data'!P$15+VLOOKUP($C$3,$E$2:$G$13,3,0))) -> 1994 | Q26: =IF($C$2="Both",INDEX(INDIRECT(CONCATENATE("'LA SIMD 10 ",$C$1,"'!$C$8:$Dr$71")),'CA SIMD dist data'!$M26+VLOOKUP("Female",$I$2:$J$3,2,0),'CA SIMD dist data'!Q$15+VLOOKUP($C$3,$E$2:$G$13,3,0))+INDEX(INDIRECT(CONCATENATE("'LA SIMD 10 ",$C$1,"'!$C$8:$Dr$71")),'CA SIMD dist data'!$M26+VLOOKUP("Male",$I$2:$J$3,2,0),'CA SIMD dist data'!Q$15+VLOOKUP($C$3,$E$2:$G$13,3,0)),INDEX(INDIRECT(CONCATENATE("'LA SIMD 10 ",$C$1,"'!$C$8:$Dr$71")),'CA SIMD dist data'!$M26+VLOOKUP($C$2,$I$2:$J$3,2,0),'CA SIMD dist data'!Q$15+VLOOKUP($C$3,$E$2:$G$13,3,0))) -> 6257 | R26: =IF($C$2="Both",INDEX(INDIRECT(CONCATENATE("'LA SIMD 10 ",$C$1,"'!$C$8:$Dr$71")),'CA SIMD dist data'!$M26+VLOOKUP("Female",$I$2:$J$3,2,0),'CA SIMD dist data'!R$15+VLOOKUP($C$3,$E$2:$G$13,3,0))+INDEX(INDIRECT(CONCATENATE("'LA SIMD 10 ",$C$1,"'!$C$8:$Dr$71")),'CA SIMD dist data'!$M26+VLOOKUP("Male",$I$2:$J$3,2,0),'CA SIMD dist data'!R$15+VLOOKUP($C$3,$E$2:$G$13,3,0)),INDEX(INDIRECT(CONCATENATE("'LA SIMD 10 ",$C$1,"'!$C$8:$Dr$71")),'CA SIMD dist data'!$M26+VLOOKUP($C$2,$I$2:$J$3,2,0),'CA SIMD dist data'!R$15+VLOOKUP($C$3,$E$2:$G$13,3,0))) -> 8158 | S26: =IF($C$2="Both",INDEX(INDIRECT(CONCATENATE("'LA SIMD 10 ",$C$1,"'!$C$8:$Dr$71")),'CA SIMD dist data'!$M26+VLOOKUP("Female",$I$2:$J$3,2,0),'CA SIMD dist data'!S$15+VLOOKUP($C$3,$E$2:$G$13,3,0))+INDEX(INDIRECT(CONCATENATE("'LA SIMD 10 ",$C$1,"'!$C$8:$Dr$71")),'CA SIMD dist data'!$M26+VLOOKUP("Male",$I$2:$J$3,2,0),'CA SIMD dist data'!S$15+VLOOKUP($C$3,$E$2:$G$13,3,0)),INDEX(INDIRECT(CONCATENATE("'LA SIMD 10 ",$C$1,"'!$C$8:$Dr$71")),'CA SIMD dist data'!$M26+VLOOKUP($C$2,$I$2:$J$3,2,0),'CA SIMD dist data'!S$15+VLOOKUP($C$3,$E$2:$G$13,3,0))) -> 4404 | T26: =IF($C$2="Both",INDEX(INDIRECT(CONCATENATE("'LA SIMD 10 ",$C$1,"'!$C$8:$Dr$71")),'CA SIMD dist data'!$M26+VLOOKUP("Female",$I$2:$J$3,2,0),'CA SIMD dist data'!T$15+VLOOKUP($C$3,$E$2:$G$13,3,0))+INDEX(INDIRECT(CONCATENATE("'LA SIMD 10 ",$C$1,"'!$C$8:$Dr$71")),'CA SIMD dist data'!$M26+VLOOKUP("Male",$I$2:$J$3,2,0),'CA SIMD dist data'!T$15+VLOOKUP($C$3,$E$2:$G$13,3,0)),INDEX(INDIRECT(CONCATENATE("'LA SIMD 10 ",$C$1,"'!$C$8:$Dr$71")),'CA SIMD dist data'!$M26+VLOOKUP($C$2,$I$2:$J$3,2,0),'CA SIMD dist data'!T$15+VLOOKUP($C$3,$E$2:$G$13,3,0))) -> 7631 | U26: =IF($C$2="Both",INDEX(INDIRECT(CONCATENATE("'LA SIMD 10 ",$C$1,"'!$C$8:$Dr$71")),'CA SIMD dist data'!$M26+VLOOKUP("Female",$I$2:$J$3,2,0),'CA SIMD dist data'!U$15+VLOOKUP($C$3,$E$2:$G$13,3,0))+INDEX(INDIRECT(CONCATENATE("'LA SIMD 10 ",$C$1,"'!$C$8:$Dr$71")),'CA SIMD dist data'!$M26+VLOOKUP("Male",$I$2:$J$3,2,0),'CA SIMD dist data'!U$15+VLOOKUP($C$3,$E$2:$G$13,3,0)),INDEX(INDIRECT(CONCATENATE("'LA SIMD 10 ",$C$1,"'!$C$8:$Dr$71")),'CA SIMD dist data'!$M26+VLOOKUP($C$2,$I$2:$J$3,2,0),'CA SIMD dist data'!U$15+VLOOKUP($C$3,$E$2:$G$13,3,0))) -> 7649 | V26: =IF($C$2="Both",INDEX(INDIRECT(CONCATENATE("'LA SIMD 10 ",$C$1,"'!$C$8:$Dr$71")),'CA SIMD dist data'!$M26+VLOOKUP("Female",$I$2:$J$3,2,0),'CA SIMD dist data'!V$15+VLOOKUP($C$3,$E$2:$G$13,3,0))+INDEX(INDIRECT(CONCATENATE("'LA SIMD 10 ",$C$1,"'!$C$8:$Dr$71")),'CA SIMD dist data'!$M26+VLOOKUP("Male",$I$2:$J$3,2,0),'CA SIMD dist data'!V$15+VLOOKUP($C$3,$E$2:$G$13,3,0)),INDEX(INDIRECT(CONCATENATE("'LA SIMD 10 ",$C$1,"'!$C$8:$Dr$71")),'CA SIMD dist data'!$M26+VLOOKUP($C$2,$I$2:$J$3,2,0),'CA SIMD dist data'!V$15+VLOOKUP($C$3,$E$2:$G$13,3,0))) -> 7881 | W26: =IF($C$2="Both",INDEX(INDIRECT(CONCATENATE("'LA SIMD 10 ",$C$1,"'!$C$8:$Dr$71")),'CA SIMD dist data'!$M26+VLOOKUP("Female",$I$2:$J$3,2,0),'CA SIMD dist data'!W$15+VLOOKUP($C$3,$E$2:$G$13,3,0))+INDEX(INDIRECT(CONCATENATE("'LA SIMD 10 ",$C$1,"'!$C$8:$Dr$71")),'CA SIMD dist data'!$M26+VLOOKUP("Male",$I$2:$J$3,2,0),'CA SIMD dist data'!W$15+VLOOKUP($C$3,$E$2:$G$13,3,0)),INDEX(INDIRECT(CONCATENATE("'LA SIMD 10 ",$C$1,"'!$C$8:$Dr$71")),'CA SIMD dist data'!$M26+VLOOKUP($C$2,$I$2:$J$3,2,0),'CA SIMD dist data'!W$15+VLOOKUP($C$3,$E$2:$G$13,3,0))) -> 4600 | X26: =IF($C$2="Both",INDEX(INDIRECT(CONCATENATE("'LA SIMD 10 ",$C$1,"'!$C$8:$Dr$71")),'CA SIMD dist data'!$M26+VLOOKUP("Female",$I$2:$J$3,2,0),'CA SIMD dist data'!X$15+VLOOKUP($C$3,$E$2:$G$13,3,0))+INDEX(INDIRECT(CONCATENATE("'LA SIMD 10 ",$C$1,"'!$C$8:$Dr$71")),'CA SIMD dist data'!$M26+VLOOKUP("Male",$I$2:$J$3,2,0),'CA SIMD dist data'!X$15+VLOOKUP($C$3,$E$2:$G$13,3,0)),INDEX(INDIRECT(CONCATENATE("'LA SIMD 10 ",$C$1,"'!$C$8:$Dr$71")),'CA SIMD dist data'!$M26+VLOOKUP($C$2,$I$2:$J$3,2,0),'CA SIMD dist data'!X$15+VLOOKUP($C$3,$E$2:$G$13,3,0))) -> 6306 | Z26: East Lothian | AB26: 0.02361396304 | AC26: 0.02422655099 | AD26: 0.01278708876 | AE26: -0.03484549638 | AF26: 0.02333378034 | AG26: -0.03652853004 | AH26: -0.007055562555 | AI26: -0.01223963925 | AJ26: -0.01561036528
A27: East Renfrewshire | B27: 705 | C27: 2616 | D27: 1070 | E27: 3325 | F27: 2336 | G27: 2225 | H27: 3024 | I27: 4154 | J27: 11980 | K27: 18262 | M27: 12 | N27: East Renfrewshire | O27: =IF($C$2="Both",INDEX(INDIRECT(CONCATENATE("'LA SIMD 10 ",$C$1,"'!$C$8:$Dr$71")),'CA SIMD dist data'!$M27+VLOOKUP("Female",$I$2:$J$3,2,0),'CA SIMD dist data'!O$15+VLOOKUP($C$3,$E$2:$G$13,3,0))+INDEX(INDIRECT(CONCATENATE("'LA SIMD 10 ",$C$1,"'!$C$8:$Dr$71")),'CA SIMD dist data'!$M27+VLOOKUP("Male",$I$2:$J$3,2,0),'CA SIMD dist data'!O$15+VLOOKUP($C$3,$E$2:$G$13,3,0)),INDEX(INDIRECT(CONCATENATE("'LA SIMD 10 ",$C$1,"'!$C$8:$Dr$71")),'CA SIMD dist data'!$M27+VLOOKUP($C$2,$I$2:$J$3,2,0),'CA SIMD dist data'!O$15+VLOOKUP($C$3,$E$2:$G$13,3,0))) -> 699 | P27: =IF($C$2="Both",INDEX(INDIRECT(CONCATENATE("'LA SIMD 10 ",$C$1,"'!$C$8:$Dr$71")),'CA SIMD dist data'!$M27+VLOOKUP("Female",$I$2:$J$3,2,0),'CA SIMD dist data'!P$15+VLOOKUP($C$3,$E$2:$G$13,3,0))+INDEX(INDIRECT(CONCATENATE("'LA SIMD 10 ",$C$1,"'!$C$8:$Dr$71")),'CA SIMD dist data'!$M27+VLOOKUP("Male",$I$2:$J$3,2,0),'CA SIMD dist data'!P$15+VLOOKUP($C$3,$E$2:$G$13,3,0)),INDEX(INDIRECT(CONCATENATE("'LA SIMD 10 ",$C$1,"'!$C$8:$Dr$71")),'CA SIMD dist data'!$M27+VLOOKUP($C$2,$I$2:$J$3,2,0),'CA SIMD dist data'!P$15+VLOOKUP($C$3,$E$2:$G$13,3,0))) -> 2460 | Q27: =IF($C$2="Both",INDEX(INDIRECT(CONCATENATE("'LA SIMD 10 ",$C$1,"'!$C$8:$Dr$71")),'CA SIMD dist data'!$M27+VLOOKUP("Female",$I$2:$J$3,2,0),'CA SIMD dist data'!Q$15+VLOOKUP($C$3,$E$2:$G$13,3,0))+INDEX(INDIRECT(CONCATENATE("'LA SIMD 10 ",$C$1,"'!$C$8:$Dr$71")),'CA SIMD dist data'!$M27+VLOOKUP("Male",$I$2:$J$3,2,0),'CA SIMD dist data'!Q$15+VLOOKUP($C$3,$E$2:$G$13,3,0)),INDEX(INDIRECT(CONCATENATE("'LA SIMD 10 ",$C$1,"'!$C$8:$Dr$71")),'CA SIMD dist data'!$M27+VLOOKUP($C$2,$I$2:$J$3,2,0),'CA SIMD dist data'!Q$15+VLOOKUP($C$3,$E$2:$G$13,3,0))) -> 1099 | R27: =IF($C$2="Both",INDEX(INDIRECT(CONCATENATE("'LA SIMD 10 ",$C$1,"'!$C$8:$Dr$71")),'CA SIMD dist data'!$M27+VLOOKUP("Female",$I$2:$J$3,2,0),'CA SIMD dist data'!R$15+VLOOKUP($C$3,$E$2:$G$13,3,0))+INDEX(INDIRECT(CONCATENATE("'LA SIMD 10 ",$C$1,"'!$C$8:$Dr$71")),'CA SIMD dist data'!$M27+VLOOKUP("Male",$I$2:$J$3,2,0),'CA SIMD dist data'!R$15+VLOOKUP($C$3,$E$2:$G$13,3,0)),INDEX(INDIRECT(CONCATENATE("'LA SIMD 10 ",$C$1,"'!$C$8:$Dr$71")),'CA SIMD dist data'!$M27+VLOOKUP($C$2,$I$2:$J$3,2,0),'CA SIMD dist data'!R$15+VLOOKUP($C$3,$E$2:$G$13,3,0))) -> 3294 | S27: =IF($C$2="Both",INDEX(INDIRECT(CONCATENATE("'LA SIMD 10 ",$C$1,"'!$C$8:$Dr$71")),'CA SIMD dist data'!$M27+VLOOKUP("Female",$I$2:$J$3,2,0),'CA SIMD dist data'!S$15+VLOOKUP($C$3,$E$2:$G$13,3,0))+INDEX(INDIRECT(CONCATENATE("'LA SIMD 10 ",$C$1,"'!$C$8:$Dr$71")),'CA SIMD dist data'!$M27+VLOOKUP("Male",$I$2:$J$3,2,0),'CA SIMD dist data'!S$15+VLOOKUP($C$3,$E$2:$G$13,3,0)),INDEX(INDIRECT(CONCATENATE("'LA SIMD 10 ",$C$1,"'!$C$8:$Dr$71")),'CA SIMD dist data'!$M27+VLOOKUP($C$2,$I$2:$J$3,2,0),'CA SIMD dist data'!S$15+VLOOKUP($C$3,$E$2:$G$13,3,0))) -> 2409 | T27: =IF($C$2="Both",INDEX(INDIRECT(CONCATENATE("'LA SIMD 10 ",$C$1,"'!$C$8:$Dr$71")),'CA SIMD dist data'!$M27+VLOOKUP("Female",$I$2:$J$3,2,0),'CA SIMD dist data'!T$15+VLOOKUP($C$3,$E$2:$G$13,3,0))+INDEX(INDIRECT(CONCATENATE("'LA SIMD 10 ",$C$1,"'!$C$8:$Dr$71")),'CA SIMD dist data'!$M27+VLOOKUP("Male",$I$2:$J$3,2,0),'CA SIMD dist data'!T$15+VLOOKUP($C$3,$E$2:$G$13,3,0)),INDEX(INDIRECT(CONCATENATE("'LA SIMD 10 ",$C$1,"'!$C$8:$Dr$71")),'CA SIMD dist data'!$M27+VLOOKUP($C$2,$I$2:$J$3,2,0),'CA SIMD dist data'!T$15+VLOOKUP($C$3,$E$2:$G$13,3,0))) -> 2236 | U27: =IF($C$2="Both",INDEX(INDIRECT(CONCATENATE("'LA SIMD 10 ",$C$1,"'!$C$8:$Dr$71")),'CA SIMD dist data'!$M27+VLOOKUP("Female",$I$2:$J$3,2,0),'CA SIMD dist data'!U$15+VLOOKUP($C$3,$E$2:$G$13,3,0))+INDEX(INDIRECT(CONCATENATE("'LA SIMD 10 ",$C$1,"'!$C$8:$Dr$71")),'CA SIMD dist data'!$M27+VLOOKUP("Male",$I$2:$J$3,2,0),'CA SIMD dist data'!U$15+VLOOKUP($C$3,$E$2:$G$13,3,0)),INDEX(INDIRECT(CONCATENATE("'LA SIMD 10 ",$C$1,"'!$C$8:$Dr$71")),'CA SIMD dist data'!$M27+VLOOKUP($C$2,$I$2:$J$3,2,0),'CA SIMD dist data'!U$15+VLOOKUP($C$3,$E$2:$G$13,3,0))) -> 3067 | V27: =IF($C$2="Both",INDEX(INDIRECT(CONCATENATE("'LA SIMD 10 ",$C$1,"'!$C$8:$Dr$71")),'CA SIMD dist data'!$M27+VLOOKUP("Female",$I$2:$J$3,2,0),'CA SIMD dist data'!V$15+VLOOKUP($C$3,$E$2:$G$13,3,0))+INDEX(INDIRECT(CONCATENATE("'LA SIMD 10 ",$C$1,"'!$C$8:$Dr$71")),'CA SIMD dist data'!$M27+VLOOKUP("Male",$I$2:$J$3,2,0),'CA SIMD dist data'!V$15+VLOOKUP($C$3,$E$2:$G$13,3,0)),INDEX(INDIRECT(CONCATENATE("'LA SIMD 10 ",$C$1,"'!$C$8:$Dr$71")),'CA SIMD dist data'!$M27+VLOOKUP($C$2,$I$2:$J$3,2,0),'CA SIMD dist data'!V$15+VLOOKUP($C$3,$E$2:$G$13,3,0))) -> 4111 | W27: =IF($C$2="Both",INDEX(INDIRECT(CONCATENATE("'LA SIMD 10 ",$C$1,"'!$C$8:$Dr$71")),'CA SIMD dist data'!$M27+VLOOKUP("Female",$I$2:$J$3,2,0),'CA SIMD dist data'!W$15+VLOOKUP($C$3,$E$2:$G$13,3,0))+INDEX(INDIRECT(CONCATENATE("'LA SIMD 10 ",$C$1,"'!$C$8:$Dr$71")),'CA SIMD dist data'!$M27+VLOOKUP("Male",$I$2:$J$3,2,0),'CA SIMD dist data'!W$15+VLOOKUP($C$3,$E$2:$G$13,3,0)),INDEX(INDIRECT(CONCATENATE("'LA SIMD 10 ",$C$1,"'!$C$8:$Dr$71")),'CA SIMD dist data'!$M27+VLOOKUP($C$2,$I$2:$J$3,2,0),'CA SIMD dist data'!W$15+VLOOKUP($C$3,$E$2:$G$13,3,0))) -> 12023 | X27: =IF($C$2="Both",INDEX(INDIRECT(CONCATENATE("'LA SIMD 10 ",$C$1,"'!$C$8:$Dr$71")),'CA SIMD dist data'!$M27+VLOOKUP("Female",$I$2:$J$3,2,0),'CA SIMD dist data'!X$15+VLOOKUP($C$3,$E$2:$G$13,3,0))+INDEX(INDIRECT(CONCATENATE("'LA SIMD 10 ",$C$1,"'!$C$8:$Dr$71")),'CA SIMD dist data'!$M27+VLOOKUP("Male",$I$2:$J$3,2,0),'CA SIMD dist data'!X$15+VLOOKUP($C$3,$E$2:$G$13,3,0)),INDEX(INDIRECT(CONCATENATE("'LA SIMD 10 ",$C$1,"'!$C$8:$Dr$71")),'CA SIMD dist data'!$M27+VLOOKUP($C$2,$I$2:$J$3,2,0),'CA SIMD dist data'!X$15+VLOOKUP($C$3,$E$2:$G$13,3,0))) -> 18332 | Z27: East Renfrewshire | AA27: -0.008510638298 | AB27: -0.05963302752 | AC27: 0.02710280374 | AD27: -0.009323308271 | AE27: 0.03125 | AF27: 0.004943820225 | AG27: 0.01421957672 | AH27: -0.01035146846 | AI27: 0.003589315526 | AJ27: 0.003833096046
A28: Falkirk | B28: 4564 | C28: 6957 | D28: 14019 | E28: 7936 | F28: 11048 | G28: 5496 | H28: 7312 | I28: 8596 | J28: 9819 | K28: 6096 | M28: 13 | N28: Falkirk | O28: =IF($C$2="Both",INDEX(INDIRECT(CONCATENATE("'LA SIMD 10 ",$C$1,"'!$C$8:$Dr$71")),'CA SIMD dist data'!$M28+VLOOKUP("Female",$I$2:$J$3,2,0),'CA SIMD dist data'!O$15+VLOOKUP($C$3,$E$2:$G$13,3,0))+INDEX(INDIRECT(CONCATENATE("'LA SIMD 10 ",$C$1,"'!$C$8:$Dr$71")),'CA SIMD dist data'!$M28+VLOOKUP("Male",$I$2:$J$3,2,0),'CA SIMD dist data'!O$15+VLOOKUP($C$3,$E$2:$G$13,3,0)),INDEX(INDIRECT(CONCATENATE("'LA SIMD 10 ",$C$1,"'!$C$8:$Dr$71")),'CA SIMD dist data'!$M28+VLOOKUP($C$2,$I$2:$J$3,2,0),'CA SIMD dist data'!O$15+VLOOKUP($C$3,$E$2:$G$13,3,0))) -> 4568 | P28: =IF($C$2="Both",INDEX(INDIRECT(CONCATENATE("'LA SIMD 10 ",$C$1,"'!$C$8:$Dr$71")),'CA SIMD dist data'!$M28+VLOOKUP("Female",$I$2:$J$3,2,0),'CA SIMD dist data'!P$15+VLOOKUP($C$3,$E$2:$G$13,3,0))+INDEX(INDIRECT(CONCATENATE("'LA SIMD 10 ",$C$1,"'!$C$8:$Dr$71")),'CA SIMD dist data'!$M28+VLOOKUP("Male",$I$2:$J$3,2,0),'CA SIMD dist data'!P$15+VLOOKUP($C$3,$E$2:$G$13,3,0)),INDEX(INDIRECT(CONCATENATE("'LA SIMD 10 ",$C$1,"'!$C$8:$Dr$71")),'CA SIMD dist data'!$M28+VLOOKUP($C$2,$I$2:$J$3,2,0),'CA SIMD dist data'!P$15+VLOOKUP($C$3,$E$2:$G$13,3,0))) -> 7095 | Q28: =IF($C$2="Both",INDEX(INDIRECT(CONCATENATE("'LA SIMD 10 ",$C$1,"'!$C$8:$Dr$71")),'CA SIMD dist data'!$M28+VLOOKUP("Female",$I$2:$J$3,2,0),'CA SIMD dist data'!Q$15+VLOOKUP($C$3,$E$2:$G$13,3,0))+INDEX(INDIRECT(CONCATENATE("'LA SIMD 10 ",$C$1,"'!$C$8:$Dr$71")),'CA SIMD dist data'!$M28+VLOOKUP("Male",$I$2:$J$3,2,0),'CA SIMD dist data'!Q$15+VLOOKUP($C$3,$E$2:$G$13,3,0)),INDEX(INDIRECT(CONCATENATE("'LA SIMD 10 ",$C$1,"'!$C$8:$Dr$71")),'CA SIMD dist data'!$M28+VLOOKUP($C$2,$I$2:$J$3,2,0),'CA SIMD dist data'!Q$15+VLOOKUP($C$3,$E$2:$G$13,3,0))) -> 14148 | R28: =IF($C$2="Both",INDEX(INDIRECT(CONCATENATE("'LA SIMD 10 ",$C$1,"'!$C$8:$Dr$71")),'CA SIMD dist data'!$M28+VLOOKUP("Female",$I$2:$J$3,2,0),'CA SIMD dist data'!R$15+VLOOKUP($C$3,$E$2:$G$13,3,0))+INDEX(INDIRECT(CONCATENATE("'LA SIMD 10 ",$C$1,"'!$C$8:$Dr$71")),'CA SIMD dist data'!$M28+VLOOKUP("Male",$I$2:$J$3,2,0),'CA SIMD dist data'!R$15+VLOOKUP($C$3,$E$2:$G$13,3,0)),INDEX(INDIRECT(CONCATENATE("'LA SIMD 10 ",$C$1,"'!$C$8:$Dr$71")),'CA SIMD dist data'!$M28+VLOOKUP($C$2,$I$2:$J$3,2,0),'CA SIMD dist data'!R$15+VLOOKUP($C$3,$E$2:$G$13,3,0))) -> 8011 | S28: =IF($C$2="Both",INDEX(INDIRECT(CONCATENATE("'LA SIMD 10 ",$C$1,"'!$C$8:$Dr$71")),'CA SIMD dist data'!$M28+VLOOKUP("Female",$I$2:$J$3,2,0),'CA SIMD dist data'!S$15+VLOOKUP($C$3,$E$2:$G$13,3,0))+INDEX(INDIRECT(CONCATENATE("'LA SIMD 10 ",$C$1,"'!$C$8:$Dr$71")),'CA SIMD dist data'!$M28+VLOOKUP("Male",$I$2:$J$3,2,0),'CA SIMD dist data'!S$15+VLOOKUP($C$3,$E$2:$G$13,3,0)),INDEX(INDIRECT(CONCATENATE("'LA SIMD 10 ",$C$1,"'!$C$8:$Dr$71")),'CA SIMD dist data'!$M28+VLOOKUP($C$2,$I$2:$J$3,2,0),'CA SIMD dist data'!S$15+VLOOKUP($C$3,$E$2:$G$13,3,0))) -> 11185 | T28: =IF($C$2="Both",INDEX(INDIRECT(CONCATENATE("'LA SIMD 10 ",$C$1,"'!$C$8:$Dr$71")),'CA SIMD dist data'!$M28+VLOOKUP("Female",$I$2:$J$3,2,0),'CA SIMD dist data'!T$15+VLOOKUP($C$3,$E$2:$G$13,3,0))+INDEX(INDIRECT(CONCATENATE("'LA SIMD 10 ",$C$1,"'!$C$8:$Dr$71")),'CA SIMD dist data'!$M28+VLOOKUP("Male",$I$2:$J$3,2,0),'CA SIMD dist data'!T$15+VLOOKUP($C$3,$E$2:$G$13,3,0)),INDEX(INDIRECT(CONCATENATE("'LA SIMD 10 ",$C$1,"'!$C$8:$Dr$71")),'CA SIMD dist data'!$M28+VLOOKUP($C$2,$I$2:$J$3,2,0),'CA SIMD dist data'!T$15+VLOOKUP($C$3,$E$2:$G$13,3,0))) -> 5578 | U28: =IF($C$2="Both",INDEX(INDIRECT(CONCATENATE("'LA SIMD 10 ",$C$1,"'!$C$8:$Dr$71")),'CA SIMD dist data'!$M28+VLOOKUP("Female",$I$2:$J$3,2,0),'CA SIMD dist data'!U$15+VLOOKUP($C$3,$E$2:$G$13,3,0))+INDEX(INDIRECT(CONCATENATE("'LA SIMD 10 ",$C$1,"'!$C$8:$Dr$71")),'CA SIMD dist data'!$M28+VLOOKUP("Male",$I$2:$J$3,2,0),'CA SIMD dist data'!U$15+VLOOKUP($C$3,$E$2:$G$13,3,0)),INDEX(INDIRECT(CONCATENATE("'LA SIMD 10 ",$C$1,"'!$C$8:$Dr$71")),'CA SIMD dist data'!$M28+VLOOKUP($C$2,$I$2:$J$3,2,0),'CA SIMD dist data'!U$15+VLOOKUP($C$3,$E$2:$G$13,3,0))) -> 7268 | V28: =IF($C$2="Both",INDEX(INDIRECT(CONCATENATE("'LA SIMD 10 ",$C$1,"'!$C$8:$Dr$71")),'CA SIMD dist data'!$M28+VLOOKUP("Female",$I$2:$J$3,2,0),'CA SIMD dist data'!V$15+VLOOKUP($C$3,$E$2:$G$13,3,0))+INDEX(INDIRECT(CONCATENATE("'LA SIMD 10 ",$C$1,"'!$C$8:$Dr$71")),'CA SIMD dist data'!$M28+VLOOKUP("Male",$I$2:$J$3,2,0),'CA SIMD dist data'!V$15+VLOOKUP($C$3,$E$2:$G$13,3,0)),INDEX(INDIRECT(CONCATENATE("'LA SIMD 10 ",$C$1,"'!$C$8:$Dr$71")),'CA SIMD dist data'!$M28+VLOOKUP($C$2,$I$2:$J$3,2,0),'CA SIMD dist data'!V$15+VLOOKUP($C$3,$E$2:$G$13,3,0))) -> 8397 | W28: =IF($C$2="Both",INDEX(INDIRECT(CONCATENATE("'LA SIMD 10 ",$C$1,"'!$C$8:$Dr$71")),'CA SIMD dist data'!$M28+VLOOKUP("Female",$I$2:$J$3,2,0),'CA SIMD dist data'!W$15+VLOOKUP($C$3,$E$2:$G$13,3,0))+INDEX(INDIRECT(CONCATENATE("'LA SIMD 10 ",$C$1,"'!$C$8:$Dr$71")),'CA SIMD dist data'!$M28+VLOOKUP("Male",$I$2:$J$3,2,0),'CA SIMD dist data'!W$15+VLOOKUP($C$3,$E$2:$G$13,3,0)),INDEX(INDIRECT(CONCATENATE("'LA SIMD 10 ",$C$1,"'!$C$8:$Dr$71")),'CA SIMD dist data'!$M28+VLOOKUP($C$2,$I$2:$J$3,2,0),'CA SIMD dist data'!W$15+VLOOKUP($C$3,$E$2:$G$13,3,0))) -> 9726 | X28: =IF($C$2="Both",INDEX(INDIRECT(CONCATENATE("'LA SIMD 10 ",$C$1,"'!$C$8:$Dr$71")),'CA SIMD dist data'!$M28+VLOOKUP("Female",$I$2:$J$3,2,0),'CA SIMD dist data'!X$15+VLOOKUP($C$3,$E$2:$G$13,3,0))+INDEX(INDIRECT(CONCATENATE("'LA SIMD 10 ",$C$1,"'!$C$8:$Dr$71")),'CA SIMD dist data'!$M28+VLOOKUP("Male",$I$2:$J$3,2,0),'CA SIMD dist data'!X$15+VLOOKUP($C$3,$E$2:$G$13,3,0)),INDEX(INDIRECT(CONCATENATE("'LA SIMD 10 ",$C$1,"'!$C$8:$Dr$71")),'CA SIMD dist data'!$M28+VLOOKUP($C$2,$I$2:$J$3,2,0),'CA SIMD dist data'!X$15+VLOOKUP($C$3,$E$2:$G$13,3,0))) -> 5965 | Z28: Falkirk | AA28: 0.0008764241893 | AB28: 0.01983613627 | AC28: 0.00920179756 | AD28: 0.009450604839 | AE28: 0.01240043447 | AF28: 0.01491994178 | AG28: -0.00601750547 | AH28: -0.02315030247 | AI28: -0.009471432936 | AJ28: -0.02148950131
A29: Fife | B29: 12941 | C29: 23823 | D29: 20764 | E29: 18269 | F29: 20689 | G29: 19448 | H29: 16184 | I29: 17204 | J29: 21985 | K29: 19983 | M29: 14 | N29: Fife | O29: =IF($C$2="Both",INDEX(INDIRECT(CONCATENATE("'LA SIMD 10 ",$C$1,"'!$C$8:$Dr$71")),'CA SIMD dist data'!$M29+VLOOKUP("Female",$I$2:$J$3,2,0),'CA SIMD dist data'!O$15+VLOOKUP($C$3,$E$2:$G$13,3,0))+INDEX(INDIRECT(CONCATENATE("'LA SIMD 10 ",$C$1,"'!$C$8:$Dr$71")),'CA SIMD dist data'!$M29+VLOOKUP("Male",$I$2:$J$3,2,0),'CA SIMD dist data'!O$15+VLOOKUP($C$3,$E$2:$G$13,3,0)),INDEX(INDIRECT(CONCATENATE("'LA SIMD 10 ",$C$1,"'!$C$8:$Dr$71")),'CA SIMD dist data'!$M29+VLOOKUP($C$2,$I$2:$J$3,2,0),'CA SIMD dist data'!O$15+VLOOKUP($C$3,$E$2:$G$13,3,0))) -> 13669 | P29: =IF($C$2="Both",INDEX(INDIRECT(CONCATENATE("'LA SIMD 10 ",$C$1,"'!$C$8:$Dr$71")),'CA SIMD dist data'!$M29+VLOOKUP("Female",$I$2:$J$3,2,0),'CA SIMD dist data'!P$15+VLOOKUP($C$3,$E$2:$G$13,3,0))+INDEX(INDIRECT(CONCATENATE("'LA SIMD 10 ",$C$1,"'!$C$8:$Dr$71")),'CA SIMD dist data'!$M29+VLOOKUP("Male",$I$2:$J$3,2,0),'CA SIMD dist data'!P$15+VLOOKUP($C$3,$E$2:$G$13,3,0)),INDEX(INDIRECT(CONCATENATE("'LA SIMD 10 ",$C$1,"'!$C$8:$Dr$71")),'CA SIMD dist data'!$M29+VLOOKUP($C$2,$I$2:$J$3,2,0),'CA SIMD dist data'!P$15+VLOOKUP($C$3,$E$2:$G$13,3,0))) -> 24605 | Q29: =IF($C$2="Both",INDEX(INDIRECT(CONCATENATE("'LA SIMD 10 ",$C$1,"'!$C$8:$Dr$71")),'CA SIMD dist data'!$M29+VLOOKUP("Female",$I$2:$J$3,2,0),'CA SIMD dist data'!Q$15+VLOOKUP($C$3,$E$2:$G$13,3,0))+INDEX(INDIRECT(CONCATENATE("'LA SIMD 10 ",$C$1,"'!$C$8:$Dr$71")),'CA SIMD dist data'!$M29+VLOOKUP("Male",$I$2:$J$3,2,0),'CA SIMD dist data'!Q$15+VLOOKUP($C$3,$E$2:$G$13,3,0)),INDEX(INDIRECT(CONCATENATE("'LA SIMD 10 ",$C$1,"'!$C$8:$Dr$71")),'CA SIMD dist data'!$M29+VLOOKUP($C$2,$I$2:$J$3,2,0),'CA SIMD dist data'!Q$15+VLOOKUP($C$3,$E$2:$G$13,3,0))) -> 21168 | R29: =IF($C$2="Both",INDEX(INDIRECT(CONCATENATE("'LA SIMD 10 ",$C$1,"'!$C$8:$Dr$71")),'CA SIMD dist data'!$M29+VLOOKUP("Female",$I$2:$J$3,2,0),'CA SIMD dist data'!R$15+VLOOKUP($C$3,$E$2:$G$13,3,0))+INDEX(INDIRECT(CONCATENATE("'LA SIMD 10 ",$C$1,"'!$C$8:$Dr$71")),'CA SIMD dist data'!$M29+VLOOKUP("Male",$I$2:$J$3,2,0),'CA SIMD dist data'!R$15+VLOOKUP($C$3,$E$2:$G$13,3,0)),INDEX(INDIRECT(CONCATENATE("'LA SIMD 10 ",$C$1,"'!$C$8:$Dr$71")),'CA SIMD dist data'!$M29+VLOOKUP($C$2,$I$2:$J$3,2,0),'CA SIMD dist data'!R$15+VLOOKUP($C$3,$E$2:$G$13,3,0))) -> 18267 | S29: =IF($C$2="Both",INDEX(INDIRECT(CONCATENATE("'LA SIMD 10 ",$C$1,"'!$C$8:$Dr$71")),'CA SIMD dist data'!$M29+VLOOKUP("Female",$I$2:$J$3,2,0),'CA SIMD dist data'!S$15+VLOOKUP($C$3,$E$2:$G$13,3,0))+INDEX(INDIRECT(CONCATENATE("'LA SIMD 10 ",$C$1,"'!$C$8:$Dr$71")),'CA SIMD dist data'!$M29+VLOOKUP("Male",$I$2:$J$3,2,0),'CA SIMD dist data'!S$15+VLOOKUP($C$3,$E$2:$G$13,3,0)),INDEX(INDIRECT(CONCATENATE("'LA SIMD 10 ",$C$1,"'!$C$8:$Dr$71")),'CA SIMD dist data'!$M29+VLOOKUP($C$2,$I$2:$J$3,2,0),'CA SIMD dist data'!S$15+VLOOKUP($C$3,$E$2:$G$13,3,0))) -> 21055 | T29: =IF($C$2="Both",INDEX(INDIRECT(CONCATENATE("'LA SIMD 10 ",$C$1,"'!$C$8:$Dr$71")),'CA SIMD dist data'!$M29+VLOOKUP("Female",$I$2:$J$3,2,0),'CA SIMD dist data'!T$15+VLOOKUP($C$3,$E$2:$G$13,3,0))+INDEX(INDIRECT(CONCATENATE("'LA SIMD 10 ",$C$1,"'!$C$8:$Dr$71")),'CA SIMD dist data'!$M29+VLOOKUP("Male",$I$2:$J$3,2,0),'CA SIMD dist data'!T$15+VLOOKUP($C$3,$E$2:$G$13,3,0)),INDEX(INDIRECT(CONCATENATE("'LA SIMD 10 ",$C$1,"'!$C$8:$Dr$71")),'CA SIMD dist data'!$M29+VLOOKUP($C$2,$I$2:$J$3,2,0),'CA SIMD dist data'!T$15+VLOOKUP($C$3,$E$2:$G$13,3,0))) -> 19241 | U29: =IF($C$2="Both",INDEX(INDIRECT(CONCATENATE("'LA SIMD 10 ",$C$1,"'!$C$8:$Dr$71")),'CA SIMD dist data'!$M29+VLOOKUP("Female",$I$2:$J$3,2,0),'CA SIMD dist data'!U$15+VLOOKUP($C$3,$E$2:$G$13,3,0))+INDEX(INDIRECT(CONCATENATE("'LA SIMD 10 ",$C$1,"'!$C$8:$Dr$71")),'CA SIMD dist data'!$M29+VLOOKUP("Male",$I$2:$J$3,2,0),'CA SIMD dist data'!U$15+VLOOKUP($C$3,$E$2:$G$13,3,0)),INDEX(INDIRECT(CONCATENATE("'LA SIMD 10 ",$C$1,"'!$C$8:$Dr$71")),'CA SIMD dist data'!$M29+VLOOKUP($C$2,$I$2:$J$3,2,0),'CA SIMD dist data'!U$15+VLOOKUP($C$3,$E$2:$G$13,3,0))) -> 15973 | V29: =IF($C$2="Both",INDEX(INDIRECT(CONCATENATE("'LA SIMD 10 ",$C$1,"'!$C$8:$Dr$71")),'CA SIMD dist data'!$M29+VLOOKUP("Female",$I$2:$J$3,2,0),'CA SIMD dist data'!V$15+VLOOKUP($C$3,$E$2:$G$13,3,0))+INDEX(INDIRECT(CONCATENATE("'LA SIMD 10 ",$C$1,"'!$C$8:$Dr$71")),'CA SIMD dist data'!$M29+VLOOKUP("Male",$I$2:$J$3,2,0),'CA SIMD dist data'!V$15+VLOOKUP($C$3,$E$2:$G$13,3,0)),INDEX(INDIRECT(CONCATENATE("'LA SIMD 10 ",$C$1,"'!$C$8:$Dr$71")),'CA SIMD dist data'!$M29+VLOOKUP($C$2,$I$2:$J$3,2,0),'CA SIMD dist data'!V$15+VLOOKUP($C$3,$E$2:$G$13,3,0))) -> 16878 | W29: =IF($C$2="Both",INDEX(INDIRECT(CONCATENATE("'LA SIMD 10 ",$C$1,"'!$C$8:$Dr$71")),'CA SIMD dist data'!$M29+VLOOKUP("Female",$I$2:$J$3,2,0),'CA SIMD dist data'!W$15+VLOOKUP($C$3,$E$2:$G$13,3,0))+INDEX(INDIRECT(CONCATENATE("'LA SIMD 10 ",$C$1,"'!$C$8:$Dr$71")),'CA SIMD dist data'!$M29+VLOOKUP("Male",$I$2:$J$3,2,0),'CA SIMD dist data'!W$15+VLOOKUP($C$3,$E$2:$G$13,3,0)),INDEX(INDIRECT(CONCATENATE("'LA SIMD 10 ",$C$1,"'!$C$8:$Dr$71")),'CA SIMD dist data'!$M29+VLOOKUP($C$2,$I$2:$J$3,2,0),'CA SIMD dist data'!W$15+VLOOKUP($C$3,$E$2:$G$13,3,0))) -> 21489 | X29: =IF($C$2="Both",INDEX(INDIRECT(CONCATENATE("'LA SIMD 10 ",$C$1,"'!$C$8:$Dr$71")),'CA SIMD dist data'!$M29+VLOOKUP("Female",$I$2:$J$3,2,0),'CA SIMD dist data'!X$15+VLOOKUP($C$3,$E$2:$G$13,3,0))+INDEX(INDIRECT(CONCATENATE("'LA SIMD 10 ",$C$1,"'!$C$8:$Dr$71")),'CA SIMD dist data'!$M29+VLOOKUP("Male",$I$2:$J$3,2,0),'CA SIMD dist data'!X$15+VLOOKUP($C$3,$E$2:$G$13,3,0)),INDEX(INDIRECT(CONCATENATE("'LA SIMD 10 ",$C$1,"'!$C$8:$Dr$71")),'CA SIMD dist data'!$M29+VLOOKUP($C$2,$I$2:$J$3,2,0),'CA SIMD dist data'!X$15+VLOOKUP($C$3,$E$2:$G$13,3,0))) -> 19816 | Z29: Fife | AA29: 0.05625531257 | AB29: 0.03282542081 | AC29: 0.01945675207 | AD29: -0.0001094750671 | AE29: 0.0176905602 | AF29: -0.010643768 | AG29: -0.01303756797 | AH29: -0.01894908161 | AI29: -0.02256083693 | AJ29: -0.008357103538
A30: Glasgow City | B30: 102031 | C30: 49251 | D30: 26480 | E30: 24150 | F30: 26297 | G30: 21066 | H30: 15052 | I30: 23136 | J30: 19094 | K30: 13803 | M30: 15 | N30: Glasgow City | O30: =IF($C$2="Both",INDEX(INDIRECT(CONCATENATE("'LA SIMD 10 ",$C$1,"'!$C$8:$Dr$71")),'CA SIMD dist data'!$M30+VLOOKUP("Female",$I$2:$J$3,2,0),'CA SIMD dist data'!O$15+VLOOKUP($C$3,$E$2:$G$13,3,0))+INDEX(INDIRECT(CONCATENATE("'LA SIMD 10 ",$C$1,"'!$C$8:$Dr$71")),'CA SIMD dist data'!$M30+VLOOKUP("Male",$I$2:$J$3,2,0),'CA SIMD dist data'!O$15+VLOOKUP($C$3,$E$2:$G$13,3,0)),INDEX(INDIRECT(CONCATENATE("'LA SIMD 10 ",$C$1,"'!$C$8:$Dr$71")),'CA SIMD dist data'!$M30+VLOOKUP($C$2,$I$2:$J$3,2,0),'CA SIMD dist data'!O$15+VLOOKUP($C$3,$E$2:$G$13,3,0))) -> 105897 | P30: =IF($C$2="Both",INDEX(INDIRECT(CONCATENATE("'LA SIMD 10 ",$C$1,"'!$C$8:$Dr$71")),'CA SIMD dist data'!$M30+VLOOKUP("Female",$I$2:$J$3,2,0),'CA SIMD dist data'!P$15+VLOOKUP($C$3,$E$2:$G$13,3,0))+INDEX(INDIRECT(CONCATENATE("'LA SIMD 10 ",$C$1,"'!$C$8:$Dr$71")),'CA SIMD dist data'!$M30+VLOOKUP("Male",$I$2:$J$3,2,0),'CA SIMD dist data'!P$15+VLOOKUP($C$3,$E$2:$G$13,3,0)),INDEX(INDIRECT(CONCATENATE("'LA SIMD 10 ",$C$1,"'!$C$8:$Dr$71")),'CA SIMD dist data'!$M30+VLOOKUP($C$2,$I$2:$J$3,2,0),'CA SIMD dist data'!P$15+VLOOKUP($C$3,$E$2:$G$13,3,0))) -> 50578 | Q30: =IF($C$2="Both",INDEX(INDIRECT(CONCATENATE("'LA SIMD 10 ",$C$1,"'!$C$8:$Dr$71")),'CA SIMD dist data'!$M30+VLOOKUP("Female",$I$2:$J$3,2,0),'CA SIMD dist data'!Q$15+VLOOKUP($C$3,$E$2:$G$13,3,0))+INDEX(INDIRECT(CONCATENATE("'LA SIMD 10 ",$C$1,"'!$C$8:$Dr$71")),'CA SIMD dist data'!$M30+VLOOKUP("Male",$I$2:$J$3,2,0),'CA SIMD dist data'!Q$15+VLOOKUP($C$3,$E$2:$G$13,3,0)),INDEX(INDIRECT(CONCATENATE("'LA SIMD 10 ",$C$1,"'!$C$8:$Dr$71")),'CA SIMD dist data'!$M30+VLOOKUP($C$2,$I$2:$J$3,2,0),'CA SIMD dist data'!Q$15+VLOOKUP($C$3,$E$2:$G$13,3,0))) -> 26604 | R30: =IF($C$2="Both",INDEX(INDIRECT(CONCATENATE("'LA SIMD 10 ",$C$1,"'!$C$8:$Dr$71")),'CA SIMD dist data'!$M30+VLOOKUP("Female",$I$2:$J$3,2,0),'CA SIMD dist data'!R$15+VLOOKUP($C$3,$E$2:$G$13,3,0))+INDEX(INDIRECT(CONCATENATE("'LA SIMD 10 ",$C$1,"'!$C$8:$Dr$71")),'CA SIMD dist data'!$M30+VLOOKUP("Male",$I$2:$J$3,2,0),'CA SIMD dist data'!R$15+VLOOKUP($C$3,$E$2:$G$13,3,0)),INDEX(INDIRECT(CONCATENATE("'LA SIMD 10 ",$C$1,"'!$C$8:$Dr$71")),'CA SIMD dist data'!$M30+VLOOKUP($C$2,$I$2:$J$3,2,0),'CA SIMD dist data'!R$15+VLOOKUP($C$3,$E$2:$G$13,3,0))) -> 24520 | S30: =IF($C$2="Both",INDEX(INDIRECT(CONCATENATE("'LA SIMD 10 ",$C$1,"'!$C$8:$Dr$71")),'CA SIMD dist data'!$M30+VLOOKUP("Female",$I$2:$J$3,2,0),'CA SIMD dist data'!S$15+VLOOKUP($C$3,$E$2:$G$13,3,0))+INDEX(INDIRECT(CONCATENATE("'LA SIMD 10 ",$C$1,"'!$C$8:$Dr$71")),'CA SIMD dist data'!$M30+VLOOKUP("Male",$I$2:$J$3,2,0),'CA SIMD dist data'!S$15+VLOOKUP($C$3,$E$2:$G$13,3,0)),INDEX(INDIRECT(CONCATENATE("'LA SIMD 10 ",$C$1,"'!$C$8:$Dr$71")),'CA SIMD dist data'!$M30+VLOOKUP($C$2,$I$2:$J$3,2,0),'CA SIMD dist data'!S$15+VLOOKUP($C$3,$E$2:$G$13,3,0))) -> 26432 | T30: =IF($C$2="Both",INDEX(INDIRECT(CONCATENATE("'LA SIMD 10 ",$C$1,"'!$C$8:$Dr$71")),'CA SIMD dist data'!$M30+VLOOKUP("Female",$I$2:$J$3,2,0),'CA SIMD dist data'!T$15+VLOOKUP($C$3,$E$2:$G$13,3,0))+INDEX(INDIRECT(CONCATENATE("'LA SIMD 10 ",$C$1,"'!$C$8:$Dr$71")),'CA SIMD dist data'!$M30+VLOOKUP("Male",$I$2:$J$3,2,0),'CA SIMD dist data'!T$15+VLOOKUP($C$3,$E$2:$G$13,3,0)),INDEX(INDIRECT(CONCATENATE("'LA SIMD 10 ",$C$1,"'!$C$8:$Dr$71")),'CA SIMD dist data'!$M30+VLOOKUP($C$2,$I$2:$J$3,2,0),'CA SIMD dist data'!T$15+VLOOKUP($C$3,$E$2:$G$13,3,0))) -> 21099 | U30: =IF($C$2="Both",INDEX(INDIRECT(CONCATENATE("'LA SIMD 10 ",$C$1,"'!$C$8:$Dr$71")),'CA SIMD dist data'!$M30+VLOOKUP("Female",$I$2:$J$3,2,0),'CA SIMD dist data'!U$15+VLOOKUP($C$3,$E$2:$G$13,3,0))+INDEX(INDIRECT(CONCATENATE("'LA SIMD 10 ",$C$1,"'!$C$8:$Dr$71")),'CA SIMD dist data'!$M30+VLOOKUP("Male",$I$2:$J$3,2,0),'CA SIMD dist data'!U$15+VLOOKUP($C$3,$E$2:$G$13,3,0)),INDEX(INDIRECT(CONCATENATE("'LA SIMD 10 ",$C$1,"'!$C$8:$Dr$71")),'CA SIMD dist data'!$M30+VLOOKUP($C$2,$I$2:$J$3,2,0),'CA SIMD dist data'!U$15+VLOOKUP($C$3,$E$2:$G$13,3,0))) -> 14594 | V30: =IF($C$2="Both",INDEX(INDIRECT(CONCATENATE("'LA SIMD 10 ",$C$1,"'!$C$8:$Dr$71")),'CA SIMD dist data'!$M30+VLOOKUP("Female",$I$2:$J$3,2,0),'CA SIMD dist data'!V$15+VLOOKUP($C$3,$E$2:$G$13,3,0))+INDEX(INDIRECT(CONCATENATE("'LA SIMD 10 ",$C$1,"'!$C$8:$Dr$71")),'CA SIMD dist data'!$M30+VLOOKUP("Male",$I$2:$J$3,2,0),'CA SIMD dist data'!V$15+VLOOKUP($C$3,$E$2:$G$13,3,0)),INDEX(INDIRECT(CONCATENATE("'LA SIMD 10 ",$C$1,"'!$C$8:$Dr$71")),'CA SIMD dist data'!$M30+VLOOKUP($C$2,$I$2:$J$3,2,0),'CA SIMD dist data'!V$15+VLOOKUP($C$3,$E$2:$G$13,3,0))) -> 23276 | W30: =IF($C$2="Both",INDEX(INDIRECT(CONCATENATE("'LA SIMD 10 ",$C$1,"'!$C$8:$Dr$71")),'CA SIMD dist data'!$M30+VLOOKUP("Female",$I$2:$J$3,2,0),'CA SIMD dist data'!W$15+VLOOKUP($C$3,$E$2:$G$13,3,0))+INDEX(INDIRECT(CONCATENATE("'LA SIMD 10 ",$C$1,"'!$C$8:$Dr$71")),'CA SIMD dist data'!$M30+VLOOKUP("Male",$I$2:$J$3,2,0),'CA SIMD dist data'!W$15+VLOOKUP($C$3,$E$2:$G$13,3,0)),INDEX(INDIRECT(CONCATENATE("'LA SIMD 10 ",$C$1,"'!$C$8:$Dr$71")),'CA SIMD dist data'!$M30+VLOOKUP($C$2,$I$2:$J$3,2,0),'CA SIMD dist data'!W$15+VLOOKUP($C$3,$E$2:$G$13,3,0))) -> 18589 | X30: =IF($C$2="Both",INDEX(INDIRECT(CONCATENATE("'LA SIMD 10 ",$C$1,"'!$C$8:$Dr$71")),'CA SIMD dist data'!$M30+VLOOKUP("Female",$I$2:$J$3,2,0),'CA SIMD dist data'!X$15+VLOOKUP($C$3,$E$2:$G$13,3,0))+INDEX(INDIRECT(CONCATENATE("'LA SIMD 10 ",$C$1,"'!$C$8:$Dr$71")),'CA SIMD dist data'!$M30+VLOOKUP("Male",$I$2:$J$3,2,0),'CA SIMD dist data'!X$15+VLOOKUP($C$3,$E$2:$G$13,3,0)),INDEX(INDIRECT(CONCATENATE("'LA SIMD 10 ",$C$1,"'!$C$8:$Dr$71")),'CA SIMD dist data'!$M30+VLOOKUP($C$2,$I$2:$J$3,2,0),'CA SIMD dist data'!X$15+VLOOKUP($C$3,$E$2:$G$13,3,0))) -> 13329 | Z30: Glasgow City | AA30: 0.03789044506 | AB30: 0.02694361536 | AC30: 0.004682779456 | AD30: 0.01532091097 | AE30: 0.005133665437 | AF30: 0.001566505269 | AG30: -0.03042785012 | AH30: 0.006051175657 | AI30: -0.02644809888 | AJ30: -0.03434036079
A31: Highland | B31: 3136 | C31: 5267 | D31: 7905 | E31: 13471 | F31: 18241 | G31: 18698 | H31: 23367 | I31: 17015 | J31: 9689 | K31: 3360 | M31: 16 | N31: Highland | O31: =IF($C$2="Both",INDEX(INDIRECT(CONCATENATE("'LA SIMD 10 ",$C$1,"'!$C$8:$Dr$71")),'CA SIMD dist data'!$M31+VLOOKUP("Female",$I$2:$J$3,2,0),'CA SIMD dist data'!O$15+VLOOKUP($C$3,$E$2:$G$13,3,0))+INDEX(INDIRECT(CONCATENATE("'LA SIMD 10 ",$C$1,"'!$C$8:$Dr$71")),'CA SIMD dist data'!$M31+VLOOKUP("Male",$I$2:$J$3,2,0),'CA SIMD dist data'!O$15+VLOOKUP($C$3,$E$2:$G$13,3,0)),INDEX(INDIRECT(CONCATENATE("'LA SIMD 10 ",$C$1,"'!$C$8:$Dr$71")),'CA SIMD dist data'!$M31+VLOOKUP($C$2,$I$2:$J$3,2,0),'CA SIMD dist data'!O$15+VLOOKUP($C$3,$E$2:$G$13,3,0))) -> 3209 | P31: =IF($C$2="Both",INDEX(INDIRECT(CONCATENATE("'LA SIMD 10 ",$C$1,"'!$C$8:$Dr$71")),'CA SIMD dist data'!$M31+VLOOKUP("Female",$I$2:$J$3,2,0),'CA SIMD dist data'!P$15+VLOOKUP($C$3,$E$2:$G$13,3,0))+INDEX(INDIRECT(CONCATENATE("'LA SIMD 10 ",$C$1,"'!$C$8:$Dr$71")),'CA SIMD dist data'!$M31+VLOOKUP("Male",$I$2:$J$3,2,0),'CA SIMD dist data'!P$15+VLOOKUP($C$3,$E$2:$G$13,3,0)),INDEX(INDIRECT(CONCATENATE("'LA SIMD 10 ",$C$1,"'!$C$8:$Dr$71")),'CA SIMD dist data'!$M31+VLOOKUP($C$2,$I$2:$J$3,2,0),'CA SIMD dist data'!P$15+VLOOKUP($C$3,$E$2:$G$13,3,0))) -> 5321 | Q31: =IF($C$2="Both",INDEX(INDIRECT(CONCATENATE("'LA SIMD 10 ",$C$1,"'!$C$8:$Dr$71")),'CA SIMD dist data'!$M31+VLOOKUP("Female",$I$2:$J$3,2,0),'CA SIMD dist data'!Q$15+VLOOKUP($C$3,$E$2:$G$13,3,0))+INDEX(INDIRECT(CONCATENATE("'LA SIMD 10 ",$C$1,"'!$C$8:$Dr$71")),'CA SIMD dist data'!$M31+VLOOKUP("Male",$I$2:$J$3,2,0),'CA SIMD dist data'!Q$15+VLOOKUP($C$3,$E$2:$G$13,3,0)),INDEX(INDIRECT(CONCATENATE("'LA SIMD 10 ",$C$1,"'!$C$8:$Dr$71")),'CA SIMD dist data'!$M31+VLOOKUP($C$2,$I$2:$J$3,2,0),'CA SIMD dist data'!Q$15+VLOOKUP($C$3,$E$2:$G$13,3,0))) -> 7876 | R31: =IF($C$2="Both",INDEX(INDIRECT(CONCATENATE("'LA SIMD 10 ",$C$1,"'!$C$8:$Dr$71")),'CA SIMD dist data'!$M31+VLOOKUP("Female",$I$2:$J$3,2,0),'CA SIMD dist data'!R$15+VLOOKUP($C$3,$E$2:$G$13,3,0))+INDEX(INDIRECT(CONCATENATE("'LA SIMD 10 ",$C$1,"'!$C$8:$Dr$71")),'CA SIMD dist data'!$M31+VLOOKUP("Male",$I$2:$J$3,2,0),'CA SIMD dist data'!R$15+VLOOKUP($C$3,$E$2:$G$13,3,0)),INDEX(INDIRECT(CONCATENATE("'LA SIMD 10 ",$C$1,"'!$C$8:$Dr$71")),'CA SIMD dist data'!$M31+VLOOKUP($C$2,$I$2:$J$3,2,0),'CA SIMD dist data'!R$15+VLOOKUP($C$3,$E$2:$G$13,3,0))) -> 13517 | S31: =IF($C$2="Both",INDEX(INDIRECT(CONCATENATE("'LA SIMD 10 ",$C$1,"'!$C$8:$Dr$71")),'CA SIMD dist data'!$M31+VLOOKUP("Female",$I$2:$J$3,2,0),'CA SIMD dist data'!S$15+VLOOKUP($C$3,$E$2:$G$13,3,0))+INDEX(INDIRECT(CONCATENATE("'LA SIMD 10 ",$C$1,"'!$C$8:$Dr$71")),'CA SIMD dist data'!$M31+VLOOKUP("Male",$I$2:$J$3,2,0),'CA SIMD dist data'!S$15+VLOOKUP($C$3,$E$2:$G$13,3,0)),INDEX(INDIRECT(CONCATENATE("'LA SIMD 10 ",$C$1,"'!$C$8:$Dr$71")),'CA SIMD dist data'!$M31+VLOOKUP($C$2,$I$2:$J$3,2,0),'CA SIMD dist data'!S$15+VLOOKUP($C$3,$E$2:$G$13,3,0))) -> 18010 | T31: =IF($C$2="Both",INDEX(INDIRECT(CONCATENATE("'LA SIMD 10 ",$C$1,"'!$C$8:$Dr$71")),'CA SIMD dist data'!$M31+VLOOKUP("Female",$I$2:$J$3,2,0),'CA SIMD dist data'!T$15+VLOOKUP($C$3,$E$2:$G$13,3,0))+INDEX(INDIRECT(CONCATENATE("'LA SIMD 10 ",$C$1,"'!$C$8:$Dr$71")),'CA SIMD dist data'!$M31+VLOOKUP("Male",$I$2:$J$3,2,0),'CA SIMD dist data'!T$15+VLOOKUP($C$3,$E$2:$G$13,3,0)),INDEX(INDIRECT(CONCATENATE("'LA SIMD 10 ",$C$1,"'!$C$8:$Dr$71")),'CA SIMD dist data'!$M31+VLOOKUP($C$2,$I$2:$J$3,2,0),'CA SIMD dist data'!T$15+VLOOKUP($C$3,$E$2:$G$13,3,0))) -> 18310 | U31: =IF($C$2="Both",INDEX(INDIRECT(CONCATENATE("'LA SIMD 10 ",$C$1,"'!$C$8:$Dr$71")),'CA SIMD dist data'!$M31+VLOOKUP("Female",$I$2:$J$3,2,0),'CA SIMD dist data'!U$15+VLOOKUP($C$3,$E$2:$G$13,3,0))+INDEX(INDIRECT(CONCATENATE("'LA SIMD 10 ",$C$1,"'!$C$8:$Dr$71")),'CA SIMD dist data'!$M31+VLOOKUP("Male",$I$2:$J$3,2,0),'CA SIMD dist data'!U$15+VLOOKUP($C$3,$E$2:$G$13,3,0)),INDEX(INDIRECT(CONCATENATE("'LA SIMD 10 ",$C$1,"'!$C$8:$Dr$71")),'CA SIMD dist data'!$M31+VLOOKUP($C$2,$I$2:$J$3,2,0),'CA SIMD dist data'!U$15+VLOOKUP($C$3,$E$2:$G$13,3,0))) -> 23033 | V31: =IF($C$2="Both",INDEX(INDIRECT(CONCATENATE("'LA SIMD 10 ",$C$1,"'!$C$8:$Dr$71")),'CA SIMD dist data'!$M31+VLOOKUP("Female",$I$2:$J$3,2,0),'CA SIMD dist data'!V$15+VLOOKUP($C$3,$E$2:$G$13,3,0))+INDEX(INDIRECT(CONCATENATE("'LA SIMD 10 ",$C$1,"'!$C$8:$Dr$71")),'CA SIMD dist data'!$M31+VLOOKUP("Male",$I$2:$J$3,2,0),'CA SIMD dist data'!V$15+VLOOKUP($C$3,$E$2:$G$13,3,0)),INDEX(INDIRECT(CONCATENATE("'LA SIMD 10 ",$C$1,"'!$C$8:$Dr$71")),'CA SIMD dist data'!$M31+VLOOKUP($C$2,$I$2:$J$3,2,0),'CA SIMD dist data'!V$15+VLOOKUP($C$3,$E$2:$G$13,3,0))) -> 16570 | W31: =IF($C$2="Both",INDEX(INDIRECT(CONCATENATE("'LA SIMD 10 ",$C$1,"'!$C$8:$Dr$71")),'CA SIMD dist data'!$M31+VLOOKUP("Female",$I$2:$J$3,2,0),'CA SIMD dist data'!W$15+VLOOKUP($C$3,$E$2:$G$13,3,0))+INDEX(INDIRECT(CONCATENATE("'LA SIMD 10 ",$C$1,"'!$C$8:$Dr$71")),'CA SIMD dist data'!$M31+VLOOKUP("Male",$I$2:$J$3,2,0),'CA SIMD dist data'!W$15+VLOOKUP($C$3,$E$2:$G$13,3,0)),INDEX(INDIRECT(CONCATENATE("'LA SIMD 10 ",$C$1,"'!$C$8:$Dr$71")),'CA SIMD dist data'!$M31+VLOOKUP($C$2,$I$2:$J$3,2,0),'CA SIMD dist data'!W$15+VLOOKUP($C$3,$E$2:$G$13,3,0))) -> 9440 | X31: =IF($C$2="Both",INDEX(INDIRECT(CONCATENATE("'LA SIMD 10 ",$C$1,"'!$C$8:$Dr$71")),'CA SIMD dist data'!$M31+VLOOKUP("Female",$I$2:$J$3,2,0),'CA SIMD dist data'!X$15+VLOOKUP($C$3,$E$2:$G$13,3,0))+INDEX(INDIRECT(CONCATENATE("'LA SIMD 10 ",$C$1,"'!$C$8:$Dr$71")),'CA SIMD dist data'!$M31+VLOOKUP("Male",$I$2:$J$3,2,0),'CA SIMD dist data'!X$15+VLOOKUP($C$3,$E$2:$G$13,3,0)),INDEX(INDIRECT(CONCATENATE("'LA SIMD 10 ",$C$1,"'!$C$8:$Dr$71")),'CA SIMD dist data'!$M31+VLOOKUP($C$2,$I$2:$J$3,2,0),'CA SIMD dist data'!X$15+VLOOKUP($C$3,$E$2:$G$13,3,0))) -> 3282 | Z31: Highland | AA31: 0.02327806122 | AB31: 0.01025251566 | AC31: -0.0036685642 | AD31: 0.003414742781 | AE31: -0.0126637794 | AF31: -0.02075088245 | AG31: -0.014293662 | AH31: -0.02615339406 | AI31: -0.02569924657 | AJ31: -0.02321428571
A32: Inverclyde | B32: 10147 | C32: 7088 | D32: 3146 | E32: 2157 | F32: 2384 | G32: 3709 | H32: 3545 | I32: 3083 | J32: 4836 | K32: 654 | M32: 17 | N32: Inverclyde | O32: =IF($C$2="Both",INDEX(INDIRECT(CONCATENATE("'LA SIMD 10 ",$C$1,"'!$C$8:$Dr$71")),'CA SIMD dist data'!$M32+VLOOKUP("Female",$I$2:$J$3,2,0),'CA SIMD dist data'!O$15+VLOOKUP($C$3,$E$2:$G$13,3,0))+INDEX(INDIRECT(CONCATENATE("'LA SIMD 10 ",$C$1,"'!$C$8:$Dr$71")),'CA SIMD dist data'!$M32+VLOOKUP("Male",$I$2:$J$3,2,0),'CA SIMD dist data'!O$15+VLOOKUP($C$3,$E$2:$G$13,3,0)),INDEX(INDIRECT(CONCATENATE("'LA SIMD 10 ",$C$1,"'!$C$8:$Dr$71")),'CA SIMD dist data'!$M32+VLOOKUP($C$2,$I$2:$J$3,2,0),'CA SIMD dist data'!O$15+VLOOKUP($C$3,$E$2:$G$13,3,0))) -> 10076 | P32: =IF($C$2="Both",INDEX(INDIRECT(CONCATENATE("'LA SIMD 10 ",$C$1,"'!$C$8:$Dr$71")),'CA SIMD dist data'!$M32+VLOOKUP("Female",$I$2:$J$3,2,0),'CA SIMD dist data'!P$15+VLOOKUP($C$3,$E$2:$G$13,3,0))+INDEX(INDIRECT(CONCATENATE("'LA SIMD 10 ",$C$1,"'!$C$8:$Dr$71")),'CA SIMD dist data'!$M32+VLOOKUP("Male",$I$2:$J$3,2,0),'CA SIMD dist data'!P$15+VLOOKUP($C$3,$E$2:$G$13,3,0)),INDEX(INDIRECT(CONCATENATE("'LA SIMD 10 ",$C$1,"'!$C$8:$Dr$71")),'CA SIMD dist data'!$M32+VLOOKUP($C$2,$I$2:$J$3,2,0),'CA SIMD dist data'!P$15+VLOOKUP($C$3,$E$2:$G$13,3,0))) -> 7310 | Q32: =IF($C$2="Both",INDEX(INDIRECT(CONCATENATE("'LA SIMD 10 ",$C$1,"'!$C$8:$Dr$71")),'CA SIMD dist data'!$M32+VLOOKUP("Female",$I$2:$J$3,2,0),'CA SIMD dist data'!Q$15+VLOOKUP($C$3,$E$2:$G$13,3,0))+INDEX(INDIRECT(CONCATENATE("'LA SIMD 10 ",$C$1,"'!$C$8:$Dr$71")),'CA SIMD dist data'!$M32+VLOOKUP("Male",$I$2:$J$3,2,0),'CA SIMD dist data'!Q$15+VLOOKUP($C$3,$E$2:$G$13,3,0)),INDEX(INDIRECT(CONCATENATE("'LA SIMD 10 ",$C$1,"'!$C$8:$Dr$71")),'CA SIMD dist data'!$M32+VLOOKUP($C$2,$I$2:$J$3,2,0),'CA SIMD dist data'!Q$15+VLOOKUP($C$3,$E$2:$G$13,3,0))) -> 3197 | R32: =IF($C$2="Both",INDEX(INDIRECT(CONCATENATE("'LA SIMD 10 ",$C$1,"'!$C$8:$Dr$71")),'CA SIMD dist data'!$M32+VLOOKUP("Female",$I$2:$J$3,2,0),'CA SIMD dist data'!R$15+VLOOKUP($C$3,$E$2:$G$13,3,0))+INDEX(INDIRECT(CONCATENATE("'LA SIMD 10 ",$C$1,"'!$C$8:$Dr$71")),'CA SIMD dist data'!$M32+VLOOKUP("Male",$I$2:$J$3,2,0),'CA SIMD dist data'!R$15+VLOOKUP($C$3,$E$2:$G$13,3,0)),INDEX(INDIRECT(CONCATENATE("'LA SIMD 10 ",$C$1,"'!$C$8:$Dr$71")),'CA SIMD dist data'!$M32+VLOOKUP($C$2,$I$2:$J$3,2,0),'CA SIMD dist data'!R$15+VLOOKUP($C$3,$E$2:$G$13,3,0))) -> 2176 | S32: =IF($C$2="Both",INDEX(INDIRECT(CONCATENATE("'LA SIMD 10 ",$C$1,"'!$C$8:$Dr$71")),'CA SIMD dist data'!$M32+VLOOKUP("Female",$I$2:$J$3,2,0),'CA SIMD dist data'!S$15+VLOOKUP($C$3,$E$2:$G$13,3,0))+INDEX(INDIRECT(CONCATENATE("'LA SIMD 10 ",$C$1,"'!$C$8:$Dr$71")),'CA SIMD dist data'!$M32+VLOOKUP("Male",$I$2:$J$3,2,0),'CA SIMD dist data'!S$15+VLOOKUP($C$3,$E$2:$G$13,3,0)),INDEX(INDIRECT(CONCATENATE("'LA SIMD 10 ",$C$1,"'!$C$8:$Dr$71")),'CA SIMD dist data'!$M32+VLOOKUP($C$2,$I$2:$J$3,2,0),'CA SIMD dist data'!S$15+VLOOKUP($C$3,$E$2:$G$13,3,0))) -> 2364 | T32: =IF($C$2="Both",INDEX(INDIRECT(CONCATENATE("'LA SIMD 10 ",$C$1,"'!$C$8:$Dr$71")),'CA SIMD dist data'!$M32+VLOOKUP("Female",$I$2:$J$3,2,0),'CA SIMD dist data'!T$15+VLOOKUP($C$3,$E$2:$G$13,3,0))+INDEX(INDIRECT(CONCATENATE("'LA SIMD 10 ",$C$1,"'!$C$8:$Dr$71")),'CA SIMD dist data'!$M32+VLOOKUP("Male",$I$2:$J$3,2,0),'CA SIMD dist data'!T$15+VLOOKUP($C$3,$E$2:$G$13,3,0)),INDEX(INDIRECT(CONCATENATE("'LA SIMD 10 ",$C$1,"'!$C$8:$Dr$71")),'CA SIMD dist data'!$M32+VLOOKUP($C$2,$I$2:$J$3,2,0),'CA SIMD dist data'!T$15+VLOOKUP($C$3,$E$2:$G$13,3,0))) -> 3621 | U32: =IF($C$2="Both",INDEX(INDIRECT(CONCATENATE("'LA SIMD 10 ",$C$1,"'!$C$8:$Dr$71")),'CA SIMD dist data'!$M32+VLOOKUP("Female",$I$2:$J$3,2,0),'CA SIMD dist data'!U$15+VLOOKUP($C$3,$E$2:$G$13,3,0))+INDEX(INDIRECT(CONCATENATE("'LA SIMD 10 ",$C$1,"'!$C$8:$Dr$71")),'CA SIMD dist data'!$M32+VLOOKUP("Male",$I$2:$J$3,2,0),'CA SIMD dist data'!U$15+VLOOKUP($C$3,$E$2:$G$13,3,0)),INDEX(INDIRECT(CONCATENATE("'LA SIMD 10 ",$C$1,"'!$C$8:$Dr$71")),'CA SIMD dist data'!$M32+VLOOKUP($C$2,$I$2:$J$3,2,0),'CA SIMD dist data'!U$15+VLOOKUP($C$3,$E$2:$G$13,3,0))) -> 3513 | V32: =IF($C$2="Both",INDEX(INDIRECT(CONCATENATE("'LA SIMD 10 ",$C$1,"'!$C$8:$Dr$71")),'CA SIMD dist data'!$M32+VLOOKUP("Female",$I$2:$J$3,2,0),'CA SIMD dist data'!V$15+VLOOKUP($C$3,$E$2:$G$13,3,0))+INDEX(INDIRECT(CONCATENATE("'LA SIMD 10 ",$C$1,"'!$C$8:$Dr$71")),'CA SIMD dist data'!$M32+VLOOKUP("Male",$I$2:$J$3,2,0),'CA SIMD dist data'!V$15+VLOOKUP($C$3,$E$2:$G$13,3,0)),INDEX(INDIRECT(CONCATENATE("'LA SIMD 10 ",$C$1,"'!$C$8:$Dr$71")),'CA SIMD dist data'!$M32+VLOOKUP($C$2,$I$2:$J$3,2,0),'CA SIMD dist data'!V$15+VLOOKUP($C$3,$E$2:$G$13,3,0))) -> 3076 | W32: =IF($C$2="Both",INDEX(INDIRECT(CONCATENATE("'LA SIMD 10 ",$C$1,"'!$C$8:$Dr$71")),'CA SIMD dist data'!$M32+VLOOKUP("Female",$I$2:$J$3,2,0),'CA SIMD dist data'!W$15+VLOOKUP($C$3,$E$2:$G$13,3,0))+INDEX(INDIRECT(CONCATENATE("'LA SIMD 10 ",$C$1,"'!$C$8:$Dr$71")),'CA SIMD dist data'!$M32+VLOOKUP("Male",$I$2:$J$3,2,0),'CA SIMD dist data'!W$15+VLOOKUP($C$3,$E$2:$G$13,3,0)),INDEX(INDIRECT(CONCATENATE("'LA SIMD 10 ",$C$1,"'!$C$8:$Dr$71")),'CA SIMD dist data'!$M32+VLOOKUP($C$2,$I$2:$J$3,2,0),'CA SIMD dist data'!W$15+VLOOKUP($C$3,$E$2:$G$13,3,0))) -> 4797 | X32: =IF($C$2="Both",INDEX(INDIRECT(CONCATENATE("'LA SIMD 10 ",$C$1,"'!$C$8:$Dr$71")),'CA SIMD dist data'!$M32+VLOOKUP("Female",$I$2:$J$3,2,0),'CA SIMD dist data'!X$15+VLOOKUP($C$3,$E$2:$G$13,3,0))+INDEX(INDIRECT(CONCATENATE("'LA SIMD 10 ",$C$1,"'!$C$8:$Dr$71")),'CA SIMD dist data'!$M32+VLOOKUP("Male",$I$2:$J$3,2,0),'CA SIMD dist data'!X$15+VLOOKUP($C$3,$E$2:$G$13,3,0)),INDEX(INDIRECT(CONCATENATE("'LA SIMD 10 ",$C$1,"'!$C$8:$Dr$71")),'CA SIMD dist data'!$M32+VLOOKUP($C$2,$I$2:$J$3,2,0),'CA SIMD dist data'!X$15+VLOOKUP($C$3,$E$2:$G$13,3,0))) -> 628 | Z32: Inverclyde | AA32: -0.006997142012 | AB32: =(P32-C32)/C32 -> 0.03132054176 | AC32: =(Q32-D32)/D32 -> 0.01621106167 | AD32: =(R32-E32)/E32 -> 0.008808530366 | AE32: =(S32-F32)/F32 -> -0.008389261745 | AF32: =(T32-G32)/G32 -> -0.02372607172 | AG32: =(U32-H32)/H32 -> -0.009026798307 | AH32: =(V32-I32)/I32 -> -0.002270515731 | AI32: =(W32-J32)/J32 -> -0.008064516129 | AJ32: =(X32-K32)/K32 -> -0.03975535168
A33: Midlothian | B33: 734 | C33: 3886 | D33: 8129 | E33: 8782 | F33: 1888 | G33: 8283 | H33: 4705 | I33: 3942 | J33: 2683 | K33: 4415 | M33: 18 | N33: Midlothian | O33: =IF($C$2="Both",INDEX(INDIRECT(CONCATENATE("'LA SIMD 10 ",$C$1,"'!$C$8:$Dr$71")),'CA SIMD dist data'!$M33+VLOOKUP("Female",$I$2:$J$3,2,0),'CA SIMD dist data'!O$15+VLOOKUP($C$3,$E$2:$G$13,3,0))+INDEX(INDIRECT(CONCATENATE("'LA SIMD 10 ",$C$1,"'!$C$8:$Dr$71")),'CA SIMD dist data'!$M33+VLOOKUP("Male",$I$2:$J$3,2,0),'CA SIMD dist data'!O$15+VLOOKUP($C$3,$E$2:$G$13,3,0)),INDEX(INDIRECT(CONCATENATE("'LA SIMD 10 ",$C$1,"'!$C$8:$Dr$71")),'CA SIMD dist data'!$M33+VLOOKUP($C$2,$I$2:$J$3,2,0),'CA SIMD dist data'!O$15+VLOOKUP($C$3,$E$2:$G$13,3,0))) -> 748 | P33: =IF($C$2="Both",INDEX(INDIRECT(CONCATENATE("'LA SIMD 10 ",$C$1,"'!$C$8:$Dr$71")),'CA SIMD dist data'!$M33+VLOOKUP("Female",$I$2:$J$3,2,0),'CA SIMD dist data'!P$15+VLOOKUP($C$3,$E$2:$G$13,3,0))+INDEX(INDIRECT(CONCATENATE("'LA SIMD 10 ",$C$1,"'!$C$8:$Dr$71")),'CA SIMD dist data'!$M33+VLOOKUP("Male",$I$2:$J$3,2,0),'CA SIMD dist data'!P$15+VLOOKUP($C$3,$E$2:$G$13,3,0)),INDEX(INDIRECT(CONCATENATE("'LA SIMD 10 ",$C$1,"'!$C$8:$Dr$71")),'CA SIMD dist data'!$M33+VLOOKUP($C$2,$I$2:$J$3,2,0),'CA SIMD dist data'!P$15+VLOOKUP($C$3,$E$2:$G$13,3,0))) -> 3889 | Q33: =IF($C$2="Both",INDEX(INDIRECT(CONCATENATE("'LA SIMD 10 ",$C$1,"'!$C$8:$Dr$71")),'CA SIMD dist data'!$M33+VLOOKUP("Female",$I$2:$J$3,2,0),'CA SIMD dist data'!Q$15+VLOOKUP($C$3,$E$2:$G$13,3,0))+INDEX(INDIRECT(CONCATENATE("'LA SIMD 10 ",$C$1,"'!$C$8:$Dr$71")),'CA SIMD dist data'!$M33+VLOOKUP("Male",$I$2:$J$3,2,0),'CA SIMD dist data'!Q$15+VLOOKUP($C$3,$E$2:$G$13,3,0)),INDEX(INDIRECT(CONCATENATE("'LA SIMD 10 ",$C$1,"'!$C$8:$Dr$71")),'CA SIMD dist data'!$M33+VLOOKUP($C$2,$I$2:$J$3,2,0),'CA SIMD dist data'!Q$15+VLOOKUP($C$3,$E$2:$G$13,3,0))) -> 8331 | R33: =IF($C$2="Both",INDEX(INDIRECT(CONCATENATE("'LA SIMD 10 ",$C$1,"'!$C$8:$Dr$71")),'CA SIMD dist data'!$M33+VLOOKUP("Female",$I$2:$J$3,2,0),'CA SIMD dist data'!R$15+VLOOKUP($C$3,$E$2:$G$13,3,0))+INDEX(INDIRECT(CONCATENATE("'LA SIMD 10 ",$C$1,"'!$C$8:$Dr$71")),'CA SIMD dist data'!$M33+VLOOKUP("Male",$I$2:$J$3,2,0),'CA SIMD dist data'!R$15+VLOOKUP($C$3,$E$2:$G$13,3,0)),INDEX(INDIRECT(CONCATENATE("'LA SIMD 10 ",$C$1,"'!$C$8:$Dr$71")),'CA SIMD dist data'!$M33+VLOOKUP($C$2,$I$2:$J$3,2,0),'CA SIMD dist data'!R$15+VLOOKUP($C$3,$E$2:$G$13,3,0))) -> 8830 | S33: =IF($C$2="Both",INDEX(INDIRECT(CONCATENATE("'LA SIMD 10 ",$C$1,"'!$C$8:$Dr$71")),'CA SIMD dist data'!$M33+VLOOKUP("Female",$I$2:$J$3,2,0),'CA SIMD dist data'!S$15+VLOOKUP($C$3,$E$2:$G$13,3,0))+INDEX(INDIRECT(CONCATENATE("'LA SIMD 10 ",$C$1,"'!$C$8:$Dr$71")),'CA SIMD dist data'!$M33+VLOOKUP("Male",$I$2:$J$3,2,0),'CA SIMD dist data'!S$15+VLOOKUP($C$3,$E$2:$G$13,3,0)),INDEX(INDIRECT(CONCATENATE("'LA SIMD 10 ",$C$1,"'!$C$8:$Dr$71")),'CA SIMD dist data'!$M33+VLOOKUP($C$2,$I$2:$J$3,2,0),'CA SIMD dist data'!S$15+VLOOKUP($C$3,$E$2:$G$13,3,0))) -> 1916 | T33: =IF($C$2="Both",INDEX(INDIRECT(CONCATENATE("'LA SIMD 10 ",$C$1,"'!$C$8:$Dr$71")),'CA SIMD dist data'!$M33+VLOOKUP("Female",$I$2:$J$3,2,0),'CA SIMD dist data'!T$15+VLOOKUP($C$3,$E$2:$G$13,3,0))+INDEX(INDIRECT(CONCATENATE("'LA SIMD 10 ",$C$1,"'!$C$8:$Dr$71")),'CA SIMD dist data'!$M33+VLOOKUP("Male",$I$2:$J$3,2,0),'CA SIMD dist data'!T$15+VLOOKUP($C$3,$E$2:$G$13,3,0)),INDEX(INDIRECT(CONCATENATE("'LA SIMD 10 ",$C$1,"'!$C$8:$Dr$71")),'CA SIMD dist data'!$M33+VLOOKUP($C$2,$I$2:$J$3,2,0),'CA SIMD dist data'!T$15+VLOOKUP($C$3,$E$2:$G$13,3,0))) -> 8462 | U33: =IF($C$2="Both",INDEX(INDIRECT(CONCATENATE("'LA SIMD 10 ",$C$1,"'!$C$8:$Dr$71")),'CA SIMD dist data'!$M33+VLOOKUP("Female",$I$2:$J$3,2,0),'CA SIMD dist data'!U$15+VLOOKUP($C$3,$E$2:$G$13,3,0))+INDEX(INDIRECT(CONCATENATE("'LA SIMD 10 ",$C$1,"'!$C$8:$Dr$71")),'CA SIMD dist data'!$M33+VLOOKUP("Male",$I$2:$J$3,2,0),'CA SIMD dist data'!U$15+VLOOKUP($C$3,$E$2:$G$13,3,0)),INDEX(INDIRECT(CONCATENATE("'LA SIMD 10 ",$C$1,"'!$C$8:$Dr$71")),'CA SIMD dist data'!$M33+VLOOKUP($C$2,$I$2:$J$3,2,0),'CA SIMD dist data'!U$15+VLOOKUP($C$3,$E$2:$G$13,3,0))) -> 4801 | V33: =IF($C$2="Both",INDEX(INDIRECT(CONCATENATE("'LA SIMD 10 ",$C$1,"'!$C$8:$Dr$71")),'CA SIMD dist data'!$M33+VLOOKUP("Female",$I$2:$J$3,2,0),'CA SIMD dist data'!V$15+VLOOKUP($C$3,$E$2:$G$13,3,0))+INDEX(INDIRECT(CONCATENATE("'LA SIMD 10 ",$C$1,"'!$C$8:$Dr$71")),'CA SIMD dist data'!$M33+VLOOKUP("Male",$I$2:$J$3,2,0),'CA SIMD dist data'!V$15+VLOOKUP($C$3,$E$2:$G$13,3,0)),INDEX(INDIRECT(CONCATENATE("'LA SIMD 10 ",$C$1,"'!$C$8:$Dr$71")),'CA SIMD dist data'!$M33+VLOOKUP($C$2,$I$2:$J$3,2,0),'CA SIMD dist data'!V$15+VLOOKUP($C$3,$E$2:$G$13,3,0))) -> 3906 | W33: =IF($C$2="Both",INDEX(INDIRECT(CONCATENATE("'LA SIMD 10 ",$C$1,"'!$C$8:$Dr$71")),'CA SIMD dist data'!$M33+VLOOKUP("Female",$I$2:$J$3,2,0),'CA SIMD dist data'!W$15+VLOOKUP($C$3,$E$2:$G$13,3,0))+INDEX(INDIRECT(CONCATENATE("'LA SIMD 10 ",$C$1,"'!$C$8:$Dr$71")),'CA SIMD dist data'!$M33+VLOOKUP("Male",$I$2:$J$3,2,0),'CA SIMD dist data'!W$15+VLOOKUP($C$3,$E$2:$G$13,3,0)),INDEX(INDIRECT(CONCATENATE("'LA SIMD 10 ",$C$1,"'!$C$8:$Dr$71")),'CA SIMD dist data'!$M33+VLOOKUP($C$2,$I$2:$J$3,2,0),'CA SIMD dist data'!W$15+VLOOKUP($C$3,$E$2:$G$13,3,0))) -> 2654 | X33: =IF($C$2="Both",INDEX(INDIRECT(CONCATENATE("'LA SIMD 10 ",$C$1,"'!$C$8:$Dr$71")),'CA SIMD dist data'!$M33+VLOOKUP("Female",$I$2:$J$3,2,0),'CA SIMD dist data'!X$15+VLOOKUP($C$3,$E$2:$G$13,3,0))+INDEX(INDIRECT(CONCATENATE("'LA SIMD 10 ",$C$1,"'!$C$8:$Dr$71")),'CA SIMD dist data'!$M33+VLOOKUP("Male",$I$2:$J$3,2,0),'CA SIMD dist data'!X$15+VLOOKUP($C$3,$E$2:$G$13,3,0)),INDEX(INDIRECT(CONCATENATE("'LA SIMD 10 ",$C$1,"'!$C$8:$Dr$71")),'CA SIMD dist data'!$M33+VLOOKUP($C$2,$I$2:$J$3,2,0),'CA SIMD dist data'!X$15+VLOOKUP($C$3,$E$2:$G$13,3,0))) -> 4378 | Z33: Midlothian | AA33: 0.01907356948 | AB33: 0.0007720020587 | AC33: 0.02484930496 | AD33: 0.005465725347 | AE33: 0.01483050847 | AF33: 0.02161052759 | AG33: 0.02040382572 | AH33: -0.009132420091 | AI33: -0.01080879612 | AJ33: -0.008380520951
A34: Moray | B34: 0 | C34: 421 | D34: 3722 | E34: 3977 | F34: 5817 | G34: 7546 | H34: 12644 | I34: 5481 | J34: 5599 | K34: 3016 | M34: 19 | N34: Moray | O34: =IF($C$2="Both",INDEX(INDIRECT(CONCATENATE("'LA SIMD 10 ",$C$1,"'!$C$8:$Dr$71")),'CA SIMD dist data'!$M34+VLOOKUP("Female",$I$2:$J$3,2,0),'CA SIMD dist data'!O$15+VLOOKUP($C$3,$E$2:$G$13,3,0))+INDEX(INDIRECT(CONCATENATE("'LA SIMD 10 ",$C$1,"'!$C$8:$Dr$71")),'CA SIMD dist data'!$M34+VLOOKUP("Male",$I$2:$J$3,2,0),'CA SIMD dist data'!O$15+VLOOKUP($C$3,$E$2:$G$13,3,0)),INDEX(INDIRECT(CONCATENATE("'LA SIMD 10 ",$C$1,"'!$C$8:$Dr$71")),'CA SIMD dist data'!$M34+VLOOKUP($C$2,$I$2:$J$3,2,0),'CA SIMD dist data'!O$15+VLOOKUP($C$3,$E$2:$G$13,3,0))) -> 0 | P34: =IF($C$2="Both",INDEX(INDIRECT(CONCATENATE("'LA SIMD 10 ",$C$1,"'!$C$8:$Dr$71")),'CA SIMD dist data'!$M34+VLOOKUP("Female",$I$2:$J$3,2,0),'CA SIMD dist data'!P$15+VLOOKUP($C$3,$E$2:$G$13,3,0))+INDEX(INDIRECT(CONCATENATE("'LA SIMD 10 ",$C$1,"'!$C$8:$Dr$71")),'CA SIMD dist data'!$M34+VLOOKUP("Male",$I$2:$J$3,2,0),'CA SIMD dist data'!P$15+VLOOKUP($C$3,$E$2:$G$13,3,0)),INDEX(INDIRECT(CONCATENATE("'LA SIMD 10 ",$C$1,"'!$C$8:$Dr$71")),'CA SIMD dist data'!$M34+VLOOKUP($C$2,$I$2:$J$3,2,0),'CA SIMD dist data'!P$15+VLOOKUP($C$3,$E$2:$G$13,3,0))) -> 463 | Q34: =IF($C$2="Both",INDEX(INDIRECT(CONCATENATE("'LA SIMD 10 ",$C$1,"'!$C$8:$Dr$71")),'CA SIMD dist data'!$M34+VLOOKUP("Female",$I$2:$J$3,2,0),'CA SIMD dist data'!Q$15+VLOOKUP($C$3,$E$2:$G$13,3,0))+INDEX(INDIRECT(CONCATENATE("'LA SIMD 10 ",$C$1,"'!$C$8:$Dr$71")),'CA SIMD dist data'!$M34+VLOOKUP("Male",$I$2:$J$3,2,0),'CA SIMD dist data'!Q$15+VLOOKUP($C$3,$E$2:$G$13,3,0)),INDEX(INDIRECT(CONCATENATE("'LA SIMD 10 ",$C$1,"'!$C$8:$Dr$71")),'CA SIMD dist data'!$M34+VLOOKUP($C$2,$I$2:$J$3,2,0),'CA SIMD dist data'!Q$15+VLOOKUP($C$3,$E$2:$G$13,3,0))) -> 3897 | R34: =IF($C$2="Both",INDEX(INDIRECT(CONCATENATE("'LA SIMD 10 ",$C$1,"'!$C$8:$Dr$71")),'CA SIMD dist data'!$M34+VLOOKUP("Female",$I$2:$J$3,2,0),'CA SIMD dist data'!R$15+VLOOKUP($C$3,$E$2:$G$13,3,0))+INDEX(INDIRECT(CONCATENATE("'LA SIMD 10 ",$C$1,"'!$C$8:$Dr$71")),'CA SIMD dist data'!$M34+VLOOKUP("Male",$I$2:$J$3,2,0),'CA SIMD dist data'!R$15+VLOOKUP($C$3,$E$2:$G$13,3,0)),INDEX(INDIRECT(CONCATENATE("'LA SIMD 10 ",$C$1,"'!$C$8:$Dr$71")),'CA SIMD dist data'!$M34+VLOOKUP($C$2,$I$2:$J$3,2,0),'CA SIMD dist data'!R$15+VLOOKUP($C$3,$E$2:$G$13,3,0))) -> 3955 | S34: =IF($C$2="Both",INDEX(INDIRECT(CONCATENATE("'LA SIMD 10 ",$C$1,"'!$C$8:$Dr$71")),'CA SIMD dist data'!$M34+VLOOKUP("Female",$I$2:$J$3,2,0),'CA SIMD dist data'!S$15+VLOOKUP($C$3,$E$2:$G$13,3,0))+INDEX(INDIRECT(CONCATENATE("'LA SIMD 10 ",$C$1,"'!$C$8:$Dr$71")),'CA SIMD dist data'!$M34+VLOOKUP("Male",$I$2:$J$3,2,0),'CA SIMD dist data'!S$15+VLOOKUP($C$3,$E$2:$G$13,3,0)),INDEX(INDIRECT(CONCATENATE("'LA SIMD 10 ",$C$1,"'!$C$8:$Dr$71")),'CA SIMD dist data'!$M34+VLOOKUP($C$2,$I$2:$J$3,2,0),'CA SIMD dist data'!S$15+VLOOKUP($C$3,$E$2:$G$13,3,0))) -> 5569 | T34: =IF($C$2="Both",INDEX(INDIRECT(CONCATENATE("'LA SIMD 10 ",$C$1,"'!$C$8:$Dr$71")),'CA SIMD dist data'!$M34+VLOOKUP("Female",$I$2:$J$3,2,0),'CA SIMD dist data'!T$15+VLOOKUP($C$3,$E$2:$G$13,3,0))+INDEX(INDIRECT(CONCATENATE("'LA SIMD 10 ",$C$1,"'!$C$8:$Dr$71")),'CA SIMD dist data'!$M34+VLOOKUP("Male",$I$2:$J$3,2,0),'CA SIMD dist data'!T$15+VLOOKUP($C$3,$E$2:$G$13,3,0)),INDEX(INDIRECT(CONCATENATE("'LA SIMD 10 ",$C$1,"'!$C$8:$Dr$71")),'CA SIMD dist data'!$M34+VLOOKUP($C$2,$I$2:$J$3,2,0),'CA SIMD dist data'!T$15+VLOOKUP($C$3,$E$2:$G$13,3,0))) -> 7145 | U34: =IF($C$2="Both",INDEX(INDIRECT(CONCATENATE("'LA SIMD 10 ",$C$1,"'!$C$8:$Dr$71")),'CA SIMD dist data'!$M34+VLOOKUP("Female",$I$2:$J$3,2,0),'CA SIMD dist data'!U$15+VLOOKUP($C$3,$E$2:$G$13,3,0))+INDEX(INDIRECT(CONCATENATE("'LA SIMD 10 ",$C$1,"'!$C$8:$Dr$71")),'CA SIMD dist data'!$M34+VLOOKUP("Male",$I$2:$J$3,2,0),'CA SIMD dist data'!U$15+VLOOKUP($C$3,$E$2:$G$13,3,0)),INDEX(INDIRECT(CONCATENATE("'LA SIMD 10 ",$C$1,"'!$C$8:$Dr$71")),'CA SIMD dist data'!$M34+VLOOKUP($C$2,$I$2:$J$3,2,0),'CA SIMD dist data'!U$15+VLOOKUP($C$3,$E$2:$G$13,3,0))) -> 12325 | V34: =IF($C$2="Both",INDEX(INDIRECT(CONCATENATE("'LA SIMD 10 ",$C$1,"'!$C$8:$Dr$71")),'CA SIMD dist data'!$M34+VLOOKUP("Female",$I$2:$J$3,2,0),'CA SIMD dist data'!V$15+VLOOKUP($C$3,$E$2:$G$13,3,0))+INDEX(INDIRECT(CONCATENATE("'LA SIMD 10 ",$C$1,"'!$C$8:$Dr$71")),'CA SIMD dist data'!$M34+VLOOKUP("Male",$I$2:$J$3,2,0),'CA SIMD dist data'!V$15+VLOOKUP($C$3,$E$2:$G$13,3,0)),INDEX(INDIRECT(CONCATENATE("'LA SIMD 10 ",$C$1,"'!$C$8:$Dr$71")),'CA SIMD dist data'!$M34+VLOOKUP($C$2,$I$2:$J$3,2,0),'CA SIMD dist data'!V$15+VLOOKUP($C$3,$E$2:$G$13,3,0))) -> 5224 | W34: =IF($C$2="Both",INDEX(INDIRECT(CONCATENATE("'LA SIMD 10 ",$C$1,"'!$C$8:$Dr$71")),'CA SIMD dist data'!$M34+VLOOKUP("Female",$I$2:$J$3,2,0),'CA SIMD dist data'!W$15+VLOOKUP($C$3,$E$2:$G$13,3,0))+INDEX(INDIRECT(CONCATENATE("'LA SIMD 10 ",$C$1,"'!$C$8:$Dr$71")),'CA SIMD dist data'!$M34+VLOOKUP("Male",$I$2:$J$3,2,0),'CA SIMD dist data'!W$15+VLOOKUP($C$3,$E$2:$G$13,3,0)),INDEX(INDIRECT(CONCATENATE("'LA SIMD 10 ",$C$1,"'!$C$8:$Dr$71")),'CA SIMD dist data'!$M34+VLOOKUP($C$2,$I$2:$J$3,2,0),'CA SIMD dist data'!W$15+VLOOKUP($C$3,$E$2:$G$13,3,0))) -> 5397 | X34: =IF($C$2="Both",INDEX(INDIRECT(CONCATENATE("'LA SIMD 10 ",$C$1,"'!$C$8:$Dr$71")),'CA SIMD dist data'!$M34+VLOOKUP("Female",$I$2:$J$3,2,0),'CA SIMD dist data'!X$15+VLOOKUP($C$3,$E$2:$G$13,3,0))+INDEX(INDIRECT(CONCATENATE("'LA SIMD 10 ",$C$1,"'!$C$8:$Dr$71")),'CA SIMD dist data'!$M34+VLOOKUP("Male",$I$2:$J$3,2,0),'CA SIMD dist data'!X$15+VLOOKUP($C$3,$E$2:$G$13,3,0)),INDEX(INDIRECT(CONCATENATE("'LA SIMD 10 ",$C$1,"'!$C$8:$Dr$71")),'CA SIMD dist data'!$M34+VLOOKUP($C$2,$I$2:$J$3,2,0),'CA SIMD dist data'!X$15+VLOOKUP($C$3,$E$2:$G$13,3,0))) -> 2813 | Z34: Moray | AB34: 0.09976247031 | AC34: 0.0470177324 | AD34: -0.005531807895 | AE34: -0.04263365996 | AF34: -0.05314073681 | AG34: -0.0252293578 | AH34: -0.04688925379 | AI34: -0.03607787105 | AJ34: -0.06730769231
A35: Na h-Eileanan Siar | B35: 0 | C35: 0 | D35: 333 | E35: 2186 | F35: 5428 | G35: 4451 | H35: 1185 | I35: 0 | J35: 0 | K35: 0 | M35: 20 | N35: Na h-Eileanan Siar | O35: =IF($C$2="Both",INDEX(INDIRECT(CONCATENATE("'LA SIMD 10 ",$C$1,"'!$C$8:$Dr$71")),'CA SIMD dist data'!$M35+VLOOKUP("Female",$I$2:$J$3,2,0),'CA SIMD dist data'!O$15+VLOOKUP($C$3,$E$2:$G$13,3,0))+INDEX(INDIRECT(CONCATENATE("'LA SIMD 10 ",$C$1,"'!$C$8:$Dr$71")),'CA SIMD dist data'!$M35+VLOOKUP("Male",$I$2:$J$3,2,0),'CA SIMD dist data'!O$15+VLOOKUP($C$3,$E$2:$G$13,3,0)),INDEX(INDIRECT(CONCATENATE("'LA SIMD 10 ",$C$1,"'!$C$8:$Dr$71")),'CA SIMD dist data'!$M35+VLOOKUP($C$2,$I$2:$J$3,2,0),'CA SIMD dist data'!O$15+VLOOKUP($C$3,$E$2:$G$13,3,0))) -> 0 | P35: =IF($C$2="Both",INDEX(INDIRECT(CONCATENATE("'LA SIMD 10 ",$C$1,"'!$C$8:$Dr$71")),'CA SIMD dist data'!$M35+VLOOKUP("Female",$I$2:$J$3,2,0),'CA SIMD dist data'!P$15+VLOOKUP($C$3,$E$2:$G$13,3,0))+INDEX(INDIRECT(CONCATENATE("'LA SIMD 10 ",$C$1,"'!$C$8:$Dr$71")),'CA SIMD dist data'!$M35+VLOOKUP("Male",$I$2:$J$3,2,0),'CA SIMD dist data'!P$15+VLOOKUP($C$3,$E$2:$G$13,3,0)),INDEX(INDIRECT(CONCATENATE("'LA SIMD 10 ",$C$1,"'!$C$8:$Dr$71")),'CA SIMD dist data'!$M35+VLOOKUP($C$2,$I$2:$J$3,2,0),'CA SIMD dist data'!P$15+VLOOKUP($C$3,$E$2:$G$13,3,0))) -> 0 | Q35: =IF($C$2="Both",INDEX(INDIRECT(CONCATENATE("'LA SIMD 10 ",$C$1,"'!$C$8:$Dr$71")),'CA SIMD dist data'!$M35+VLOOKUP("Female",$I$2:$J$3,2,0),'CA SIMD dist data'!Q$15+VLOOKUP($C$3,$E$2:$G$13,3,0))+INDEX(INDIRECT(CONCATENATE("'LA SIMD 10 ",$C$1,"'!$C$8:$Dr$71")),'CA SIMD dist data'!$M35+VLOOKUP("Male",$I$2:$J$3,2,0),'CA SIMD dist data'!Q$15+VLOOKUP($C$3,$E$2:$G$13,3,0)),INDEX(INDIRECT(CONCATENATE("'LA SIMD 10 ",$C$1,"'!$C$8:$Dr$71")),'CA SIMD dist data'!$M35+VLOOKUP($C$2,$I$2:$J$3,2,0),'CA SIMD dist data'!Q$15+VLOOKUP($C$3,$E$2:$G$13,3,0))) -> 357 | R35: =IF($C$2="Both",INDEX(INDIRECT(CONCATENATE("'LA SIMD 10 ",$C$1,"'!$C$8:$Dr$71")),'CA SIMD dist data'!$M35+VLOOKUP("Female",$I$2:$J$3,2,0),'CA SIMD dist data'!R$15+VLOOKUP($C$3,$E$2:$G$13,3,0))+INDEX(INDIRECT(CONCATENATE("'LA SIMD 10 ",$C$1,"'!$C$8:$Dr$71")),'CA SIMD dist data'!$M35+VLOOKUP("Male",$I$2:$J$3,2,0),'CA SIMD dist data'!R$15+VLOOKUP($C$3,$E$2:$G$13,3,0)),INDEX(INDIRECT(CONCATENATE("'LA SIMD 10 ",$C$1,"'!$C$8:$Dr$71")),'CA SIMD dist data'!$M35+VLOOKUP($C$2,$I$2:$J$3,2,0),'CA SIMD dist data'!R$15+VLOOKUP($C$3,$E$2:$G$13,3,0))) -> 2141 | S35: =IF($C$2="Both",INDEX(INDIRECT(CONCATENATE("'LA SIMD 10 ",$C$1,"'!$C$8:$Dr$71")),'CA SIMD dist data'!$M35+VLOOKUP("Female",$I$2:$J$3,2,0),'CA SIMD dist data'!S$15+VLOOKUP($C$3,$E$2:$G$13,3,0))+INDEX(INDIRECT(CONCATENATE("'LA SIMD 10 ",$C$1,"'!$C$8:$Dr$71")),'CA SIMD dist data'!$M35+VLOOKUP("Male",$I$2:$J$3,2,0),'CA SIMD dist data'!S$15+VLOOKUP($C$3,$E$2:$G$13,3,0)),INDEX(INDIRECT(CONCATENATE("'LA SIMD 10 ",$C$1,"'!$C$8:$Dr$71")),'CA SIMD dist data'!$M35+VLOOKUP($C$2,$I$2:$J$3,2,0),'CA SIMD dist data'!S$15+VLOOKUP($C$3,$E$2:$G$13,3,0))) -> 5233 | T35: =IF($C$2="Both",INDEX(INDIRECT(CONCATENATE("'LA SIMD 10 ",$C$1,"'!$C$8:$Dr$71")),'CA SIMD dist data'!$M35+VLOOKUP("Female",$I$2:$J$3,2,0),'CA SIMD dist data'!T$15+VLOOKUP($C$3,$E$2:$G$13,3,0))+INDEX(INDIRECT(CONCATENATE("'LA SIMD 10 ",$C$1,"'!$C$8:$Dr$71")),'CA SIMD dist data'!$M35+VLOOKUP("Male",$I$2:$J$3,2,0),'CA SIMD dist data'!T$15+VLOOKUP($C$3,$E$2:$G$13,3,0)),INDEX(INDIRECT(CONCATENATE("'LA SIMD 10 ",$C$1,"'!$C$8:$Dr$71")),'CA SIMD dist data'!$M35+VLOOKUP($C$2,$I$2:$J$3,2,0),'CA SIMD dist data'!T$15+VLOOKUP($C$3,$E$2:$G$13,3,0))) -> 4223 | U35: =IF($C$2="Both",INDEX(INDIRECT(CONCATENATE("'LA SIMD 10 ",$C$1,"'!$C$8:$Dr$71")),'CA SIMD dist data'!$M35+VLOOKUP("Female",$I$2:$J$3,2,0),'CA SIMD dist data'!U$15+VLOOKUP($C$3,$E$2:$G$13,3,0))+INDEX(INDIRECT(CONCATENATE("'LA SIMD 10 ",$C$1,"'!$C$8:$Dr$71")),'CA SIMD dist data'!$M35+VLOOKUP("Male",$I$2:$J$3,2,0),'CA SIMD dist data'!U$15+VLOOKUP($C$3,$E$2:$G$13,3,0)),INDEX(INDIRECT(CONCATENATE("'LA SIMD 10 ",$C$1,"'!$C$8:$Dr$71")),'CA SIMD dist data'!$M35+VLOOKUP($C$2,$I$2:$J$3,2,0),'CA SIMD dist data'!U$15+VLOOKUP($C$3,$E$2:$G$13,3,0))) -> 1115 | V35: =IF($C$2="Both",INDEX(INDIRECT(CONCATENATE("'LA SIMD 10 ",$C$1,"'!$C$8:$Dr$71")),'CA SIMD dist data'!$M35+VLOOKUP("Female",$I$2:$J$3,2,0),'CA SIMD dist data'!V$15+VLOOKUP($C$3,$E$2:$G$13,3,0))+INDEX(INDIRECT(CONCATENATE("'LA SIMD 10 ",$C$1,"'!$C$8:$Dr$71")),'CA SIMD dist data'!$M35+VLOOKUP("Male",$I$2:$J$3,2,0),'CA SIMD dist data'!V$15+VLOOKUP($C$3,$E$2:$G$13,3,0)),INDEX(INDIRECT(CONCATENATE("'LA SIMD 10 ",$C$1,"'!$C$8:$Dr$71")),'CA SIMD dist data'!$M35+VLOOKUP($C$2,$I$2:$J$3,2,0),'CA SIMD dist data'!V$15+VLOOKUP($C$3,$E$2:$G$13,3,0))) -> 0 | W35: =IF($C$2="Both",INDEX(INDIRECT(CONCATENATE("'LA SIMD 10 ",$C$1,"'!$C$8:$Dr$71")),'CA SIMD dist data'!$M35+VLOOKUP("Female",$I$2:$J$3,2,0),'CA SIMD dist data'!W$15+VLOOKUP($C$3,$E$2:$G$13,3,0))+INDEX(INDIRECT(CONCATENATE("'LA SIMD 10 ",$C$1,"'!$C$8:$Dr$71")),'CA SIMD dist data'!$M35+VLOOKUP("Male",$I$2:$J$3,2,0),'CA SIMD dist data'!W$15+VLOOKUP($C$3,$E$2:$G$13,3,0)),INDEX(INDIRECT(CONCATENATE("'LA SIMD 10 ",$C$1,"'!$C$8:$Dr$71")),'CA SIMD dist data'!$M35+VLOOKUP($C$2,$I$2:$J$3,2,0),'CA SIMD dist data'!W$15+VLOOKUP($C$3,$E$2:$G$13,3,0))) -> 0 | X35: =IF($C$2="Both",INDEX(INDIRECT(CONCATENATE("'LA SIMD 10 ",$C$1,"'!$C$8:$Dr$71")),'CA SIMD dist data'!$M35+VLOOKUP("Female",$I$2:$J$3,2,0),'CA SIMD dist data'!X$15+VLOOKUP($C$3,$E$2:$G$13,3,0))+INDEX(INDIRECT(CONCATENATE("'LA SIMD 10 ",$C$1,"'!$C$8:$Dr$71")),'CA SIMD dist data'!$M35+VLOOKUP("Male",$I$2:$J$3,2,0),'CA SIMD dist data'!X$15+VLOOKUP($C$3,$E$2:$G$13,3,0)),INDEX(INDIRECT(CONCATENATE("'LA SIMD 10 ",$C$1,"'!$C$8:$Dr$71")),'CA SIMD dist data'!$M35+VLOOKUP($C$2,$I$2:$J$3,2,0),'CA SIMD dist data'!X$15+VLOOKUP($C$3,$E$2:$G$13,3,0))) -> 0 | Z35: Na h-Eileanan Siar | AC35: 0.07207207207 | AD35: -0.02058554437 | AE35: -0.03592483419 | AF35: -0.05122444395 | AG35: -0.05907172996
A36: North Ayrshire | B36: 12233 | C36: 15492 | D36: 8945 | E36: 6731 | F36: 4180 | G36: 5828 | H36: 5358 | I36: 5167 | J36: 5691 | K36: 1256 | M36: 21 | N36: North Ayrshire | O36: =IF($C$2="Both",INDEX(INDIRECT(CONCATENATE("'LA SIMD 10 ",$C$1,"'!$C$8:$Dr$71")),'CA SIMD dist data'!$M36+VLOOKUP("Female",$I$2:$J$3,2,0),'CA SIMD dist data'!O$15+VLOOKUP($C$3,$E$2:$G$13,3,0))+INDEX(INDIRECT(CONCATENATE("'LA SIMD 10 ",$C$1,"'!$C$8:$Dr$71")),'CA SIMD dist data'!$M36+VLOOKUP("Male",$I$2:$J$3,2,0),'CA SIMD dist data'!O$15+VLOOKUP($C$3,$E$2:$G$13,3,0)),INDEX(INDIRECT(CONCATENATE("'LA SIMD 10 ",$C$1,"'!$C$8:$Dr$71")),'CA SIMD dist data'!$M36+VLOOKUP($C$2,$I$2:$J$3,2,0),'CA SIMD dist data'!O$15+VLOOKUP($C$3,$E$2:$G$13,3,0))) -> 12260 | P36: =IF($C$2="Both",INDEX(INDIRECT(CONCATENATE("'LA SIMD 10 ",$C$1,"'!$C$8:$Dr$71")),'CA SIMD dist data'!$M36+VLOOKUP("Female",$I$2:$J$3,2,0),'CA SIMD dist data'!P$15+VLOOKUP($C$3,$E$2:$G$13,3,0))+INDEX(INDIRECT(CONCATENATE("'LA SIMD 10 ",$C$1,"'!$C$8:$Dr$71")),'CA SIMD dist data'!$M36+VLOOKUP("Male",$I$2:$J$3,2,0),'CA SIMD dist data'!P$15+VLOOKUP($C$3,$E$2:$G$13,3,0)),INDEX(INDIRECT(CONCATENATE("'LA SIMD 10 ",$C$1,"'!$C$8:$Dr$71")),'CA SIMD dist data'!$M36+VLOOKUP($C$2,$I$2:$J$3,2,0),'CA SIMD dist data'!P$15+VLOOKUP($C$3,$E$2:$G$13,3,0))) -> 15705 | Q36: =IF($C$2="Both",INDEX(INDIRECT(CONCATENATE("'LA SIMD 10 ",$C$1,"'!$C$8:$Dr$71")),'CA SIMD dist data'!$M36+VLOOKUP("Female",$I$2:$J$3,2,0),'CA SIMD dist data'!Q$15+VLOOKUP($C$3,$E$2:$G$13,3,0))+INDEX(INDIRECT(CONCATENATE("'LA SIMD 10 ",$C$1,"'!$C$8:$Dr$71")),'CA SIMD dist data'!$M36+VLOOKUP("Male",$I$2:$J$3,2,0),'CA SIMD dist data'!Q$15+VLOOKUP($C$3,$E$2:$G$13,3,0)),INDEX(INDIRECT(CONCATENATE("'LA SIMD 10 ",$C$1,"'!$C$8:$Dr$71")),'CA SIMD dist data'!$M36+VLOOKUP($C$2,$I$2:$J$3,2,0),'CA SIMD dist data'!Q$15+VLOOKUP($C$3,$E$2:$G$13,3,0))) -> 9046 | R36: =IF($C$2="Both",INDEX(INDIRECT(CONCATENATE("'LA SIMD 10 ",$C$1,"'!$C$8:$Dr$71")),'CA SIMD dist data'!$M36+VLOOKUP("Female",$I$2:$J$3,2,0),'CA SIMD dist data'!R$15+VLOOKUP($C$3,$E$2:$G$13,3,0))+INDEX(INDIRECT(CONCATENATE("'LA SIMD 10 ",$C$1,"'!$C$8:$Dr$71")),'CA SIMD dist data'!$M36+VLOOKUP("Male",$I$2:$J$3,2,0),'CA SIMD dist data'!R$15+VLOOKUP($C$3,$E$2:$G$13,3,0)),INDEX(INDIRECT(CONCATENATE("'LA SIMD 10 ",$C$1,"'!$C$8:$Dr$71")),'CA SIMD dist data'!$M36+VLOOKUP($C$2,$I$2:$J$3,2,0),'CA SIMD dist data'!R$15+VLOOKUP($C$3,$E$2:$G$13,3,0))) -> 6792 | S36: =IF($C$2="Both",INDEX(INDIRECT(CONCATENATE("'LA SIMD 10 ",$C$1,"'!$C$8:$Dr$71")),'CA SIMD dist data'!$M36+VLOOKUP("Female",$I$2:$J$3,2,0),'CA SIMD dist data'!S$15+VLOOKUP($C$3,$E$2:$G$13,3,0))+INDEX(INDIRECT(CONCATENATE("'LA SIMD 10 ",$C$1,"'!$C$8:$Dr$71")),'CA SIMD dist data'!$M36+VLOOKUP("Male",$I$2:$J$3,2,0),'CA SIMD dist data'!S$15+VLOOKUP($C$3,$E$2:$G$13,3,0)),INDEX(INDIRECT(CONCATENATE("'LA SIMD 10 ",$C$1,"'!$C$8:$Dr$71")),'CA SIMD dist data'!$M36+VLOOKUP($C$2,$I$2:$J$3,2,0),'CA SIMD dist data'!S$15+VLOOKUP($C$3,$E$2:$G$13,3,0))) -> 4183 | T36: =IF($C$2="Both",INDEX(INDIRECT(CONCATENATE("'LA SIMD 10 ",$C$1,"'!$C$8:$Dr$71")),'CA SIMD dist data'!$M36+VLOOKUP("Female",$I$2:$J$3,2,0),'CA SIMD dist data'!T$15+VLOOKUP($C$3,$E$2:$G$13,3,0))+INDEX(INDIRECT(CONCATENATE("'LA SIMD 10 ",$C$1,"'!$C$8:$Dr$71")),'CA SIMD dist data'!$M36+VLOOKUP("Male",$I$2:$J$3,2,0),'CA SIMD dist data'!T$15+VLOOKUP($C$3,$E$2:$G$13,3,0)),INDEX(INDIRECT(CONCATENATE("'LA SIMD 10 ",$C$1,"'!$C$8:$Dr$71")),'CA SIMD dist data'!$M36+VLOOKUP($C$2,$I$2:$J$3,2,0),'CA SIMD dist data'!T$15+VLOOKUP($C$3,$E$2:$G$13,3,0))) -> 5901 | U36: =IF($C$2="Both",INDEX(INDIRECT(CONCATENATE("'LA SIMD 10 ",$C$1,"'!$C$8:$Dr$71")),'CA SIMD dist data'!$M36+VLOOKUP("Female",$I$2:$J$3,2,0),'CA SIMD dist data'!U$15+VLOOKUP($C$3,$E$2:$G$13,3,0))+INDEX(INDIRECT(CONCATENATE("'LA SIMD 10 ",$C$1,"'!$C$8:$Dr$71")),'CA SIMD dist data'!$M36+VLOOKUP("Male",$I$2:$J$3,2,0),'CA SIMD dist data'!U$15+VLOOKUP($C$3,$E$2:$G$13,3,0)),INDEX(INDIRECT(CONCATENATE("'LA SIMD 10 ",$C$1,"'!$C$8:$Dr$71")),'CA SIMD dist data'!$M36+VLOOKUP($C$2,$I$2:$J$3,2,0),'CA SIMD dist data'!U$15+VLOOKUP($C$3,$E$2:$G$13,3,0))) -> 5336 | V36: =IF($C$2="Both",INDEX(INDIRECT(CONCATENATE("'LA SIMD 10 ",$C$1,"'!$C$8:$Dr$71")),'CA SIMD dist data'!$M36+VLOOKUP("Female",$I$2:$J$3,2,0),'CA SIMD dist data'!V$15+VLOOKUP($C$3,$E$2:$G$13,3,0))+INDEX(INDIRECT(CONCATENATE("'LA SIMD 10 ",$C$1,"'!$C$8:$Dr$71")),'CA SIMD dist data'!$M36+VLOOKUP("Male",$I$2:$J$3,2,0),'CA SIMD dist data'!V$15+VLOOKUP($C$3,$E$2:$G$13,3,0)),INDEX(INDIRECT(CONCATENATE("'LA SIMD 10 ",$C$1,"'!$C$8:$Dr$71")),'CA SIMD dist data'!$M36+VLOOKUP($C$2,$I$2:$J$3,2,0),'CA SIMD dist data'!V$15+VLOOKUP($C$3,$E$2:$G$13,3,0))) -> 5100 | W36: =IF($C$2="Both",INDEX(INDIRECT(CONCATENATE("'LA SIMD 10 ",$C$1,"'!$C$8:$Dr$71")),'CA SIMD dist data'!$M36+VLOOKUP("Female",$I$2:$J$3,2,0),'CA SIMD dist data'!W$15+VLOOKUP($C$3,$E$2:$G$13,3,0))+INDEX(INDIRECT(CONCATENATE("'LA SIMD 10 ",$C$1,"'!$C$8:$Dr$71")),'CA SIMD dist data'!$M36+VLOOKUP("Male",$I$2:$J$3,2,0),'CA SIMD dist data'!W$15+VLOOKUP($C$3,$E$2:$G$13,3,0)),INDEX(INDIRECT(CONCATENATE("'LA SIMD 10 ",$C$1,"'!$C$8:$Dr$71")),'CA SIMD dist data'!$M36+VLOOKUP($C$2,$I$2:$J$3,2,0),'CA SIMD dist data'!W$15+VLOOKUP($C$3,$E$2:$G$13,3,0))) -> 5704 | X36: =IF($C$2="Both",INDEX(INDIRECT(CONCATENATE("'LA SIMD 10 ",$C$1,"'!$C$8:$Dr$71")),'CA SIMD dist data'!$M36+VLOOKUP("Female",$I$2:$J$3,2,0),'CA SIMD dist data'!X$15+VLOOKUP($C$3,$E$2:$G$13,3,0))+INDEX(INDIRECT(CONCATENATE("'LA SIMD 10 ",$C$1,"'!$C$8:$Dr$71")),'CA SIMD dist data'!$M36+VLOOKUP("Male",$I$2:$J$3,2,0),'CA SIMD dist data'!X$15+VLOOKUP($C$3,$E$2:$G$13,3,0)),INDEX(INDIRECT(CONCATENATE("'LA SIMD 10 ",$C$1,"'!$C$8:$Dr$71")),'CA SIMD dist data'!$M36+VLOOKUP($C$2,$I$2:$J$3,2,0),'CA SIMD dist data'!X$15+VLOOKUP($C$3,$E$2:$G$13,3,0))) -> 1239 | Z36: North Ayrshire | AA36: 0.002207144609 | AB36: 0.01374903176 | AC36: 0.01129122415 | AD36: 0.009062546427 | AE36: 0.0007177033493 | AF36: 0.01252573782 | AG36: -0.004106009705 | AH36: -0.01296690536 | AI36: 0.002284308557 | AJ36: -0.01353503185
A37: North Lanarkshire | B37: 23146 | C37: 30163 | D37: 29776 | E37: 18895 | F37: 18422 | G37: 14971 | H37: 13053 | I37: 10793 | J37: 13547 | K37: 2594 | M37: 22 | N37: North Lanarkshire | O37: =IF($C$2="Both",INDEX(INDIRECT(CONCATENATE("'LA SIMD 10 ",$C$1,"'!$C$8:$Dr$71")),'CA SIMD dist data'!$M37+VLOOKUP("Female",$I$2:$J$3,2,0),'CA SIMD dist data'!O$15+VLOOKUP($C$3,$E$2:$G$13,3,0))+INDEX(INDIRECT(CONCATENATE("'LA SIMD 10 ",$C$1,"'!$C$8:$Dr$71")),'CA SIMD dist data'!$M37+VLOOKUP("Male",$I$2:$J$3,2,0),'CA SIMD dist data'!O$15+VLOOKUP($C$3,$E$2:$G$13,3,0)),INDEX(INDIRECT(CONCATENATE("'LA SIMD 10 ",$C$1,"'!$C$8:$Dr$71")),'CA SIMD dist data'!$M37+VLOOKUP($C$2,$I$2:$J$3,2,0),'CA SIMD dist data'!O$15+VLOOKUP($C$3,$E$2:$G$13,3,0))) -> 23424 | P37: =IF($C$2="Both",INDEX(INDIRECT(CONCATENATE("'LA SIMD 10 ",$C$1,"'!$C$8:$Dr$71")),'CA SIMD dist data'!$M37+VLOOKUP("Female",$I$2:$J$3,2,0),'CA SIMD dist data'!P$15+VLOOKUP($C$3,$E$2:$G$13,3,0))+INDEX(INDIRECT(CONCATENATE("'LA SIMD 10 ",$C$1,"'!$C$8:$Dr$71")),'CA SIMD dist data'!$M37+VLOOKUP("Male",$I$2:$J$3,2,0),'CA SIMD dist data'!P$15+VLOOKUP($C$3,$E$2:$G$13,3,0)),INDEX(INDIRECT(CONCATENATE("'LA SIMD 10 ",$C$1,"'!$C$8:$Dr$71")),'CA SIMD dist data'!$M37+VLOOKUP($C$2,$I$2:$J$3,2,0),'CA SIMD dist data'!P$15+VLOOKUP($C$3,$E$2:$G$13,3,0))) -> 30472 | Q37: =IF($C$2="Both",INDEX(INDIRECT(CONCATENATE("'LA SIMD 10 ",$C$1,"'!$C$8:$Dr$71")),'CA SIMD dist data'!$M37+VLOOKUP("Female",$I$2:$J$3,2,0),'CA SIMD dist data'!Q$15+VLOOKUP($C$3,$E$2:$G$13,3,0))+INDEX(INDIRECT(CONCATENATE("'LA SIMD 10 ",$C$1,"'!$C$8:$Dr$71")),'CA SIMD dist data'!$M37+VLOOKUP("Male",$I$2:$J$3,2,0),'CA SIMD dist data'!Q$15+VLOOKUP($C$3,$E$2:$G$13,3,0)),INDEX(INDIRECT(CONCATENATE("'LA SIMD 10 ",$C$1,"'!$C$8:$Dr$71")),'CA SIMD dist data'!$M37+VLOOKUP($C$2,$I$2:$J$3,2,0),'CA SIMD dist data'!Q$15+VLOOKUP($C$3,$E$2:$G$13,3,0))) -> 30061 | R37: =IF($C$2="Both",INDEX(INDIRECT(CONCATENATE("'LA SIMD 10 ",$C$1,"'!$C$8:$Dr$71")),'CA SIMD dist data'!$M37+VLOOKUP("Female",$I$2:$J$3,2,0),'CA SIMD dist data'!R$15+VLOOKUP($C$3,$E$2:$G$13,3,0))+INDEX(INDIRECT(CONCATENATE("'LA SIMD 10 ",$C$1,"'!$C$8:$Dr$71")),'CA SIMD dist data'!$M37+VLOOKUP("Male",$I$2:$J$3,2,0),'CA SIMD dist data'!R$15+VLOOKUP($C$3,$E$2:$G$13,3,0)),INDEX(INDIRECT(CONCATENATE("'LA SIMD 10 ",$C$1,"'!$C$8:$Dr$71")),'CA SIMD dist data'!$M37+VLOOKUP($C$2,$I$2:$J$3,2,0),'CA SIMD dist data'!R$15+VLOOKUP($C$3,$E$2:$G$13,3,0))) -> 19185 | S37: =IF($C$2="Both",INDEX(INDIRECT(CONCATENATE("'LA SIMD 10 ",$C$1,"'!$C$8:$Dr$71")),'CA SIMD dist data'!$M37+VLOOKUP("Female",$I$2:$J$3,2,0),'CA SIMD dist data'!S$15+VLOOKUP($C$3,$E$2:$G$13,3,0))+INDEX(INDIRECT(CONCATENATE("'LA SIMD 10 ",$C$1,"'!$C$8:$Dr$71")),'CA SIMD dist data'!$M37+VLOOKUP("Male",$I$2:$J$3,2,0),'CA SIMD dist data'!S$15+VLOOKUP($C$3,$E$2:$G$13,3,0)),INDEX(INDIRECT(CONCATENATE("'LA SIMD 10 ",$C$1,"'!$C$8:$Dr$71")),'CA SIMD dist data'!$M37+VLOOKUP($C$2,$I$2:$J$3,2,0),'CA SIMD dist data'!S$15+VLOOKUP($C$3,$E$2:$G$13,3,0))) -> 18316 | T37: =IF($C$2="Both",INDEX(INDIRECT(CONCATENATE("'LA SIMD 10 ",$C$1,"'!$C$8:$Dr$71")),'CA SIMD dist data'!$M37+VLOOKUP("Female",$I$2:$J$3,2,0),'CA SIMD dist data'!T$15+VLOOKUP($C$3,$E$2:$G$13,3,0))+INDEX(INDIRECT(CONCATENATE("'LA SIMD 10 ",$C$1,"'!$C$8:$Dr$71")),'CA SIMD dist data'!$M37+VLOOKUP("Male",$I$2:$J$3,2,0),'CA SIMD dist data'!T$15+VLOOKUP($C$3,$E$2:$G$13,3,0)),INDEX(INDIRECT(CONCATENATE("'LA SIMD 10 ",$C$1,"'!$C$8:$Dr$71")),'CA SIMD dist data'!$M37+VLOOKUP($C$2,$I$2:$J$3,2,0),'CA SIMD dist data'!T$15+VLOOKUP($C$3,$E$2:$G$13,3,0))) -> 15276 | U37: =IF($C$2="Both",INDEX(INDIRECT(CONCATENATE("'LA SIMD 10 ",$C$1,"'!$C$8:$Dr$71")),'CA SIMD dist data'!$M37+VLOOKUP("Female",$I$2:$J$3,2,0),'CA SIMD dist data'!U$15+VLOOKUP($C$3,$E$2:$G$13,3,0))+INDEX(INDIRECT(CONCATENATE("'LA SIMD 10 ",$C$1,"'!$C$8:$Dr$71")),'CA SIMD dist data'!$M37+VLOOKUP("Male",$I$2:$J$3,2,0),'CA SIMD dist data'!U$15+VLOOKUP($C$3,$E$2:$G$13,3,0)),INDEX(INDIRECT(CONCATENATE("'LA SIMD 10 ",$C$1,"'!$C$8:$Dr$71")),'CA SIMD dist data'!$M37+VLOOKUP($C$2,$I$2:$J$3,2,0),'CA SIMD dist data'!U$15+VLOOKUP($C$3,$E$2:$G$13,3,0))) -> 12929 | V37: =IF($C$2="Both",INDEX(INDIRECT(CONCATENATE("'LA SIMD 10 ",$C$1,"'!$C$8:$Dr$71")),'CA SIMD dist data'!$M37+VLOOKUP("Female",$I$2:$J$3,2,0),'CA SIMD dist data'!V$15+VLOOKUP($C$3,$E$2:$G$13,3,0))+INDEX(INDIRECT(CONCATENATE("'LA SIMD 10 ",$C$1,"'!$C$8:$Dr$71")),'CA SIMD dist data'!$M37+VLOOKUP("Male",$I$2:$J$3,2,0),'CA SIMD dist data'!V$15+VLOOKUP($C$3,$E$2:$G$13,3,0)),INDEX(INDIRECT(CONCATENATE("'LA SIMD 10 ",$C$1,"'!$C$8:$Dr$71")),'CA SIMD dist data'!$M37+VLOOKUP($C$2,$I$2:$J$3,2,0),'CA SIMD dist data'!V$15+VLOOKUP($C$3,$E$2:$G$13,3,0))) -> 10493 | W37: =IF($C$2="Both",INDEX(INDIRECT(CONCATENATE("'LA SIMD 10 ",$C$1,"'!$C$8:$Dr$71")),'CA SIMD dist data'!$M37+VLOOKUP("Female",$I$2:$J$3,2,0),'CA SIMD dist data'!W$15+VLOOKUP($C$3,$E$2:$G$13,3,0))+INDEX(INDIRECT(CONCATENATE("'LA SIMD 10 ",$C$1,"'!$C$8:$Dr$71")),'CA SIMD dist data'!$M37+VLOOKUP("Male",$I$2:$J$3,2,0),'CA SIMD dist data'!W$15+VLOOKUP($C$3,$E$2:$G$13,3,0)),INDEX(INDIRECT(CONCATENATE("'LA SIMD 10 ",$C$1,"'!$C$8:$Dr$71")),'CA SIMD dist data'!$M37+VLOOKUP($C$2,$I$2:$J$3,2,0),'CA SIMD dist data'!W$15+VLOOKUP($C$3,$E$2:$G$13,3,0))) -> 13206 | X37: =IF($C$2="Both",INDEX(INDIRECT(CONCATENATE("'LA SIMD 10 ",$C$1,"'!$C$8:$Dr$71")),'CA SIMD dist data'!$M37+VLOOKUP("Female",$I$2:$J$3,2,0),'CA SIMD dist data'!X$15+VLOOKUP($C$3,$E$2:$G$13,3,0))+INDEX(INDIRECT(CONCATENATE("'LA SIMD 10 ",$C$1,"'!$C$8:$Dr$71")),'CA SIMD dist data'!$M37+VLOOKUP("Male",$I$2:$J$3,2,0),'CA SIMD dist data'!X$15+VLOOKUP($C$3,$E$2:$G$13,3,0)),INDEX(INDIRECT(CONCATENATE("'LA SIMD 10 ",$C$1,"'!$C$8:$Dr$71")),'CA SIMD dist data'!$M37+VLOOKUP($C$2,$I$2:$J$3,2,0),'CA SIMD dist data'!X$15+VLOOKUP($C$3,$E$2:$G$13,3,0))) -> 2655 | Z37: North Lanarkshire | AA37: 0.01201071459 | AB37: 0.01024433909 | AC37: 0.009571466953 | AD37: 0.01534797565 | AE37: -0.005753989795 | AF37: 0.02037272059 | AG37: -0.009499731862 | AH37: -0.02779579357 | AI37: -0.02517162471 | AJ37: 0.02351580571
A38: Orkney Islands | B38: 0 | C38: 0 | D38: 250 | E38: 1274 | F38: 1597 | G38: 1433 | H38: 3411 | I38: 2199 | J38: 539 | K38: 448 | M38: 23 | N38: Orkney Islands | O38: =IF($C$2="Both",INDEX(INDIRECT(CONCATENATE("'LA SIMD 10 ",$C$1,"'!$C$8:$Dr$71")),'CA SIMD dist data'!$M38+VLOOKUP("Female",$I$2:$J$3,2,0),'CA SIMD dist data'!O$15+VLOOKUP($C$3,$E$2:$G$13,3,0))+INDEX(INDIRECT(CONCATENATE("'LA SIMD 10 ",$C$1,"'!$C$8:$Dr$71")),'CA SIMD dist data'!$M38+VLOOKUP("Male",$I$2:$J$3,2,0),'CA SIMD dist data'!O$15+VLOOKUP($C$3,$E$2:$G$13,3,0)),INDEX(INDIRECT(CONCATENATE("'LA SIMD 10 ",$C$1,"'!$C$8:$Dr$71")),'CA SIMD dist data'!$M38+VLOOKUP($C$2,$I$2:$J$3,2,0),'CA SIMD dist data'!O$15+VLOOKUP($C$3,$E$2:$G$13,3,0))) -> 0 | P38: =IF($C$2="Both",INDEX(INDIRECT(CONCATENATE("'LA SIMD 10 ",$C$1,"'!$C$8:$Dr$71")),'CA SIMD dist data'!$M38+VLOOKUP("Female",$I$2:$J$3,2,0),'CA SIMD dist data'!P$15+VLOOKUP($C$3,$E$2:$G$13,3,0))+INDEX(INDIRECT(CONCATENATE("'LA SIMD 10 ",$C$1,"'!$C$8:$Dr$71")),'CA SIMD dist data'!$M38+VLOOKUP("Male",$I$2:$J$3,2,0),'CA SIMD dist data'!P$15+VLOOKUP($C$3,$E$2:$G$13,3,0)),INDEX(INDIRECT(CONCATENATE("'LA SIMD 10 ",$C$1,"'!$C$8:$Dr$71")),'CA SIMD dist data'!$M38+VLOOKUP($C$2,$I$2:$J$3,2,0),'CA SIMD dist data'!P$15+VLOOKUP($C$3,$E$2:$G$13,3,0))) -> 0 | Q38: =IF($C$2="Both",INDEX(INDIRECT(CONCATENATE("'LA SIMD 10 ",$C$1,"'!$C$8:$Dr$71")),'CA SIMD dist data'!$M38+VLOOKUP("Female",$I$2:$J$3,2,0),'CA SIMD dist data'!Q$15+VLOOKUP($C$3,$E$2:$G$13,3,0))+INDEX(INDIRECT(CONCATENATE("'LA SIMD 10 ",$C$1,"'!$C$8:$Dr$71")),'CA SIMD dist data'!$M38+VLOOKUP("Male",$I$2:$J$3,2,0),'CA SIMD dist data'!Q$15+VLOOKUP($C$3,$E$2:$G$13,3,0)),INDEX(INDIRECT(CONCATENATE("'LA SIMD 10 ",$C$1,"'!$C$8:$Dr$71")),'CA SIMD dist data'!$M38+VLOOKUP($C$2,$I$2:$J$3,2,0),'CA SIMD dist data'!Q$15+VLOOKUP($C$3,$E$2:$G$13,3,0))) -> 236 | R38: =IF($C$2="Both",INDEX(INDIRECT(CONCATENATE("'LA SIMD 10 ",$C$1,"'!$C$8:$Dr$71")),'CA SIMD dist data'!$M38+VLOOKUP("Female",$I$2:$J$3,2,0),'CA SIMD dist data'!R$15+VLOOKUP($C$3,$E$2:$G$13,3,0))+INDEX(INDIRECT(CONCATENATE("'LA SIMD 10 ",$C$1,"'!$C$8:$Dr$71")),'CA SIMD dist data'!$M38+VLOOKUP("Male",$I$2:$J$3,2,0),'CA SIMD dist data'!R$15+VLOOKUP($C$3,$E$2:$G$13,3,0)),INDEX(INDIRECT(CONCATENATE("'LA SIMD 10 ",$C$1,"'!$C$8:$Dr$71")),'CA SIMD dist data'!$M38+VLOOKUP($C$2,$I$2:$J$3,2,0),'CA SIMD dist data'!R$15+VLOOKUP($C$3,$E$2:$G$13,3,0))) -> 1203 | S38: =IF($C$2="Both",INDEX(INDIRECT(CONCATENATE("'LA SIMD 10 ",$C$1,"'!$C$8:$Dr$71")),'CA SIMD dist data'!$M38+VLOOKUP("Female",$I$2:$J$3,2,0),'CA SIMD dist data'!S$15+VLOOKUP($C$3,$E$2:$G$13,3,0))+INDEX(INDIRECT(CONCATENATE("'LA SIMD 10 ",$C$1,"'!$C$8:$Dr$71")),'CA SIMD dist data'!$M38+VLOOKUP("Male",$I$2:$J$3,2,0),'CA SIMD dist data'!S$15+VLOOKUP($C$3,$E$2:$G$13,3,0)),INDEX(INDIRECT(CONCATENATE("'LA SIMD 10 ",$C$1,"'!$C$8:$Dr$71")),'CA SIMD dist data'!$M38+VLOOKUP($C$2,$I$2:$J$3,2,0),'CA SIMD dist data'!S$15+VLOOKUP($C$3,$E$2:$G$13,3,0))) -> 1555 | T38: =IF($C$2="Both",INDEX(INDIRECT(CONCATENATE("'LA SIMD 10 ",$C$1,"'!$C$8:$Dr$71")),'CA SIMD dist data'!$M38+VLOOKUP("Female",$I$2:$J$3,2,0),'CA SIMD dist data'!T$15+VLOOKUP($C$3,$E$2:$G$13,3,0))+INDEX(INDIRECT(CONCATENATE("'LA SIMD 10 ",$C$1,"'!$C$8:$Dr$71")),'CA SIMD dist data'!$M38+VLOOKUP("Male",$I$2:$J$3,2,0),'CA SIMD dist data'!T$15+VLOOKUP($C$3,$E$2:$G$13,3,0)),INDEX(INDIRECT(CONCATENATE("'LA SIMD 10 ",$C$1,"'!$C$8:$Dr$71")),'CA SIMD dist data'!$M38+VLOOKUP($C$2,$I$2:$J$3,2,0),'CA SIMD dist data'!T$15+VLOOKUP($C$3,$E$2:$G$13,3,0))) -> 1434 | U38: =IF($C$2="Both",INDEX(INDIRECT(CONCATENATE("'LA SIMD 10 ",$C$1,"'!$C$8:$Dr$71")),'CA SIMD dist data'!$M38+VLOOKUP("Female",$I$2:$J$3,2,0),'CA SIMD dist data'!U$15+VLOOKUP($C$3,$E$2:$G$13,3,0))+INDEX(INDIRECT(CONCATENATE("'LA SIMD 10 ",$C$1,"'!$C$8:$Dr$71")),'CA SIMD dist data'!$M38+VLOOKUP("Male",$I$2:$J$3,2,0),'CA SIMD dist data'!U$15+VLOOKUP($C$3,$E$2:$G$13,3,0)),INDEX(INDIRECT(CONCATENATE("'LA SIMD 10 ",$C$1,"'!$C$8:$Dr$71")),'CA SIMD dist data'!$M38+VLOOKUP($C$2,$I$2:$J$3,2,0),'CA SIMD dist data'!U$15+VLOOKUP($C$3,$E$2:$G$13,3,0))) -> 3196 | V38: =IF($C$2="Both",INDEX(INDIRECT(CONCATENATE("'LA SIMD 10 ",$C$1,"'!$C$8:$Dr$71")),'CA SIMD dist data'!$M38+VLOOKUP("Female",$I$2:$J$3,2,0),'CA SIMD dist data'!V$15+VLOOKUP($C$3,$E$2:$G$13,3,0))+INDEX(INDIRECT(CONCATENATE("'LA SIMD 10 ",$C$1,"'!$C$8:$Dr$71")),'CA SIMD dist data'!$M38+VLOOKUP("Male",$I$2:$J$3,2,0),'CA SIMD dist data'!V$15+VLOOKUP($C$3,$E$2:$G$13,3,0)),INDEX(INDIRECT(CONCATENATE("'LA SIMD 10 ",$C$1,"'!$C$8:$Dr$71")),'CA SIMD dist data'!$M38+VLOOKUP($C$2,$I$2:$J$3,2,0),'CA SIMD dist data'!V$15+VLOOKUP($C$3,$E$2:$G$13,3,0))) -> 2100 | W38: =IF($C$2="Both",INDEX(INDIRECT(CONCATENATE("'LA SIMD 10 ",$C$1,"'!$C$8:$Dr$71")),'CA SIMD dist data'!$M38+VLOOKUP("Female",$I$2:$J$3,2,0),'CA SIMD dist data'!W$15+VLOOKUP($C$3,$E$2:$G$13,3,0))+INDEX(INDIRECT(CONCATENATE("'LA SIMD 10 ",$C$1,"'!$C$8:$Dr$71")),'CA SIMD dist data'!$M38+VLOOKUP("Male",$I$2:$J$3,2,0),'CA SIMD dist data'!W$15+VLOOKUP($C$3,$E$2:$G$13,3,0)),INDEX(INDIRECT(CONCATENATE("'LA SIMD 10 ",$C$1,"'!$C$8:$Dr$71")),'CA SIMD dist data'!$M38+VLOOKUP($C$2,$I$2:$J$3,2,0),'CA SIMD dist data'!W$15+VLOOKUP($C$3,$E$2:$G$13,3,0))) -> 552 | X38: =IF($C$2="Both",INDEX(INDIRECT(CONCATENATE("'LA SIMD 10 ",$C$1,"'!$C$8:$Dr$71")),'CA SIMD dist data'!$M38+VLOOKUP("Female",$I$2:$J$3,2,0),'CA SIMD dist data'!X$15+VLOOKUP($C$3,$E$2:$G$13,3,0))+INDEX(INDIRECT(CONCATENATE("'LA SIMD 10 ",$C$1,"'!$C$8:$Dr$71")),'CA SIMD dist data'!$M38+VLOOKUP("Male",$I$2:$J$3,2,0),'CA SIMD dist data'!X$15+VLOOKUP($C$3,$E$2:$G$13,3,0)),INDEX(INDIRECT(CONCATENATE("'LA SIMD 10 ",$C$1,"'!$C$8:$Dr$71")),'CA SIMD dist data'!$M38+VLOOKUP($C$2,$I$2:$J$3,2,0),'CA SIMD dist data'!X$15+VLOOKUP($C$3,$E$2:$G$13,3,0))) -> 419 | Z38: Orkney Islands | AC38: -0.056 | AD38: -0.0557299843 | AE38: -0.02629931121 | AF38: 0.0006978367062 | AG38: -0.0630313691 | AH38: -0.04502046385 | AI38: 0.0241187384 | AJ38: -0.06473214286
A39: Perth and Kinross | B39: 1802 | C39: 2313 | D39: 3467 | E39: 4470 | F39: 7951 | G39: 9103 | H39: 14953 | I39: 16599 | J39: 9274 | K39: 6991 | M39: 24 | N39: Perth and Kinross | O39: =IF($C$2="Both",INDEX(INDIRECT(CONCATENATE("'LA SIMD 10 ",$C$1,"'!$C$8:$Dr$71")),'CA SIMD dist data'!$M39+VLOOKUP("Female",$I$2:$J$3,2,0),'CA SIMD dist data'!O$15+VLOOKUP($C$3,$E$2:$G$13,3,0))+INDEX(INDIRECT(CONCATENATE("'LA SIMD 10 ",$C$1,"'!$C$8:$Dr$71")),'CA SIMD dist data'!$M39+VLOOKUP("Male",$I$2:$J$3,2,0),'CA SIMD dist data'!O$15+VLOOKUP($C$3,$E$2:$G$13,3,0)),INDEX(INDIRECT(CONCATENATE("'LA SIMD 10 ",$C$1,"'!$C$8:$Dr$71")),'CA SIMD dist data'!$M39+VLOOKUP($C$2,$I$2:$J$3,2,0),'CA SIMD dist data'!O$15+VLOOKUP($C$3,$E$2:$G$13,3,0))) -> 1925 | P39: =IF($C$2="Both",INDEX(INDIRECT(CONCATENATE("'LA SIMD 10 ",$C$1,"'!$C$8:$Dr$71")),'CA SIMD dist data'!$M39+VLOOKUP("Female",$I$2:$J$3,2,0),'CA SIMD dist data'!P$15+VLOOKUP($C$3,$E$2:$G$13,3,0))+INDEX(INDIRECT(CONCATENATE("'LA SIMD 10 ",$C$1,"'!$C$8:$Dr$71")),'CA SIMD dist data'!$M39+VLOOKUP("Male",$I$2:$J$3,2,0),'CA SIMD dist data'!P$15+VLOOKUP($C$3,$E$2:$G$13,3,0)),INDEX(INDIRECT(CONCATENATE("'LA SIMD 10 ",$C$1,"'!$C$8:$Dr$71")),'CA SIMD dist data'!$M39+VLOOKUP($C$2,$I$2:$J$3,2,0),'CA SIMD dist data'!P$15+VLOOKUP($C$3,$E$2:$G$13,3,0))) -> 2426 | Q39: =IF($C$2="Both",INDEX(INDIRECT(CONCATENATE("'LA SIMD 10 ",$C$1,"'!$C$8:$Dr$71")),'CA SIMD dist data'!$M39+VLOOKUP("Female",$I$2:$J$3,2,0),'CA SIMD dist data'!Q$15+VLOOKUP($C$3,$E$2:$G$13,3,0))+INDEX(INDIRECT(CONCATENATE("'LA SIMD 10 ",$C$1,"'!$C$8:$Dr$71")),'CA SIMD dist data'!$M39+VLOOKUP("Male",$I$2:$J$3,2,0),'CA SIMD dist data'!Q$15+VLOOKUP($C$3,$E$2:$G$13,3,0)),INDEX(INDIRECT(CONCATENATE("'LA SIMD 10 ",$C$1,"'!$C$8:$Dr$71")),'CA SIMD dist data'!$M39+VLOOKUP($C$2,$I$2:$J$3,2,0),'CA SIMD dist data'!Q$15+VLOOKUP($C$3,$E$2:$G$13,3,0))) -> 3481 | R39: =IF($C$2="Both",INDEX(INDIRECT(CONCATENATE("'LA SIMD 10 ",$C$1,"'!$C$8:$Dr$71")),'CA SIMD dist data'!$M39+VLOOKUP("Female",$I$2:$J$3,2,0),'CA SIMD dist data'!R$15+VLOOKUP($C$3,$E$2:$G$13,3,0))+INDEX(INDIRECT(CONCATENATE("'LA SIMD 10 ",$C$1,"'!$C$8:$Dr$71")),'CA SIMD dist data'!$M39+VLOOKUP("Male",$I$2:$J$3,2,0),'CA SIMD dist data'!R$15+VLOOKUP($C$3,$E$2:$G$13,3,0)),INDEX(INDIRECT(CONCATENATE("'LA SIMD 10 ",$C$1,"'!$C$8:$Dr$71")),'CA SIMD dist data'!$M39+VLOOKUP($C$2,$I$2:$J$3,2,0),'CA SIMD dist data'!R$15+VLOOKUP($C$3,$E$2:$G$13,3,0))) -> 4528 | S39: =IF($C$2="Both",INDEX(INDIRECT(CONCATENATE("'LA SIMD 10 ",$C$1,"'!$C$8:$Dr$71")),'CA SIMD dist data'!$M39+VLOOKUP("Female",$I$2:$J$3,2,0),'CA SIMD dist data'!S$15+VLOOKUP($C$3,$E$2:$G$13,3,0))+INDEX(INDIRECT(CONCATENATE("'LA SIMD 10 ",$C$1,"'!$C$8:$Dr$71")),'CA SIMD dist data'!$M39+VLOOKUP("Male",$I$2:$J$3,2,0),'CA SIMD dist data'!S$15+VLOOKUP($C$3,$E$2:$G$13,3,0)),INDEX(INDIRECT(CONCATENATE("'LA SIMD 10 ",$C$1,"'!$C$8:$Dr$71")),'CA SIMD dist data'!$M39+VLOOKUP($C$2,$I$2:$J$3,2,0),'CA SIMD dist data'!S$15+VLOOKUP($C$3,$E$2:$G$13,3,0))) -> 7969 | T39: =IF($C$2="Both",INDEX(INDIRECT(CONCATENATE("'LA SIMD 10 ",$C$1,"'!$C$8:$Dr$71")),'CA SIMD dist data'!$M39+VLOOKUP("Female",$I$2:$J$3,2,0),'CA SIMD dist data'!T$15+VLOOKUP($C$3,$E$2:$G$13,3,0))+INDEX(INDIRECT(CONCATENATE("'LA SIMD 10 ",$C$1,"'!$C$8:$Dr$71")),'CA SIMD dist data'!$M39+VLOOKUP("Male",$I$2:$J$3,2,0),'CA SIMD dist data'!T$15+VLOOKUP($C$3,$E$2:$G$13,3,0)),INDEX(INDIRECT(CONCATENATE("'LA SIMD 10 ",$C$1,"'!$C$8:$Dr$71")),'CA SIMD dist data'!$M39+VLOOKUP($C$2,$I$2:$J$3,2,0),'CA SIMD dist data'!T$15+VLOOKUP($C$3,$E$2:$G$13,3,0))) -> 9043 | U39: =IF($C$2="Both",INDEX(INDIRECT(CONCATENATE("'LA SIMD 10 ",$C$1,"'!$C$8:$Dr$71")),'CA SIMD dist data'!$M39+VLOOKUP("Female",$I$2:$J$3,2,0),'CA SIMD dist data'!U$15+VLOOKUP($C$3,$E$2:$G$13,3,0))+INDEX(INDIRECT(CONCATENATE("'LA SIMD 10 ",$C$1,"'!$C$8:$Dr$71")),'CA SIMD dist data'!$M39+VLOOKUP("Male",$I$2:$J$3,2,0),'CA SIMD dist data'!U$15+VLOOKUP($C$3,$E$2:$G$13,3,0)),INDEX(INDIRECT(CONCATENATE("'LA SIMD 10 ",$C$1,"'!$C$8:$Dr$71")),'CA SIMD dist data'!$M39+VLOOKUP($C$2,$I$2:$J$3,2,0),'CA SIMD dist data'!U$15+VLOOKUP($C$3,$E$2:$G$13,3,0))) -> 14668 | V39: =IF($C$2="Both",INDEX(INDIRECT(CONCATENATE("'LA SIMD 10 ",$C$1,"'!$C$8:$Dr$71")),'CA SIMD dist data'!$M39+VLOOKUP("Female",$I$2:$J$3,2,0),'CA SIMD dist data'!V$15+VLOOKUP($C$3,$E$2:$G$13,3,0))+INDEX(INDIRECT(CONCATENATE("'LA SIMD 10 ",$C$1,"'!$C$8:$Dr$71")),'CA SIMD dist data'!$M39+VLOOKUP("Male",$I$2:$J$3,2,0),'CA SIMD dist data'!V$15+VLOOKUP($C$3,$E$2:$G$13,3,0)),INDEX(INDIRECT(CONCATENATE("'LA SIMD 10 ",$C$1,"'!$C$8:$Dr$71")),'CA SIMD dist data'!$M39+VLOOKUP($C$2,$I$2:$J$3,2,0),'CA SIMD dist data'!V$15+VLOOKUP($C$3,$E$2:$G$13,3,0))) -> 16168 | W39: =IF($C$2="Both",INDEX(INDIRECT(CONCATENATE("'LA SIMD 10 ",$C$1,"'!$C$8:$Dr$71")),'CA SIMD dist data'!$M39+VLOOKUP("Female",$I$2:$J$3,2,0),'CA SIMD dist data'!W$15+VLOOKUP($C$3,$E$2:$G$13,3,0))+INDEX(INDIRECT(CONCATENATE("'LA SIMD 10 ",$C$1,"'!$C$8:$Dr$71")),'CA SIMD dist data'!$M39+VLOOKUP("Male",$I$2:$J$3,2,0),'CA SIMD dist data'!W$15+VLOOKUP($C$3,$E$2:$G$13,3,0)),INDEX(INDIRECT(CONCATENATE("'LA SIMD 10 ",$C$1,"'!$C$8:$Dr$71")),'CA SIMD dist data'!$M39+VLOOKUP($C$2,$I$2:$J$3,2,0),'CA SIMD dist data'!W$15+VLOOKUP($C$3,$E$2:$G$13,3,0))) -> 9020 | X39: =IF($C$2="Both",INDEX(INDIRECT(CONCATENATE("'LA SIMD 10 ",$C$1,"'!$C$8:$Dr$71")),'CA SIMD dist data'!$M39+VLOOKUP("Female",$I$2:$J$3,2,0),'CA SIMD dist data'!X$15+VLOOKUP($C$3,$E$2:$G$13,3,0))+INDEX(INDIRECT(CONCATENATE("'LA SIMD 10 ",$C$1,"'!$C$8:$Dr$71")),'CA SIMD dist data'!$M39+VLOOKUP("Male",$I$2:$J$3,2,0),'CA SIMD dist data'!X$15+VLOOKUP($C$3,$E$2:$G$13,3,0)),INDEX(INDIRECT(CONCATENATE("'LA SIMD 10 ",$C$1,"'!$C$8:$Dr$71")),'CA SIMD dist data'!$M39+VLOOKUP($C$2,$I$2:$J$3,2,0),'CA SIMD dist data'!X$15+VLOOKUP($C$3,$E$2:$G$13,3,0))) -> 6990 | Z39: Perth and Kinross | AA39: 0.06825749168 | AB39: 0.04885430177 | AC39: 0.004038073262 | AD39: 0.0129753915 | AE39: 0.00226386618 | AF39: -0.006591233659 | AG39: -0.01905972046 | AH39: -0.0259654196 | AI39: -0.02738839767 | AJ39: -0.0001430410528
A40: Renfrewshire | B40: 13871 | C40: 10500 | D40: 10440 | E40: 7950 | F40: 7245 | G40: 8949 | H40: 4839 | I40: 10705 | J40: 12820 | K40: 4602 | M40: 25 | N40: Renfrewshire | O40: =IF($C$2="Both",INDEX(INDIRECT(CONCATENATE("'LA SIMD 10 ",$C$1,"'!$C$8:$Dr$71")),'CA SIMD dist data'!$M40+VLOOKUP("Female",$I$2:$J$3,2,0),'CA SIMD dist data'!O$15+VLOOKUP($C$3,$E$2:$G$13,3,0))+INDEX(INDIRECT(CONCATENATE("'LA SIMD 10 ",$C$1,"'!$C$8:$Dr$71")),'CA SIMD dist data'!$M40+VLOOKUP("Male",$I$2:$J$3,2,0),'CA SIMD dist data'!O$15+VLOOKUP($C$3,$E$2:$G$13,3,0)),INDEX(INDIRECT(CONCATENATE("'LA SIMD 10 ",$C$1,"'!$C$8:$Dr$71")),'CA SIMD dist data'!$M40+VLOOKUP($C$2,$I$2:$J$3,2,0),'CA SIMD dist data'!O$15+VLOOKUP($C$3,$E$2:$G$13,3,0))) -> 14096 | P40: =IF($C$2="Both",INDEX(INDIRECT(CONCATENATE("'LA SIMD 10 ",$C$1,"'!$C$8:$Dr$71")),'CA SIMD dist data'!$M40+VLOOKUP("Female",$I$2:$J$3,2,0),'CA SIMD dist data'!P$15+VLOOKUP($C$3,$E$2:$G$13,3,0))+INDEX(INDIRECT(CONCATENATE("'LA SIMD 10 ",$C$1,"'!$C$8:$Dr$71")),'CA SIMD dist data'!$M40+VLOOKUP("Male",$I$2:$J$3,2,0),'CA SIMD dist data'!P$15+VLOOKUP($C$3,$E$2:$G$13,3,0)),INDEX(INDIRECT(CONCATENATE("'LA SIMD 10 ",$C$1,"'!$C$8:$Dr$71")),'CA SIMD dist data'!$M40+VLOOKUP($C$2,$I$2:$J$3,2,0),'CA SIMD dist data'!P$15+VLOOKUP($C$3,$E$2:$G$13,3,0))) -> 10442 | Q40: =IF($C$2="Both",INDEX(INDIRECT(CONCATENATE("'LA SIMD 10 ",$C$1,"'!$C$8:$Dr$71")),'CA SIMD dist data'!$M40+VLOOKUP("Female",$I$2:$J$3,2,0),'CA SIMD dist data'!Q$15+VLOOKUP($C$3,$E$2:$G$13,3,0))+INDEX(INDIRECT(CONCATENATE("'LA SIMD 10 ",$C$1,"'!$C$8:$Dr$71")),'CA SIMD dist data'!$M40+VLOOKUP("Male",$I$2:$J$3,2,0),'CA SIMD dist data'!Q$15+VLOOKUP($C$3,$E$2:$G$13,3,0)),INDEX(INDIRECT(CONCATENATE("'LA SIMD 10 ",$C$1,"'!$C$8:$Dr$71")),'CA SIMD dist data'!$M40+VLOOKUP($C$2,$I$2:$J$3,2,0),'CA SIMD dist data'!Q$15+VLOOKUP($C$3,$E$2:$G$13,3,0))) -> 10502 | R40: =IF($C$2="Both",INDEX(INDIRECT(CONCATENATE("'LA SIMD 10 ",$C$1,"'!$C$8:$Dr$71")),'CA SIMD dist data'!$M40+VLOOKUP("Female",$I$2:$J$3,2,0),'CA SIMD dist data'!R$15+VLOOKUP($C$3,$E$2:$G$13,3,0))+INDEX(INDIRECT(CONCATENATE("'LA SIMD 10 ",$C$1,"'!$C$8:$Dr$71")),'CA SIMD dist data'!$M40+VLOOKUP("Male",$I$2:$J$3,2,0),'CA SIMD dist data'!R$15+VLOOKUP($C$3,$E$2:$G$13,3,0)),INDEX(INDIRECT(CONCATENATE("'LA SIMD 10 ",$C$1,"'!$C$8:$Dr$71")),'CA SIMD dist data'!$M40+VLOOKUP($C$2,$I$2:$J$3,2,0),'CA SIMD dist data'!R$15+VLOOKUP($C$3,$E$2:$G$13,3,0))) -> 8095 | S40: =IF($C$2="Both",INDEX(INDIRECT(CONCATENATE("'LA SIMD 10 ",$C$1,"'!$C$8:$Dr$71")),'CA SIMD dist data'!$M40+VLOOKUP("Female",$I$2:$J$3,2,0),'CA SIMD dist data'!S$15+VLOOKUP($C$3,$E$2:$G$13,3,0))+INDEX(INDIRECT(CONCATENATE("'LA SIMD 10 ",$C$1,"'!$C$8:$Dr$71")),'CA SIMD dist data'!$M40+VLOOKUP("Male",$I$2:$J$3,2,0),'CA SIMD dist data'!S$15+VLOOKUP($C$3,$E$2:$G$13,3,0)),INDEX(INDIRECT(CONCATENATE("'LA SIMD 10 ",$C$1,"'!$C$8:$Dr$71")),'CA SIMD dist data'!$M40+VLOOKUP($C$2,$I$2:$J$3,2,0),'CA SIMD dist data'!S$15+VLOOKUP($C$3,$E$2:$G$13,3,0))) -> 7231 | T40: =IF($C$2="Both",INDEX(INDIRECT(CONCATENATE("'LA SIMD 10 ",$C$1,"'!$C$8:$Dr$71")),'CA SIMD dist data'!$M40+VLOOKUP("Female",$I$2:$J$3,2,0),'CA SIMD dist data'!T$15+VLOOKUP($C$3,$E$2:$G$13,3,0))+INDEX(INDIRECT(CONCATENATE("'LA SIMD 10 ",$C$1,"'!$C$8:$Dr$71")),'CA SIMD dist data'!$M40+VLOOKUP("Male",$I$2:$J$3,2,0),'CA SIMD dist data'!T$15+VLOOKUP($C$3,$E$2:$G$13,3,0)),INDEX(INDIRECT(CONCATENATE("'LA SIMD 10 ",$C$1,"'!$C$8:$Dr$71")),'CA SIMD dist data'!$M40+VLOOKUP($C$2,$I$2:$J$3,2,0),'CA SIMD dist data'!T$15+VLOOKUP($C$3,$E$2:$G$13,3,0))) -> 8934 | U40: =IF($C$2="Both",INDEX(INDIRECT(CONCATENATE("'LA SIMD 10 ",$C$1,"'!$C$8:$Dr$71")),'CA SIMD dist data'!$M40+VLOOKUP("Female",$I$2:$J$3,2,0),'CA SIMD dist data'!U$15+VLOOKUP($C$3,$E$2:$G$13,3,0))+INDEX(INDIRECT(CONCATENATE("'LA SIMD 10 ",$C$1,"'!$C$8:$Dr$71")),'CA SIMD dist data'!$M40+VLOOKUP("Male",$I$2:$J$3,2,0),'CA SIMD dist data'!U$15+VLOOKUP($C$3,$E$2:$G$13,3,0)),INDEX(INDIRECT(CONCATENATE("'LA SIMD 10 ",$C$1,"'!$C$8:$Dr$71")),'CA SIMD dist data'!$M40+VLOOKUP($C$2,$I$2:$J$3,2,0),'CA SIMD dist data'!U$15+VLOOKUP($C$3,$E$2:$G$13,3,0))) -> 4665 | V40: =IF($C$2="Both",INDEX(INDIRECT(CONCATENATE("'LA SIMD 10 ",$C$1,"'!$C$8:$Dr$71")),'CA SIMD dist data'!$M40+VLOOKUP("Female",$I$2:$J$3,2,0),'CA SIMD dist data'!V$15+VLOOKUP($C$3,$E$2:$G$13,3,0))+INDEX(INDIRECT(CONCATENATE("'LA SIMD 10 ",$C$1,"'!$C$8:$Dr$71")),'CA SIMD dist data'!$M40+VLOOKUP("Male",$I$2:$J$3,2,0),'CA SIMD dist data'!V$15+VLOOKUP($C$3,$E$2:$G$13,3,0)),INDEX(INDIRECT(CONCATENATE("'LA SIMD 10 ",$C$1,"'!$C$8:$Dr$71")),'CA SIMD dist data'!$M40+VLOOKUP($C$2,$I$2:$J$3,2,0),'CA SIMD dist data'!V$15+VLOOKUP($C$3,$E$2:$G$13,3,0))) -> 10742 | W40: =IF($C$2="Both",INDEX(INDIRECT(CONCATENATE("'LA SIMD 10 ",$C$1,"'!$C$8:$Dr$71")),'CA SIMD dist data'!$M40+VLOOKUP("Female",$I$2:$J$3,2,0),'CA SIMD dist data'!W$15+VLOOKUP($C$3,$E$2:$G$13,3,0))+INDEX(INDIRECT(CONCATENATE("'LA SIMD 10 ",$C$1,"'!$C$8:$Dr$71")),'CA SIMD dist data'!$M40+VLOOKUP("Male",$I$2:$J$3,2,0),'CA SIMD dist data'!W$15+VLOOKUP($C$3,$E$2:$G$13,3,0)),INDEX(INDIRECT(CONCATENATE("'LA SIMD 10 ",$C$1,"'!$C$8:$Dr$71")),'CA SIMD dist data'!$M40+VLOOKUP($C$2,$I$2:$J$3,2,0),'CA SIMD dist data'!W$15+VLOOKUP($C$3,$E$2:$G$13,3,0))) -> 12876 | X40: =IF($C$2="Both",INDEX(INDIRECT(CONCATENATE("'LA SIMD 10 ",$C$1,"'!$C$8:$Dr$71")),'CA SIMD dist data'!$M40+VLOOKUP("Female",$I$2:$J$3,2,0),'CA SIMD dist data'!X$15+VLOOKUP($C$3,$E$2:$G$13,3,0))+INDEX(INDIRECT(CONCATENATE("'LA SIMD 10 ",$C$1,"'!$C$8:$Dr$71")),'CA SIMD dist data'!$M40+VLOOKUP("Male",$I$2:$J$3,2,0),'CA SIMD dist data'!X$15+VLOOKUP($C$3,$E$2:$G$13,3,0)),INDEX(INDIRECT(CONCATENATE("'LA SIMD 10 ",$C$1,"'!$C$8:$Dr$71")),'CA SIMD dist data'!$M40+VLOOKUP($C$2,$I$2:$J$3,2,0),'CA SIMD dist data'!X$15+VLOOKUP($C$3,$E$2:$G$13,3,0))) -> 4637 | Z40: Renfrewshire | AA40: 0.01622089251 | AB40: -0.005523809524 | AC40: 0.005938697318 | AD40: 0.01823899371 | AE40: -0.00193236715 | AF40: -0.001676164935 | AG40: -0.03595784253 | AH40: 0.003456328818 | AI40: 0.004368174727 | AJ40: 0.007605388961
A41: Scottish Borders | B41: 877 | C41: =IF($C$2="Both",SUMIFS(INDIRECT(CONCATENATE("'MYE ",$C$1," F'!$D$",VLOOKUP($C$3,$E$2:$F$13,2,0),":$JHK$",VLOOKUP($C$3,$E$2:$F$13,2,0))),INDIRECT(CONCATENATE("'MYE ",$C$1," F'!$D$5:$JHK$5")),$A41,INDIRECT(CONCATENATE("'MYE ",$C$1," F'!$D$6:$JHK$6")),C$15)+SUMIFS(INDIRECT(CONCATENATE("'MYE ",$C$1," M'!$D$",VLOOKUP($C$3,$E$2:$F$13,2,0),":$JHK$",VLOOKUP($C$3,$E$2:$F$13,2,0))),INDIRECT(CONCATENATE("'MYE ",$C$1," M'!$D$5:$JHK$5")),$A41,INDIRECT(CONCATENATE("'MYE ",$C$1," M'!$D$6:$JHK$6")),C$15),SUMIFS(INDIRECT(CONCATENATE("'MYE ",$C$1," ",$D$2,"'!$D$",VLOOKUP($C$3,$E$2:$F$13,2,0),":$JHK$",VLOOKUP($C$3,$E$2:$F$13,2,0))),INDIRECT(CONCATENATE("'MYE ",$C$1," ",$D$2,"'!$D$5:$JHK$5")),$A41,INDIRECT(CONCATENATE("'MYE ",$C$1," ",$D$2,"'!$D$6:$JHK$6")),C$15)) -> 2560 | D41: 2950 | E41: 4935 | F41: 11982 | G41: 8910 | H41: 14818 | I41: 5978 | J41: 4278 | K41: 1993 | M41: 26 | N41: Scottish Borders | O41: =IF($C$2="Both",INDEX(INDIRECT(CONCATENATE("'LA SIMD 10 ",$C$1,"'!$C$8:$Dr$71")),'CA SIMD dist data'!$M41+VLOOKUP("Female",$I$2:$J$3,2,0),'CA SIMD dist data'!O$15+VLOOKUP($C$3,$E$2:$G$13,3,0))+INDEX(INDIRECT(CONCATENATE("'LA SIMD 10 ",$C$1,"'!$C$8:$Dr$71")),'CA SIMD dist data'!$M41+VLOOKUP("Male",$I$2:$J$3,2,0),'CA SIMD dist data'!O$15+VLOOKUP($C$3,$E$2:$G$13,3,0)),INDEX(INDIRECT(CONCATENATE("'LA SIMD 10 ",$C$1,"'!$C$8:$Dr$71")),'CA SIMD dist data'!$M41+VLOOKUP($C$2,$I$2:$J$3,2,0),'CA SIMD dist data'!O$15+VLOOKUP($C$3,$E$2:$G$13,3,0))) -> 899 | P41: =IF($C$2="Both",INDEX(INDIRECT(CONCATENATE("'LA SIMD 10 ",$C$1,"'!$C$8:$Dr$71")),'CA SIMD dist data'!$M41+VLOOKUP("Female",$I$2:$J$3,2,0),'CA SIMD dist data'!P$15+VLOOKUP($C$3,$E$2:$G$13,3,0))+INDEX(INDIRECT(CONCATENATE("'LA SIMD 10 ",$C$1,"'!$C$8:$Dr$71")),'CA SIMD dist data'!$M41+VLOOKUP("Male",$I$2:$J$3,2,0),'CA SIMD dist data'!P$15+VLOOKUP($C$3,$E$2:$G$13,3,0)),INDEX(INDIRECT(CONCATENATE("'LA SIMD 10 ",$C$1,"'!$C$8:$Dr$71")),'CA SIMD dist data'!$M41+VLOOKUP($C$2,$I$2:$J$3,2,0),'CA SIMD dist data'!P$15+VLOOKUP($C$3,$E$2:$G$13,3,0))) -> 2621 | Q41: =IF($C$2="Both",INDEX(INDIRECT(CONCATENATE("'LA SIMD 10 ",$C$1,"'!$C$8:$Dr$71")),'CA SIMD dist data'!$M41+VLOOKUP("Female",$I$2:$J$3,2,0),'CA SIMD dist data'!Q$15+VLOOKUP($C$3,$E$2:$G$13,3,0))+INDEX(INDIRECT(CONCATENATE("'LA SIMD 10 ",$C$1,"'!$C$8:$Dr$71")),'CA SIMD dist data'!$M41+VLOOKUP("Male",$I$2:$J$3,2,0),'CA SIMD dist data'!Q$15+VLOOKUP($C$3,$E$2:$G$13,3,0)),INDEX(INDIRECT(CONCATENATE("'LA SIMD 10 ",$C$1,"'!$C$8:$Dr$71")),'CA SIMD dist data'!$M41+VLOOKUP($C$2,$I$2:$J$3,2,0),'CA SIMD dist data'!Q$15+VLOOKUP($C$3,$E$2:$G$13,3,0))) -> 2908 | R41: =IF($C$2="Both",INDEX(INDIRECT(CONCATENATE("'LA SIMD 10 ",$C$1,"'!$C$8:$Dr$71")),'CA SIMD dist data'!$M41+VLOOKUP("Female",$I$2:$J$3,2,0),'CA SIMD dist data'!R$15+VLOOKUP($C$3,$E$2:$G$13,3,0))+INDEX(INDIRECT(CONCATENATE("'LA SIMD 10 ",$C$1,"'!$C$8:$Dr$71")),'CA SIMD dist data'!$M41+VLOOKUP("Male",$I$2:$J$3,2,0),'CA SIMD dist data'!R$15+VLOOKUP($C$3,$E$2:$G$13,3,0)),INDEX(INDIRECT(CONCATENATE("'LA SIMD 10 ",$C$1,"'!$C$8:$Dr$71")),'CA SIMD dist data'!$M41+VLOOKUP($C$2,$I$2:$J$3,2,0),'CA SIMD dist data'!R$15+VLOOKUP($C$3,$E$2:$G$13,3,0))) -> 4932 | S41: =IF($C$2="Both",INDEX(INDIRECT(CONCATENATE("'LA SIMD 10 ",$C$1,"'!$C$8:$Dr$71")),'CA SIMD dist data'!$M41+VLOOKUP("Female",$I$2:$J$3,2,0),'CA SIMD dist data'!S$15+VLOOKUP($C$3,$E$2:$G$13,3,0))+INDEX(INDIRECT(CONCATENATE("'LA SIMD 10 ",$C$1,"'!$C$8:$Dr$71")),'CA SIMD dist data'!$M41+VLOOKUP("Male",$I$2:$J$3,2,0),'CA SIMD dist data'!S$15+VLOOKUP($C$3,$E$2:$G$13,3,0)),INDEX(INDIRECT(CONCATENATE("'LA SIMD 10 ",$C$1,"'!$C$8:$Dr$71")),'CA SIMD dist data'!$M41+VLOOKUP($C$2,$I$2:$J$3,2,0),'CA SIMD dist data'!S$15+VLOOKUP($C$3,$E$2:$G$13,3,0))) -> 12251 | T41: =IF($C$2="Both",INDEX(INDIRECT(CONCATENATE("'LA SIMD 10 ",$C$1,"'!$C$8:$Dr$71")),'CA SIMD dist data'!$M41+VLOOKUP("Female",$I$2:$J$3,2,0),'CA SIMD dist data'!T$15+VLOOKUP($C$3,$E$2:$G$13,3,0))+INDEX(INDIRECT(CONCATENATE("'LA SIMD 10 ",$C$1,"'!$C$8:$Dr$71")),'CA SIMD dist data'!$M41+VLOOKUP("Male",$I$2:$J$3,2,0),'CA SIMD dist data'!T$15+VLOOKUP($C$3,$E$2:$G$13,3,0)),INDEX(INDIRECT(CONCATENATE("'LA SIMD 10 ",$C$1,"'!$C$8:$Dr$71")),'CA SIMD dist data'!$M41+VLOOKUP($C$2,$I$2:$J$3,2,0),'CA SIMD dist data'!T$15+VLOOKUP($C$3,$E$2:$G$13,3,0))) -> 8908 | U41: =IF($C$2="Both",INDEX(INDIRECT(CONCATENATE("'LA SIMD 10 ",$C$1,"'!$C$8:$Dr$71")),'CA SIMD dist data'!$M41+VLOOKUP("Female",$I$2:$J$3,2,0),'CA SIMD dist data'!U$15+VLOOKUP($C$3,$E$2:$G$13,3,0))+INDEX(INDIRECT(CONCATENATE("'LA SIMD 10 ",$C$1,"'!$C$8:$Dr$71")),'CA SIMD dist data'!$M41+VLOOKUP("Male",$I$2:$J$3,2,0),'CA SIMD dist data'!U$15+VLOOKUP($C$3,$E$2:$G$13,3,0)),INDEX(INDIRECT(CONCATENATE("'LA SIMD 10 ",$C$1,"'!$C$8:$Dr$71")),'CA SIMD dist data'!$M41+VLOOKUP($C$2,$I$2:$J$3,2,0),'CA SIMD dist data'!U$15+VLOOKUP($C$3,$E$2:$G$13,3,0))) -> 14778 | V41: =IF($C$2="Both",INDEX(INDIRECT(CONCATENATE("'LA SIMD 10 ",$C$1,"'!$C$8:$Dr$71")),'CA SIMD dist data'!$M41+VLOOKUP("Female",$I$2:$J$3,2,0),'CA SIMD dist data'!V$15+VLOOKUP($C$3,$E$2:$G$13,3,0))+INDEX(INDIRECT(CONCATENATE("'LA SIMD 10 ",$C$1,"'!$C$8:$Dr$71")),'CA SIMD dist data'!$M41+VLOOKUP("Male",$I$2:$J$3,2,0),'CA SIMD dist data'!V$15+VLOOKUP($C$3,$E$2:$G$13,3,0)),INDEX(INDIRECT(CONCATENATE("'LA SIMD 10 ",$C$1,"'!$C$8:$Dr$71")),'CA SIMD dist data'!$M41+VLOOKUP($C$2,$I$2:$J$3,2,0),'CA SIMD dist data'!V$15+VLOOKUP($C$3,$E$2:$G$13,3,0))) -> 5998 | W41: =IF($C$2="Both",INDEX(INDIRECT(CONCATENATE("'LA SIMD 10 ",$C$1,"'!$C$8:$Dr$71")),'CA SIMD dist data'!$M41+VLOOKUP("Female",$I$2:$J$3,2,0),'CA SIMD dist data'!W$15+VLOOKUP($C$3,$E$2:$G$13,3,0))+INDEX(INDIRECT(CONCATENATE("'LA SIMD 10 ",$C$1,"'!$C$8:$Dr$71")),'CA SIMD dist data'!$M41+VLOOKUP("Male",$I$2:$J$3,2,0),'CA SIMD dist data'!W$15+VLOOKUP($C$3,$E$2:$G$13,3,0)),INDEX(INDIRECT(CONCATENATE("'LA SIMD 10 ",$C$1,"'!$C$8:$Dr$71")),'CA SIMD dist data'!$M41+VLOOKUP($C$2,$I$2:$J$3,2,0),'CA SIMD dist data'!W$15+VLOOKUP($C$3,$E$2:$G$13,3,0))) -> 4115 | X41: =IF($C$2="Both",INDEX(INDIRECT(CONCATENATE("'LA SIMD 10 ",$C$1,"'!$C$8:$Dr$71")),'CA SIMD dist data'!$M41+VLOOKUP("Female",$I$2:$J$3,2,0),'CA SIMD dist data'!X$15+VLOOKUP($C$3,$E$2:$G$13,3,0))+INDEX(INDIRECT(CONCATENATE("'LA SIMD 10 ",$C$1,"'!$C$8:$Dr$71")),'CA SIMD dist data'!$M41+VLOOKUP("Male",$I$2:$J$3,2,0),'CA SIMD dist data'!X$15+VLOOKUP($C$3,$E$2:$G$13,3,0)),INDEX(INDIRECT(CONCATENATE("'LA SIMD 10 ",$C$1,"'!$C$8:$Dr$71")),'CA SIMD dist data'!$M41+VLOOKUP($C$2,$I$2:$J$3,2,0),'CA SIMD dist data'!X$15+VLOOKUP($C$3,$E$2:$G$13,3,0))) -> 1929 | Z41: Scottish Borders | AA41: 0.02508551881 | AB41: 0.023828125 | AC41: -0.01423728814 | AD41: -0.0006079027356 | AE41: 0.02245034218 | AF41: -0.0002244668911 | AG41: -0.002699419625 | AH41: 0.003345600535 | AI41: -0.03810191678 | AJ41: -0.03211239338
A42: Shetland Islands | B42: 0 | C42: 0 | D42: 0 | E42: 330 | F42: 1824 | G42: 1061 | H42: 5552 | I42: 2510 | J42: 0 | K42: 0 | M42: 27 | N42: Shetland Islands | O42: =IF($C$2="Both",INDEX(INDIRECT(CONCATENATE("'LA SIMD 10 ",$C$1,"'!$C$8:$Dr$71")),'CA SIMD dist data'!$M42+VLOOKUP("Female",$I$2:$J$3,2,0),'CA SIMD dist data'!O$15+VLOOKUP($C$3,$E$2:$G$13,3,0))+INDEX(INDIRECT(CONCATENATE("'LA SIMD 10 ",$C$1,"'!$C$8:$Dr$71")),'CA SIMD dist data'!$M42+VLOOKUP("Male",$I$2:$J$3,2,0),'CA SIMD dist data'!O$15+VLOOKUP($C$3,$E$2:$G$13,3,0)),INDEX(INDIRECT(CONCATENATE("'LA SIMD 10 ",$C$1,"'!$C$8:$Dr$71")),'CA SIMD dist data'!$M42+VLOOKUP($C$2,$I$2:$J$3,2,0),'CA SIMD dist data'!O$15+VLOOKUP($C$3,$E$2:$G$13,3,0))) -> 0 | P42: =IF($C$2="Both",INDEX(INDIRECT(CONCATENATE("'LA SIMD 10 ",$C$1,"'!$C$8:$Dr$71")),'CA SIMD dist data'!$M42+VLOOKUP("Female",$I$2:$J$3,2,0),'CA SIMD dist data'!P$15+VLOOKUP($C$3,$E$2:$G$13,3,0))+INDEX(INDIRECT(CONCATENATE("'LA SIMD 10 ",$C$1,"'!$C$8:$Dr$71")),'CA SIMD dist data'!$M42+VLOOKUP("Male",$I$2:$J$3,2,0),'CA SIMD dist data'!P$15+VLOOKUP($C$3,$E$2:$G$13,3,0)),INDEX(INDIRECT(CONCATENATE("'LA SIMD 10 ",$C$1,"'!$C$8:$Dr$71")),'CA SIMD dist data'!$M42+VLOOKUP($C$2,$I$2:$J$3,2,0),'CA SIMD dist data'!P$15+VLOOKUP($C$3,$E$2:$G$13,3,0))) -> 0 | Q42: =IF($C$2="Both",INDEX(INDIRECT(CONCATENATE("'LA SIMD 10 ",$C$1,"'!$C$8:$Dr$71")),'CA SIMD dist data'!$M42+VLOOKUP("Female",$I$2:$J$3,2,0),'CA SIMD dist data'!Q$15+VLOOKUP($C$3,$E$2:$G$13,3,0))+INDEX(INDIRECT(CONCATENATE("'LA SIMD 10 ",$C$1,"'!$C$8:$Dr$71")),'CA SIMD dist data'!$M42+VLOOKUP("Male",$I$2:$J$3,2,0),'CA SIMD dist data'!Q$15+VLOOKUP($C$3,$E$2:$G$13,3,0)),INDEX(INDIRECT(CONCATENATE("'LA SIMD 10 ",$C$1,"'!$C$8:$Dr$71")),'CA SIMD dist data'!$M42+VLOOKUP($C$2,$I$2:$J$3,2,0),'CA SIMD dist data'!Q$15+VLOOKUP($C$3,$E$2:$G$13,3,0))) -> 0 | R42: =IF($C$2="Both",INDEX(INDIRECT(CONCATENATE("'LA SIMD 10 ",$C$1,"'!$C$8:$Dr$71")),'CA SIMD dist data'!$M42+VLOOKUP("Female",$I$2:$J$3,2,0),'CA SIMD dist data'!R$15+VLOOKUP($C$3,$E$2:$G$13,3,0))+INDEX(INDIRECT(CONCATENATE("'LA SIMD 10 ",$C$1,"'!$C$8:$Dr$71")),'CA SIMD dist data'!$M42+VLOOKUP("Male",$I$2:$J$3,2,0),'CA SIMD dist data'!R$15+VLOOKUP($C$3,$E$2:$G$13,3,0)),INDEX(INDIRECT(CONCATENATE("'LA SIMD 10 ",$C$1,"'!$C$8:$Dr$71")),'CA SIMD dist data'!$M42+VLOOKUP($C$2,$I$2:$J$3,2,0),'CA SIMD dist data'!R$15+VLOOKUP($C$3,$E$2:$G$13,3,0))) -> 331 | S42: =IF($C$2="Both",INDEX(INDIRECT(CONCATENATE("'LA SIMD 10 ",$C$1,"'!$C$8:$Dr$71")),'CA SIMD dist data'!$M42+VLOOKUP("Female",$I$2:$J$3,2,0),'CA SIMD dist data'!S$15+VLOOKUP($C$3,$E$2:$G$13,3,0))+INDEX(INDIRECT(CONCATENATE("'LA SIMD 10 ",$C$1,"'!$C$8:$Dr$71")),'CA SIMD dist data'!$M42+VLOOKUP("Male",$I$2:$J$3,2,0),'CA SIMD dist data'!S$15+VLOOKUP($C$3,$E$2:$G$13,3,0)),INDEX(INDIRECT(CONCATENATE("'LA SIMD 10 ",$C$1,"'!$C$8:$Dr$71")),'CA SIMD dist data'!$M42+VLOOKUP($C$2,$I$2:$J$3,2,0),'CA SIMD dist data'!S$15+VLOOKUP($C$3,$E$2:$G$13,3,0))) -> 1809 | T42: =IF($C$2="Both",INDEX(INDIRECT(CONCATENATE("'LA SIMD 10 ",$C$1,"'!$C$8:$Dr$71")),'CA SIMD dist data'!$M42+VLOOKUP("Female",$I$2:$J$3,2,0),'CA SIMD dist data'!T$15+VLOOKUP($C$3,$E$2:$G$13,3,0))+INDEX(INDIRECT(CONCATENATE("'LA SIMD 10 ",$C$1,"'!$C$8:$Dr$71")),'CA SIMD dist data'!$M42+VLOOKUP("Male",$I$2:$J$3,2,0),'CA SIMD dist data'!T$15+VLOOKUP($C$3,$E$2:$G$13,3,0)),INDEX(INDIRECT(CONCATENATE("'LA SIMD 10 ",$C$1,"'!$C$8:$Dr$71")),'CA SIMD dist data'!$M42+VLOOKUP($C$2,$I$2:$J$3,2,0),'CA SIMD dist data'!T$15+VLOOKUP($C$3,$E$2:$G$13,3,0))) -> 1032 | U42: =IF($C$2="Both",INDEX(INDIRECT(CONCATENATE("'LA SIMD 10 ",$C$1,"'!$C$8:$Dr$71")),'CA SIMD dist data'!$M42+VLOOKUP("Female",$I$2:$J$3,2,0),'CA SIMD dist data'!U$15+VLOOKUP($C$3,$E$2:$G$13,3,0))+INDEX(INDIRECT(CONCATENATE("'LA SIMD 10 ",$C$1,"'!$C$8:$Dr$71")),'CA SIMD dist data'!$M42+VLOOKUP("Male",$I$2:$J$3,2,0),'CA SIMD dist data'!U$15+VLOOKUP($C$3,$E$2:$G$13,3,0)),INDEX(INDIRECT(CONCATENATE("'LA SIMD 10 ",$C$1,"'!$C$8:$Dr$71")),'CA SIMD dist data'!$M42+VLOOKUP($C$2,$I$2:$J$3,2,0),'CA SIMD dist data'!U$15+VLOOKUP($C$3,$E$2:$G$13,3,0))) -> 5406 | V42: =IF($C$2="Both",INDEX(INDIRECT(CONCATENATE("'LA SIMD 10 ",$C$1,"'!$C$8:$Dr$71")),'CA SIMD dist data'!$M42+VLOOKUP("Female",$I$2:$J$3,2,0),'CA SIMD dist data'!V$15+VLOOKUP($C$3,$E$2:$G$13,3,0))+INDEX(INDIRECT(CONCATENATE("'LA SIMD 10 ",$C$1,"'!$C$8:$Dr$71")),'CA SIMD dist data'!$M42+VLOOKUP("Male",$I$2:$J$3,2,0),'CA SIMD dist data'!V$15+VLOOKUP($C$3,$E$2:$G$13,3,0)),INDEX(INDIRECT(CONCATENATE("'LA SIMD 10 ",$C$1,"'!$C$8:$Dr$71")),'CA SIMD dist data'!$M42+VLOOKUP($C$2,$I$2:$J$3,2,0),'CA SIMD dist data'!V$15+VLOOKUP($C$3,$E$2:$G$13,3,0))) -> 2482 | W42: =IF($C$2="Both",INDEX(INDIRECT(CONCATENATE("'LA SIMD 10 ",$C$1,"'!$C$8:$Dr$71")),'CA SIMD dist data'!$M42+VLOOKUP("Female",$I$2:$J$3,2,0),'CA SIMD dist data'!W$15+VLOOKUP($C$3,$E$2:$G$13,3,0))+INDEX(INDIRECT(CONCATENATE("'LA SIMD 10 ",$C$1,"'!$C$8:$Dr$71")),'CA SIMD dist data'!$M42+VLOOKUP("Male",$I$2:$J$3,2,0),'CA SIMD dist data'!W$15+VLOOKUP($C$3,$E$2:$G$13,3,0)),INDEX(INDIRECT(CONCATENATE("'LA SIMD 10 ",$C$1,"'!$C$8:$Dr$71")),'CA SIMD dist data'!$M42+VLOOKUP($C$2,$I$2:$J$3,2,0),'CA SIMD dist data'!W$15+VLOOKUP($C$3,$E$2:$G$13,3,0))) -> 0 | X42: =IF($C$2="Both",INDEX(INDIRECT(CONCATENATE("'LA SIMD 10 ",$C$1,"'!$C$8:$Dr$71")),'CA SIMD dist data'!$M42+VLOOKUP("Female",$I$2:$J$3,2,0),'CA SIMD dist data'!X$15+VLOOKUP($C$3,$E$2:$G$13,3,0))+INDEX(INDIRECT(CONCATENATE("'LA SIMD 10 ",$C$1,"'!$C$8:$Dr$71")),'CA SIMD dist data'!$M42+VLOOKUP("Male",$I$2:$J$3,2,0),'CA SIMD dist data'!X$15+VLOOKUP($C$3,$E$2:$G$13,3,0)),INDEX(INDIRECT(CONCATENATE("'LA SIMD 10 ",$C$1,"'!$C$8:$Dr$71")),'CA SIMD dist data'!$M42+VLOOKUP($C$2,$I$2:$J$3,2,0),'CA SIMD dist data'!X$15+VLOOKUP($C$3,$E$2:$G$13,3,0))) -> 0 | Z42: Shetland Islands | AD42: 0.00303030303 | AE42: -0.008223684211 | AF42: -0.027332705 | AG42: -0.02629682997 | AH42: -0.01115537849
A43: South Ayrshire | B43: 4624 | C43: 5470 | D43: 5756 | E43: 9876 | F43: 7576 | G43: 5346 | H43: 2057 | I43: 6098 | J43: 6605 | K43: 5430 | M43: 28 | N43: South Ayrshire | O43: =IF($C$2="Both",INDEX(INDIRECT(CONCATENATE("'LA SIMD 10 ",$C$1,"'!$C$8:$Dr$71")),'CA SIMD dist data'!$M43+VLOOKUP("Female",$I$2:$J$3,2,0),'CA SIMD dist data'!O$15+VLOOKUP($C$3,$E$2:$G$13,3,0))+INDEX(INDIRECT(CONCATENATE("'LA SIMD 10 ",$C$1,"'!$C$8:$Dr$71")),'CA SIMD dist data'!$M43+VLOOKUP("Male",$I$2:$J$3,2,0),'CA SIMD dist data'!O$15+VLOOKUP($C$3,$E$2:$G$13,3,0)),INDEX(INDIRECT(CONCATENATE("'LA SIMD 10 ",$C$1,"'!$C$8:$Dr$71")),'CA SIMD dist data'!$M43+VLOOKUP($C$2,$I$2:$J$3,2,0),'CA SIMD dist data'!O$15+VLOOKUP($C$3,$E$2:$G$13,3,0))) -> 4718 | P43: =IF($C$2="Both",INDEX(INDIRECT(CONCATENATE("'LA SIMD 10 ",$C$1,"'!$C$8:$Dr$71")),'CA SIMD dist data'!$M43+VLOOKUP("Female",$I$2:$J$3,2,0),'CA SIMD dist data'!P$15+VLOOKUP($C$3,$E$2:$G$13,3,0))+INDEX(INDIRECT(CONCATENATE("'LA SIMD 10 ",$C$1,"'!$C$8:$Dr$71")),'CA SIMD dist data'!$M43+VLOOKUP("Male",$I$2:$J$3,2,0),'CA SIMD dist data'!P$15+VLOOKUP($C$3,$E$2:$G$13,3,0)),INDEX(INDIRECT(CONCATENATE("'LA SIMD 10 ",$C$1,"'!$C$8:$Dr$71")),'CA SIMD dist data'!$M43+VLOOKUP($C$2,$I$2:$J$3,2,0),'CA SIMD dist data'!P$15+VLOOKUP($C$3,$E$2:$G$13,3,0))) -> 5627 | Q43: =IF($C$2="Both",INDEX(INDIRECT(CONCATENATE("'LA SIMD 10 ",$C$1,"'!$C$8:$Dr$71")),'CA SIMD dist data'!$M43+VLOOKUP("Female",$I$2:$J$3,2,0),'CA SIMD dist data'!Q$15+VLOOKUP($C$3,$E$2:$G$13,3,0))+INDEX(INDIRECT(CONCATENATE("'LA SIMD 10 ",$C$1,"'!$C$8:$Dr$71")),'CA SIMD dist data'!$M43+VLOOKUP("Male",$I$2:$J$3,2,0),'CA SIMD dist data'!Q$15+VLOOKUP($C$3,$E$2:$G$13,3,0)),INDEX(INDIRECT(CONCATENATE("'LA SIMD 10 ",$C$1,"'!$C$8:$Dr$71")),'CA SIMD dist data'!$M43+VLOOKUP($C$2,$I$2:$J$3,2,0),'CA SIMD dist data'!Q$15+VLOOKUP($C$3,$E$2:$G$13,3,0))) -> 5748 | R43: =IF($C$2="Both",INDEX(INDIRECT(CONCATENATE("'LA SIMD 10 ",$C$1,"'!$C$8:$Dr$71")),'CA SIMD dist data'!$M43+VLOOKUP("Female",$I$2:$J$3,2,0),'CA SIMD dist data'!R$15+VLOOKUP($C$3,$E$2:$G$13,3,0))+INDEX(INDIRECT(CONCATENATE("'LA SIMD 10 ",$C$1,"'!$C$8:$Dr$71")),'CA SIMD dist data'!$M43+VLOOKUP("Male",$I$2:$J$3,2,0),'CA SIMD dist data'!R$15+VLOOKUP($C$3,$E$2:$G$13,3,0)),INDEX(INDIRECT(CONCATENATE("'LA SIMD 10 ",$C$1,"'!$C$8:$Dr$71")),'CA SIMD dist data'!$M43+VLOOKUP($C$2,$I$2:$J$3,2,0),'CA SIMD dist data'!R$15+VLOOKUP($C$3,$E$2:$G$13,3,0))) -> 9700 | S43: =IF($C$2="Both",INDEX(INDIRECT(CONCATENATE("'LA SIMD 10 ",$C$1,"'!$C$8:$Dr$71")),'CA SIMD dist data'!$M43+VLOOKUP("Female",$I$2:$J$3,2,0),'CA SIMD dist data'!S$15+VLOOKUP($C$3,$E$2:$G$13,3,0))+INDEX(INDIRECT(CONCATENATE("'LA SIMD 10 ",$C$1,"'!$C$8:$Dr$71")),'CA SIMD dist data'!$M43+VLOOKUP("Male",$I$2:$J$3,2,0),'CA SIMD dist data'!S$15+VLOOKUP($C$3,$E$2:$G$13,3,0)),INDEX(INDIRECT(CONCATENATE("'LA SIMD 10 ",$C$1,"'!$C$8:$Dr$71")),'CA SIMD dist data'!$M43+VLOOKUP($C$2,$I$2:$J$3,2,0),'CA SIMD dist data'!S$15+VLOOKUP($C$3,$E$2:$G$13,3,0))) -> 7683 | T43: =IF($C$2="Both",INDEX(INDIRECT(CONCATENATE("'LA SIMD 10 ",$C$1,"'!$C$8:$Dr$71")),'CA SIMD dist data'!$M43+VLOOKUP("Female",$I$2:$J$3,2,0),'CA SIMD dist data'!T$15+VLOOKUP($C$3,$E$2:$G$13,3,0))+INDEX(INDIRECT(CONCATENATE("'LA SIMD 10 ",$C$1,"'!$C$8:$Dr$71")),'CA SIMD dist data'!$M43+VLOOKUP("Male",$I$2:$J$3,2,0),'CA SIMD dist data'!T$15+VLOOKUP($C$3,$E$2:$G$13,3,0)),INDEX(INDIRECT(CONCATENATE("'LA SIMD 10 ",$C$1,"'!$C$8:$Dr$71")),'CA SIMD dist data'!$M43+VLOOKUP($C$2,$I$2:$J$3,2,0),'CA SIMD dist data'!T$15+VLOOKUP($C$3,$E$2:$G$13,3,0))) -> 5342 | U43: =IF($C$2="Both",INDEX(INDIRECT(CONCATENATE("'LA SIMD 10 ",$C$1,"'!$C$8:$Dr$71")),'CA SIMD dist data'!$M43+VLOOKUP("Female",$I$2:$J$3,2,0),'CA SIMD dist data'!U$15+VLOOKUP($C$3,$E$2:$G$13,3,0))+INDEX(INDIRECT(CONCATENATE("'LA SIMD 10 ",$C$1,"'!$C$8:$Dr$71")),'CA SIMD dist data'!$M43+VLOOKUP("Male",$I$2:$J$3,2,0),'CA SIMD dist data'!U$15+VLOOKUP($C$3,$E$2:$G$13,3,0)),INDEX(INDIRECT(CONCATENATE("'LA SIMD 10 ",$C$1,"'!$C$8:$Dr$71")),'CA SIMD dist data'!$M43+VLOOKUP($C$2,$I$2:$J$3,2,0),'CA SIMD dist data'!U$15+VLOOKUP($C$3,$E$2:$G$13,3,0))) -> 1903 | V43: =IF($C$2="Both",INDEX(INDIRECT(CONCATENATE("'LA SIMD 10 ",$C$1,"'!$C$8:$Dr$71")),'CA SIMD dist data'!$M43+VLOOKUP("Female",$I$2:$J$3,2,0),'CA SIMD dist data'!V$15+VLOOKUP($C$3,$E$2:$G$13,3,0))+INDEX(INDIRECT(CONCATENATE("'LA SIMD 10 ",$C$1,"'!$C$8:$Dr$71")),'CA SIMD dist data'!$M43+VLOOKUP("Male",$I$2:$J$3,2,0),'CA SIMD dist data'!V$15+VLOOKUP($C$3,$E$2:$G$13,3,0)),INDEX(INDIRECT(CONCATENATE("'LA SIMD 10 ",$C$1,"'!$C$8:$Dr$71")),'CA SIMD dist data'!$M43+VLOOKUP($C$2,$I$2:$J$3,2,0),'CA SIMD dist data'!V$15+VLOOKUP($C$3,$E$2:$G$13,3,0))) -> 6032 | W43: =IF($C$2="Both",INDEX(INDIRECT(CONCATENATE("'LA SIMD 10 ",$C$1,"'!$C$8:$Dr$71")),'CA SIMD dist data'!$M43+VLOOKUP("Female",$I$2:$J$3,2,0),'CA SIMD dist data'!W$15+VLOOKUP($C$3,$E$2:$G$13,3,0))+INDEX(INDIRECT(CONCATENATE("'LA SIMD 10 ",$C$1,"'!$C$8:$Dr$71")),'CA SIMD dist data'!$M43+VLOOKUP("Male",$I$2:$J$3,2,0),'CA SIMD dist data'!W$15+VLOOKUP($C$3,$E$2:$G$13,3,0)),INDEX(INDIRECT(CONCATENATE("'LA SIMD 10 ",$C$1,"'!$C$8:$Dr$71")),'CA SIMD dist data'!$M43+VLOOKUP($C$2,$I$2:$J$3,2,0),'CA SIMD dist data'!W$15+VLOOKUP($C$3,$E$2:$G$13,3,0))) -> 6655 | X43: =IF($C$2="Both",INDEX(INDIRECT(CONCATENATE("'LA SIMD 10 ",$C$1,"'!$C$8:$Dr$71")),'CA SIMD dist data'!$M43+VLOOKUP("Female",$I$2:$J$3,2,0),'CA SIMD dist data'!X$15+VLOOKUP($C$3,$E$2:$G$13,3,0))+INDEX(INDIRECT(CONCATENATE("'LA SIMD 10 ",$C$1,"'!$C$8:$Dr$71")),'CA SIMD dist data'!$M43+VLOOKUP("Male",$I$2:$J$3,2,0),'CA SIMD dist data'!X$15+VLOOKUP($C$3,$E$2:$G$13,3,0)),INDEX(INDIRECT(CONCATENATE("'LA SIMD 10 ",$C$1,"'!$C$8:$Dr$71")),'CA SIMD dist data'!$M43+VLOOKUP($C$2,$I$2:$J$3,2,0),'CA SIMD dist data'!X$15+VLOOKUP($C$3,$E$2:$G$13,3,0))) -> 5432 | Z43: South Ayrshire | AA43: 0.02032871972 | AB43: 0.02870201097 | AC43: -0.001389854065 | AD43: -0.01782098015 | AE43: 0.01412354805 | AF43: -0.0007482229704 | AG43: -0.07486631016 | AH43: -0.01082322073 | AI43: 0.00757002271 | AJ43: 0.0003683241252
A44: South Lanarkshire | B44: 16574 | C44: 16222 | D44: 21056 | E44: 21231 | F44: 18867 | G44: 12852 | H44: 17166 | I44: 17283 | J44: 17005 | K44: 6562 | M44: 29 | N44: South Lanarkshire | O44: =IF($C$2="Both",INDEX(INDIRECT(CONCATENATE("'LA SIMD 10 ",$C$1,"'!$C$8:$Dr$71")),'CA SIMD dist data'!$M44+VLOOKUP("Female",$I$2:$J$3,2,0),'CA SIMD dist data'!O$15+VLOOKUP($C$3,$E$2:$G$13,3,0))+INDEX(INDIRECT(CONCATENATE("'LA SIMD 10 ",$C$1,"'!$C$8:$Dr$71")),'CA SIMD dist data'!$M44+VLOOKUP("Male",$I$2:$J$3,2,0),'CA SIMD dist data'!O$15+VLOOKUP($C$3,$E$2:$G$13,3,0)),INDEX(INDIRECT(CONCATENATE("'LA SIMD 10 ",$C$1,"'!$C$8:$Dr$71")),'CA SIMD dist data'!$M44+VLOOKUP($C$2,$I$2:$J$3,2,0),'CA SIMD dist data'!O$15+VLOOKUP($C$3,$E$2:$G$13,3,0))) -> 17132 | P44: =IF($C$2="Both",INDEX(INDIRECT(CONCATENATE("'LA SIMD 10 ",$C$1,"'!$C$8:$Dr$71")),'CA SIMD dist data'!$M44+VLOOKUP("Female",$I$2:$J$3,2,0),'CA SIMD dist data'!P$15+VLOOKUP($C$3,$E$2:$G$13,3,0))+INDEX(INDIRECT(CONCATENATE("'LA SIMD 10 ",$C$1,"'!$C$8:$Dr$71")),'CA SIMD dist data'!$M44+VLOOKUP("Male",$I$2:$J$3,2,0),'CA SIMD dist data'!P$15+VLOOKUP($C$3,$E$2:$G$13,3,0)),INDEX(INDIRECT(CONCATENATE("'LA SIMD 10 ",$C$1,"'!$C$8:$Dr$71")),'CA SIMD dist data'!$M44+VLOOKUP($C$2,$I$2:$J$3,2,0),'CA SIMD dist data'!P$15+VLOOKUP($C$3,$E$2:$G$13,3,0))) -> 16637 | Q44: =IF($C$2="Both",INDEX(INDIRECT(CONCATENATE("'LA SIMD 10 ",$C$1,"'!$C$8:$Dr$71")),'CA SIMD dist data'!$M44+VLOOKUP("Female",$I$2:$J$3,2,0),'CA SIMD dist data'!Q$15+VLOOKUP($C$3,$E$2:$G$13,3,0))+INDEX(INDIRECT(CONCATENATE("'LA SIMD 10 ",$C$1,"'!$C$8:$Dr$71")),'CA SIMD dist data'!$M44+VLOOKUP("Male",$I$2:$J$3,2,0),'CA SIMD dist data'!Q$15+VLOOKUP($C$3,$E$2:$G$13,3,0)),INDEX(INDIRECT(CONCATENATE("'LA SIMD 10 ",$C$1,"'!$C$8:$Dr$71")),'CA SIMD dist data'!$M44+VLOOKUP($C$2,$I$2:$J$3,2,0),'CA SIMD dist data'!Q$15+VLOOKUP($C$3,$E$2:$G$13,3,0))) -> 21734 | R44: =IF($C$2="Both",INDEX(INDIRECT(CONCATENATE("'LA SIMD 10 ",$C$1,"'!$C$8:$Dr$71")),'CA SIMD dist data'!$M44+VLOOKUP("Female",$I$2:$J$3,2,0),'CA SIMD dist data'!R$15+VLOOKUP($C$3,$E$2:$G$13,3,0))+INDEX(INDIRECT(CONCATENATE("'LA SIMD 10 ",$C$1,"'!$C$8:$Dr$71")),'CA SIMD dist data'!$M44+VLOOKUP("Male",$I$2:$J$3,2,0),'CA SIMD dist data'!R$15+VLOOKUP($C$3,$E$2:$G$13,3,0)),INDEX(INDIRECT(CONCATENATE("'LA SIMD 10 ",$C$1,"'!$C$8:$Dr$71")),'CA SIMD dist data'!$M44+VLOOKUP($C$2,$I$2:$J$3,2,0),'CA SIMD dist data'!R$15+VLOOKUP($C$3,$E$2:$G$13,3,0))) -> 21982 | S44: =IF($C$2="Both",INDEX(INDIRECT(CONCATENATE("'LA SIMD 10 ",$C$1,"'!$C$8:$Dr$71")),'CA SIMD dist data'!$M44+VLOOKUP("Female",$I$2:$J$3,2,0),'CA SIMD dist data'!S$15+VLOOKUP($C$3,$E$2:$G$13,3,0))+INDEX(INDIRECT(CONCATENATE("'LA SIMD 10 ",$C$1,"'!$C$8:$Dr$71")),'CA SIMD dist data'!$M44+VLOOKUP("Male",$I$2:$J$3,2,0),'CA SIMD dist data'!S$15+VLOOKUP($C$3,$E$2:$G$13,3,0)),INDEX(INDIRECT(CONCATENATE("'LA SIMD 10 ",$C$1,"'!$C$8:$Dr$71")),'CA SIMD dist data'!$M44+VLOOKUP($C$2,$I$2:$J$3,2,0),'CA SIMD dist data'!S$15+VLOOKUP($C$3,$E$2:$G$13,3,0))) -> 19111 | T44: =IF($C$2="Both",INDEX(INDIRECT(CONCATENATE("'LA SIMD 10 ",$C$1,"'!$C$8:$Dr$71")),'CA SIMD dist data'!$M44+VLOOKUP("Female",$I$2:$J$3,2,0),'CA SIMD dist data'!T$15+VLOOKUP($C$3,$E$2:$G$13,3,0))+INDEX(INDIRECT(CONCATENATE("'LA SIMD 10 ",$C$1,"'!$C$8:$Dr$71")),'CA SIMD dist data'!$M44+VLOOKUP("Male",$I$2:$J$3,2,0),'CA SIMD dist data'!T$15+VLOOKUP($C$3,$E$2:$G$13,3,0)),INDEX(INDIRECT(CONCATENATE("'LA SIMD 10 ",$C$1,"'!$C$8:$Dr$71")),'CA SIMD dist data'!$M44+VLOOKUP($C$2,$I$2:$J$3,2,0),'CA SIMD dist data'!T$15+VLOOKUP($C$3,$E$2:$G$13,3,0))) -> 12929 | U44: =IF($C$2="Both",INDEX(INDIRECT(CONCATENATE("'LA SIMD 10 ",$C$1,"'!$C$8:$Dr$71")),'CA SIMD dist data'!$M44+VLOOKUP("Female",$I$2:$J$3,2,0),'CA SIMD dist data'!U$15+VLOOKUP($C$3,$E$2:$G$13,3,0))+INDEX(INDIRECT(CONCATENATE("'LA SIMD 10 ",$C$1,"'!$C$8:$Dr$71")),'CA SIMD dist data'!$M44+VLOOKUP("Male",$I$2:$J$3,2,0),'CA SIMD dist data'!U$15+VLOOKUP($C$3,$E$2:$G$13,3,0)),INDEX(INDIRECT(CONCATENATE("'LA SIMD 10 ",$C$1,"'!$C$8:$Dr$71")),'CA SIMD dist data'!$M44+VLOOKUP($C$2,$I$2:$J$3,2,0),'CA SIMD dist data'!U$15+VLOOKUP($C$3,$E$2:$G$13,3,0))) -> 17253 | V44: =IF($C$2="Both",INDEX(INDIRECT(CONCATENATE("'LA SIMD 10 ",$C$1,"'!$C$8:$Dr$71")),'CA SIMD dist data'!$M44+VLOOKUP("Female",$I$2:$J$3,2,0),'CA SIMD dist data'!V$15+VLOOKUP($C$3,$E$2:$G$13,3,0))+INDEX(INDIRECT(CONCATENATE("'LA SIMD 10 ",$C$1,"'!$C$8:$Dr$71")),'CA SIMD dist data'!$M44+VLOOKUP("Male",$I$2:$J$3,2,0),'CA SIMD dist data'!V$15+VLOOKUP($C$3,$E$2:$G$13,3,0)),INDEX(INDIRECT(CONCATENATE("'LA SIMD 10 ",$C$1,"'!$C$8:$Dr$71")),'CA SIMD dist data'!$M44+VLOOKUP($C$2,$I$2:$J$3,2,0),'CA SIMD dist data'!V$15+VLOOKUP($C$3,$E$2:$G$13,3,0))) -> 17534 | W44: =IF($C$2="Both",INDEX(INDIRECT(CONCATENATE("'LA SIMD 10 ",$C$1,"'!$C$8:$Dr$71")),'CA SIMD dist data'!$M44+VLOOKUP("Female",$I$2:$J$3,2,0),'CA SIMD dist data'!W$15+VLOOKUP($C$3,$E$2:$G$13,3,0))+INDEX(INDIRECT(CONCATENATE("'LA SIMD 10 ",$C$1,"'!$C$8:$Dr$71")),'CA SIMD dist data'!$M44+VLOOKUP("Male",$I$2:$J$3,2,0),'CA SIMD dist data'!W$15+VLOOKUP($C$3,$E$2:$G$13,3,0)),INDEX(INDIRECT(CONCATENATE("'LA SIMD 10 ",$C$1,"'!$C$8:$Dr$71")),'CA SIMD dist data'!$M44+VLOOKUP($C$2,$I$2:$J$3,2,0),'CA SIMD dist data'!W$15+VLOOKUP($C$3,$E$2:$G$13,3,0))) -> 17041 | X44: =IF($C$2="Both",INDEX(INDIRECT(CONCATENATE("'LA SIMD 10 ",$C$1,"'!$C$8:$Dr$71")),'CA SIMD dist data'!$M44+VLOOKUP("Female",$I$2:$J$3,2,0),'CA SIMD dist data'!X$15+VLOOKUP($C$3,$E$2:$G$13,3,0))+INDEX(INDIRECT(CONCATENATE("'LA SIMD 10 ",$C$1,"'!$C$8:$Dr$71")),'CA SIMD dist data'!$M44+VLOOKUP("Male",$I$2:$J$3,2,0),'CA SIMD dist data'!X$15+VLOOKUP($C$3,$E$2:$G$13,3,0)),INDEX(INDIRECT(CONCATENATE("'LA SIMD 10 ",$C$1,"'!$C$8:$Dr$71")),'CA SIMD dist data'!$M44+VLOOKUP($C$2,$I$2:$J$3,2,0),'CA SIMD dist data'!X$15+VLOOKUP($C$3,$E$2:$G$13,3,0))) -> 6751 | Z44: South Lanarkshire | AA44: 0.03366718957 | AB44: 0.02558254223 | AC44: 0.03219984802 | AD44: 0.03537280392 | AE44: 0.0129326337 | AF44: 0.005991285403 | AG44: 0.005068157987 | AH44: 0.01452294162 | AI44: 0.002117024405 | AJ44: 0.02880219445
A45: Stirling | B45: 2359 | C45: 3292 | D45: 3114 | E45: 4328 | F45: 3422 | G45: 4594 | H45: 4875 | I45: 8812 | J45: 4602 | K45: 9487 | M45: 30 | N45: Stirling | O45: =IF($C$2="Both",INDEX(INDIRECT(CONCATENATE("'LA SIMD 10 ",$C$1,"'!$C$8:$Dr$71")),'CA SIMD dist data'!$M45+VLOOKUP("Female",$I$2:$J$3,2,0),'CA SIMD dist data'!O$15+VLOOKUP($C$3,$E$2:$G$13,3,0))+INDEX(INDIRECT(CONCATENATE("'LA SIMD 10 ",$C$1,"'!$C$8:$Dr$71")),'CA SIMD dist data'!$M45+VLOOKUP("Male",$I$2:$J$3,2,0),'CA SIMD dist data'!O$15+VLOOKUP($C$3,$E$2:$G$13,3,0)),INDEX(INDIRECT(CONCATENATE("'LA SIMD 10 ",$C$1,"'!$C$8:$Dr$71")),'CA SIMD dist data'!$M45+VLOOKUP($C$2,$I$2:$J$3,2,0),'CA SIMD dist data'!O$15+VLOOKUP($C$3,$E$2:$G$13,3,0))) -> 2440 | P45: =IF($C$2="Both",INDEX(INDIRECT(CONCATENATE("'LA SIMD 10 ",$C$1,"'!$C$8:$Dr$71")),'CA SIMD dist data'!$M45+VLOOKUP("Female",$I$2:$J$3,2,0),'CA SIMD dist data'!P$15+VLOOKUP($C$3,$E$2:$G$13,3,0))+INDEX(INDIRECT(CONCATENATE("'LA SIMD 10 ",$C$1,"'!$C$8:$Dr$71")),'CA SIMD dist data'!$M45+VLOOKUP("Male",$I$2:$J$3,2,0),'CA SIMD dist data'!P$15+VLOOKUP($C$3,$E$2:$G$13,3,0)),INDEX(INDIRECT(CONCATENATE("'LA SIMD 10 ",$C$1,"'!$C$8:$Dr$71")),'CA SIMD dist data'!$M45+VLOOKUP($C$2,$I$2:$J$3,2,0),'CA SIMD dist data'!P$15+VLOOKUP($C$3,$E$2:$G$13,3,0))) -> 3337 | Q45: =IF($C$2="Both",INDEX(INDIRECT(CONCATENATE("'LA SIMD 10 ",$C$1,"'!$C$8:$Dr$71")),'CA SIMD dist data'!$M45+VLOOKUP("Female",$I$2:$J$3,2,0),'CA SIMD dist data'!Q$15+VLOOKUP($C$3,$E$2:$G$13,3,0))+INDEX(INDIRECT(CONCATENATE("'LA SIMD 10 ",$C$1,"'!$C$8:$Dr$71")),'CA SIMD dist data'!$M45+VLOOKUP("Male",$I$2:$J$3,2,0),'CA SIMD dist data'!Q$15+VLOOKUP($C$3,$E$2:$G$13,3,0)),INDEX(INDIRECT(CONCATENATE("'LA SIMD 10 ",$C$1,"'!$C$8:$Dr$71")),'CA SIMD dist data'!$M45+VLOOKUP($C$2,$I$2:$J$3,2,0),'CA SIMD dist data'!Q$15+VLOOKUP($C$3,$E$2:$G$13,3,0))) -> 3081 | R45: =IF($C$2="Both",INDEX(INDIRECT(CONCATENATE("'LA SIMD 10 ",$C$1,"'!$C$8:$Dr$71")),'CA SIMD dist data'!$M45+VLOOKUP("Female",$I$2:$J$3,2,0),'CA SIMD dist data'!R$15+VLOOKUP($C$3,$E$2:$G$13,3,0))+INDEX(INDIRECT(CONCATENATE("'LA SIMD 10 ",$C$1,"'!$C$8:$Dr$71")),'CA SIMD dist data'!$M45+VLOOKUP("Male",$I$2:$J$3,2,0),'CA SIMD dist data'!R$15+VLOOKUP($C$3,$E$2:$G$13,3,0)),INDEX(INDIRECT(CONCATENATE("'LA SIMD 10 ",$C$1,"'!$C$8:$Dr$71")),'CA SIMD dist data'!$M45+VLOOKUP($C$2,$I$2:$J$3,2,0),'CA SIMD dist data'!R$15+VLOOKUP($C$3,$E$2:$G$13,3,0))) -> 4307 | S45: =IF($C$2="Both",INDEX(INDIRECT(CONCATENATE("'LA SIMD 10 ",$C$1,"'!$C$8:$Dr$71")),'CA SIMD dist data'!$M45+VLOOKUP("Female",$I$2:$J$3,2,0),'CA SIMD dist data'!S$15+VLOOKUP($C$3,$E$2:$G$13,3,0))+INDEX(INDIRECT(CONCATENATE("'LA SIMD 10 ",$C$1,"'!$C$8:$Dr$71")),'CA SIMD dist data'!$M45+VLOOKUP("Male",$I$2:$J$3,2,0),'CA SIMD dist data'!S$15+VLOOKUP($C$3,$E$2:$G$13,3,0)),INDEX(INDIRECT(CONCATENATE("'LA SIMD 10 ",$C$1,"'!$C$8:$Dr$71")),'CA SIMD dist data'!$M45+VLOOKUP($C$2,$I$2:$J$3,2,0),'CA SIMD dist data'!S$15+VLOOKUP($C$3,$E$2:$G$13,3,0))) -> 3327 | T45: =IF($C$2="Both",INDEX(INDIRECT(CONCATENATE("'LA SIMD 10 ",$C$1,"'!$C$8:$Dr$71")),'CA SIMD dist data'!$M45+VLOOKUP("Female",$I$2:$J$3,2,0),'CA SIMD dist data'!T$15+VLOOKUP($C$3,$E$2:$G$13,3,0))+INDEX(INDIRECT(CONCATENATE("'LA SIMD 10 ",$C$1,"'!$C$8:$Dr$71")),'CA SIMD dist data'!$M45+VLOOKUP("Male",$I$2:$J$3,2,0),'CA SIMD dist data'!T$15+VLOOKUP($C$3,$E$2:$G$13,3,0)),INDEX(INDIRECT(CONCATENATE("'LA SIMD 10 ",$C$1,"'!$C$8:$Dr$71")),'CA SIMD dist data'!$M45+VLOOKUP($C$2,$I$2:$J$3,2,0),'CA SIMD dist data'!T$15+VLOOKUP($C$3,$E$2:$G$13,3,0))) -> 4458 | U45: =IF($C$2="Both",INDEX(INDIRECT(CONCATENATE("'LA SIMD 10 ",$C$1,"'!$C$8:$Dr$71")),'CA SIMD dist data'!$M45+VLOOKUP("Female",$I$2:$J$3,2,0),'CA SIMD dist data'!U$15+VLOOKUP($C$3,$E$2:$G$13,3,0))+INDEX(INDIRECT(CONCATENATE("'LA SIMD 10 ",$C$1,"'!$C$8:$Dr$71")),'CA SIMD dist data'!$M45+VLOOKUP("Male",$I$2:$J$3,2,0),'CA SIMD dist data'!U$15+VLOOKUP($C$3,$E$2:$G$13,3,0)),INDEX(INDIRECT(CONCATENATE("'LA SIMD 10 ",$C$1,"'!$C$8:$Dr$71")),'CA SIMD dist data'!$M45+VLOOKUP($C$2,$I$2:$J$3,2,0),'CA SIMD dist data'!U$15+VLOOKUP($C$3,$E$2:$G$13,3,0))) -> 4751 | V45: =IF($C$2="Both",INDEX(INDIRECT(CONCATENATE("'LA SIMD 10 ",$C$1,"'!$C$8:$Dr$71")),'CA SIMD dist data'!$M45+VLOOKUP("Female",$I$2:$J$3,2,0),'CA SIMD dist data'!V$15+VLOOKUP($C$3,$E$2:$G$13,3,0))+INDEX(INDIRECT(CONCATENATE("'LA SIMD 10 ",$C$1,"'!$C$8:$Dr$71")),'CA SIMD dist data'!$M45+VLOOKUP("Male",$I$2:$J$3,2,0),'CA SIMD dist data'!V$15+VLOOKUP($C$3,$E$2:$G$13,3,0)),INDEX(INDIRECT(CONCATENATE("'LA SIMD 10 ",$C$1,"'!$C$8:$Dr$71")),'CA SIMD dist data'!$M45+VLOOKUP($C$2,$I$2:$J$3,2,0),'CA SIMD dist data'!V$15+VLOOKUP($C$3,$E$2:$G$13,3,0))) -> 8599 | W45: =IF($C$2="Both",INDEX(INDIRECT(CONCATENATE("'LA SIMD 10 ",$C$1,"'!$C$8:$Dr$71")),'CA SIMD dist data'!$M45+VLOOKUP("Female",$I$2:$J$3,2,0),'CA SIMD dist data'!W$15+VLOOKUP($C$3,$E$2:$G$13,3,0))+INDEX(INDIRECT(CONCATENATE("'LA SIMD 10 ",$C$1,"'!$C$8:$Dr$71")),'CA SIMD dist data'!$M45+VLOOKUP("Male",$I$2:$J$3,2,0),'CA SIMD dist data'!W$15+VLOOKUP($C$3,$E$2:$G$13,3,0)),INDEX(INDIRECT(CONCATENATE("'LA SIMD 10 ",$C$1,"'!$C$8:$Dr$71")),'CA SIMD dist data'!$M45+VLOOKUP($C$2,$I$2:$J$3,2,0),'CA SIMD dist data'!W$15+VLOOKUP($C$3,$E$2:$G$13,3,0))) -> 4478 | X45: =IF($C$2="Both",INDEX(INDIRECT(CONCATENATE("'LA SIMD 10 ",$C$1,"'!$C$8:$Dr$71")),'CA SIMD dist data'!$M45+VLOOKUP("Female",$I$2:$J$3,2,0),'CA SIMD dist data'!X$15+VLOOKUP($C$3,$E$2:$G$13,3,0))+INDEX(INDIRECT(CONCATENATE("'LA SIMD 10 ",$C$1,"'!$C$8:$Dr$71")),'CA SIMD dist data'!$M45+VLOOKUP("Male",$I$2:$J$3,2,0),'CA SIMD dist data'!X$15+VLOOKUP($C$3,$E$2:$G$13,3,0)),INDEX(INDIRECT(CONCATENATE("'LA SIMD 10 ",$C$1,"'!$C$8:$Dr$71")),'CA SIMD dist data'!$M45+VLOOKUP($C$2,$I$2:$J$3,2,0),'CA SIMD dist data'!X$15+VLOOKUP($C$3,$E$2:$G$13,3,0))) -> 9474 | Z45: Stirling | AA45: 0.0343365833 | AB45: 0.01366950182 | AC45: -0.0105973025 | AD45: -0.004852125693 | AE45: -0.02776154296 | AF45: -0.02960383108 | AG45: -0.02543589744 | AH45: -0.0241715842 | AI45: -0.02694480661 | AJ45: -0.001370296195
A46: West Dunbartonshire | B46: 7303 | C46: 11369 | D46: 7287 | E46: 6290 | F46: 3708 | G46: 3070 | H46: 3791 | I46: 2027 | J46: 1101 | K46: 688 | M46: 31 | N46: West Dunbartonshire | O46: =IF($C$2="Both",INDEX(INDIRECT(CONCATENATE("'LA SIMD 10 ",$C$1,"'!$C$8:$Dr$71")),'CA SIMD dist data'!$M46+VLOOKUP("Female",$I$2:$J$3,2,0),'CA SIMD dist data'!O$15+VLOOKUP($C$3,$E$2:$G$13,3,0))+INDEX(INDIRECT(CONCATENATE("'LA SIMD 10 ",$C$1,"'!$C$8:$Dr$71")),'CA SIMD dist data'!$M46+VLOOKUP("Male",$I$2:$J$3,2,0),'CA SIMD dist data'!O$15+VLOOKUP($C$3,$E$2:$G$13,3,0)),INDEX(INDIRECT(CONCATENATE("'LA SIMD 10 ",$C$1,"'!$C$8:$Dr$71")),'CA SIMD dist data'!$M46+VLOOKUP($C$2,$I$2:$J$3,2,0),'CA SIMD dist data'!O$15+VLOOKUP($C$3,$E$2:$G$13,3,0))) -> 7578 | P46: =IF($C$2="Both",INDEX(INDIRECT(CONCATENATE("'LA SIMD 10 ",$C$1,"'!$C$8:$Dr$71")),'CA SIMD dist data'!$M46+VLOOKUP("Female",$I$2:$J$3,2,0),'CA SIMD dist data'!P$15+VLOOKUP($C$3,$E$2:$G$13,3,0))+INDEX(INDIRECT(CONCATENATE("'LA SIMD 10 ",$C$1,"'!$C$8:$Dr$71")),'CA SIMD dist data'!$M46+VLOOKUP("Male",$I$2:$J$3,2,0),'CA SIMD dist data'!P$15+VLOOKUP($C$3,$E$2:$G$13,3,0)),INDEX(INDIRECT(CONCATENATE("'LA SIMD 10 ",$C$1,"'!$C$8:$Dr$71")),'CA SIMD dist data'!$M46+VLOOKUP($C$2,$I$2:$J$3,2,0),'CA SIMD dist data'!P$15+VLOOKUP($C$3,$E$2:$G$13,3,0))) -> 11556 | Q46: =IF($C$2="Both",INDEX(INDIRECT(CONCATENATE("'LA SIMD 10 ",$C$1,"'!$C$8:$Dr$71")),'CA SIMD dist data'!$M46+VLOOKUP("Female",$I$2:$J$3,2,0),'CA SIMD dist data'!Q$15+VLOOKUP($C$3,$E$2:$G$13,3,0))+INDEX(INDIRECT(CONCATENATE("'LA SIMD 10 ",$C$1,"'!$C$8:$Dr$71")),'CA SIMD dist data'!$M46+VLOOKUP("Male",$I$2:$J$3,2,0),'CA SIMD dist data'!Q$15+VLOOKUP($C$3,$E$2:$G$13,3,0)),INDEX(INDIRECT(CONCATENATE("'LA SIMD 10 ",$C$1,"'!$C$8:$Dr$71")),'CA SIMD dist data'!$M46+VLOOKUP($C$2,$I$2:$J$3,2,0),'CA SIMD dist data'!Q$15+VLOOKUP($C$3,$E$2:$G$13,3,0))) -> 7444 | R46: =IF($C$2="Both",INDEX(INDIRECT(CONCATENATE("'LA SIMD 10 ",$C$1,"'!$C$8:$Dr$71")),'CA SIMD dist data'!$M46+VLOOKUP("Female",$I$2:$J$3,2,0),'CA SIMD dist data'!R$15+VLOOKUP($C$3,$E$2:$G$13,3,0))+INDEX(INDIRECT(CONCATENATE("'LA SIMD 10 ",$C$1,"'!$C$8:$Dr$71")),'CA SIMD dist data'!$M46+VLOOKUP("Male",$I$2:$J$3,2,0),'CA SIMD dist data'!R$15+VLOOKUP($C$3,$E$2:$G$13,3,0)),INDEX(INDIRECT(CONCATENATE("'LA SIMD 10 ",$C$1,"'!$C$8:$Dr$71")),'CA SIMD dist data'!$M46+VLOOKUP($C$2,$I$2:$J$3,2,0),'CA SIMD dist data'!R$15+VLOOKUP($C$3,$E$2:$G$13,3,0))) -> 6510 | S46: =IF($C$2="Both",INDEX(INDIRECT(CONCATENATE("'LA SIMD 10 ",$C$1,"'!$C$8:$Dr$71")),'CA SIMD dist data'!$M46+VLOOKUP("Female",$I$2:$J$3,2,0),'CA SIMD dist data'!S$15+VLOOKUP($C$3,$E$2:$G$13,3,0))+INDEX(INDIRECT(CONCATENATE("'LA SIMD 10 ",$C$1,"'!$C$8:$Dr$71")),'CA SIMD dist data'!$M46+VLOOKUP("Male",$I$2:$J$3,2,0),'CA SIMD dist data'!S$15+VLOOKUP($C$3,$E$2:$G$13,3,0)),INDEX(INDIRECT(CONCATENATE("'LA SIMD 10 ",$C$1,"'!$C$8:$Dr$71")),'CA SIMD dist data'!$M46+VLOOKUP($C$2,$I$2:$J$3,2,0),'CA SIMD dist data'!S$15+VLOOKUP($C$3,$E$2:$G$13,3,0))) -> 3859 | T46: =IF($C$2="Both",INDEX(INDIRECT(CONCATENATE("'LA SIMD 10 ",$C$1,"'!$C$8:$Dr$71")),'CA SIMD dist data'!$M46+VLOOKUP("Female",$I$2:$J$3,2,0),'CA SIMD dist data'!T$15+VLOOKUP($C$3,$E$2:$G$13,3,0))+INDEX(INDIRECT(CONCATENATE("'LA SIMD 10 ",$C$1,"'!$C$8:$Dr$71")),'CA SIMD dist data'!$M46+VLOOKUP("Male",$I$2:$J$3,2,0),'CA SIMD dist data'!T$15+VLOOKUP($C$3,$E$2:$G$13,3,0)),INDEX(INDIRECT(CONCATENATE("'LA SIMD 10 ",$C$1,"'!$C$8:$Dr$71")),'CA SIMD dist data'!$M46+VLOOKUP($C$2,$I$2:$J$3,2,0),'CA SIMD dist data'!T$15+VLOOKUP($C$3,$E$2:$G$13,3,0))) -> 2988 | U46: =IF($C$2="Both",INDEX(INDIRECT(CONCATENATE("'LA SIMD 10 ",$C$1,"'!$C$8:$Dr$71")),'CA SIMD dist data'!$M46+VLOOKUP("Female",$I$2:$J$3,2,0),'CA SIMD dist data'!U$15+VLOOKUP($C$3,$E$2:$G$13,3,0))+INDEX(INDIRECT(CONCATENATE("'LA SIMD 10 ",$C$1,"'!$C$8:$Dr$71")),'CA SIMD dist data'!$M46+VLOOKUP("Male",$I$2:$J$3,2,0),'CA SIMD dist data'!U$15+VLOOKUP($C$3,$E$2:$G$13,3,0)),INDEX(INDIRECT(CONCATENATE("'LA SIMD 10 ",$C$1,"'!$C$8:$Dr$71")),'CA SIMD dist data'!$M46+VLOOKUP($C$2,$I$2:$J$3,2,0),'CA SIMD dist data'!U$15+VLOOKUP($C$3,$E$2:$G$13,3,0))) -> 3800 | V46: =IF($C$2="Both",INDEX(INDIRECT(CONCATENATE("'LA SIMD 10 ",$C$1,"'!$C$8:$Dr$71")),'CA SIMD dist data'!$M46+VLOOKUP("Female",$I$2:$J$3,2,0),'CA SIMD dist data'!V$15+VLOOKUP($C$3,$E$2:$G$13,3,0))+INDEX(INDIRECT(CONCATENATE("'LA SIMD 10 ",$C$1,"'!$C$8:$Dr$71")),'CA SIMD dist data'!$M46+VLOOKUP("Male",$I$2:$J$3,2,0),'CA SIMD dist data'!V$15+VLOOKUP($C$3,$E$2:$G$13,3,0)),INDEX(INDIRECT(CONCATENATE("'LA SIMD 10 ",$C$1,"'!$C$8:$Dr$71")),'CA SIMD dist data'!$M46+VLOOKUP($C$2,$I$2:$J$3,2,0),'CA SIMD dist data'!V$15+VLOOKUP($C$3,$E$2:$G$13,3,0))) -> 2064 | W46: =IF($C$2="Both",INDEX(INDIRECT(CONCATENATE("'LA SIMD 10 ",$C$1,"'!$C$8:$Dr$71")),'CA SIMD dist data'!$M46+VLOOKUP("Female",$I$2:$J$3,2,0),'CA SIMD dist data'!W$15+VLOOKUP($C$3,$E$2:$G$13,3,0))+INDEX(INDIRECT(CONCATENATE("'LA SIMD 10 ",$C$1,"'!$C$8:$Dr$71")),'CA SIMD dist data'!$M46+VLOOKUP("Male",$I$2:$J$3,2,0),'CA SIMD dist data'!W$15+VLOOKUP($C$3,$E$2:$G$13,3,0)),INDEX(INDIRECT(CONCATENATE("'LA SIMD 10 ",$C$1,"'!$C$8:$Dr$71")),'CA SIMD dist data'!$M46+VLOOKUP($C$2,$I$2:$J$3,2,0),'CA SIMD dist data'!W$15+VLOOKUP($C$3,$E$2:$G$13,3,0))) -> 1114 | X46: =IF($C$2="Both",INDEX(INDIRECT(CONCATENATE("'LA SIMD 10 ",$C$1,"'!$C$8:$Dr$71")),'CA SIMD dist data'!$M46+VLOOKUP("Female",$I$2:$J$3,2,0),'CA SIMD dist data'!X$15+VLOOKUP($C$3,$E$2:$G$13,3,0))+INDEX(INDIRECT(CONCATENATE("'LA SIMD 10 ",$C$1,"'!$C$8:$Dr$71")),'CA SIMD dist data'!$M46+VLOOKUP("Male",$I$2:$J$3,2,0),'CA SIMD dist data'!X$15+VLOOKUP($C$3,$E$2:$G$13,3,0)),INDEX(INDIRECT(CONCATENATE("'LA SIMD 10 ",$C$1,"'!$C$8:$Dr$71")),'CA SIMD dist data'!$M46+VLOOKUP($C$2,$I$2:$J$3,2,0),'CA SIMD dist data'!X$15+VLOOKUP($C$3,$E$2:$G$13,3,0))) -> 692 | Z46: West Dunbartonshire | AA46: 0.03765575791 | AB46: 0.01644823643 | AC46: 0.02154521751 | AD46: 0.03497615262 | AE46: 0.0407227616 | AF46: -0.02671009772 | AG46: 0.002374043788 | AH46: 0.01825357671 | AI46: 0.01180744777 | AJ46: 0.005813953488
A47: West Lothian | B47: 4817 | C47: 9952 | D47: 14452 | E47: 10550 | F47: 10418 | G47: 8451 | H47: 10521 | I47: 6373 | J47: 11019 | K47: 6249 | M47: 32 | N47: West Lothian | O47: =IF($C$2="Both",INDEX(INDIRECT(CONCATENATE("'LA SIMD 10 ",$C$1,"'!$C$8:$Dr$71")),'CA SIMD dist data'!$M47+VLOOKUP("Female",$I$2:$J$3,2,0),'CA SIMD dist data'!O$15+VLOOKUP($C$3,$E$2:$G$13,3,0))+INDEX(INDIRECT(CONCATENATE("'LA SIMD 10 ",$C$1,"'!$C$8:$Dr$71")),'CA SIMD dist data'!$M47+VLOOKUP("Male",$I$2:$J$3,2,0),'CA SIMD dist data'!O$15+VLOOKUP($C$3,$E$2:$G$13,3,0)),INDEX(INDIRECT(CONCATENATE("'LA SIMD 10 ",$C$1,"'!$C$8:$Dr$71")),'CA SIMD dist data'!$M47+VLOOKUP($C$2,$I$2:$J$3,2,0),'CA SIMD dist data'!O$15+VLOOKUP($C$3,$E$2:$G$13,3,0))) -> 4854 | P47: =IF($C$2="Both",INDEX(INDIRECT(CONCATENATE("'LA SIMD 10 ",$C$1,"'!$C$8:$Dr$71")),'CA SIMD dist data'!$M47+VLOOKUP("Female",$I$2:$J$3,2,0),'CA SIMD dist data'!P$15+VLOOKUP($C$3,$E$2:$G$13,3,0))+INDEX(INDIRECT(CONCATENATE("'LA SIMD 10 ",$C$1,"'!$C$8:$Dr$71")),'CA SIMD dist data'!$M47+VLOOKUP("Male",$I$2:$J$3,2,0),'CA SIMD dist data'!P$15+VLOOKUP($C$3,$E$2:$G$13,3,0)),INDEX(INDIRECT(CONCATENATE("'LA SIMD 10 ",$C$1,"'!$C$8:$Dr$71")),'CA SIMD dist data'!$M47+VLOOKUP($C$2,$I$2:$J$3,2,0),'CA SIMD dist data'!P$15+VLOOKUP($C$3,$E$2:$G$13,3,0))) -> 10059 | Q47: =IF($C$2="Both",INDEX(INDIRECT(CONCATENATE("'LA SIMD 10 ",$C$1,"'!$C$8:$Dr$71")),'CA SIMD dist data'!$M47+VLOOKUP("Female",$I$2:$J$3,2,0),'CA SIMD dist data'!Q$15+VLOOKUP($C$3,$E$2:$G$13,3,0))+INDEX(INDIRECT(CONCATENATE("'LA SIMD 10 ",$C$1,"'!$C$8:$Dr$71")),'CA SIMD dist data'!$M47+VLOOKUP("Male",$I$2:$J$3,2,0),'CA SIMD dist data'!Q$15+VLOOKUP($C$3,$E$2:$G$13,3,0)),INDEX(INDIRECT(CONCATENATE("'LA SIMD 10 ",$C$1,"'!$C$8:$Dr$71")),'CA SIMD dist data'!$M47+VLOOKUP($C$2,$I$2:$J$3,2,0),'CA SIMD dist data'!Q$15+VLOOKUP($C$3,$E$2:$G$13,3,0))) -> 14639 | R47: =IF($C$2="Both",INDEX(INDIRECT(CONCATENATE("'LA SIMD 10 ",$C$1,"'!$C$8:$Dr$71")),'CA SIMD dist data'!$M47+VLOOKUP("Female",$I$2:$J$3,2,0),'CA SIMD dist data'!R$15+VLOOKUP($C$3,$E$2:$G$13,3,0))+INDEX(INDIRECT(CONCATENATE("'LA SIMD 10 ",$C$1,"'!$C$8:$Dr$71")),'CA SIMD dist data'!$M47+VLOOKUP("Male",$I$2:$J$3,2,0),'CA SIMD dist data'!R$15+VLOOKUP($C$3,$E$2:$G$13,3,0)),INDEX(INDIRECT(CONCATENATE("'LA SIMD 10 ",$C$1,"'!$C$8:$Dr$71")),'CA SIMD dist data'!$M47+VLOOKUP($C$2,$I$2:$J$3,2,0),'CA SIMD dist data'!R$15+VLOOKUP($C$3,$E$2:$G$13,3,0))) -> 10494 | S47: =IF($C$2="Both",INDEX(INDIRECT(CONCATENATE("'LA SIMD 10 ",$C$1,"'!$C$8:$Dr$71")),'CA SIMD dist data'!$M47+VLOOKUP("Female",$I$2:$J$3,2,0),'CA SIMD dist data'!S$15+VLOOKUP($C$3,$E$2:$G$13,3,0))+INDEX(INDIRECT(CONCATENATE("'LA SIMD 10 ",$C$1,"'!$C$8:$Dr$71")),'CA SIMD dist data'!$M47+VLOOKUP("Male",$I$2:$J$3,2,0),'CA SIMD dist data'!S$15+VLOOKUP($C$3,$E$2:$G$13,3,0)),INDEX(INDIRECT(CONCATENATE("'LA SIMD 10 ",$C$1,"'!$C$8:$Dr$71")),'CA SIMD dist data'!$M47+VLOOKUP($C$2,$I$2:$J$3,2,0),'CA SIMD dist data'!S$15+VLOOKUP($C$3,$E$2:$G$13,3,0))) -> 10401 | T47: =IF($C$2="Both",INDEX(INDIRECT(CONCATENATE("'LA SIMD 10 ",$C$1,"'!$C$8:$Dr$71")),'CA SIMD dist data'!$M47+VLOOKUP("Female",$I$2:$J$3,2,0),'CA SIMD dist data'!T$15+VLOOKUP($C$3,$E$2:$G$13,3,0))+INDEX(INDIRECT(CONCATENATE("'LA SIMD 10 ",$C$1,"'!$C$8:$Dr$71")),'CA SIMD dist data'!$M47+VLOOKUP("Male",$I$2:$J$3,2,0),'CA SIMD dist data'!T$15+VLOOKUP($C$3,$E$2:$G$13,3,0)),INDEX(INDIRECT(CONCATENATE("'LA SIMD 10 ",$C$1,"'!$C$8:$Dr$71")),'CA SIMD dist data'!$M47+VLOOKUP($C$2,$I$2:$J$3,2,0),'CA SIMD dist data'!T$15+VLOOKUP($C$3,$E$2:$G$13,3,0))) -> 8465 | U47: =IF($C$2="Both",INDEX(INDIRECT(CONCATENATE("'LA SIMD 10 ",$C$1,"'!$C$8:$Dr$71")),'CA SIMD dist data'!$M47+VLOOKUP("Female",$I$2:$J$3,2,0),'CA SIMD dist data'!U$15+VLOOKUP($C$3,$E$2:$G$13,3,0))+INDEX(INDIRECT(CONCATENATE("'LA SIMD 10 ",$C$1,"'!$C$8:$Dr$71")),'CA SIMD dist data'!$M47+VLOOKUP("Male",$I$2:$J$3,2,0),'CA SIMD dist data'!U$15+VLOOKUP($C$3,$E$2:$G$13,3,0)),INDEX(INDIRECT(CONCATENATE("'LA SIMD 10 ",$C$1,"'!$C$8:$Dr$71")),'CA SIMD dist data'!$M47+VLOOKUP($C$2,$I$2:$J$3,2,0),'CA SIMD dist data'!U$15+VLOOKUP($C$3,$E$2:$G$13,3,0))) -> 10542 | V47: =IF($C$2="Both",INDEX(INDIRECT(CONCATENATE("'LA SIMD 10 ",$C$1,"'!$C$8:$Dr$71")),'CA SIMD dist data'!$M47+VLOOKUP("Female",$I$2:$J$3,2,0),'CA SIMD dist data'!V$15+VLOOKUP($C$3,$E$2:$G$13,3,0))+INDEX(INDIRECT(CONCATENATE("'LA SIMD 10 ",$C$1,"'!$C$8:$Dr$71")),'CA SIMD dist data'!$M47+VLOOKUP("Male",$I$2:$J$3,2,0),'CA SIMD dist data'!V$15+VLOOKUP($C$3,$E$2:$G$13,3,0)),INDEX(INDIRECT(CONCATENATE("'LA SIMD 10 ",$C$1,"'!$C$8:$Dr$71")),'CA SIMD dist data'!$M47+VLOOKUP($C$2,$I$2:$J$3,2,0),'CA SIMD dist data'!V$15+VLOOKUP($C$3,$E$2:$G$13,3,0))) -> 6280 | W47: =IF($C$2="Both",INDEX(INDIRECT(CONCATENATE("'LA SIMD 10 ",$C$1,"'!$C$8:$Dr$71")),'CA SIMD dist data'!$M47+VLOOKUP("Female",$I$2:$J$3,2,0),'CA SIMD dist data'!W$15+VLOOKUP($C$3,$E$2:$G$13,3,0))+INDEX(INDIRECT(CONCATENATE("'LA SIMD 10 ",$C$1,"'!$C$8:$Dr$71")),'CA SIMD dist data'!$M47+VLOOKUP("Male",$I$2:$J$3,2,0),'CA SIMD dist data'!W$15+VLOOKUP($C$3,$E$2:$G$13,3,0)),INDEX(INDIRECT(CONCATENATE("'LA SIMD 10 ",$C$1,"'!$C$8:$Dr$71")),'CA SIMD dist data'!$M47+VLOOKUP($C$2,$I$2:$J$3,2,0),'CA SIMD dist data'!W$15+VLOOKUP($C$3,$E$2:$G$13,3,0))) -> 10798 | X47: =IF($C$2="Both",INDEX(INDIRECT(CONCATENATE("'LA SIMD 10 ",$C$1,"'!$C$8:$Dr$71")),'CA SIMD dist data'!$M47+VLOOKUP("Female",$I$2:$J$3,2,0),'CA SIMD dist data'!X$15+VLOOKUP($C$3,$E$2:$G$13,3,0))+INDEX(INDIRECT(CONCATENATE("'LA SIMD 10 ",$C$1,"'!$C$8:$Dr$71")),'CA SIMD dist data'!$M47+VLOOKUP("Male",$I$2:$J$3,2,0),'CA SIMD dist data'!X$15+VLOOKUP($C$3,$E$2:$G$13,3,0)),INDEX(INDIRECT(CONCATENATE("'LA SIMD 10 ",$C$1,"'!$C$8:$Dr$71")),'CA SIMD dist data'!$M47+VLOOKUP($C$2,$I$2:$J$3,2,0),'CA SIMD dist data'!X$15+VLOOKUP($C$3,$E$2:$G$13,3,0))) -> 6156 | Z47: West Lothian | AA47: 0.007681129334 | AB47: 0.01075160772 | AC47: 0.01293938555 | AD47: -0.005308056872 | AE47: -0.001631791131 | AF47: 0.001656608685 | AG47: 0.001996007984 | AH47: -0.01459281343 | AI47: -0.02005626645 | AJ47: -0.01488238118
A50: Box plot data
A52: CA | C52: SIMD | D52: Percentage difference between ABPE and MYE
A53: 1 | B53: 1 | C53: =IF(B53=1,"SIMD 1 - Most deprived",IF(B53=10,"SIMD 10 - Least deprived",CONCATENATE("SIMD ",B53))) -> SIMD 1 - Most deprived | D53: =IF(INDEX($AA$16:$AJ$47,A53,B53)="",NA(),INDEX($AA$16:$AJ$47,A53,B53)) -> 0.1129831516
A54: =A53+1 -> 2 | B54: 1 | C54: =IF(B54=1,"SIMD 1 - Most deprived",IF(B54=10,"SIMD 10 - Least deprived",CONCATENATE("SIMD ",B54))) -> SIMD 1 - Most deprived | D54: =IF(INDEX($AA$16:$AJ$47,A54,B54)="",NA(),INDEX($AA$16:$AJ$47,A54,B54)) -> 0.1282608696
A55: =A54+1 -> 3 | B55: 1 | C55: SIMD 1 - Most deprived | D55: 0.08664772727
A56: 4 | B56: 1 | C56: SIMD 1 - Most deprived | D56: 0.03098591549
A57: 5 | B57: 1 | C57: SIMD 1 - Most deprived | D57: 0.05223678876
A58: 6 | B58: 1 | C58: SIMD 1 - Most deprived | D58: 0.06469186244
A59: 7 | B59: 1 | C59: SIMD 1 - Most deprived | D59: 0.01018493701
A60: 8 | B60: 1 | C60: SIMD 1 - Most deprived | D60: 0.02611311673
A61: 9 | B61: 1 | C61: SIMD 1 - Most deprived | D61: 0.01431340391
A62: 10 | B62: 1 | C62: SIMD 1 - Most deprived | D62: 0.03719008264
A63: 11 | B63: 1 | C63: SIMD 1 - Most deprived
A64: 12 | B64: 1 | C64: SIMD 1 - Most deprived | D64: -0.008510638298
A65: 13 | B65: 1 | C65: SIMD 1 - Most deprived | D65: 0.0008764241893
A66: 14 | B66: 1 | C66: SIMD 1 - Most deprived | D66: 0.05625531257
A67: 15 | B67: 1 | C67: SIMD 1 - Most deprived | D67: 0.03789044506
A68: 16 | B68: 1 | C68: SIMD 1 - Most deprived | D68: 0.02327806122
A69: 17 | B69: 1 | C69: SIMD 1 - Most deprived | D69: -0.006997142012
A70: 18 | B70: 1 | C70: SIMD 1 - Most deprived | D70: 0.01907356948
A71: 19 | B71: 1 | C71: SIMD 1 - Most deprived
A72: 20 | B72: 1 | C72: SIMD 1 - Most deprived
A73: 21 | B73: 1 | C73: SIMD 1 - Most deprived | D73: 0.002207144609
A74: 22 | B74: 1 | C74: SIMD 1 - Most deprived | D74: 0.01201071459
A75: 23 | B75: 1 | C75: SIMD 1 - Most deprived
A76: 24 | B76: 1 | C76: SIMD 1 - Most deprived | D76: 0.06825749168
A77: 25 | B77: 1 | C77: SIMD 1 - Most deprived | D77: 0.01622089251
A78: 26 | B78: 1 | C78: SIMD 1 - Most deprived | D78: 0.02508551881
A79: 27 | B79: 1 | C79: SIMD 1 - Most deprived
A80: 28 | B80: 1 | C80: SIMD 1 - Most deprived | D80: 0.02032871972
A81: 29 | B81: 1 | C81: SIMD 1 - Most deprived | D81: 0.03366718957
A82: 30 | B82: 1 | C82: SIMD 1 - Most deprived | D82: 0.0343365833
A83: 31 | B83: 1 | C83: SIMD 1 - Most deprived | D83: 0.03765575791
A84: 32 | B84: 1 | C84: SIMD 1 - Most deprived | D84: 0.007681129334
